Workbook

Sheet BDD
A1: Mle | B1: Nom | D1: Mail | F1: Config PC | G1: Date d'intégration | H1: Mois | I1: Détail Ancienneté | J1: CONTRAT | K1: TOUR | L1: Login | M1: Adresse | N1: Numero
A2: 1021 | B2: Rojo Mampionona RANDRIANARIVELO | C2: Rojo | D2: r.randrianarivelo@etechconsulting-mg.com | F2: Win10/RAM 8Go/Corei3 | G2: 2021-03-12 | H2: =IF(G2="","-",IF(AND(DATEDIF(G2,TODAY(),"ym")>=1,DATEDIF(G2,TODAY(),"ym")<3)," 1 à 3 mois",IF(DATEDIF(G2,TODAY(),"ym")>=3," Plus de 3 Mois"," < 1 Mois"))) -> Plus de 3 Mois | I2: =IF($G2="","", DATEDIF($G2,TODAY(),"y")&" an "&DATEDIF($G2,TODAY(),"ym")&" mois "&(DATEDIF($G2,TODAY(),"md")&" jours ")) -> 0 an 9 mois 9 jours | J2: Jour | K2: T 15 | L2: codage1@devloop.onmicrosoft.com | M2: Ambohitrimanjaka | N2: 034 70 785 65
A3: 1071 | B3: RAKOTOMALALA Mamy Tsilavina | C3: Mamy Tsilavina | D3: t.rakotomalala@etechconsulting-mg.com | F3: Win10/RAM 4Go/Corei3 | G3: 2021-06-07 | H3: Plus de 3 Mois | I3: 0 an 6 mois 14 jours | J3: Rotation | K3: T 3 | L3: codage8@devloop92.onmicrosoft.com | M3: Ambodimita Ambohimanarina | N3: 032 96 187 17
A4: 1072 | B4: RAKOTOMAVO Andrianarija | C4: Rija | D4: a.rakotomavo@etechconsulting-mg.com | F4: Win10/RAM 8Go/Corei3 | G4: 2021-06-07 | H4: Plus de 3 Mois | I4: 0 an 6 mois 14 jours | J4: Jour | K4: T 6 | L4: codage7@devloop92.onmicrosoft.com
A5: MI-6 | B5: RAKOTOASIMBOLA Toavina Jery | C5: Toavina | D5: j.rakotoasimbola@etechconsulting-mg.com | F5: Win10/RAM 8Go/Corei3 | G5: 2021-07-08 | H5: Plus de 3 Mois | I5: 0 an 5 mois 13 jours | J5: Mi-temps | K5: T 6 | L5: codage13@devloop92.onmicrosoft.com | M5: Mandroseza | N5: 034 97 698 00
A6: MI-7 | B6: RAZAFIMAHATRATRA Mamy Herilanto | C6: Mamy Herilanto | D6: h.razafimahatratra@etechconsulting-mg.com | F6: WIN10/RAM 8Go/Corei3 | G6: 2021-07-08 | H6: Plus de 3 Mois | I6: 0 an 5 mois 13 jours | J6: Rotation | K6: T 6 | L6: codage14@devloop92.onmicrosoft.com | M6: Andavamamba Anatihazo | N6: 033 71 636 59
A7: 1083 | B7: FALINIRINA Antsa Fitahiana | C7: Antsa | D7: f.falinirina@etechconsulting-mg.com | F7: Win7/RAM 3Go/Core2Duo | G7: 2021-06-30 | H7: Plus de 3 Mois | I7: 0 an 5 mois 21 jours | J7: Jour | K7: T 3 | L7: codage11@devloop92.onmicrosoft.com | M7: Amboditsiry | N7: 034 80 843 13
A8: 1085 | B8: RAZAFIMANDIMBY Faraniaina Sandri Fabio Linda | C8: Linda | D8: l.razafimandimby@etechconsulting-mg.com | F8: Win7/RAM 4Go/Core2Duo | G8: 2021-06-30 | H8: Plus de 3 Mois | I8: 0 an 5 mois 21 jours | J8: ALL. | K8: T 6 | L8: codage9@devloop92.onmicrosoft.com | M8: Ambohidroa | N8: 034 17 958 03
A9: 1089 | B9: RAJAONARIVELO Njaraniaina Lovasoa Malalatiana | C9: Njara | D9: l.rajaonarivelo@etechconsulting-mg.com | F9: Win10/RAM 8Go/Corei3 | G9: 2021-06-30 | H9: Plus de 3 Mois | I9: 0 an 5 mois 21 jours | J9: Rotation | K9: T 6 | L9: codage13@devloop92.onmicrosoft.com | M9: Isaingy Ampanefy | N9: 034 83 587 06
A10: 1114 | B10: RABENJANAHARY Fanomezantsoa | C10: Fanomezantsoa | D10: f.rabenjanahary@etechconsulting-mg.com | F10: Win7/RAM 3Go/Core2Duo | G10: 2021-07-27 | H10: Plus de 3 Mois | I10: 0 an 4 mois 24 jours | J10: Rotation | K10: T 15 | L10: codage14@devloop92.onmicrosoft.com | M10: Faliarivo Ampitatafika | N10: 034 68 142 32
A11: 1116 | B11: RAVONIAINA Fenotoky Jean Baptiste | C11: Fenotoky | D11: b.ravoniaina@etechconsulting-mg.com | F11: Win7/RAM 3Go/Core2Duo | G11: 2021-07-27 | H11: Plus de 3 Mois | I11: 0 an 4 mois 24 jours | J11: Rotation | K11: T 3 | L11: codage13@devloop92.onmicrosoft.com | M11: Saropody tanjombato | N11: 034 20 865 36
A12: 1122 | B12: RAKOTOARIVONY Manitrarilala Josephson Rosa | C12: Manitra | D12: r.rakotoarivony@etechconsulting-mg.com | F12: Win10/RAM 4Go/Corei3 | G12: 2021-09-06 | H12: Plus de 3 Mois | I12: 0 an 3 mois 15 jours | J12: Rotation | K12: T 15 | L12: codage10@devloop92.onmicrosoft.com | M12: Amboditsiry | N12: 034 16 622 88
A13: 1121 | B13: RABEARIMALANTO Tsimbanavalona Hanitriniela | C13: Niela | D13: h.rabearimalanto@etechconsulting-mg.com | F13: Win10/RAM 4Go/Corei3 | G13: 2021-09-06 | H13: Plus de 3 Mois | I13: 0 an 3 mois 15 jours | J13: ALL. | K13: T 15 | L13: codage6@devloop92.onmicrosoft.com
A14: 1123 | B14: RAVAOARIMANANA Sarindra | C14: Sarindra | D14: s.ravaoarimanana@etechconsulting-mg.com | F14: Win10/RAM 4Go/Corei3 | G14: 2021-09-06 | H14: Plus de 3 Mois | I14: =DATEDIF($G14,TODAY(),"y")&" an "&DATEDIF($G14,TODAY(),"ym")&" mois "&(DATEDIF($G14,TODAY(),"md")&" jours ") -> 0 an 3 mois 15 jours | J14: Rotation | K14: T 15 | L14: codage4@devloop.onmicrosoft.com | M14: Anosisoa Ambohimanarina | N14: 034 41 791 15
A17: 316 | B17: Volana RAHANTANARIVO | C17: Volana | D17: v.rahantanarivo@etechconsulting-mg.com | F17: Win10/RAM 8Go/Corei5 | G17: 42278 | H17: =IF(G17="","-",IF(AND(DATEDIF(G17,TODAY(),"ym")>=1,DATEDIF(G17,TODAY(),"ym")<3)," 1 à 3 mois",IF(DATEDIF(G17,TODAY(),"ym")>=3," Plus de 3 Mois"," < 1 Mois"))) -> 1 à 3 mois | I17: =IF($G17="","", DATEDIF($G17,TODAY(),"y")&" an "&DATEDIF($G17,TODAY(),"ym")&" mois "&(DATEDIF($G17,TODAY(),"md")&" jours ")) -> 6 an 2 mois 20 jours | J17: ALL. | L17: codage2@devloop.onmicrosoft.com
B18: RAKOTOARIMANANA Gaël Cedrick | C18: Cedrick | H18: -
A19: 821 | B19: RAKOTOARIVONJY Nandrianina Jean Christian | C19: Chris | D19: c.rakotoarivony@etechconsulting-mg.com | F19: Win10/RAM 8Go/Corei5 | G19: 43629 | H19: Plus de 3 Mois | I19: =IF($G19="","", DATEDIF($G19,TODAY(),"y")&" an "&DATEDIF($G19,TODAY(),"ym")&" mois "&(DATEDIF($G19,TODAY(),"md")&" jours ")) -> 2 an 6 mois 8 jours | J19: Rotation | K19: T 15
A20: 1127 | B20: RAVELOJAONA Mihobiarinasy Isaielle | C20: Départ 4/10 | D20: i.ravelojaona@etechconsulting-mg.com | H20: - | I20: =IF($G20="","", DATEDIF($G20,TODAY(),"y")&" an "&DATEDIF($G20,TODAY(),"ym")&" mois "&(DATEDIF($G20,TODAY(),"md")&" jours ")) ->  | J20: Rotation | K20: T 3
A21: 1115 | B21: RANDRIANARIVELO Tahina Julien | C21: Départ 29/10 | D21: j.randrianarivelo@etechconsulting-mg.com | F21: WIN10/RAM 8Go/Corei3 | G21: 44377 | H21: Plus de 3 Mois | I21: =IF($G21="","", DATEDIF($G21,TODAY(),"y")&" an "&DATEDIF($G21,TODAY(),"ym")&" mois "&(DATEDIF($G21,TODAY(),"md")&" jours ")) -> 0 an 5 mois 21 jours | J21: Rotation | K21: T 6 | L21: codage12@devloop92.onmicrosoft.com | M21: Namontana | N21: 034 43 865 25
A22: 996 | B22: RAJAONA ANDRIANJAFITRIMO Rakotondrazaka | C22: Andry | D22: r.rajaona@etechconsulting-mg.com | F22: Win10/RAM 8Go/Corei5 | G22: 44228 | H22: Plus de 3 Mois | I22: =IF($G22="","", DATEDIF($G22,TODAY(),"y")&" an "&DATEDIF($G22,TODAY(),"ym")&" mois "&(DATEDIF($G22,TODAY(),"md")&" jours ")) -> 0 an 10 mois 20 jours | J22: Rotation | M22: Talatamaty | N22: 034 47 710 52

Sheet Input
A1: Objectifs production
B2: Août | C2: Septembre | D2: Octobre | E2: Novembre | F2: Décembre
A3: Objectif | B3: Prod/h | C3: Prod/h | D3: Prod/h | E3: Prod/h | F3: Prod/h
A4: Global | B4: =MAX(B6:B8) -> 75 | C4: =MAX(C6:C8) -> 80 | D4: =MAX(D6:D8) -> 85 | E4: =MAX(E6:E8) -> 90 | F4: =MAX(F6:F8) -> 90
B5: ="01:00:00"/B$4 -> 0.0005555555556 | C5: ="01:00:00"/C$4 -> 0.0005208333333 | D5: ="01:00:00"/D$4 -> 0.0004901960784 | E5: ="01:00:00"/E$4 -> 0.000462962963 | F5: ="01:00:00"/F$4 -> 0.000462962963
A6: Plus de 3 Mois | B6: 75 | C6: =B6+5 -> 80 | D6: =C6+5 -> 85 | E6: =D6+5 -> 90 | F6: 90
A7: 1 à 3 mois | B7: 70 | C7: =B7+5 -> 75 | D7: 80 | E7: 85 | F7: 90
A8: < 1 Mois | B8: 65 | C8: 70 | D8: 75 | E8: 80 | F8: 85
A11: Savoir faire
A12: Critères d'évaluation | B12: Définition | C12: Insatisfaisant | D12: A améliorer | E12: Satisfaisant | F12: Très satisfaisant
A13: Savoir faire | B13: Pondération 55% | C13: 0.1 | D13: 0.3 | E13: 0.5 | F13: 0.55
A14: Connaissance techniques | B14: Connaissance des concepts de base et des principaux outils relatifs aux missions exercées | C14: Besoin permanent d'assistance | D14: A besoin de consignes complémentaires et d'assistance ponctuelle | E14: A rarement besoin de consignes complémentaires | F14: Travaille de façon autonome
A15: Fiabilité et qualité de son activité | B15: Niveau de conformité des opérations (Traitement) | C15: Fait fréquemment des erreurs, exige une surveillance permanente | D15: Produit un travail qu'il faut contrôler régulièrement | E15: Fait des erreurs minimes, prévient sa hiérarchie et propose des solutions | F15: Travaille sans erreur
A16: Efficacité | B16: Atteinte des objectifs | C16: Tendance des résultats quantitafis non progressive | D16: A une tendance progressive en dessous des objectifs | E16: Atteint les objectifs | F16: Dépasse les objectifs
A17: Développement des compétences | B17: Souci de la conservation et du développement de ses compétences professionnelles | C17: Reste sur ses acquis, refuse de se former | D17: En veille professionnelle sur demande, s'en tient aux formations obligatoires | E17: En veille professionnelle ponctuelle, se forme comme il convient pour être adapté à son poste/sa fonction | F17: En veille professionnelle constante, se forme régulièrement, anticipe les évolutions de son emploi
A18: Respect des consignes et/ou directives : | B18: Ordre d'exécution, règlement intérieur, hygiène/sécurité, etc. | C18: Ne respecte pas les consignes | D18: Respecte les consignes partiellement | E18: Applique et respecte les consignes | F18: Applique et respecte totalement les consignes, agit de façon préventive auprès de son entourage
A20: Savoir être
A21: Critères d'évaluation | B21: Définition | C21: Insatisfaisant | D21: A améliorer | E21: Satisfaisant | F21: Très satisfaisant
A22: Savoir être | B22: Pondération 30% | C22: 0.05 | D22: 0.1 | E22: 0.2 | F22: 0.3
A23: Prise d'initiative | B23: Capacité à prendre seul des décisions permettant l’amélioration de son activité. | C23: Ne prend jamais d'initiative, ne fait aucune proposition | D23: Prend peu d'initiatives, émet rarement des propositions | E23: Prend des initiatives et fait des propositions à sa hiérarchie ou ses collègues | F23: Prend de bonnes initiatives
A24: Adaptabilité et disponibilité | B24: Capacité à intégrer les évolutions conjoncturelles et/ou structurelles et à assurer la continuité du service | C24: Refuse tout changement, n'est jamais disponible | D24: Accepte peu le changement (planning, organisation, etc.), rarement disponible | E24: Va dans le sens des changements (planning, organisation) et se montre souvent disponible | F24: Elément moteur au sein du service, toujours disponible
A25: Assiduité | B25: Ponctualité, assiduité | C25: Souvent en retard (1 ou 2 fois par semaine) | D25: Parfois en retard (1 ou 2 fois par mois) | E25: Assiduité globalement constante | F25: Toujours ponctuel et assidu.
A26: Souci d'efficacité et de résultat | B26: Capacité à prendre en compte la finalité de son activité et à rechercher la qualité du service rendu | C26: Ne se soucie pas de la qualité ou des répercussions de son travail | D26: Semble indifférent aux objectifs | E26: Fournit des efforts réguliers en prenant en compte la finalité de son travail | F26: Fait son maximum de façon très consciencieuse
A28: Relation interne
A29: Critères d'évaluation | B29: Définition | C29: Insatisfaisant | D29: A améliorer | E29: Satisfaisant | F29: Très satisfaisant
A30: Relation interne | B30: Pondération 15% | C30: 0.02 | D30: 0.05 | E30: 0.1 | F30: 0.15
A31: Relation avec la hiérarchie | B31: Respect de la hiérarchie et des règles de courtoisie, rend compte de son activité | C31: Attitude irrespectueuse, ne rend pas compte de son activité | D31: Peu respectueux, peut paraître désagréable selon ses humeurs | E31: Respectueux, rend compte de son activité | F31: Toujours respectueux, rend systématiquement compte de son activité et alerte à bon escient
A32: Relation avec les collègues | B32: Respect de ses collègues et des règles de courtoisie, écoute et prise en compte des autres, solidarité professionnelle | C32: Refuse les nouvelles relations de travail (exclusif dans ses relations) | D32: Accepte avec difficulté les nouvelles relations de travail | E32: Capacité d'intégration et d'ouverture aux autres, présente une posture neutre et équitable | F32: Grande faculté d'intégration et d'ouverture aux autres, développe ses relations professionnelles internes et externes
A33: Capacité à travailler en équipe | B33: Capacité à développer des relations positives et constructives, à faire circuler l'information | C33: Ne se préoccupe pas de l'intérêt collectif, fait passer en premier son intérêt particulier | D33: Parfois individualiste, concentré sur ses tâches et ses intérêts particuliers | E33: Facilite la cohésion de l'équipe | F33: Influence positive au sein de l'équipe, souci du partage de l'information

Sheet Intégration (hidden)
B1: Planning intégration Chef d'équipe RADO
B2: =TEXT(B3,"DDDD") -> lundi | C2: =TEXT(C3,"DDDD") -> mardi | D2: =TEXT(D3,"DDDD") -> mercredi | E2: =TEXT(E3,"DDDD") -> jeudi | F2: =TEXT(F3,"DDDD") -> vendredi
B3: 2021-11-29 | C3: 2021-11-30 | D3: 2021-12-01 | E3: 2021-12-02 | F3: 2021-12-03
A4: 09h à 10h | B4: - On boarding RH | C4: - Présentation outil de pilotage et traitement CEGID + KPI's de production (Rova) | D4: - Présentation réalisation J-1 GRC et explication | E4: - Focus sur les 3 premiers jours d'intégration avec (Rova et Riantsoa) | F4: - Prise en main pilotage et Supervision GRC
A5: 10h à 12H | B5: - On boarding Prod - Présentation à léquipe | C5: Lecture des process CEGID | D5: - Séance d'observation agent GRC | E5: - Séance d'observation agent CEGID
A6: 12h à 13h | B6: Pause | C6: Pause | D6: Pause | E6: Pause | F6: Pause
A7: 13h à 15h | B7: -Préparation outil (PC/Mail/Accès au groupe …) | C7: - Présentation outil de pilotage et traitement GRC + KPI's de production (Riantsoa) | D7: - Présentation réalisation J-1 CEGID et explication | E7: - Séance d'observation agent GRC | F7: - Prise en main pilotag et Supervision CEGID
A8: 15h à 18h | B8: - Partage des process interne et Explication des attentes | C8: Lecture des process GRC | D8: - Séance d'observation agent CEGID | E8: - Séance d'observation agent GRC | F8: Point sur la semaine d'intégration avec Rova et Riantsoa

Sheet Planning
B1: =COUNTA(10:10)-6 -> 693 | C1: 09:00:00
A2: Mi-temps | B2: Total effectif | C2: 04:00:00 | KP2: =SUM(KP3:KT6) -> 11 | KU2: =SUM(KU3:KY6) -> 12 | KZ2: =SUM(KZ3:LD6) -> 11 | LE2: =SUM(LE3:LI6) -> 12 | LJ2: =SUM(LJ3:LN6) -> 12 | LO2: =SUM(LO3:LS6) -> 2 | LU2: =SUM(LU3:LY6) -> 12 | LZ2: =SUM(LZ3:MD6) -> 11 | ME2: =SUM(ME3:MI6) -> 11 | MJ2: =SUM(MJ3:MN6) -> 11 | MO2: =SUM(MO3:MS6) -> 12 | MT2: =SUM(MT3:MX6) -> 2 | MZ2: =SUM(MZ3:ND6) -> 12 | NE2: =SUM(NE3:NI6) -> 12 | NJ2: =SUM(NJ3:NN6) -> 10 | NO2: =SUM(NO3:NS6) -> 10 | NT2: =SUM(NT3:NX6) -> 11 | NY2: =SUM(NY3:OC6) -> 2 | OE2: =SUM(OE3:OI6) -> 9 | OJ2: =SUM(OJ3:ON6) -> 9 | OO2: =SUM(OO3:OS6) -> 8 | OT2: =SUM(OT3:OX6) -> 9 | OY2: =SUM(OY3:PC6) -> 9 | PD2: =SUM(PD3:PH6) -> 1 | PJ2: =SUM(PJ3:PN6) -> 0 | PO2: =SUM(PO3:PS6) -> 8 | PT2: =SUM(PT3:PX6) -> 7 | PY2: =SUM(PY3:QC6) -> 8 | QD2: =SUM(QD3:QH6) -> 7 | QI2: =SUM(QI3:QM6) -> 2 | QO2: =SUM(QN3:QR6) -> 11 | QT2: =SUM(QS3:QW6) -> 11 | QY2: =SUM(QX3:RB6) -> 10 | RD2: =SUM(RC3:RG6) -> 1 | RI2: =SUM(RH3:RL6) -> 10 | RN2: =SUM(RM3:RQ6) -> 2 | RT2: =SUM(RT3:RX6) -> 13 | RY2: =SUM(RY3:SC6) -> 13 | SD2: =SUM(SD3:SH6) -> 11 | SI2: =SUM(SI3:SM6) -> 12 | SN2: =SUM(SN3:SR6) -> 13 | SS2: =SUM(SS3:SW6) -> 2 | SY2: =SUM(SY3:TC6) -> 12 | TD2: =SUM(TD3:TH6) -> 12 | TI2: =SUM(TI3:TM6) -> 11 | TN2: =SUM(TN3:TR6) -> 13 | TS2: =SUM(TS3:TW6) -> 12 | TX2: =SUM(TX3:UB6) -> 2 | UD2: =SUM(UD3:UH6) -> 9 | UI2: =SUM(UI3:UM6) -> 9 | UO2: =SUM(UO3:US6) -> 8 | UT2: =SUM(UT3:UX6) -> 10 | UY2: =SUM(UY3:VC6) -> 9 | VD2: =SUM(VD3:VH6) -> 2 | VJ2: =SUM(VJ3:VN6) -> 12 | VO2: =SUM(VO3:VS6) -> 13 | VT2: =SUM(VT3:VX6) -> 12 | VY2: =SUM(VY3:WC6) -> 13 | WD2: =SUM(WD3:WH6) -> 12 | WI2: =SUM(WI3:WM6) -> 2 | WO2: =SUM(WO3:WS6) -> 12 | WT2: =SUM(WT3:WX6) -> 12 | WY2: =SUM(WY3:XC6) -> 10 | XD2: =SUM(XD3:XH6) -> 10 | XI2: =SUM(XI3:XM6) -> 11 | XN2: =SUM(XN3:XR6) -> 2 | XT2: =SUM(XT3:XX6) -> 10 | XY2: =SUM(XY3:YC6) -> 10 | YD2: =SUM(YD3:YH6) -> 11 | YI2: =SUM(YI3:YM6) -> 11 | YN2: =SUM(YN3:YR6) -> 11 | YS2: =SUM(YS3:YW6) -> 0 | YY2: =SUM(YY3:ZC6) -> 11 | AAC2: Dec.
A3: Pause | B3: 09:00:00 | C3: 01:00:00 | AD3: =COUNTIF(AD$11:AD$23,$B3) -> 8 | AI3: =COUNTIF(AI$11:AI$23,$B3) -> 8 | AN3: =COUNTIF(AN$11:AN$23,$B3) -> 8 | AS3: =COUNTIF(AS$11:AS$23,$B3) -> 8 | AX3: =COUNTIF(AX$11:AX$23,$B3) -> 8 | BC3: =COUNTIF(BC$11:BC$23,$B3) -> 0 | BH3: =COUNTIF(BH$11:BH$23,$B3) -> 8 | BM3: =COUNTIF(BM$11:BM$23,$B3) -> 8 | BR3: =COUNTIF(BR$11:BR$23,$B3) -> 8 | BW3: =COUNTIF(BW$11:BW$23,$B3) -> 8 | CB3: =COUNTIF(CB$11:CB$23,$B3) -> 8 | CG3: =COUNTIF(CG$11:CG$23,$B3) -> 0 | CL3: =COUNTIF(CL$11:CL$23,$B3) -> 8 | CQ3: =COUNTIF(CQ$11:CQ$23,$B3) -> 8 | CV3: =COUNTIF(CV$11:CV$23,$B3) -> 8 | DA3: =COUNTIF(DA$11:DA$23,$B3) -> 8 | DF3: =COUNTIF(DF$11:DF$23,$B3) -> 8 | DK3: =COUNTIF(DK$11:DK$23,$B3) -> 0 | DP3: =COUNTIF(DP$11:DP$23,$B3) -> 8 | DU3: =COUNTIF(DU$11:DU$23,$B3) -> 8 | DZ3: =COUNTIF(DZ$11:DZ$23,$B3) -> 8 | EE3: =COUNTIF(EE$11:EE$23,$B3) -> 8 | EJ3: =COUNTIF(EJ$11:EJ$23,$B3) -> 8 | EO3: =COUNTIF(EO$11:EO$23,$B3) -> 0 | EU3: =COUNTIF(EU$11:EU$23,$B3) -> 8 | EZ3: =COUNTIF(EZ$11:EZ$23,$B3) -> 8 | FE3: =COUNTIF(FE$11:FE$23,$B3) -> 4 | FJ3: =COUNTIF(FJ$11:FJ$23,$B3) -> 3 | FO3: =COUNTIF(FO$11:FO$23,$B3) -> 4 | FT3: =COUNTIF(FT$11:FT$23,$B3) -> 1 | FY3: =COUNTIF(FY$11:FY$23,$B3) -> 8 | GD3: =COUNTIF(GD$11:GD$23,$B3) -> 8 | GI3: =COUNTIF(GI$11:GI$23,$B3) -> 8 | GN3: =COUNTIF(GN$11:GN$23,$B3) -> 8 | GS3: =COUNTIF(GS$11:GS$23,$B3) -> 8 | GX3: =COUNTIF(GX$11:GX$23,$B3) -> 0 | HC3: =COUNTIF(HC$11:HC$23,$B3) -> 7 | HH3: =COUNTIF(HH$11:HH$23,$B3) -> 7 | HM3: =COUNTIF(HM$11:HM$23,$B3) -> 7 | HR3: =COUNTIF(HR$11:HR$23,$B3) -> 7 | HW3: =COUNTIF(HW$11:HW$23,$B3) -> 7 | IB3: =COUNTIF(IB$11:IB$23,$B3) -> 1 | IG3: =COUNTIF(IG$11:IG$23,$B3) -> 7 | IL3: =COUNTIF(IL$11:IL$23,$B3) -> 7 | IQ3: =COUNTIF(IQ$11:IQ$23,$B3) -> 6 | IV3: =COUNTIF(IV$11:IV$23,$B3) -> 7 | JA3: =COUNTIF(JA$11:JA$23,$B3) -> 6 | JF3: =COUNTIF(JF$11:JF$23,$B3) -> 1 | JK3: =COUNTIF(JK$11:JK$23,$B3) -> 5 | JP3: =COUNTIF(JP$11:JP$23,$B3) -> 6 | JU3: =COUNTIF(JU$11:JU$23,$B3) -> 4 | JZ3: =COUNTIF(JZ$11:JZ$23,$B3) -> 4 | KE3: =COUNTIF(KE$11:KE$23,$B3) -> 5 | KJ3: =COUNTIF(KJ$11:KJ$23,$B3) -> 1 | KP3: =COUNTIF(KP$11:KP$23,$B$3) -> 3 | KU3: =COUNTIF(KU$11:KU$23,$B$3) -> 4 | KZ3: =COUNTIF(KZ$11:KZ$23,$B$3) -> 4 | LE3: =COUNTIF(LE$11:LE$23,$B$3) -> 4 | LJ3: =COUNTIF(LJ$11:LJ$23,$B$3) -> 4 | LO3: =COUNTIF(LO$11:LO$23,$B$3) -> 1 | LU3: =COUNTIF(LU$11:LU$23,$B$3) -> 6 | LZ3: =COUNTIF(LZ$11:LZ$23,$B$3) -> 6 | ME3: =COUNTIF(ME$11:ME$23,$B$3) -> 5 | MJ3: =COUNTIF(MJ$11:MJ$23,$B$3) -> 5 | MO3: =COUNTIF(MO$11:MO$23,$B$3) -> 6 | MT3: =COUNTIF(MT$11:MT$23,$B$3) -> 1 | MZ3: =COUNTIF(MZ$11:MZ$23,$B$3) -> 4 | NE3: =COUNTIF(NE$11:NE$23,$B$3) -> 4 | NJ3: =COUNTIF(NJ$11:NJ$23,$B$3) -> 4 | NO3: =COUNTIF(NO$11:NO$23,$B$3) -> 4 | NT3: =COUNTIF(NT$11:NT$23,$B$3) -> 4 | NY3: =COUNTIF(NY$11:NY$23,$B$3) -> 1 | OE3: =COUNTIF(OE$11:OE$23,$B$3) -> 5 | OJ3: =COUNTIF(OJ$11:OJ$23,$B$3) -> 5 | OO3: =COUNTIF(OO$11:OO$23,$B$3) -> 4 | OT3: =COUNTIF(OT$11:OT$23,$B$3) -> 5 | OY3: =COUNTIF(OY$11:OY$23,$B$3) -> 5 | PD3: =COUNTIF(PD$11:PD$23,$B$3) -> 1 | PJ3: =COUNTIF(PJ$11:PJ$23,$B3) -> 0 | PO3: =COUNTIF(PO$11:PO$23,$B3) -> 2 | PT3: =COUNTIF(PT$11:PT$23,$B3) -> 2 | PY3: =COUNTIF(PY$11:PY$23,$B3) -> 2 | QD3: =COUNTIF(QD$11:QD$23,$B3) -> 2 | QI3: =COUNTIF(QI$11:QI$23,$B3) -> 1 | QO3: =COUNTIF(QO$11:QO$23,$B3) -> 2 | QT3: =COUNTIF(QT$11:QT$23,$B3) -> 2 | QY3: =COUNTIF(QY$11:QY$23,$B3) -> 1 | RD3: =COUNTIF(RD$11:RD$23,$B3) -> 0 | RI3: =COUNTIF(RI$11:RI$23,$B3) -> 2 | RN3: =COUNTIF(RN$11:RN$23,$B3) -> 1 | RT3: =COUNTIF(RT$11:RT$23,$B$3) -> 2 | RY3: =COUNTIF(RY$11:RY$23,$B$3) -> 2 | SD3: =COUNTIF(SD$11:SD$23,$B$3) -> 2 | SI3: =COUNTIF(SI$11:SI$23,$B$3) -> 1 | SN3: =COUNTIF(SN$11:SN$23,$B$3) -> 2 | SS3: =COUNTIF(SS$11:SS$23,$B$3) -> 1 | SY3: =COUNTIF(SY$11:SY$23,$B$3) -> 2 | TD3: =COUNTIF(TD$11:TD$23,$B$3) -> 2 | TI3: =COUNTIF(TI$11:TI$23,$B$3) -> 2 | TN3: =COUNTIF(TN$11:TN$23,$B$3) -> 2 | TS3: =COUNTIF(TS$11:TS$23,$B$3) -> 2 | TX3: =COUNTIF(TX$11:TX$23,$B$3) -> 1 | UD3: =COUNTIF(UD$11:UD$23,$B$3) -> 2 | UI3: =COUNTIF(UI$11:UI$23,$B$3) -> 2 | UO3: =COUNTIF(UO$11:UO$23,$B$3) -> 2 | UT3: =COUNTIF(UT$11:UT$23,$B$3) -> 2 | UY3: =COUNTIF(UY$11:UY$23,$B$3) -> 2 | VD3: =COUNTIF(VD$11:VD$23,$B$3) -> 1 | VJ3: =COUNTIF(VJ$11:VJ$23,$B$3) -> 2 | VO3: =COUNTIF(VO$11:VO$23,$B$3) -> 2 | VT3: =COUNTIF(VT$11:VT$23,$B$3) -> 2 | VY3: =COUNTIF(VY$11:VY$23,$B$3) -> 2 | WD3: =COUNTIF(WD$11:WD$23,$B$3) -> 2 | WI3: =COUNTIF(WI$11:WI$23,$B$3) -> 1 | WO3: =COUNTIF(WO$11:WO$23,$B$3) -> 2 | WT3: =COUNTIF(WT$11:WT$23,$B$3) -> 2 | WY3: =COUNTIF(WY$11:WY$23,$B$3) -> 2 | XD3: =COUNTIF(XD$11:XD$23,$B$3) -> 2 | XI3: =COUNTIF(XI$11:XI$23,$B$3) -> 2 | XN3: =COUNTIF(XN$11:XN$23,$B$3) -> 1 | XT3: =COUNTIF(XT$11:XT$23,$B$3) -> 2 | XY3: =COUNTIF(XY$11:XY$23,$B$3) -> 2 | YD3: =COUNTIF(YD$11:YD$23,$B$3) -> 2 | YI3: =COUNTIF(YI$11:YI$23,$B$3) -> 2 | YN3: =COUNTIF(YN$11:YN$23,$B$3) -> 8 | YS3: =COUNTIF(YS$11:YS$23,$B$3) -> 0 | YY3: =COUNTIF(YY$11:YY$23,$B$3) -> 2
B4: 10:00:00 | KP4: =COUNTIF(KP$11:KP$23,$B$4) -> 1 | KU4: =COUNTIF(KU$11:KU$23,$B$4) -> 1 | KZ4: =COUNTIF(KZ$11:KZ$23,$B$4) -> 1 | LE4: =COUNTIF(LE$11:LE$23,$B$4) -> 1 | LJ4: =COUNTIF(LJ$11:LJ$23,$B$4) -> 1 | LO4: =COUNTIF(LO$11:LO$23,$B$4) -> 0 | LU4: =COUNTIF(LU$11:LU$23,$B$4) -> 1 | LZ4: =COUNTIF(LZ$11:LZ$23,$B$4) -> 1 | ME4: =COUNTIF(ME$11:ME$23,$B$4) -> 1 | MJ4: =COUNTIF(MJ$11:MJ$23,$B$4) -> 1 | MO4: =COUNTIF(MO$11:MO$23,$B$4) -> 1 | MT4: =COUNTIF(MT$11:MT$23,$B$4) -> 0 | MZ4: =COUNTIF(MZ$11:MZ$23,$B$4) -> 1 | NE4: =COUNTIF(NE$11:NE$23,$B$4) -> 1 | NJ4: =COUNTIF(NJ$11:NJ$23,$B$4) -> 1 | NO4: =COUNTIF(NO$11:NO$23,$B$4) -> 1 | NT4: =COUNTIF(NT$11:NT$23,$B$4) -> 1 | NY4: =COUNTIF(NY$11:NY$23,$B$4) -> 0 | OE4: =COUNTIF(OE$11:OE$23,$B$4) -> 0 | OJ4: =COUNTIF(OJ$11:OJ$23,$B$4) -> 0 | OO4: =COUNTIF(OO$11:OO$23,$B$4) -> 0 | OT4: =COUNTIF(OT$11:OT$23,$B$4) -> 0 | OY4: =COUNTIF(OY$11:OY$23,$B$4) -> 0 | PD4: =COUNTIF(PD$11:PD$23,$B$4) -> 0 | RT4: =COUNTIF(RT$11:RT$23,$B$4) -> 1 | RY4: =COUNTIF(RY$11:RY$23,$B$4) -> 1 | SD4: =COUNTIF(SD$11:SD$23,$B$4) -> 0 | SI4: =COUNTIF(SI$11:SI$23,$B$4) -> 1 | SN4: =COUNTIF(SN$11:SN$23,$B$4) -> 1 | SS4: =COUNTIF(SS$11:SS$23,$B$4) -> 0 | SY4: =COUNTIF(SY$11:SY$23,$B$4) -> 2 | TD4: =COUNTIF(TD$11:TD$23,$B$4) -> 2 | TI4: =COUNTIF(TI$11:TI$23,$B$4) -> 2 | TN4: =COUNTIF(TN$11:TN$23,$B$4) -> 2 | TS4: =COUNTIF(TS$11:TS$23,$B$4) -> 2 | TX4: =COUNTIF(TX$11:TX$23,$B$4) -> 0 | UD4: =COUNTIF(UD$11:UD$23,$B$4) -> 1 | UI4: =COUNTIF(UI$11:UI$23,$B$4) -> 1 | UO4: =COUNTIF(UO$11:UO$23,$B$4) -> 1 | UT4: =COUNTIF(UT$11:UT$23,$B$4) -> 1 | UY4: =COUNTIF(UY$11:UY$23,$B$4) -> 0 | VD4: =COUNTIF(VD$11:VD$23,$B$4) -> 0 | VJ4: =COUNTIF(VJ$11:VJ$23,$B$4) -> 1 | VO4: =COUNTIF(VO$11:VO$23,$B$4) -> 1 | VT4: =COUNTIF(VT$11:VT$23,$B$4) -> 1 | VY4: =COUNTIF(VY$11:VY$23,$B$4) -> 1 | WD4: =COUNTIF(WD$11:WD$23,$B$4) -> 0 | WI4: =COUNTIF(WI$11:WI$23,$B$4) -> 0 | WO4: =COUNTIF(WO$11:WO$23,$B$4) -> 2 | WT4: =COUNTIF(WT$11:WT$23,$B$4) -> 2 | WY4: =COUNTIF(WY$11:WY$23,$B$4) -> 1 | XD4: =COUNTIF(XD$11:XD$23,$B$4) -> 1 | XI4: =COUNTIF(XI$11:XI$23,$B$4) -> 1 | XN4: =COUNTIF(XN$11:XN$23,$B$4) -> 0 | XT4: =COUNTIF(XT$11:XT$23,$B$4) -> 0 | XY4: =COUNTIF(XY$11:XY$23,$B$4) -> 0 | YD4: =COUNTIF(YD$11:YD$23,$B$4) -> 0 | YI4: =COUNTIF(YI$11:YI$23,$B$4) -> 0 | YN4: =COUNTIF(YN$11:YN$23,$B$4) -> 0 | YS4: =COUNTIF(YS$11:YS$23,$B$4) -> 0 | YY4: =COUNTIF(YY$11:YY$23,$B$4) -> 1
B5: 11:00:00 | C5: 08:00:00 | AD5: =COUNTIF(AD$11:AD$23,$B5) -> 0 | AI5: =COUNTIF(AI$11:AI$23,$B5) -> 0 | AN5: =COUNTIF(AN$11:AN$23,$B5) -> 0 | AS5: =COUNTIF(AS$11:AS$23,$B5) -> 0 | AX5: =COUNTIF(AX$11:AX$23,$B5) -> 0 | BC5: =COUNTIF(BC$11:BC$23,$B5) -> 0 | BH5: =COUNTIF(BH$11:BH$23,$B5) -> 0 | BM5: =COUNTIF(BM$11:BM$23,$B5) -> 0 | BR5: =COUNTIF(BR$11:BR$23,$B5) -> 0 | BW5: =COUNTIF(BW$11:BW$23,$B5) -> 0 | CB5: =COUNTIF(CB$11:CB$23,$B5) -> 0 | CG5: =COUNTIF(CG$11:CG$23,$B5) -> 0 | CL5: =COUNTIF(CL$11:CL$23,$B5) -> 0 | CQ5: =COUNTIF(CQ$11:CQ$23,$B5) -> 0 | CV5: =COUNTIF(CV$11:CV$23,$B5) -> 0 | DA5: =COUNTIF(DA$11:DA$23,$B5) -> 0 | DF5: =COUNTIF(DF$11:DF$23,$B5) -> 0 | DK5: =COUNTIF(DK$11:DK$23,$B5) -> 0 | DP5: =COUNTIF(DP$11:DP$23,$B5) -> 0 | DU5: =COUNTIF(DU$11:DU$23,$B5) -> 0 | DZ5: =COUNTIF(DZ$11:DZ$23,$B5) -> 0 | EE5: =COUNTIF(EE$11:EE$23,$B5) -> 0 | EJ5: =COUNTIF(EJ$11:EJ$23,$B5) -> 0 | EO5: =COUNTIF(EO$11:EO$23,$B5) -> 0 | EU5: =COUNTIF(EU$11:EU$23,$B5) -> 0 | EZ5: =COUNTIF(EZ$11:EZ$23,$B5) -> 0 | FE5: =COUNTIF(FE$11:FE$23,$B5) -> 3 | FJ5: =COUNTIF(FJ$11:FJ$23,$B5) -> 4 | FO5: =COUNTIF(FO$11:FO$23,$B5) -> 3 | FT5: =COUNTIF(FT$11:FT$23,$B5) -> 1 | FY5: =COUNTIF(FY$11:FY$23,$B5) -> 4 | GD5: =COUNTIF(GD$11:GD$23,$B5) -> 4 | GI5: =COUNTIF(GI$11:GI$23,$B5) -> 3 | GN5: =COUNTIF(GN$11:GN$23,$B5) -> 4 | GS5: =COUNTIF(GS$11:GS$23,$B5) -> 4 | GX5: =COUNTIF(GX$11:GX$23,$B5) -> 1 | HC5: =COUNTIF(HC$11:HC$23,$B5) -> 5 | HH5: =COUNTIF(HH$11:HH$23,$B5) -> 5 | HM5: =COUNTIF(HM$11:HM$23,$B5) -> 4 | HR5: =COUNTIF(HR$11:HR$23,$B5) -> 5 | HW5: =COUNTIF(HW$11:HW$23,$B5) -> 5 | IB5: =COUNTIF(IB$11:IB$23,$B5) -> 0 | IG5: =COUNTIF(IG$11:IG$23,$B5) -> 5 | IL5: =COUNTIF(IL$11:IL$23,$B5) -> 5 | IQ5: =COUNTIF(IQ$11:IQ$23,$B5) -> 5 | IV5: =COUNTIF(IV$11:IV$23,$B5) -> 5 | JA5: =COUNTIF(JA$11:JA$23,$B5) -> 5 | JF5: =COUNTIF(JF$11:JF$23,$B5) -> 1 | JK5: =COUNTIF(JK$11:JK$23,$B5) -> 3 | JP5: =COUNTIF(JP$11:JP$23,$B5) -> 3 | JU5: =COUNTIF(JU$11:JU$23,$B5) -> 2 | JZ5: =COUNTIF(JZ$11:JZ$23,$B5) -> 3 | KE5: =COUNTIF(KE$11:KE$23,$B5) -> 3 | KJ5: =COUNTIF(KJ$11:KJ$23,$B5) -> 1 | KP5: =COUNTIF(KP$11:KP$23,$B$5) -> 6 | KU5: =COUNTIF(KU$11:KU$23,$B$5) -> 6 | KZ5: =COUNTIF(KZ$11:KZ$23,$B$5) -> 5 | LE5: =COUNTIF(LE$11:LE$23,$B$5) -> 6 | LJ5: =COUNTIF(LJ$11:LJ$23,$B$5) -> 6 | LO5: =COUNTIF(LO$11:LO$23,$B$5) -> 1 | LU5: =COUNTIF(LU$11:LU$23,$B$5) -> 4 | LZ5: =COUNTIF(LZ$11:LZ$23,$B$5) -> 4 | ME5: =COUNTIF(ME$11:ME$23,$B$5) -> 4 | MJ5: =COUNTIF(MJ$11:MJ$23,$B$5) -> 4 | MO5: =COUNTIF(MO$11:MO$23,$B$5) -> 4 | MT5: =COUNTIF(MT$11:MT$23,$B$5) -> 1 | MZ5: =COUNTIF(MZ$11:MZ$23,$B$5) -> 6 | NE5: =COUNTIF(NE$11:NE$23,$B$5) -> 6 | NJ5: =COUNTIF(NJ$11:NJ$23,$B$5) -> 4 | NO5: =COUNTIF(NO$11:NO$23,$B$5) -> 4 | NT5: =COUNTIF(NT$11:NT$23,$B$5) -> 5 | NY5: =COUNTIF(NY$11:NY$23,$B$5) -> 1 | OE5: =COUNTIF(OE$11:OE$23,$B$5) -> 3 | OJ5: =COUNTIF(OJ$11:OJ$23,$B$5) -> 3 | OO5: =COUNTIF(OO$11:OO$23,$B$5) -> 3 | OT5: =COUNTIF(OT$11:OT$23,$B$5) -> 3 | OY5: =COUNTIF(OY$11:OY$23,$B$5) -> 3 | PD5: =COUNTIF(PD$11:PD$23,$B$5) -> 0 | PJ5: =COUNTIF(PJ$11:PJ$23,$B5) -> 0 | PO5: =COUNTIF(PO$11:PO$23,$B5) -> 3 | PT5: =COUNTIF(PT$11:PT$23,$B5) -> 3 | PY5: =COUNTIF(PY$11:PY$23,$B5) -> 4 | QD5: =COUNTIF(QD$11:QD$23,$B5) -> 3 | QI5: =COUNTIF(QI$11:QI$23,$B5) -> 0 | QO5: =COUNTIF(QO$11:QO$23,$B5) -> 5 | QT5: =COUNTIF(QT$11:QT$23,$B5) -> 5 | QY5: =COUNTIF(QY$11:QY$23,$B5) -> 5 | RD5: =COUNTIF(RD$11:RD$23,$B5) -> 0 | RI5: =COUNTIF(RI$11:RI$23,$B5) -> 4 | RN5: =COUNTIF(RN$11:RN$23,$B5) -> 0 | RT5: =COUNTIF(RT$11:RT$23,$B$5) -> 7 | RY5: =COUNTIF(RY$11:RY$23,$B$5) -> 7 | SD5: =COUNTIF(SD$11:SD$23,$B$5) -> 6 | SI5: =COUNTIF(SI$11:SI$23,$B$5) -> 7 | SN5: =COUNTIF(SN$11:SN$23,$B$5) -> 7 | SS5: =COUNTIF(SS$11:SS$23,$B$5) -> 0 | SY5: =COUNTIF(SY$11:SY$23,$B$5) -> 5 | TD5: =COUNTIF(TD$11:TD$23,$B$5) -> 5 | TI5: =COUNTIF(TI$11:TI$23,$B$5) -> 4 | TN5: =COUNTIF(TN$11:TN$23,$B$5) -> 6 | TS5: =COUNTIF(TS$11:TS$23,$B$5) -> 5 | TX5: =COUNTIF(TX$11:TX$23,$B$5) -> 0 | UD5: =COUNTIF(UD$11:UD$23,$B$5) -> 4 | UI5: =COUNTIF(UI$11:UI$23,$B$5) -> 4 | UO5: =COUNTIF(UO$11:UO$23,$B$5) -> 3 | UT5: =COUNTIF(UT$11:UT$23,$B$5) -> 4 | UY5: =COUNTIF(UY$11:UY$23,$B$5) -> 4 | VD5: =COUNTIF(VD$11:VD$23,$B$5) -> 0 | VJ5: =COUNTIF(VJ$11:VJ$23,$B$5) -> 6 | VO5: =COUNTIF(VO$11:VO$23,$B$5) -> 7 | VT5: =COUNTIF(VT$11:VT$23,$B$5) -> 6 | VY5: =COUNTIF(VY$11:VY$23,$B$5) -> 7 | WD5: =COUNTIF(WD$11:WD$23,$B$5) -> 7 | WI5: =COUNTIF(WI$11:WI$23,$B$5) -> 0 | WO5: =COUNTIF(WO$11:WO$23,$B$5) -> 5 | WT5: =COUNTIF(WT$11:WT$23,$B$5) -> 5 | WY5: =COUNTIF(WY$11:WY$23,$B$5) -> 4 | XD5: =COUNTIF(XD$11:XD$23,$B$5) -> 4 | XI5: =COUNTIF(XI$11:XI$23,$B$5) -> 5 | XN5: =COUNTIF(XN$11:XN$23,$B$5) -> 0 | XT5: =COUNTIF(XT$11:XT$23,$B$5) -> 5 | XY5: =COUNTIF(XY$11:XY$23,$B$5) -> 5 | YD5: =COUNTIF(YD$11:YD$23,$B$5) -> 6 | YI5: =COUNTIF(YI$11:YI$23,$B$5) -> 6 | YN5: =COUNTIF(YN$11:YN$23,$B$5) -> 0 | YS5: =COUNTIF(YS$11:YS$23,$B$5) -> 0 | YY5: =COUNTIF(YY$11:YY$23,$B$5) -> 5
B6: 13:00:00 | AD6: =COUNTIF(AD$11:AD$23,$B6) -> 0 | AI6: =COUNTIF(AI$11:AI$23,$B6) -> 0 | AN6: =COUNTIF(AN$11:AN$23,$B6) -> 0 | AS6: =COUNTIF(AS$11:AS$23,$B6) -> 0 | AX6: =COUNTIF(AX$11:AX$23,$B6) -> 0 | BC6: =COUNTIF(BC$11:BC$23,$B6) -> 0 | BH6: =COUNTIF(BH$11:BH$23,$B6) -> 0 | BM6: =COUNTIF(BM$11:BM$23,$B6) -> 0 | BR6: =COUNTIF(BR$11:BR$23,$B6) -> 0 | BW6: =COUNTIF(BW$11:BW$23,$B6) -> 0 | CB6: =COUNTIF(CB$11:CB$23,$B6) -> 0 | CG6: =COUNTIF(CG$11:CG$23,$B6) -> 0 | CL6: =COUNTIF(CL$11:CL$23,$B6) -> 0 | CQ6: =COUNTIF(CQ$11:CQ$23,$B6) -> 0 | CV6: =COUNTIF(CV$11:CV$23,$B6) -> 0 | DA6: =COUNTIF(DA$11:DA$23,$B6) -> 0 | DF6: =COUNTIF(DF$11:DF$23,$B6) -> 0 | DK6: =COUNTIF(DK$11:DK$23,$B6) -> 0 | DP6: =COUNTIF(DP$11:DP$23,$B6) -> 0 | DU6: =COUNTIF(DU$11:DU$23,$B6) -> 0 | DZ6: =COUNTIF(DZ$11:DZ$23,$B6) -> 0 | EE6: =COUNTIF(EE$11:EE$23,$B6) -> 0 | EJ6: =COUNTIF(EJ$11:EJ$23,$B6) -> 0 | EO6: =COUNTIF(EO$11:EO$23,$B6) -> 0 | EU6: =COUNTIF(EU$11:EU$23,$B6) -> 0 | EZ6: =COUNTIF(EZ$11:EZ$23,$B6) -> 0 | FE6: =COUNTIF(FE$11:FE$23,$B6) -> 0 | FJ6: =COUNTIF(FJ$11:FJ$23,$B6) -> 0 | FO6: =COUNTIF(FO$11:FO$23,$B6) -> 0 | FT6: =COUNTIF(FT$11:FT$23,$B6) -> 0 | FY6: =COUNTIF(FY$11:FY$23,$B6) -> 0 | GD6: =COUNTIF(GD$11:GD$23,$B6) -> 0 | GI6: =COUNTIF(GI$11:GI$23,$B6) -> 0 | GN6: =COUNTIF(GN$11:GN$23,$B6) -> 0 | GS6: =COUNTIF(GS$11:GS$23,$B6) -> 0 | GX6: =COUNTIF(GX$11:GX$23,$B6) -> 0 | HC6: =COUNTIF(HC$11:HC$23,$B6) -> 0 | HH6: =COUNTIF(HH$11:HH$23,$B6) -> 0 | HM6: =COUNTIF(HM$11:HM$23,$B6) -> 0 | HR6: =COUNTIF(HR$11:HR$23,$B6) -> 0 | HW6: =COUNTIF(HW$11:HW$23,$B6) -> 0 | IB6: =COUNTIF(IB$11:IB$23,$B6) -> 0 | IG6: =COUNTIF(IG$11:IG$23,$B6) -> 0 | IL6: =COUNTIF(IL$11:IL$23,$B6) -> 0 | IQ6: =COUNTIF(IQ$11:IQ$23,$B6) -> 0 | IV6: =COUNTIF(IV$11:IV$23,$B6) -> 0 | JA6: =COUNTIF(JA$11:JA$23,$B6) -> 0 | JF6: =COUNTIF(JF$11:JF$23,$B6) -> 0 | JK6: =COUNTIF(JK$11:JK$23,$B6) -> 0 | JP6: =COUNTIF(JP$11:JP$23,$B6) -> 0 | JU6: =COUNTIF(JU$11:JU$23,$B6) -> 0 | JZ6: =COUNTIF(JZ$11:JZ$23,$B6) -> 0 | KE6: =COUNTIF(KE$11:KE$23,$B6) -> 0 | KJ6: =COUNTIF(KJ$11:KJ$23,$B6) -> 0 | KP6: =COUNTIF(KP$11:KP$23,">="&$B6) -> 1 | KU6: =COUNTIF(KU$11:KU$23,">="&$B6) -> 1 | KZ6: =COUNTIF(KZ$11:KZ$23,">="&$B6) -> 1 | LE6: =COUNTIF(LE$11:LE$23,">="&$B6) -> 1 | LJ6: =COUNTIF(LJ$11:LJ$23,">="&$B6) -> 1 | LO6: =COUNTIF(LO$11:LO$23,">="&$B6) -> 0 | LU6: =COUNTIF(LU$11:LU$23,">="&$B6) -> 1 | LZ6: =COUNTIF(LZ$11:LZ$23,">="&$B6) -> 0 | ME6: =COUNTIF(ME$11:ME$23,">="&$B6) -> 1 | MJ6: =COUNTIF(MJ$11:MJ$23,">="&$B6) -> 1 | MO6: =COUNTIF(MO$11:MO$23,">="&$B6) -> 1 | MT6: =COUNTIF(MT$11:MT$23,">="&$B6) -> 0 | MZ6: =COUNTIF(MZ$11:MZ$23,">="&$B6) -> 1 | NE6: =COUNTIF(NE$11:NE$23,">="&$B6) -> 1 | NJ6: =COUNTIF(NJ$11:NJ$23,">="&$B6) -> 1 | NO6: =COUNTIF(NO$11:NO$23,">="&$B6) -> 1 | NT6: =COUNTIF(NT$11:NT$23,">="&$B6) -> 1 | NY6: =COUNTIF(NY$11:NY$23,">="&$B6) -> 0 | OE6: =COUNTIF(OE$11:OE$23,">="&$B6) -> 1 | OJ6: =COUNTIF(OJ$11:OJ$23,">="&$B6) -> 1 | OO6: =COUNTIF(OO$11:OO$23,">="&$B6) -> 1 | OT6: =COUNTIF(OT$11:OT$23,">="&$B6) -> 1 | OY6: =COUNTIF(OY$11:OY$23,">="&$B6) -> 1 | PD6: =COUNTIF(PD$11:PD$23,">="&$B6) -> 0 | PJ6: =COUNTIF(PJ$11:PJ$23,$B6) -> 0 | PO6: =COUNTIF(PO$11:PO$23,$B6) -> 3 | PT6: =COUNTIF(PT$11:PT$23,$B6) -> 2 | PY6: =COUNTIF(PY$11:PY$23,$B6) -> 2 | QD6: =COUNTIF(QD$11:QD$23,$B6) -> 2 | QI6: =COUNTIF(QI$11:QI$23,$B6) -> 1 | QO6: =COUNTIF(QO$11:QO$23,$B6) -> 4 | QT6: =COUNTIF(QT$11:QT$23,$B6) -> 4 | QY6: =COUNTIF(QY$11:QY$23,$B6) -> 4 | RD6: =COUNTIF(RD$11:RD$23,$B6) -> 1 | RI6: =COUNTIF(RI$11:RI$23,$B6) -> 4 | RN6: =COUNTIF(RN$11:RN$23,$B6) -> 1 | RT6: =COUNTIF(RT$11:RT$23,">="&$B6) -> 3 | RY6: =COUNTIF(RY$11:RY$23,">="&$B6) -> 3 | SD6: =COUNTIF(SD$11:SD$23,">="&$B6) -> 3 | SI6: =COUNTIF(SI$11:SI$23,">="&$B6) -> 3 | SN6: =COUNTIF(SN$11:SN$23,">="&$B6) -> 3 | SS6: =COUNTIF(SS$11:SS$23,">="&$B6) -> 1 | SY6: =COUNTIF(SY$11:SY$23,">="&$B6) -> 3 | TD6: =COUNTIF(TD$11:TD$23,">="&$B6) -> 3 | TI6: =COUNTIF(TI$11:TI$23,">="&$B6) -> 3 | TN6: =COUNTIF(TN$11:TN$23,">="&$B6) -> 3 | TS6: =COUNTIF(TS$11:TS$23,">="&$B6) -> 3 | TX6: =COUNTIF(TX$11:TX$23,">="&$B6) -> 1 | UD6: =COUNTIF(UD$11:UD$23,">="&$B6) -> 2 | UI6: =COUNTIF(UI$11:UI$23,">="&$B6) -> 2 | UO6: =COUNTIF(UO$11:UO$23,">="&$B6) -> 2 | UT6: =COUNTIF(UT$11:UT$23,">="&$B6) -> 3 | UY6: =COUNTIF(UY$11:UY$23,">="&$B6) -> 3 | VD6: =COUNTIF(VD$11:VD$23,">="&$B6) -> 1 | VJ6: =COUNTIF(VJ$11:VJ$23,">="&$B6) -> 3 | VO6: =COUNTIF(VO$11:VO$23,">="&$B6) -> 3 | VT6: =COUNTIF(VT$11:VT$23,">="&$B6) -> 3 | VY6: =COUNTIF(VY$11:VY$23,">="&$B6) -> 3 | WD6: =COUNTIF(WD$11:WD$23,">="&$B6) -> 3 | WI6: =COUNTIF(WI$11:WI$23,">="&$B6) -> 1 | WO6: =COUNTIF(WO$11:WO$23,">="&$B6) -> 3 | WT6: =COUNTIF(WT$11:WT$23,">="&$B6) -> 3 | WY6: =COUNTIF(WY$11:WY$23,">="&$B6) -> 3 | XD6: =COUNTIF(XD$11:XD$23,">="&$B6) -> 3 | XI6: =COUNTIF(XI$11:XI$23,">="&$B6) -> 3 | XN6: =COUNTIF(XN$11:XN$23,">="&$B6) -> 1 | XT6: =COUNTIF(XT$11:XT$23,">="&$B6) -> 3 | XY6: =COUNTIF(XY$11:XY$23,">="&$B6) -> 3 | YD6: =COUNTIF(YD$11:YD$23,">="&$B6) -> 3 | YI6: =COUNTIF(YI$11:YI$23,">="&$B6) -> 3 | YN6: =COUNTIF(YN$11:YN$23,">="&$B6) -> 3 | YS6: =COUNTIF(YS$11:YS$23,">="&$B6) -> 0 | YY6: =COUNTIF(YY$11:YY$23,">="&$B6) -> 3
AC7: =IF(AC$8="","",TEXT(LOOKUP(9^9,AC$9:$PJ$9),"MMMM")) ->  | AD7: =IF(AD$8="","",TEXT(LOOKUP(9^9,$AD$9:AD$9),"MMMM")) -> août | AE7: =IF(AE$8="","",TEXT(LOOKUP(9^9,$AD$9:AE$9),"MMMM")) ->  | AF7: =IF(AF$8="","",TEXT(LOOKUP(9^9,$AD$9:AF$9),"MMMM")) ->  | AG7: =IF(AG$8="","",TEXT(LOOKUP(9^9,$AD$9:AG$9),"MMMM")) ->  | AH7: =IF(AH$8="","",TEXT(LOOKUP(9^9,$AD$9:AH$9),"MMMM")) ->  | AI7: =IF(AI$8="","",TEXT(LOOKUP(9^9,$AD$9:AI$9),"MMMM")) -> août | AJ7: =IF(AJ$8="","",TEXT(LOOKUP(9^9,$AD$9:AJ$9),"MMMM")) ->  | AK7: =IF(AK$8="","",TEXT(LOOKUP(9^9,$AD$9:AK$9),"MMMM")) ->  | AL7: =IF(AL$8="","",TEXT(LOOKUP(9^9,$AD$9:AL$9),"MMMM")) ->  | AM7: =IF(AM$8="","",TEXT(LOOKUP(9^9,$AD$9:AM$9),"MMMM")) ->  | AN7: =IF(AN$8="","",TEXT(LOOKUP(9^9,$AD$9:AN$9),"MMMM")) -> août | AO7: =IF(AO$8="","",TEXT(LOOKUP(9^9,$AD$9:AO$9),"MMMM")) ->  | AP7: =IF(AP$8="","",TEXT(LOOKUP(9^9,$AD$9:AP$9),"MMMM")) ->  | AQ7: =IF(AQ$8="","",TEXT(LOOKUP(9^9,$AD$9:AQ$9),"MMMM")) ->  | AR7: =IF(AR$8="","",TEXT(LOOKUP(9^9,$AD$9:AR$9),"MMMM")) ->  | AS7: =IF(AS$8="","",TEXT(LOOKUP(9^9,$AD$9:AS$9),"MMMM")) -> août | AT7: =IF(AT$8="","",TEXT(LOOKUP(9^9,$AD$9:AT$9),"MMMM")) ->  | AU7: =IF(AU$8="","",TEXT(LOOKUP(9^9,$AD$9:AU$9),"MMMM")) ->  | AV7: =IF(AV$8="","",TEXT(LOOKUP(9^9,$AD$9:AV$9),"MMMM")) ->  | AW7: =IF(AW$8="","",TEXT(LOOKUP(9^9,$AD$9:AW$9),"MMMM")) ->  | AX7: =IF(AX$8="","",TEXT(LOOKUP(9^9,$AD$9:AX$9),"MMMM")) -> août | AY7: =IF(AY$8="","",TEXT(LOOKUP(9^9,$AD$9:AY$9),"MMMM")) ->  | AZ7: =IF(AZ$8="","",TEXT(LOOKUP(9^9,$AD$9:AZ$9),"MMMM")) ->  | BA7: =IF(BA$8="","",TEXT(LOOKUP(9^9,$AD$9:BA$9),"MMMM")) ->  | BB7: =IF(BB$8="","",TEXT(LOOKUP(9^9,$AD$9:BB$9),"MMMM")) ->  | BC7: =IF(BC$8="","",TEXT(LOOKUP(9^9,$AD$9:BC$9),"MMMM")) -> août | BD7: =IF(BD$8="","",TEXT(LOOKUP(9^9,$AD$9:BD$9),"MMMM")) ->  | BE7: =IF(BE$8="","",TEXT(LOOKUP(9^9,$AD$9:BE$9),"MMMM")) ->  | BF7: =IF(BF$8="","",TEXT(LOOKUP(9^9,$AD$9:BF$9),"MMMM")) ->  | BG7: =IF(BG$8="","",TEXT(LOOKUP(9^9,$AD$9:BG$9),"MMMM")) ->  | BH7: =IF(BH$8="","",TEXT(LOOKUP(9^9,$AD$9:BH$9),"MMMM")) -> août | BI7: =IF(BI$8="","",TEXT(LOOKUP(9^9,$AD$9:BI$9),"MMMM")) ->  | BJ7: =IF(BJ$8="","",TEXT(LOOKUP(9^9,$AD$9:BJ$9),"MMMM")) ->  | BK7: =IF(BK$8="","",TEXT(LOOKUP(9^9,$AD$9:BK$9),"MMMM")) ->  | BL7: =IF(BL$8="","",TEXT(LOOKUP(9^9,$AD$9:BL$9),"MMMM")) ->  | BM7: =IF(BM$8="","",TEXT(LOOKUP(9^9,$AD$9:BM$9),"MMMM")) -> août | BN7: =IF(BN$8="","",TEXT(LOOKUP(9^9,$AD$9:BN$9),"MMMM")) ->  | BO7: =IF(BO$8="","",TEXT(LOOKUP(9^9,$AD$9:BO$9),"MMMM")) ->  | BP7: =IF(BP$8="","",TEXT(LOOKUP(9^9,$AD$9:BP$9),"MMMM")) ->  | BQ7: =IF(BQ$8="","",TEXT(LOOKUP(9^9,$AD$9:BQ$9),"MMMM")) ->  | BR7: =IF(BR$8="","",TEXT(LOOKUP(9^9,$AD$9:BR$9),"MMMM")) -> août | BS7: =IF(BS$8="","",TEXT(LOOKUP(9^9,$AD$9:BS$9),"MMMM")) ->  | BT7: =IF(BT$8="","",TEXT(LOOKUP(9^9,$AD$9:BT$9),"MMMM")) ->  | BU7: =IF(BU$8="","",TEXT(LOOKUP(9^9,$AD$9:BU$9),"MMMM")) ->  | BV7: =IF(BV$8="","",TEXT(LOOKUP(9^9,$AD$9:BV$9),"MMMM")) ->  | BW7: =IF(BW$8="","",TEXT(LOOKUP(9^9,$AD$9:BW$9),"MMMM")) -> août | BX7: =IF(BX$8="","",TEXT(LOOKUP(9^9,$AD$9:BX$9),"MMMM")) ->  | BY7: =IF(BY$8="","",TEXT(LOOKUP(9^9,$AD$9:BY$9),"MMMM")) ->  | BZ7: =IF(BZ$8="","",TEXT(LOOKUP(9^9,$AD$9:BZ$9),"MMMM")) ->  | CA7: =IF(CA$8="","",TEXT(LOOKUP(9^9,$AD$9:CA$9),"MMMM")) ->  | CB7: =IF(CB$8="","",TEXT(LOOKUP(9^9,$AD$9:CB$9),"MMMM")) -> août | CC7: =IF(CC$8="","",TEXT(LOOKUP(9^9,$AD$9:CC$9),"MMMM")) ->  | CD7: =IF(CD$8="","",TEXT(LOOKUP(9^9,$AD$9:CD$9),"MMMM")) ->  | CE7: =IF(CE$8="","",TEXT(LOOKUP(9^9,$AD$9:CE$9),"MMMM")) ->  | CF7: =IF(CF$8="","",TEXT(LOOKUP(9^9,$AD$9:CF$9),"MMMM")) ->  | CG7: =IF(CG$8="","",TEXT(LOOKUP(9^9,$AD$9:CG$9),"MMMM")) -> août | CH7: =IF(CH$8="","",TEXT(LOOKUP(9^9,$AD$9:CH$9),"MMMM")) ->  | CI7: =IF(CI$8="","",TEXT(LOOKUP(9^9,$AD$9:CI$9),"MMMM")) ->  | CJ7: =IF(CJ$8="","",TEXT(LOOKUP(9^9,$AD$9:CJ$9),"MMMM")) ->  | CK7: =IF(CK$8="","",TEXT(LOOKUP(9^9,$AD$9:CK$9),"MMMM")) ->  | CL7: =IF(CL$8="","",TEXT(LOOKUP(9^9,$AD$9:CL$9),"MMMM")) -> août | CM7: =IF(CM$8="","",TEXT(LOOKUP(9^9,$AD$9:CM$9),"MMMM")) ->  | CN7: =IF(CN$8="","",TEXT(LOOKUP(9^9,$AD$9:CN$9),"MMMM")) ->  | CO7: =IF(CO$8="","",TEXT(LOOKUP(9^9,$AD$9:CO$9),"MMMM")) ->  | CP7: =IF(CP$8="","",TEXT(LOOKUP(9^9,$AD$9:CP$9),"MMMM")) ->  | CQ7: =IF(CQ$8="","",TEXT(LOOKUP(9^9,$AD$9:CQ$9),"MMMM")) -> août | CR7: =IF(CR$8="","",TEXT(LOOKUP(9^9,$AD$9:CR$9),"MMMM")) ->  | CS7: =IF(CS$8="","",TEXT(LOOKUP(9^9,$AD$9:CS$9),"MMMM")) ->  | CT7: =IF(CT$8="","",TEXT(LOOKUP(9^9,$AD$9:CT$9),"MMMM")) ->  | CU7: =IF(CU$8="","",TEXT(LOOKUP(9^9,$AD$9:CU$9),"MMMM")) ->  | CV7: =IF(CV$8="","",TEXT(LOOKUP(9^9,$AD$9:CV$9),"MMMM")) -> août | CW7: =IF(CW$8="","",TEXT(LOOKUP(9^9,$AD$9:CW$9),"MMMM")) ->  | CX7: =IF(CX$8="","",TEXT(LOOKUP(9^9,$AD$9:CX$9),"MMMM")) ->  | CY7: =IF(CY$8="","",TEXT(LOOKUP(9^9,$AD$9:CY$9),"MMMM")) ->  | CZ7: =IF(CZ$8="","",TEXT(LOOKUP(9^9,$AD$9:CZ$9),"MMMM")) ->  | DA7: =IF(DA$8="","",TEXT(LOOKUP(9^9,$AD$9:DA$9),"MMMM")) -> août | DB7: =IF(DB$8="","",TEXT(LOOKUP(9^9,$AD$9:DB$9),"MMMM")) ->  | DC7: =IF(DC$8="","",TEXT(LOOKUP(9^9,$AD$9:DC$9),"MMMM")) ->  | DD7: =IF(DD$8="","",TEXT(LOOKUP(9^9,$AD$9:DD$9),"MMMM")) ->  | DE7: =IF(DE$8="","",TEXT(LOOKUP(9^9,$AD$9:DE$9),"MMMM")) ->  | DF7: =IF(DF$8="","",TEXT(LOOKUP(9^9,$AD$9:DF$9),"MMMM")) -> août | DG7: =IF(DG$8="","",TEXT(LOOKUP(9^9,$AD$9:DG$9),"MMMM")) ->  | DH7: =IF(DH$8="","",TEXT(LOOKUP(9^9,$AD$9:DH$9),"MMMM")) ->  | DI7: =IF(DI$8="","",TEXT(LOOKUP(9^9,$AD$9:DI$9),"MMMM")) ->  | DJ7: =IF(DJ$8="","",TEXT(LOOKUP(9^9,$AD$9:DJ$9),"MMMM")) ->  | DK7: =IF(DK$8="","",TEXT(LOOKUP(9^9,$AD$9:DK$9),"MMMM")) -> août | DL7: =IF(DL$8="","",TEXT(LOOKUP(9^9,$AD$9:DL$9),"MMMM")) ->  | DM7: =IF(DM$8="","",TEXT(LOOKUP(9^9,$AD$9:DM$9),"MMMM")) ->  | DN7: =IF(DN$8="","",TEXT(LOOKUP(9^9,$AD$9:DN$9),"MMMM")) ->  | DO7: =IF(DO$8="","",TEXT(LOOKUP(9^9,$AD$9:DO$9),"MMMM")) ->  | DP7: =IF(DP$8="","",TEXT(LOOKUP(9^9,$AD$9:DP$9),"MMMM")) -> août | DQ7: =IF(DQ$8="","",TEXT(LOOKUP(9^9,$AD$9:DQ$9),"MMMM")) ->  | DR7: =IF(DR$8="","",TEXT(LOOKUP(9^9,$AD$9:DR$9),"MMMM")) ->  | DS7: =IF(DS$8="","",TEXT(LOOKUP(9^9,$AD$9:DS$9),"MMMM")) ->  | DT7: =IF(DT$8="","",TEXT(LOOKUP(9^9,$AD$9:DT$9),"MMMM")) ->  | DU7: =IF(DU$8="","",TEXT(LOOKUP(9^9,$AD$9:DU$9),"MMMM")) -> août | DV7: =IF(DV$8="","",TEXT(LOOKUP(9^9,$AD$9:DV$9),"MMMM")) ->  | DW7: =IF(DW$8="","",TEXT(LOOKUP(9^9,$AD$9:DW$9),"MMMM")) ->  | DX7: =IF(DX$8="","",TEXT(LOOKUP(9^9,$AD$9:DX$9),"MMMM")) ->  | DY7: =IF(DY$8="","",TEXT(LOOKUP(9^9,$AD$9:DY$9),"MMMM")) ->  | DZ7: =IF(DZ$8="","",TEXT(LOOKUP(9^9,$AD$9:DZ$9),"MMMM")) -> août | EA7: =IF(EA$8="","",TEXT(LOOKUP(9^9,$AD$9:EA$9),"MMMM")) ->  | EB7: =IF(EB$8="","",TEXT(LOOKUP(9^9,$AD$9:EB$9),"MMMM")) ->  | EC7: =IF(EC$8="","",TEXT(LOOKUP(9^9,$AD$9:EC$9),"MMMM")) ->  | ED7: =IF(ED$8="","",TEXT(LOOKUP(9^9,$AD$9:ED$9),"MMMM")) ->  | EE7: =IF(EE$8="","",TEXT(LOOKUP(9^9,$AD$9:EE$9),"MMMM")) -> août | EF7: =IF(EF$8="","",TEXT(LOOKUP(9^9,$AD$9:EF$9),"MMMM")) ->  | EG7: =IF(EG$8="","",TEXT(LOOKUP(9^9,$AD$9:EG$9),"MMMM")) ->  | EH7: =IF(EH$8="","",TEXT(LOOKUP(9^9,$AD$9:EH$9),"MMMM")) ->  | EI7: =IF(EI$8="","",TEXT(LOOKUP(9^9,$AD$9:EI$9),"MMMM")) ->  | EJ7: =IF(EJ$8="","",TEXT(LOOKUP(9^9,$AD$9:EJ$9),"MMMM")) -> août | EK7: =IF(EK$8="","",TEXT(LOOKUP(9^9,$AD$9:EK$9),"MMMM")) ->  | EL7: =IF(EL$8="","",TEXT(LOOKUP(9^9,$AD$9:EL$9),"MMMM")) ->  | EM7: =IF(EM$8="","",TEXT(LOOKUP(9^9,$AD$9:EM$9),"MMMM")) ->  | EN7: =IF(EN$8="","",TEXT(LOOKUP(9^9,$AD$9:EN$9),"MMMM")) ->  | EO7: =IF(EO$8="","",TEXT(LOOKUP(9^9,$AD$9:EO$9),"MMMM")) -> août | EP7: =IF(EP$8="","",TEXT(LOOKUP(9^9,$AD$9:EP$9),"MMMM")) ->  | EQ7: =IF(EQ$8="","",TEXT(LOOKUP(9^9,$AD$9:EQ$9),"MMMM")) ->  | ER7: =IF(ER$8="","",TEXT(LOOKUP(9^9,$AD$9:ER$9),"MMMM")) ->  | ES7: =IF(ES$8="","",TEXT(LOOKUP(9^9,$AD$9:ES$9),"MMMM")) ->  | ET7: =IF(ET$8="","",TEXT(LOOKUP(9^9,$AD$9:ET$9),"MMMM")) ->  | EU7: =IF(EU$8="","",TEXT(LOOKUP(9^9,$AD$9:EU$9),"MMMM")) -> août | EV7: =IF(EV$8="","",TEXT(LOOKUP(9^9,$AD$9:EV$9),"MMMM")) ->  | EW7: =IF(EW$8="","",TEXT(LOOKUP(9^9,$AD$9:EW$9),"MMMM")) ->  | EX7: =IF(EX$8="","",TEXT(LOOKUP(9^9,$AD$9:EX$9),"MMMM")) ->  | EY7: =IF(EY$8="","",TEXT(LOOKUP(9^9,$AD$9:EY$9),"MMMM")) ->  | EZ7: =IF(EZ$8="","",TEXT(LOOKUP(9^9,$AD$9:EZ$9),"MMMM")) -> août | FA7: =IF(FA$8="","",TEXT(LOOKUP(9^9,$AD$9:FA$9),"MMMM")) ->  | FB7: =IF(FB$8="","",TEXT(LOOKUP(9^9,$AD$9:FB$9),"MMMM")) ->  | FC7: =IF(FC$8="","",TEXT(LOOKUP(9^9,$AD$9:FC$9),"MMMM")) ->  | FD7: =IF(FD$8="","",TEXT(LOOKUP(9^9,$AD$9:FD$9),"MMMM")) ->  | FE7: =IF(FE$8="","",TEXT(LOOKUP(9^9,$AD$9:FE$9),"MMMM")) -> septembre | FF7: =IF(FF$8="","",TEXT(LOOKUP(9^9,$AD$9:FF$9),"MMMM")) ->  | FG7: =IF(FG$8="","",TEXT(LOOKUP(9^9,$AD$9:FG$9),"MMMM")) ->  | FH7: =IF(FH$8="","",TEXT(LOOKUP(9^9,$AD$9:FH$9),"MMMM")) ->  | FI7: =IF(FI$8="","",TEXT(LOOKUP(9^9,$AD$9:FI$9),"MMMM")) ->  | FJ7: =IF(FJ$8="","",TEXT(LOOKUP(9^9,$AD$9:FJ$9),"MMMM")) -> septembre | FK7: =IF(FK$8="","",TEXT(LOOKUP(9^9,$AD$9:FK$9),"MMMM")) ->  | FL7: =IF(FL$8="","",TEXT(LOOKUP(9^9,$AD$9:FL$9),"MMMM")) ->  | FM7: =IF(FM$8="","",TEXT(LOOKUP(9^9,$AD$9:FM$9),"MMMM")) ->  | FN7: =IF(FN$8="","",TEXT(LOOKUP(9^9,$AD$9:FN$9),"MMMM")) ->  | FO7: =IF(FO$8="","",TEXT(LOOKUP(9^9,$AD$9:FO$9),"MMMM")) -> septembre | FP7: =IF(FP$8="","",TEXT(LOOKUP(9^9,$AD$9:FP$9),"MMMM")) ->  | FQ7: =IF(FQ$8="","",TEXT(LOOKUP(9^9,$AD$9:FQ$9),"MMMM")) ->  | FR7: =IF(FR$8="","",TEXT(LOOKUP(9^9,$AD$9:FR$9),"MMMM")) ->  | FS7: =IF(FS$8="","",TEXT(LOOKUP(9^9,$AD$9:FS$9),"MMMM")) ->  | FT7: =IF(FT$8="","",TEXT(LOOKUP(9^9,$AD$9:FT$9),"MMMM")) -> septembre | FU7: =IF(FU$8="","",TEXT(LOOKUP(9^9,$AD$9:FU$9),"MMMM")) ->  | FV7: =IF(FV$8="","",TEXT(LOOKUP(9^9,$AD$9:FV$9),"MMMM")) ->  | FW7: =IF(FW$8="","",TEXT(LOOKUP(9^9,$AD$9:FW$9),"MMMM")) ->  | FX7: =IF(FX$8="","",TEXT(LOOKUP(9^9,$AD$9:FX$9),"MMMM")) ->  | FY7: =IF(FY$8="","",TEXT(LOOKUP(9^9,$AD$9:FY$9),"MMMM")) -> septembre | FZ7: =IF(FZ$8="","",TEXT(LOOKUP(9^9,$AD$9:FZ$9),"MMMM")) ->  | GA7: =IF(GA$8="","",TEXT(LOOKUP(9^9,$AD$9:GA$9),"MMMM")) ->  | GB7: =IF(GB$8="","",TEXT(LOOKUP(9^9,$AD$9:GB$9),"MMMM")) ->  | GC7: =IF(GC$8="","",TEXT(LOOKUP(9^9,$AD$9:GC$9),"MMMM")) ->  | GD7: =IF(GD$8="","",TEXT(LOOKUP(9^9,$AD$9:GD$9),"MMMM")) -> septembre | GE7: =IF(GE$8="","",TEXT(LOOKUP(9^9,$AD$9:GE$9),"MMMM")) ->  | GF7: =IF(GF$8="","",TEXT(LOOKUP(9^9,$AD$9:GF$9),"MMMM")) ->  | GG7: =IF(GG$8="","",TEXT(LOOKUP(9^9,$AD$9:GG$9),"MMMM")) ->  | GH7: =IF(GH$8="","",TEXT(LOOKUP(9^9,$AD$9:GH$9),"MMMM")) ->  | GI7: =IF(GI$8="","",TEXT(LOOKUP(9^9,$AD$9:GI$9),"MMMM")) -> septembre | GJ7: =IF(GJ$8="","",TEXT(LOOKUP(9^9,$AD$9:GJ$9),"MMMM")) ->  | GK7: =IF(GK$8="","",TEXT(LOOKUP(9^9,$AD$9:GK$9),"MMMM")) ->  | GL7: =IF(GL$8="","",TEXT(LOOKUP(9^9,$AD$9:GL$9),"MMMM")) ->  | GM7: =IF(GM$8="","",TEXT(LOOKUP(9^9,$AD$9:GM$9),"MMMM")) ->  | GN7: =IF(GN$8="","",TEXT(LOOKUP(9^9,$AD$9:GN$9),"MMMM")) -> septembre | GO7: =IF(GO$8="","",TEXT(LOOKUP(9^9,$AD$9:GO$9),"MMMM")) ->  | GP7: =IF(GP$8="","",TEXT(LOOKUP(9^9,$AD$9:GP$9),"MMMM")) ->  | GQ7: =IF(GQ$8="","",TEXT(LOOKUP(9^9,$AD$9:GQ$9),"MMMM")) ->  | GR7: =IF(GR$8="","",TEXT(LOOKUP(9^9,$AD$9:GR$9),"MMMM")) ->  | GS7: =IF(GS$8="","",TEXT(LOOKUP(9^9,$AD$9:GS$9),"MMMM")) -> septembre | GT7: =IF(GT$8="","",TEXT(LOOKUP(9^9,$AD$9:GT$9),"MMMM")) ->  | GU7: =IF(GU$8="","",TEXT(LOOKUP(9^9,$AD$9:GU$9),"MMMM")) ->  | GV7: =IF(GV$8="","",TEXT(LOOKUP(9^9,$AD$9:GV$9),"MMMM")) ->  | GW7: =IF(GW$8="","",TEXT(LOOKUP(9^9,$AD$9:GW$9),"MMMM")) ->  | GX7: =IF(GX$8="","",TEXT(LOOKUP(9^9,$AD$9:GX$9),"MMMM")) -> septembre | GY7: =IF(GY$8="","",TEXT(LOOKUP(9^9,$AD$9:GY$9),"MMMM")) ->  | GZ7: =IF(GZ$8="","",TEXT(LOOKUP(9^9,$AD$9:GZ$9),"MMMM")) ->  | HA7: =IF(HA$8="","",TEXT(LOOKUP(9^9,$AD$9:HA$9),"MMMM")) ->  | HB7: =IF(HB$8="","",TEXT(LOOKUP(9^9,$AD$9:HB$9),"MMMM")) ->  | HC7: =IF(HC$8="","",TEXT(LOOKUP(9^9,$AD$9:HC$9),"MMMM")) -> septembre | HD7: =IF(HD$8="","",TEXT(LOOKUP(9^9,$AD$9:HD$9),"MMMM")) ->  | HE7: =IF(HE$8="","",TEXT(LOOKUP(9^9,$AD$9:HE$9),"MMMM")) ->  | HF7: =IF(HF$8="","",TEXT(LOOKUP(9^9,$AD$9:HF$9),"MMMM")) ->  | HG7: =IF(HG$8="","",TEXT(LOOKUP(9^9,$AD$9:HG$9),"MMMM")) ->  | HH7: =IF(HH$8="","",TEXT(LOOKUP(9^9,$AD$9:HH$9),"MMMM")) -> septembre | HI7: =IF(HI$8="","",TEXT(LOOKUP(9^9,$AD$9:HI$9),"MMMM")) ->  | HJ7: =IF(HJ$8="","",TEXT(LOOKUP(9^9,$AD$9:HJ$9),"MMMM")) ->  | HK7: =IF(HK$8="","",TEXT(LOOKUP(9^9,$AD$9:HK$9),"MMMM")) ->  | HL7: =IF(HL$8="","",TEXT(LOOKUP(9^9,$AD$9:HL$9),"MMMM")) ->  | HM7: =IF(HM$8="","",TEXT(LOOKUP(9^9,$AD$9:HM$9),"MMMM")) -> septembre | HN7: =IF(HN$8="","",TEXT(LOOKUP(9^9,$AD$9:HN$9),"MMMM")) ->  | HO7: =IF(HO$8="","",TEXT(LOOKUP(9^9,$AD$9:HO$9),"MMMM")) ->  | HP7: =IF(HP$8="","",TEXT(LOOKUP(9^9,$AD$9:HP$9),"MMMM")) ->  | HQ7: =IF(HQ$8="","",TEXT(LOOKUP(9^9,$AD$9:HQ$9),"MMMM")) ->  | HR7: =IF(HR$8="","",TEXT(LOOKUP(9^9,$AD$9:HR$9),"MMMM")) -> septembre | HS7: =IF(HS$8="","",TEXT(LOOKUP(9^9,$AD$9:HS$9),"MMMM")) ->  | HT7: =IF(HT$8="","",TEXT(LOOKUP(9^9,$AD$9:HT$9),"MMMM")) ->  | HU7: =IF(HU$8="","",TEXT(LOOKUP(9^9,$AD$9:HU$9),"MMMM")) ->  | HV7: =IF(HV$8="","",TEXT(LOOKUP(9^9,$AD$9:HV$9),"MMMM")) ->  | HW7: =IF(HW$8="","",TEXT(LOOKUP(9^9,$AD$9:HW$9),"MMMM")) -> septembre | HX7: =IF(HX$8="","",TEXT(LOOKUP(9^9,$AD$9:HX$9),"MMMM")) ->  | HY7: =IF(HY$8="","",TEXT(LOOKUP(9^9,$AD$9:HY$9),"MMMM")) ->  | HZ7: =IF(HZ$8="","",TEXT(LOOKUP(9^9,$AD$9:HZ$9),"MMMM")) ->  | IA7: =IF(IA$8="","",TEXT(LOOKUP(9^9,$AD$9:IA$9),"MMMM")) ->  | IB7: =IF(IB$8="","",TEXT(LOOKUP(9^9,$AD$9:IB$9),"MMMM")) -> septembre | IC7: =IF(IC$8="","",TEXT(LOOKUP(9^9,$AD$9:IC$9),"MMMM")) ->  | ID7: =IF(ID$8="","",TEXT(LOOKUP(9^9,$AD$9:ID$9),"MMMM")) ->  | IE7: =IF(IE$8="","",TEXT(LOOKUP(9^9,$AD$9:IE$9),"MMMM")) ->  | IF7: =IF(IF$8="","",TEXT(LOOKUP(9^9,$AD$9:IF$9),"MMMM")) ->  | IG7: =IF(IG$8="","",TEXT(LOOKUP(9^9,$AD$9:IG$9),"MMMM")) -> septembre | IH7: =IF(IH$8="","",TEXT(LOOKUP(9^9,$AD$9:IH$9),"MMMM")) ->  | II7: =IF(II$8="","",TEXT(LOOKUP(9^9,$AD$9:II$9),"MMMM")) ->  | IJ7: =IF(IJ$8="","",TEXT(LOOKUP(9^9,$AD$9:IJ$9),"MMMM")) ->  | IK7: =IF(IK$8="","",TEXT(LOOKUP(9^9,$AD$9:IK$9),"MMMM")) ->  | IL7: =IF(IL$8="","",TEXT(LOOKUP(9^9,$AD$9:IL$9),"MMMM")) -> septembre | IM7: =IF(IM$8="","",TEXT(LOOKUP(9^9,$AD$9:IM$9),"MMMM")) ->  | IN7: =IF(IN$8="","",TEXT(LOOKUP(9^9,$AD$9:IN$9),"MMMM")) ->  | IO7: =IF(IO$8="","",TEXT(LOOKUP(9^9,$AD$9:IO$9),"MMMM")) ->  | IP7: =IF(IP$8="","",TEXT(LOOKUP(9^9,$AD$9:IP$9),"MMMM")) ->  | IQ7: =IF(IQ$8="","",TEXT(LOOKUP(9^9,$AD$9:IQ$9),"MMMM")) -> septembre | IR7: =IF(IR$8="","",TEXT(LOOKUP(9^9,$AD$9:IR$9),"MMMM")) ->  | IS7: =IF(IS$8="","",TEXT(LOOKUP(9^9,$AD$9:IS$9),"MMMM")) ->  | IT7: =IF(IT$8="","",TEXT(LOOKUP(9^9,$AD$9:IT$9),"MMMM")) ->  | IU7: =IF(IU$8="","",TEXT(LOOKUP(9^9,$AD$9:IU$9),"MMMM")) ->  | IV7: =IF(IV$8="","",TEXT(LOOKUP(9^9,$AD$9:IV$9),"MMMM")) -> septembre | IW7: =IF(IW$8="","",TEXT(LOOKUP(9^9,$AD$9:IW$9),"MMMM")) ->  | IX7: =IF(IX$8="","",TEXT(LOOKUP(9^9,$AD$9:IX$9),"MMMM")) ->  | IY7: =IF(IY$8="","",TEXT(LOOKUP(9^9,$AD$9:IY$9),"MMMM")) ->  | IZ7: =IF(IZ$8="","",TEXT(LOOKUP(9^9,$AD$9:IZ$9),"MMMM")) ->  | JA7: =IF(JA$8="","",TEXT(LOOKUP(9^9,$AD$9:JA$9),"MMMM")) -> septembre | JB7: =IF(JB$8="","",TEXT(LOOKUP(9^9,$AD$9:JB$9),"MMMM")) ->  | JC7: =IF(JC$8="","",TEXT(LOOKUP(9^9,$AD$9:JC$9),"MMMM")) ->  | JD7: =IF(JD$8="","",TEXT(LOOKUP(9^9,$AD$9:JD$9),"MMMM")) ->  | JE7: =IF(JE$8="","",TEXT(LOOKUP(9^9,$AD$9:JE$9),"MMMM")) ->  | JF7: =IF(JF$8="","",TEXT(LOOKUP(9^9,$AD$9:JF$9),"MMMM")) -> septembre | JG7: =IF(JG$8="","",TEXT(LOOKUP(9^9,$AD$9:JG$9),"MMMM")) ->  | JH7: =IF(JH$8="","",TEXT(LOOKUP(9^9,$AD$9:JH$9),"MMMM")) ->  | JI7: =IF(JI$8="","",TEXT(LOOKUP(9^9,$AD$9:JI$9),"MMMM")) ->  | JJ7: =IF(JJ$8="","",TEXT(LOOKUP(9^9,$AD$9:JJ$9),"MMMM")) ->  | JK7: =IF(JK$8="","",TEXT(LOOKUP(9^9,$AD$9:JK$9),"MMMM")) -> septembre | JL7: =IF(JL$8="","",TEXT(LOOKUP(9^9,$AD$9:JL$9),"MMMM")) ->  | JM7: =IF(JM$8="","",TEXT(LOOKUP(9^9,$AD$9:JM$9),"MMMM")) ->  | JN7: =IF(JN$8="","",TEXT(LOOKUP(9^9,$AD$9:JN$9),"MMMM")) ->  | JO7: =IF(JO$8="","",TEXT(LOOKUP(9^9,$AD$9:JO$9),"MMMM")) ->  | JP7: =IF(JP$8="","",TEXT(LOOKUP(9^9,$AD$9:JP$9),"MMMM")) -> septembre | JQ7: =IF(JQ$8="","",TEXT(LOOKUP(9^9,$AD$9:JQ$9),"MMMM")) ->  | JR7: =IF(JR$8="","",TEXT(LOOKUP(9^9,$AD$9:JR$9),"MMMM")) ->  | JS7: =IF(JS$8="","",TEXT(LOOKUP(9^9,$AD$9:JS$9),"MMMM")) ->  | JT7: =IF(JT$8="","",TEXT(LOOKUP(9^9,$AD$9:JT$9),"MMMM")) ->  | JU7: =IF(JU$8="","",TEXT(LOOKUP(9^9,$AD$9:JU$9),"MMMM")) -> septembre | JV7: =IF(JV$8="","",TEXT(LOOKUP(9^9,$AD$9:JV$9),"MMMM")) ->  | JW7: =IF(JW$8="","",TEXT(LOOKUP(9^9,$AD$9:JW$9),"MMMM")) ->  | JX7: =IF(JX$8="","",TEXT(LOOKUP(9^9,$AD$9:JX$9),"MMMM")) ->  | JY7: =IF(JY$8="","",TEXT(LOOKUP(9^9,$AD$9:JY$9),"MMMM")) ->  | JZ7: =IF(JZ$8="","",TEXT(LOOKUP(9^9,$AD$9:JZ$9),"MMMM")) -> septembre | KA7: =IF(KA$8="","",TEXT(LOOKUP(9^9,$AD$9:KA$9),"MMMM")) ->  | KB7: =IF(KB$8="","",TEXT(LOOKUP(9^9,$AD$9:KB$9),"MMMM")) ->  | KC7: =IF(KC$8="","",TEXT(LOOKUP(9^9,$AD$9:KC$9),"MMMM")) ->  | KD7: =IF(KD$8="","",TEXT(LOOKUP(9^9,$AD$9:KD$9),"MMMM")) ->  | KE7: =IF(KE$8="","",TEXT(LOOKUP(9^9,$AD$9:KE$9),"MMMM")) -> octobre | KF7: =IF(KF$8="","",TEXT(LOOKUP(9^9,$AD$9:KF$9),"MMMM")) ->  | KG7: =IF(KG$8="","",TEXT(LOOKUP(9^9,$AD$9:KG$9),"MMMM")) ->  | KH7: =IF(KH$8="","",TEXT(LOOKUP(9^9,$AD$9:KH$9),"MMMM")) ->  | KI7: =IF(KI$8="","",TEXT(LOOKUP(9^9,$AD$9:KI$9),"MMMM")) ->  | KJ7: =IF(KJ$8="","",TEXT(LOOKUP(9^9,$AD$9:KJ$9),"MMMM")) -> octobre | KK7: =IF(KK$8="","",TEXT(LOOKUP(9^9,$AD$9:KK$9),"MMMM")) ->  | KL7: =IF(KL$8="","",TEXT(LOOKUP(9^9,$AD$9:KL$9),"MMMM")) ->  | KM7: =IF(KM$8="","",TEXT(LOOKUP(9^9,$AD$9:KM$9),"MMMM")) ->  | KN7: =IF(KN$8="","",TEXT(LOOKUP(9^9,$AD$9:KN$9),"MMMM")) ->  | KO7: =IF(KO$8="","",TEXT(LOOKUP(9^9,$AD$9:KO$9),"MMMM")) ->  | KP7: =IF(KP$8="","",TEXT(LOOKUP(9^9,$AD$9:KP$9),"MMMM")) -> octobre | KQ7: =IF(KQ$8="","",TEXT(LOOKUP(9^9,$AD$9:KQ$9),"MMMM")) ->  | KR7: =IF(KR$8="","",TEXT(LOOKUP(9^9,$AD$9:KR$9),"MMMM")) ->  | KS7: =IF(KS$8="","",TEXT(LOOKUP(9^9,$AD$9:KS$9),"MMMM")) ->  | KT7: =IF(KT$8="","",TEXT(LOOKUP(9^9,$AD$9:KT$9),"MMMM")) ->  | KU7: =IF(KU$8="","",TEXT(LOOKUP(9^9,$AD$9:KU$9),"MMMM")) -> octobre | KV7: =IF(KV$8="","",TEXT(LOOKUP(9^9,$AD$9:KV$9),"MMMM")) ->  | KW7: =IF(KW$8="","",TEXT(LOOKUP(9^9,$AD$9:KW$9),"MMMM")) ->  | KX7: =IF(KX$8="","",TEXT(LOOKUP(9^9,$AD$9:KX$9),"MMMM")) ->  | KY7: =IF(KY$8="","",TEXT(LOOKUP(9^9,$AD$9:KY$9),"MMMM")) ->  | KZ7: =IF(KZ$8="","",TEXT(LOOKUP(9^9,$AD$9:KZ$9),"MMMM")) -> octobre | LA7: =IF(LA$8="","",TEXT(LOOKUP(9^9,$AD$9:LA$9),"MMMM")) ->  | LB7: =IF(LB$8="","",TEXT(LOOKUP(9^9,$AD$9:LB$9),"MMMM")) ->  | LC7: =IF(LC$8="","",TEXT(LOOKUP(9^9,$AD$9:LC$9),"MMMM")) ->  | LD7: =IF(LD$8="","",TEXT(LOOKUP(9^9,$AD$9:LD$9),"MMMM")) ->  | LE7: =IF(LE$8="","",TEXT(LOOKUP(9^9,$AD$9:LE$9),"MMMM")) -> octobre | LF7: =IF(LF$8="","",TEXT(LOOKUP(9^9,$AD$9:LF$9),"MMMM")) ->  | LG7: =IF(LG$8="","",TEXT(LOOKUP(9^9,$AD$9:LG$9),"MMMM")) ->  | LH7: =IF(LH$8="","",TEXT(LOOKUP(9^9,$AD$9:LH$9),"MMMM")) ->  | LI7: =IF(LI$8="","",TEXT(LOOKUP(9^9,$AD$9:LI$9),"MMMM")) ->  | LJ7: =IF(LJ$8="","",TEXT(LOOKUP(9^9,$AD$9:LJ$9),"MMMM")) -> octobre | LK7: =IF(LK$8="","",TEXT(LOOKUP(9^9,$AD$9:LK$9),"MMMM")) ->  | LL7: =IF(LL$8="","",TEXT(LOOKUP(9^9,$AD$9:LL$9),"MMMM")) ->  | LM7: =IF(LM$8="","",TEXT(LOOKUP(9^9,$AD$9:LM$9),"MMMM")) ->  | LN7: =IF(LN$8="","",TEXT(LOOKUP(9^9,$AD$9:LN$9),"MMMM")) ->  | LO7: =IF(LO$8="","",TEXT(LOOKUP(9^9,$AD$9:LO$9),"MMMM")) -> octobre | LP7: =IF(LP$8="","",TEXT(LOOKUP(9^9,$AD$9:LP$9),"MMMM")) ->  | LQ7: =IF(LQ$8="","",TEXT(LOOKUP(9^9,$AD$9:LQ$9),"MMMM")) ->  | LR7: =IF(LR$8="","",TEXT(LOOKUP(9^9,$AD$9:LR$9),"MMMM")) ->  | LS7: =IF(LS$8="","",TEXT(LOOKUP(9^9,$AD$9:LS$9),"MMMM")) ->  | LT7: =IF(LT$8="","",TEXT(LOOKUP(9^9,$AD$9:LT$9),"MMMM")) ->  | LU7: =IF(LU$8="","",TEXT(LOOKUP(9^9,$AD$9:LU$9),"MMMM")) -> octobre | LV7: =IF(LV$8="","",TEXT(LOOKUP(9^9,$AD$9:LV$9),"MMMM")) ->  | LW7: =IF(LW$8="","",TEXT(LOOKUP(9^9,$AD$9:LW$9),"MMMM")) ->  | LX7: =IF(LX$8="","",TEXT(LOOKUP(9^9,$AD$9:LX$9),"MMMM")) ->  | LY7: =IF(LY$8="","",TEXT(LOOKUP(9^9,$AD$9:LY$9),"MMMM")) ->  | LZ7: =IF(LZ$8="","",TEXT(LOOKUP(9^9,$AD$9:LZ$9),"MMMM")) -> octobre | MA7: =IF(MA$8="","",TEXT(LOOKUP(9^9,$AD$9:MA$9),"MMMM")) ->  | MB7: =IF(MB$8="","",TEXT(LOOKUP(9^9,$AD$9:MB$9),"MMMM")) ->  | MC7: =IF(MC$8="","",TEXT(LOOKUP(9^9,$AD$9:MC$9),"MMMM")) ->  | MD7: =IF(MD$8="","",TEXT(LOOKUP(9^9,$AD$9:MD$9),"MMMM")) ->  | ME7: =IF(ME$8="","",TEXT(LOOKUP(9^9,$AD$9:ME$9),"MMMM")) -> octobre | MF7: =IF(MF$8="","",TEXT(LOOKUP(9^9,$AD$9:MF$9),"MMMM")) ->  | MG7: =IF(MG$8="","",TEXT(LOOKUP(9^9,$AD$9:MG$9),"MMMM")) ->  | MH7: =IF(MH$8="","",TEXT(LOOKUP(9^9,$AD$9:MH$9),"MMMM")) ->  | MI7: =IF(MI$8="","",TEXT(LOOKUP(9^9,$AD$9:MI$9),"MMMM")) ->  | MJ7: =IF(MJ$8="","",TEXT(LOOKUP(9^9,$AD$9:MJ$9),"MMMM")) -> octobre | MK7: =IF(MK$8="","",TEXT(LOOKUP(9^9,$AD$9:MK$9),"MMMM")) ->  | ML7: =IF(ML$8="","",TEXT(LOOKUP(9^9,$AD$9:ML$9),"MMMM")) ->  | MM7: =IF(MM$8="","",TEXT(LOOKUP(9^9,$AD$9:MM$9),"MMMM")) ->  | MN7: =IF(MN$8="","",TEXT(LOOKUP(9^9,$AD$9:MN$9),"MMMM")) ->  | MO7: =IF(MO$8="","",TEXT(LOOKUP(9^9,$AD$9:MO$9),"MMMM")) -> octobre | MP7: =IF(MP$8="","",TEXT(LOOKUP(9^9,$AD$9:MP$9),"MMMM")) ->  | MQ7: =IF(MQ$8="","",TEXT(LOOKUP(9^9,$AD$9:MQ$9),"MMMM")) ->  | MR7: =IF(MR$8="","",TEXT(LOOKUP(9^9,$AD$9:MR$9),"MMMM")) ->  | MS7: =IF(MS$8="","",TEXT(LOOKUP(9^9,$AD$9:MS$9),"MMMM")) ->  | MT7: =IF(MT$8="","",TEXT(LOOKUP(9^9,$AD$9:MT$9),"MMMM")) -> octobre | MU7: =IF(MU$8="","",TEXT(LOOKUP(9^9,$AD$9:MU$9),"MMMM")) ->  | MV7: =IF(MV$8="","",TEXT(LOOKUP(9^9,$AD$9:MV$9),"MMMM")) ->  | MW7: =IF(MW$8="","",TEXT(LOOKUP(9^9,$AD$9:MW$9),"MMMM")) ->  | MX7: =IF(MX$8="","",TEXT(LOOKUP(9^9,$AD$9:MX$9),"MMMM")) ->  | MY7: =IF(MY$8="","",TEXT(LOOKUP(9^9,$AD$9:MY$9),"MMMM")) ->  | MZ7: =IF(MZ$8="","",TEXT(LOOKUP(9^9,$AD$9:MZ$9),"MMMM")) -> octobre | NA7: =IF(NA$8="","",TEXT(LOOKUP(9^9,$AD$9:NA$9),"MMMM")) ->  | NB7: =IF(NB$8="","",TEXT(LOOKUP(9^9,$AD$9:NB$9),"MMMM")) ->  | NC7: =IF(NC$8="","",TEXT(LOOKUP(9^9,$AD$9:NC$9),"MMMM")) ->  | ND7: =IF(ND$8="","",TEXT(LOOKUP(9^9,$AD$9:ND$9),"MMMM")) ->  | NE7: =IF(NE$8="","",TEXT(LOOKUP(9^9,$AD$9:NE$9),"MMMM")) -> octobre | NF7: =IF(NF$8="","",TEXT(LOOKUP(9^9,$AD$9:NF$9),"MMMM")) ->  | NG7: =IF(NG$8="","",TEXT(LOOKUP(9^9,$AD$9:NG$9),"MMMM")) ->  | NH7: =IF(NH$8="","",TEXT(LOOKUP(9^9,$AD$9:NH$9),"MMMM")) ->  | NI7: =IF(NI$8="","",TEXT(LOOKUP(9^9,$AD$9:NI$9),"MMMM")) ->  | NJ7: =IF(NJ$8="","",TEXT(LOOKUP(9^9,$AD$9:NJ$9),"MMMM")) -> octobre | NK7: =IF(NK$8="","",TEXT(LOOKUP(9^9,$AD$9:NK$9),"MMMM")) ->  | NL7: =IF(NL$8="","",TEXT(LOOKUP(9^9,$AD$9:NL$9),"MMMM")) ->  | NM7: =IF(NM$8="","",TEXT(LOOKUP(9^9,$AD$9:NM$9),"MMMM")) ->  | NN7: =IF(NN$8="","",TEXT(LOOKUP(9^9,$AD$9:NN$9),"MMMM")) ->  | NO7: =IF(NO$8="","",TEXT(LOOKUP(9^9,$AD$9:NO$9),"MMMM")) -> octobre | NP7: =IF(NP$8="","",TEXT(LOOKUP(9^9,$AD$9:NP$9),"MMMM")) ->  | NQ7: =IF(NQ$8="","",TEXT(LOOKUP(9^9,$AD$9:NQ$9),"MMMM")) ->  | NR7: =IF(NR$8="","",TEXT(LOOKUP(9^9,$AD$9:NR$9),"MMMM")) ->  | NS7: =IF(NS$8="","",TEXT(LOOKUP(9^9,$AD$9:NS$9),"MMMM")) ->  | NT7: =IF(NT$8="","",TEXT(LOOKUP(9^9,$AD$9:NT$9),"MMMM")) -> octobre | NU7: =IF(NU$8="","",TEXT(LOOKUP(9^9,$AD$9:NU$9),"MMMM")) ->  | NV7: =IF(NV$8="","",TEXT(LOOKUP(9^9,$AD$9:NV$9),"MMMM")) ->  | NW7: =IF(NW$8="","",TEXT(LOOKUP(9^9,$AD$9:NW$9),"MMMM")) ->  | NX7: =IF(NX$8="","",TEXT(LOOKUP(9^9,$AD$9:NX$9),"MMMM")) ->  | NY7: =IF(NY$8="","",TEXT(LOOKUP(9^9,$AD$9:NY$9),"MMMM")) -> octobre | NZ7: =IF(NZ$8="","",TEXT(LOOKUP(9^9,$AD$9:NZ$9),"MMMM")) ->  | OA7: =IF(OA$8="","",TEXT(LOOKUP(9^9,$AD$9:OA$9),"MMMM")) ->  | OB7: =IF(OB$8="","",TEXT(LOOKUP(9^9,$AD$9:OB$9),"MMMM")) ->  | OC7: =IF(OC$8="","",TEXT(LOOKUP(9^9,$AD$9:OC$9),"MMMM")) ->  | OD7: =IF(OD$8="","",TEXT(LOOKUP(9^9,$AD$9:OD$9),"MMMM")) ->  | OE7: =IF(OE$8="","",TEXT(LOOKUP(9^9,$AD$9:OE$9),"MMMM")) -> octobre | OF7: =IF(OF$8="","",TEXT(LOOKUP(9^9,$AD$9:OF$9),"MMMM")) ->  | OG7: =IF(OG$8="","",TEXT(LOOKUP(9^9,$AD$9:OG$9),"MMMM")) ->  | OH7: =IF(OH$8="","",TEXT(LOOKUP(9^9,$AD$9:OH$9),"MMMM")) ->  | OI7: =IF(OI$8="","",TEXT(LOOKUP(9^9,$AD$9:OI$9),"MMMM")) ->  | OJ7: =IF(OJ$8="","",TEXT(LOOKUP(9^9,$AD$9:OJ$9),"MMMM")) -> octobre | OK7: =IF(OK$8="","",TEXT(LOOKUP(9^9,$AD$9:OK$9),"MMMM")) ->  | OL7: =IF(OL$8="","",TEXT(LOOKUP(9^9,$AD$9:OL$9),"MMMM")) ->  | OM7: =IF(OM$8="","",TEXT(LOOKUP(9^9,$AD$9:OM$9),"MMMM")) ->  | ON7: =IF(ON$8="","",TEXT(LOOKUP(9^9,$AD$9:ON$9),"MMMM")) ->  | OO7: =IF(OO$8="","",TEXT(LOOKUP(9^9,$AD$9:OO$9),"MMMM")) -> octobre | OP7: =IF(OP$8="","",TEXT(LOOKUP(9^9,$AD$9:OP$9),"MMMM")) ->  | OQ7: =IF(OQ$8="","",TEXT(LOOKUP(9^9,$AD$9:OQ$9),"MMMM")) ->  | OR7: =IF(OR$8="","",TEXT(LOOKUP(9^9,$AD$9:OR$9),"MMMM")) ->  | OS7: =IF(OS$8="","",TEXT(LOOKUP(9^9,$AD$9:OS$9),"MMMM")) ->  | OT7: =IF(OT$8="","",TEXT(LOOKUP(9^9,$AD$9:OT$9),"MMMM")) -> octobre | OU7: =IF(OU$8="","",TEXT(LOOKUP(9^9,$AD$9:OU$9),"MMMM")) ->  | OV7: =IF(OV$8="","",TEXT(LOOKUP(9^9,$AD$9:OV$9),"MMMM")) ->  | OW7: =IF(OW$8="","",TEXT(LOOKUP(9^9,$AD$9:OW$9),"MMMM")) ->  | OX7: =IF(OX$8="","",TEXT(LOOKUP(9^9,$AD$9:OX$9),"MMMM")) ->  | OY7: =IF(OY$8="","",TEXT(LOOKUP(9^9,$AD$9:OY$9),"MMMM")) -> octobre | OZ7: =IF(OZ$8="","",TEXT(LOOKUP(9^9,$AD$9:OZ$9),"MMMM")) ->  | PA7: =IF(PA$8="","",TEXT(LOOKUP(9^9,$AD$9:PA$9),"MMMM")) ->  | PB7: =IF(PB$8="","",TEXT(LOOKUP(9^9,$AD$9:PB$9),"MMMM")) ->  | PC7: =IF(PC$8="","",TEXT(LOOKUP(9^9,$AD$9:PC$9),"MMMM")) ->  | PD7: =IF(PD$8="","",TEXT(LOOKUP(9^9,$AD$9:PD$9),"MMMM")) -> octobre | PE7: =IF(PE$8="","",TEXT(LOOKUP(9^9,$AD$9:PE$9),"MMMM")) ->  | PF7: =IF(PF$8="","",TEXT(LOOKUP(9^9,$AD$9:PF$9),"MMMM")) ->  | PG7: =IF(PG$8="","",TEXT(LOOKUP(9^9,$AD$9:PG$9),"MMMM")) ->  | PH7: =IF(PH$8="","",TEXT(LOOKUP(9^9,$AD$9:PH$9),"MMMM")) ->  | PI7: =IF(PI$8="","",TEXT(LOOKUP(9^9,$AD$9:PI$9),"MMMM")) ->  | PJ7: =IF(PJ$8="","",TEXT(LOOKUP(9^9,$PJ$9:PJ$9),"MMMM")) -> novembre | PK7: =IF(PK$8="","",TEXT(LOOKUP(9^9,$PJ$9:PK$9),"MMMM")) ->  | PL7: =IF(PL$8="","",TEXT(LOOKUP(9^9,$PJ$9:PL$9),"MMMM")) ->  | PM7: =IF(PM$8="","",TEXT(LOOKUP(9^9,$PJ$9:PM$9),"MMMM")) ->  | PN7: =IF(PN$8="","",TEXT(LOOKUP(9^9,$PJ$9:PN$9),"MMMM")) ->  | PO7: =IF(PO$8="","",TEXT(LOOKUP(9^9,$PJ$9:PO$9),"MMMM")) -> novembre | PP7: =IF(PP$8="","",TEXT(LOOKUP(9^9,$PJ$9:PP$9),"MMMM")) ->  | PQ7: =IF(PQ$8="","",TEXT(LOOKUP(9^9,$PJ$9:PQ$9),"MMMM")) ->  | PR7: =IF(PR$8="","",TEXT(LOOKUP(9^9,$PJ$9:PR$9),"MMMM")) ->  | PS7: =IF(PS$8="","",TEXT(LOOKUP(9^9,$PJ$9:PS$9),"MMMM")) ->  | PT7: =IF(PT$8="","",TEXT(LOOKUP(9^9,$PJ$9:PT$9),"MMMM")) -> novembre | PU7: =IF(PU$8="","",TEXT(LOOKUP(9^9,$PJ$9:PU$9),"MMMM")) ->  | PV7: =IF(PV$8="","",TEXT(LOOKUP(9^9,$PJ$9:PV$9),"MMMM")) ->  | PW7: =IF(PW$8="","",TEXT(LOOKUP(9^9,$PJ$9:PW$9),"MMMM")) ->  | PX7: =IF(PX$8="","",TEXT(LOOKUP(9^9,$PJ$9:PX$9),"MMMM")) ->  | PY7: =IF(PY$8="","",TEXT(LOOKUP(9^9,$PJ$9:PY$9),"MMMM")) -> novembre | PZ7: =IF(PZ$8="","",TEXT(LOOKUP(9^9,$PJ$9:PZ$9),"MMMM")) ->  | QA7: =IF(QA$8="","",TEXT(LOOKUP(9^9,$PJ$9:QA$9),"MMMM")) ->  | QB7: =IF(QB$8="","",TEXT(LOOKUP(9^9,$PJ$9:QB$9),"MMMM")) ->  | QC7: =IF(QC$8="","",TEXT(LOOKUP(9^9,$PJ$9:QC$9),"MMMM")) ->  | QD7: =IF(QD$8="","",TEXT(LOOKUP(9^9,$PJ$9:QD$9),"MMMM")) -> novembre | QE7: =IF(QE$8="","",TEXT(LOOKUP(9^9,$PJ$9:QE$9),"MMMM")) ->  | QF7: =IF(QF$8="","",TEXT(LOOKUP(9^9,$PJ$9:QF$9),"MMMM")) ->  | QG7: =IF(QG$8="","",TEXT(LOOKUP(9^9,$PJ$9:QG$9),"MMMM")) ->  | QH7: =IF(QH$8="","",TEXT(LOOKUP(9^9,$PJ$9:QH$9),"MMMM")) ->  | QI7: =IF(QI$8="","",TEXT(LOOKUP(9^9,$PJ$9:QI$9),"MMMM")) -> novembre | QJ7: =IF(QJ$8="","",TEXT(LOOKUP(9^9,$PJ$9:QJ$9),"MMMM")) ->  | QK7: =IF(QK$8="","",TEXT(LOOKUP(9^9,$PJ$9:QK$9),"MMMM")) ->  | QL7: =IF(QL$8="","",TEXT(LOOKUP(9^9,$PJ$9:QL$9),"MMMM")) ->  | QM7: =IF(QM$8="","",TEXT(LOOKUP(9^9,$PJ$9:QM$9),"MMMM")) ->  | QN7: =IF(QN$8="","",TEXT(LOOKUP(9^9,$PJ$9:QN$9),"MMMM")) ->  | QO7: =IF(QO$8="","",TEXT(LOOKUP(9^9,$PJ$9:QO$9),"MMMM")) -> novembre | QP7: =IF(QP$8="","",TEXT(LOOKUP(9^9,$PJ$9:QP$9),"MMMM")) ->  | QQ7: =IF(QQ$8="","",TEXT(LOOKUP(9^9,$PJ$9:QQ$9),"MMMM")) ->  | QR7: =IF(QR$8="","",TEXT(LOOKUP(9^9,$PJ$9:QR$9),"MMMM")) ->  | QS7: =IF(QS$8="","",TEXT(LOOKUP(9^9,$PJ$9:QS$9),"MMMM")) ->  | QT7: =IF(QT$8="","",TEXT(LOOKUP(9^9,$PJ$9:QT$9),"MMMM")) -> novembre | QU7: =IF(QU$8="","",TEXT(LOOKUP(9^9,$PJ$9:QU$9),"MMMM")) ->  | QV7: =IF(QV$8="","",TEXT(LOOKUP(9^9,$PJ$9:QV$9),"MMMM")) ->  | QW7: =IF(QW$8="","",TEXT(LOOKUP(9^9,$PJ$9:QW$9),"MMMM")) ->  | QX7: =IF(QX$8="","",TEXT(LOOKUP(9^9,$PJ$9:QX$9),"MMMM")) ->  | QY7: =IF(QY$8="","",TEXT(LOOKUP(9^9,$PJ$9:QY$9),"MMMM")) -> novembre | QZ7: =IF(QZ$8="","",TEXT(LOOKUP(9^9,$PJ$9:QZ$9),"MMMM")) ->  | RA7: =IF(RA$8="","",TEXT(LOOKUP(9^9,$PJ$9:RA$9),"MMMM")) ->  | RB7: =IF(RB$8="","",TEXT(LOOKUP(9^9,$PJ$9:RB$9),"MMMM")) ->  | RC7: =IF(RC$8="","",TEXT(LOOKUP(9^9,$PJ$9:RC$9),"MMMM")) ->  | RD7: =IF(RD$8="","",TEXT(LOOKUP(9^9,$PJ$9:RD$9),"MMMM")) -> novembre | RE7: =IF(RE$8="","",TEXT(LOOKUP(9^9,$PJ$9:RE$9),"MMMM")) ->  | RF7: =IF(RF$8="","",TEXT(LOOKUP(9^9,$PJ$9:RF$9),"MMMM")) ->  | RG7: =IF(RG$8="","",TEXT(LOOKUP(9^9,$PJ$9:RG$9),"MMMM")) ->  | RH7: =IF(RH$8="","",TEXT(LOOKUP(9^9,$PJ$9:RH$9),"MMMM")) ->  | RI7: =IF(RI$8="","",TEXT(LOOKUP(9^9,$PJ$9:RI$9),"MMMM")) -> novembre | RJ7: =IF(RJ$8="","",TEXT(LOOKUP(9^9,$PJ$9:RJ$9),"MMMM")) ->  | RK7: =IF(RK$8="","",TEXT(LOOKUP(9^9,$PJ$9:RK$9),"MMMM")) ->  | RL7: =IF(RL$8="","",TEXT(LOOKUP(9^9,$PJ$9:RL$9),"MMMM")) ->  | RM7: =IF(RM$8="","",TEXT(LOOKUP(9^9,$PJ$9:RM$9),"MMMM")) ->  | RN7: =IF(RN$8="","",TEXT(LOOKUP(9^9,$PJ$9:RN$9),"MMMM")) -> novembre | RO7: =IF(RO$8="","",TEXT(LOOKUP(9^9,$PJ$9:RO$9),"MMMM")) ->  | RP7: =IF(RP$8="","",TEXT(LOOKUP(9^9,$PJ$9:RP$9),"MMMM")) ->  | RQ7: =IF(RQ$8="","",TEXT(LOOKUP(9^9,$PJ$9:RQ$9),"MMMM")) ->  | RR7: =IF(RR$8="","",TEXT(LOOKUP(9^9,$PJ$9:RR$9),"MMMM")) ->  | RS7: =IF(RS$8="","",TEXT(LOOKUP(9^9,$PJ$9:RS$9),"MMMM")) ->  | RT7: =IF(RT$8="","",TEXT(LOOKUP(9^9,$PJ$9:RT$9),"MMMM")) -> novembre | RU7: =IF(RU$8="","",TEXT(LOOKUP(9^9,$PJ$9:RU$9),"MMMM")) ->  | RV7: =IF(RV$8="","",TEXT(LOOKUP(9^9,$PJ$9:RV$9),"MMMM")) ->  | RW7: =IF(RW$8="","",TEXT(LOOKUP(9^9,$PJ$9:RW$9),"MMMM")) ->  | RX7: =IF(RX$8="","",TEXT(LOOKUP(9^9,$PJ$9:RX$9),"MMMM")) ->  | RY7: =IF(RY$8="","",TEXT(LOOKUP(9^9,$PJ$9:RY$9),"MMMM")) -> novembre | RZ7: =IF(RZ$8="","",TEXT(LOOKUP(9^9,$PJ$9:RZ$9),"MMMM")) ->  | SA7: =IF(SA$8="","",TEXT(LOOKUP(9^9,$PJ$9:SA$9),"MMMM")) ->  | SB7: =IF(SB$8="","",TEXT(LOOKUP(9^9,$PJ$9:SB$9),"MMMM")) ->  | SC7: =IF(SC$8="","",TEXT(LOOKUP(9^9,$PJ$9:SC$9),"MMMM")) ->  | SD7: =IF(SD$8="","",TEXT(LOOKUP(9^9,$PJ$9:SD$9),"MMMM")) -> novembre | SE7: =IF(SE$8="","",TEXT(LOOKUP(9^9,$PJ$9:SE$9),"MMMM")) ->  | SF7: =IF(SF$8="","",TEXT(LOOKUP(9^9,$PJ$9:SF$9),"MMMM")) ->  | SG7: =IF(SG$8="","",TEXT(LOOKUP(9^9,$PJ$9:SG$9),"MMMM")) ->  | SH7: =IF(SH$8="","",TEXT(LOOKUP(9^9,$PJ$9:SH$9),"MMMM")) ->  | SI7: =IF(SI$8="","",TEXT(LOOKUP(9^9,$PJ$9:SI$9),"MMMM")) -> novembre | SJ7: =IF(SJ$8="","",TEXT(LOOKUP(9^9,$PJ$9:SJ$9),"MMMM")) ->  | SK7: =IF(SK$8="","",TEXT(LOOKUP(9^9,$PJ$9:SK$9),"MMMM")) ->  | SL7: =IF(SL$8="","",TEXT(LOOKUP(9^9,$PJ$9:SL$9),"MMMM")) ->  | SM7: =IF(SM$8="","",TEXT(LOOKUP(9^9,$PJ$9:SM$9),"MMMM")) ->  | SN7: =IF(SN$8="","",TEXT(LOOKUP(9^9,$PJ$9:SN$9),"MMMM")) -> novembre | SO7: =IF(SO$8="","",TEXT(LOOKUP(9^9,$PJ$9:SO$9),"MMMM")) ->  | SP7: =IF(SP$8="","",TEXT(LOOKUP(9^9,$PJ$9:SP$9),"MMMM")) ->  | SQ7: =IF(SQ$8="","",TEXT(LOOKUP(9^9,$PJ$9:SQ$9),"MMMM")) ->  | SR7: =IF(SR$8="","",TEXT(LOOKUP(9^9,$PJ$9:SR$9),"MMMM")) ->  | SS7: =IF(SS$8="","",TEXT(LOOKUP(9^9,$PJ$9:SS$9),"MMMM")) -> novembre | ST7: =IF(ST$8="","",TEXT(LOOKUP(9^9,$PJ$9:ST$9),"MMMM")) ->  | SU7: =IF(SU$8="","",TEXT(LOOKUP(9^9,$PJ$9:SU$9),"MMMM")) ->  | SV7: =IF(SV$8="","",TEXT(LOOKUP(9^9,$PJ$9:SV$9),"MMMM")) ->  | SW7: =IF(SW$8="","",TEXT(LOOKUP(9^9,$PJ$9:SW$9),"MMMM")) ->  | SX7: =IF(SX$8="","",TEXT(LOOKUP(9^9,$PJ$9:SX$9),"MMMM")) ->  | SY7: =IF(SY$8="","",TEXT(LOOKUP(9^9,$PJ$9:SY$9),"MMMM")) -> novembre | SZ7: =IF(SZ$8="","",TEXT(LOOKUP(9^9,$PJ$9:SZ$9),"MMMM")) ->  | TA7: =IF(TA$8="","",TEXT(LOOKUP(9^9,$PJ$9:TA$9),"MMMM")) ->  | TB7: =IF(TB$8="","",TEXT(LOOKUP(9^9,$PJ$9:TB$9),"MMMM")) ->  | TC7: =IF(TC$8="","",TEXT(LOOKUP(9^9,$PJ$9:TC$9),"MMMM")) ->  | TD7: =IF(TD$8="","",TEXT(LOOKUP(9^9,$PJ$9:TD$9),"MMMM")) -> novembre | TE7: =IF(TE$8="","",TEXT(LOOKUP(9^9,$PJ$9:TE$9),"MMMM")) ->  | TF7: =IF(TF$8="","",TEXT(LOOKUP(9^9,$PJ$9:TF$9),"MMMM")) ->  | TG7: =IF(TG$8="","",TEXT(LOOKUP(9^9,$PJ$9:TG$9),"MMMM")) ->  | TH7: =IF(TH$8="","",TEXT(LOOKUP(9^9,$PJ$9:TH$9),"MMMM")) ->  | TI7: =IF(TI$8="","",TEXT(LOOKUP(9^9,$PJ$9:TI$9),"MMMM")) -> novembre | TJ7: =IF(TJ$8="","",TEXT(LOOKUP(9^9,$PJ$9:TJ$9),"MMMM")) ->  | TK7: =IF(TK$8="","",TEXT(LOOKUP(9^9,$PJ$9:TK$9),"MMMM")) ->  | TL7: =IF(TL$8="","",TEXT(LOOKUP(9^9,$PJ$9:TL$9),"MMMM")) ->  | TM7: =IF(TM$8="","",TEXT(LOOKUP(9^9,$PJ$9:TM$9),"MMMM")) ->  | TN7: =IF(TN$8="","",TEXT(LOOKUP(9^9,$PJ$9:TN$9),"MMMM")) -> novembre | TO7: =IF(TO$8="","",TEXT(LOOKUP(9^9,$PJ$9:TO$9),"MMMM")) ->  | TP7: =IF(TP$8="","",TEXT(LOOKUP(9^9,$PJ$9:TP$9),"MMMM")) ->  | TQ7: =IF(TQ$8="","",TEXT(LOOKUP(9^9,$PJ$9:TQ$9),"MMMM")) ->  | TR7: =IF(TR$8="","",TEXT(LOOKUP(9^9,$PJ$9:TR$9),"MMMM")) ->  | TS7: =IF(TS$8="","",TEXT(LOOKUP(9^9,$PJ$9:TS$9),"MMMM")) -> novembre | TT7: =IF(TT$8="","",TEXT(LOOKUP(9^9,$PJ$9:TT$9),"MMMM")) ->  | TU7: =IF(TU$8="","",TEXT(LOOKUP(9^9,$PJ$9:TU$9),"MMMM")) ->  | TV7: =IF(TV$8="","",TEXT(LOOKUP(9^9,$PJ$9:TV$9),"MMMM")) ->  | TW7: =IF(TW$8="","",TEXT(LOOKUP(9^9,$PJ$9:TW$9),"MMMM")) ->  | TX7: =IF(TX$8="","",TEXT(LOOKUP(9^9,$PJ$9:TX$9),"MMMM")) -> novembre | TY7: =IF(TY$8="","",TEXT(LOOKUP(9^9,$PJ$9:TY$9),"MMMM")) ->  | TZ7: =IF(TZ$8="","",TEXT(LOOKUP(9^9,$PJ$9:TZ$9),"MMMM")) ->  | UA7: =IF(UA$8="","",TEXT(LOOKUP(9^9,$PJ$9:UA$9),"MMMM")) ->  | UB7: =IF(UB$8="","",TEXT(LOOKUP(9^9,$PJ$9:UB$9),"MMMM")) ->  | UC7: =IF(UC$8="","",TEXT(LOOKUP(9^9,$PJ$9:UC$9),"MMMM")) ->  | UD7: =IF(UD$8="","",TEXT(LOOKUP(9^9,$PJ$9:UD$9),"MMMM")) -> novembre | UE7: =IF(UE$8="","",TEXT(LOOKUP(9^9,$PJ$9:UE$9),"MMMM")) ->  | UF7: =IF(UF$8="","",TEXT(LOOKUP(9^9,$PJ$9:UF$9),"MMMM")) ->  | UG7: =IF(UG$8="","",TEXT(LOOKUP(9^9,$PJ$9:UG$9),"MMMM")) ->  | UH7: =IF(UH$8="","",TEXT(LOOKUP(9^9,$PJ$9:UH$9),"MMMM")) ->  | UI7: =IF(UI$8="","",TEXT(LOOKUP(9^9,$PJ$9:UI$9),"MMMM")) -> novembre | UJ7: =IF(UJ$8="","",TEXT(LOOKUP(9^9,$PJ$9:UJ$9),"MMMM")) ->  | UK7: =IF(UK$8="","",TEXT(LOOKUP(9^9,$PJ$9:UK$9),"MMMM")) ->  | UL7: =IF(UL$8="","",TEXT(LOOKUP(9^9,$PJ$9:UL$9),"MMMM")) ->  | UM7: =IF(UM$8="","",TEXT(LOOKUP(9^9,$PJ$9:UM$9),"MMMM")) ->  | UN7: =IF(UN$8="","",TEXT(LOOKUP(9^9,$PJ$9:UN$9),"MMMM")) ->  | UO7: =IF(UO$8="","",TEXT(LOOKUP(9^9,$PJ$9:UO$9),"MMMM")) -> décembre | UP7: =IF(UP$8="","",TEXT(LOOKUP(9^9,$PJ$9:UP$9),"MMMM")) ->  | UQ7: =IF(UQ$8="","",TEXT(LOOKUP(9^9,$PJ$9:UQ$9),"MMMM")) ->  | UR7: =IF(UR$8="","",TEXT(LOOKUP(9^9,$PJ$9:UR$9),"MMMM")) ->  | US7: =IF(US$8="","",TEXT(LOOKUP(9^9,$PJ$9:US$9),"MMMM")) ->  | UT7: =IF(UT$8="","",TEXT(LOOKUP(9^9,$PJ$9:UT$9),"MMMM")) -> décembre | UU7: =IF(UU$8="","",TEXT(LOOKUP(9^9,$PJ$9:UU$9),"MMMM")) ->  | UV7: =IF(UV$8="","",TEXT(LOOKUP(9^9,$PJ$9:UV$9),"MMMM")) ->  | UW7: =IF(UW$8="","",TEXT(LOOKUP(9^9,$PJ$9:UW$9),"MMMM")) ->  | UX7: =IF(UX$8="","",TEXT(LOOKUP(9^9,$PJ$9:UX$9),"MMMM")) ->  | UY7: =IF(UY$8="","",TEXT(LOOKUP(9^9,$PJ$9:UY$9),"MMMM")) -> décembre | UZ7: =IF(UZ$8="","",TEXT(LOOKUP(9^9,$PJ$9:UZ$9),"MMMM")) ->  | VA7: =IF(VA$8="","",TEXT(LOOKUP(9^9,$PJ$9:VA$9),"MMMM")) ->  | VB7: =IF(VB$8="","",TEXT(LOOKUP(9^9,$PJ$9:VB$9),"MMMM")) ->  | VC7: =IF(VC$8="","",TEXT(LOOKUP(9^9,$PJ$9:VC$9),"MMMM")) ->  | VD7: =IF(VD$8="","",TEXT(LOOKUP(9^9,$PJ$9:VD$9),"MMMM")) -> décembre | VE7: =IF(VE$8="","",TEXT(LOOKUP(9^9,$PJ$9:VE$9),"MMMM")) ->  | VF7: =IF(VF$8="","",TEXT(LOOKUP(9^9,$PJ$9:VF$9),"MMMM")) ->  | VG7: =IF(VG$8="","",TEXT(LOOKUP(9^9,$PJ$9:VG$9),"MMMM")) ->  | VH7: =IF(VH$8="","",TEXT(LOOKUP(9^9,$PJ$9:VH$9),"MMMM")) ->  | VI7: =IF(VI$8="","",TEXT(LOOKUP(9^9,$PJ$9:VI$9),"MMMM")) ->  | VJ7: =IF(VJ$8="","",TEXT(LOOKUP(9^9,$PJ$9:VJ$9),"MMMM")) -> décembre | VK7: =IF(VK$8="","",TEXT(LOOKUP(9^9,$PJ$9:VK$9),"MMMM")) ->  | VL7: =IF(VL$8="","",TEXT(LOOKUP(9^9,$PJ$9:VL$9),"MMMM")) ->  | VM7: =IF(VM$8="","",TEXT(LOOKUP(9^9,$PJ$9:VM$9),"MMMM")) ->  | VN7: =IF(VN$8="","",TEXT(LOOKUP(9^9,$PJ$9:VN$9),"MMMM")) ->  | VO7: =IF(VO$8="","",TEXT(LOOKUP(9^9,$PJ$9:VO$9),"MMMM")) -> décembre | VP7: =IF(VP$8="","",TEXT(LOOKUP(9^9,$PJ$9:VP$9),"MMMM")) ->  | VQ7: =IF(VQ$8="","",TEXT(LOOKUP(9^9,$PJ$9:VQ$9),"MMMM")) ->  | VR7: =IF(VR$8="","",TEXT(LOOKUP(9^9,$PJ$9:VR$9),"MMMM")) ->  | VS7: =IF(VS$8="","",TEXT(LOOKUP(9^9,$PJ$9:VS$9),"MMMM")) ->  | VT7: =IF(VT$8="","",TEXT(LOOKUP(9^9,$PJ$9:VT$9),"MMMM")) -> décembre | VU7: =IF(VU$8="","",TEXT(LOOKUP(9^9,$PJ$9:VU$9),"MMMM")) ->  | VV7: =IF(VV$8="","",TEXT(LOOKUP(9^9,$PJ$9:VV$9),"MMMM")) ->  | VW7: =IF(VW$8="","",TEXT(LOOKUP(9^9,$PJ$9:VW$9),"MMMM")) ->  | VX7: =IF(VX$8="","",TEXT(LOOKUP(9^9,$PJ$9:VX$9),"MMMM")) ->  | VY7: =IF(VY$8="","",TEXT(LOOKUP(9^9,$PJ$9:VY$9),"MMMM")) -> décembre | VZ7: =IF(VZ$8="","",TEXT(LOOKUP(9^9,$PJ$9:VZ$9),"MMMM")) ->  | WA7: =IF(WA$8="","",TEXT(LOOKUP(9^9,$PJ$9:WA$9),"MMMM")) ->  | WB7: =IF(WB$8="","",TEXT(LOOKUP(9^9,$PJ$9:WB$9),"MMMM")) ->  | WC7: =IF(WC$8="","",TEXT(LOOKUP(9^9,$PJ$9:WC$9),"MMMM")) ->  | WD7: =IF(WD$8="","",TEXT(LOOKUP(9^9,$PJ$9:WD$9),"MMMM")) -> décembre | WE7: =IF(WE$8="","",TEXT(LOOKUP(9^9,$PJ$9:WE$9),"MMMM")) ->  | WF7: =IF(WF$8="","",TEXT(LOOKUP(9^9,$PJ$9:WF$9),"MMMM")) ->  | WG7: =IF(WG$8="","",TEXT(LOOKUP(9^9,$PJ$9:WG$9),"MMMM")) ->  | WH7: =IF(WH$8="","",TEXT(LOOKUP(9^9,$PJ$9:WH$9),"MMMM")) ->  | WI7: =IF(WI$8="","",TEXT(LOOKUP(9^9,$PJ$9:WI$9),"MMMM")) -> décembre | WJ7: =IF(WJ$8="","",TEXT(LOOKUP(9^9,$PJ$9:WJ$9),"MMMM")) ->  | WK7: =IF(WK$8="","",TEXT(LOOKUP(9^9,$PJ$9:WK$9),"MMMM")) ->  | WL7: =IF(WL$8="","",TEXT(LOOKUP(9^9,$PJ$9:WL$9),"MMMM")) ->  | WM7: =IF(WM$8="","",TEXT(LOOKUP(9^9,$PJ$9:WM$9),"MMMM")) ->  | WN7: =IF(WN$8="","",TEXT(LOOKUP(9^9,$PJ$9:WN$9),"MMMM")) ->  | WO7: =IF(WO$8="","",TEXT(LOOKUP(9^9,$PJ$9:WO$9),"MMMM")) -> décembre | WP7: =IF(WP$8="","",TEXT(LOOKUP(9^9,$PJ$9:WP$9),"MMMM")) ->  | WQ7: =IF(WQ$8="","",TEXT(LOOKUP(9^9,$PJ$9:WQ$9),"MMMM")) ->  | WR7: =IF(WR$8="","",TEXT(LOOKUP(9^9,$PJ$9:WR$9),"MMMM")) ->  | WS7: =IF(WS$8="","",TEXT(LOOKUP(9^9,$PJ$9:WS$9),"MMMM")) ->  | WT7: =IF(WT$8="","",TEXT(LOOKUP(9^9,$PJ$9:WT$9),"MMMM")) -> décembre | WU7: =IF(WU$8="","",TEXT(LOOKUP(9^9,$PJ$9:WU$9),"MMMM")) ->  | WV7: =IF(WV$8="","",TEXT(LOOKUP(9^9,$PJ$9:WV$9),"MMMM")) ->  | WW7: =IF(WW$8="","",TEXT(LOOKUP(9^9,$PJ$9:WW$9),"MMMM")) ->  | WX7: =IF(WX$8="","",TEXT(LOOKUP(9^9,$PJ$9:WX$9),"MMMM")) ->  | WY7: =IF(WY$8="","",TEXT(LOOKUP(9^9,$PJ$9:WY$9),"MMMM")) -> décembre | WZ7: =IF(WZ$8="","",TEXT(LOOKUP(9^9,$PJ$9:WZ$9),"MMMM")) ->  | XA7: =IF(XA$8="","",TEXT(LOOKUP(9^9,$PJ$9:XA$9),"MMMM")) ->  | XB7: =IF(XB$8="","",TEXT(LOOKUP(9^9,$PJ$9:XB$9),"MMMM")) ->  | XC7: =IF(XC$8="","",TEXT(LOOKUP(9^9,$PJ$9:XC$9),"MMMM")) ->  | XD7: =IF(XD$8="","",TEXT(LOOKUP(9^9,$PJ$9:XD$9),"MMMM")) -> décembre | XE7: =IF(XE$8="","",TEXT(LOOKUP(9^9,$PJ$9:XE$9),"MMMM")) ->  | XF7: =IF(XF$8="","",TEXT(LOOKUP(9^9,$PJ$9:XF$9),"MMMM")) ->  | XG7: =IF(XG$8="","",TEXT(LOOKUP(9^9,$PJ$9:XG$9),"MMMM")) ->  | XH7: =IF(XH$8="","",TEXT(LOOKUP(9^9,$PJ$9:XH$9),"MMMM")) ->  | XI7: =IF(XI$8="","",TEXT(LOOKUP(9^9,$PJ$9:XI$9),"MMMM")) -> décembre | XJ7: =IF(XJ$8="","",TEXT(LOOKUP(9^9,$PJ$9:XJ$9),"MMMM")) ->  | XK7: =IF(XK$8="","",TEXT(LOOKUP(9^9,$PJ$9:XK$9),"MMMM")) ->  | XL7: =IF(XL$8="","",TEXT(LOOKUP(9^9,$PJ$9:XL$9),"MMMM")) ->  | XM7: =IF(XM$8="","",TEXT(LOOKUP(9^9,$PJ$9:XM$9),"MMMM")) ->  | XN7: =IF(XN$8="","",TEXT(LOOKUP(9^9,$PJ$9:XN$9),"MMMM")) -> décembre | XO7: =IF(XO$8="","",TEXT(LOOKUP(9^9,$PJ$9:XO$9),"MMMM")) ->  | XP7: =IF(XP$8="","",TEXT(LOOKUP(9^9,$PJ$9:XP$9),"MMMM")) ->  | XQ7: =IF(XQ$8="","",TEXT(LOOKUP(9^9,$PJ$9:XQ$9),"MMMM")) ->  | XR7: =IF(XR$8="","",TEXT(LOOKUP(9^9,$PJ$9:XR$9),"MMMM")) ->  | XS7: =IF(XS$8="","",TEXT(LOOKUP(9^9,$PJ$9:XS$9),"MMMM")) ->  | XT7: =IF(XT$8="","",TEXT(LOOKUP(9^9,$PJ$9:XT$9),"MMMM")) -> décembre | XU7: =IF(XU$8="","",TEXT(LOOKUP(9^9,$PJ$9:XU$9),"MMMM")) ->  | XV7: =IF(XV$8="","",TEXT(LOOKUP(9^9,$PJ$9:XV$9),"MMMM")) ->  | XW7: =IF(XW$8="","",TEXT(LOOKUP(9^9,$PJ$9:XW$9),"MMMM")) ->  | XX7: =IF(XX$8="","",TEXT(LOOKUP(9^9,$PJ$9:XX$9),"MMMM")) ->  | XY7: =IF(XY$8="","",TEXT(LOOKUP(9^9,$PJ$9:XY$9),"MMMM")) -> décembre | XZ7: =IF(XZ$8="","",TEXT(LOOKUP(9^9,$PJ$9:XZ$9),"MMMM")) ->  | YA7: =IF(YA$8="","",TEXT(LOOKUP(9^9,$PJ$9:YA$9),"MMMM")) ->  | YB7: =IF(YB$8="","",TEXT(LOOKUP(9^9,$PJ$9:YB$9),"MMMM")) ->  | YC7: =IF(YC$8="","",TEXT(LOOKUP(9^9,$PJ$9:YC$9),"MMMM")) ->  | YD7: =IF(YD$8="","",TEXT(LOOKUP(9^9,$PJ$9:YD$9),"MMMM")) -> décembre | YE7: =IF(YE$8="","",TEXT(LOOKUP(9^9,$PJ$9:YE$9),"MMMM")) ->  | YF7: =IF(YF$8="","",TEXT(LOOKUP(9^9,$PJ$9:YF$9),"MMMM")) ->  | YG7: =IF(YG$8="","",TEXT(LOOKUP(9^9,$PJ$9:YG$9),"MMMM")) ->  | YH7: =IF(YH$8="","",TEXT(LOOKUP(9^9,$PJ$9:YH$9),"MMMM")) ->  | YI7: =IF(YI$8="","",TEXT(LOOKUP(9^9,$PJ$9:YI$9),"MMMM")) -> décembre | YJ7: =IF(YJ$8="","",TEXT(LOOKUP(9^9,$PJ$9:YJ$9),"MMMM")) ->  | YK7: =IF(YK$8="","",TEXT(LOOKUP(9^9,$PJ$9:YK$9),"MMMM")) ->  | YL7: =IF(YL$8="","",TEXT(LOOKUP(9^9,$PJ$9:YL$9),"MMMM")) ->  | YM7: =IF(YM$8="","",TEXT(LOOKUP(9^9,$PJ$9:YM$9),"MMMM")) ->  | YN7: =IF(YN$8="","",TEXT(LOOKUP(9^9,$PJ$9:YN$9),"MMMM")) -> décembre | YO7: =IF(YO$8="","",TEXT(LOOKUP(9^9,$PJ$9:YO$9),"MMMM")) ->  | YP7: =IF(YP$8="","",TEXT(LOOKUP(9^9,$PJ$9:YP$9),"MMMM")) ->  | YQ7: =IF(YQ$8="","",TEXT(LOOKUP(9^9,$PJ$9:YQ$9),"MMMM")) ->  | YR7: =IF(YR$8="","",TEXT(LOOKUP(9^9,$PJ$9:YR$9),"MMMM")) ->  | YS7: =IF(YS$8="","",TEXT(LOOKUP(9^9,$PJ$9:YS$9),"MMMM")) -> décembre | YT7: =IF(YT$8="","",TEXT(LOOKUP(9^9,$PJ$9:YT$9),"MMMM")) ->  | YU7: =IF(YU$8="","",TEXT(LOOKUP(9^9,$PJ$9:YU$9),"MMMM")) ->  | YV7: =IF(YV$8="","",TEXT(LOOKUP(9^9,$PJ$9:YV$9),"MMMM")) ->  | YW7: =IF(YW$8="","",TEXT(LOOKUP(9^9,$PJ$9:YW$9),"MMMM")) ->  | YY7: =IF(YY$8="","",TEXT(LOOKUP(9^9,$PJ$9:YY$9),"MMMM")) -> décembre | YZ7: =IF(YZ$8="","",TEXT(LOOKUP(9^9,$PJ$9:YZ$9),"MMMM")) ->  | ZA7: =IF(ZA$8="","",TEXT(LOOKUP(9^9,$PJ$9:ZA$9),"MMMM")) ->  | ZB7: =IF(ZB$8="","",TEXT(LOOKUP(9^9,$PJ$9:ZB$9),"MMMM")) ->  | ZC7: =IF(ZC$8="","",TEXT(LOOKUP(9^9,$PJ$9:ZC$9),"MMMM")) ->  | ZD7: =IF(ZD$8="","",TEXT(LOOKUP(9^9,$PJ$9:ZD$9),"MMMM")) -> décembre | ZE7: =IF(ZE$8="","",TEXT(LOOKUP(9^9,$PJ$9:ZE$9),"MMMM")) ->  | ZF7: =IF(ZF$8="","",TEXT(LOOKUP(9^9,$PJ$9:ZF$9),"MMMM")) ->  | ZG7: =IF(ZG$8="","",TEXT(LOOKUP(9^9,$PJ$9:ZG$9),"MMMM")) ->  | ZH7: =IF(ZH$8="","",TEXT(LOOKUP(9^9,$PJ$9:ZH$9),"MMMM")) ->  | ZI7: =IF(ZI$8="","",TEXT(LOOKUP(9^9,$PJ$9:ZI$9),"MMMM")) -> décembre | ZJ7: =IF(ZJ$8="","",TEXT(LOOKUP(9^9,$PJ$9:ZJ$9),"MMMM")) ->  | ZK7: =IF(ZK$8="","",TEXT(LOOKUP(9^9,$PJ$9:ZK$9),"MMMM")) ->  | ZL7: =IF(ZL$8="","",TEXT(LOOKUP(9^9,$PJ$9:ZL$9),"MMMM")) ->  | ZM7: =IF(ZM$8="","",TEXT(LOOKUP(9^9,$PJ$9:ZM$9),"MMMM")) ->  | ZN7: =IF(ZN$8="","",TEXT(LOOKUP(9^9,$PJ$9:ZN$9),"MMMM")) -> décembre | ZO7: =IF(ZO$8="","",TEXT(LOOKUP(9^9,$PJ$9:ZO$9),"MMMM")) ->  | ZP7: =IF(ZP$8="","",TEXT(LOOKUP(9^9,$PJ$9:ZP$9),"MMMM")) ->  | ZQ7: =IF(ZQ$8="","",TEXT(LOOKUP(9^9,$PJ$9:ZQ$9),"MMMM")) ->  | ZR7: =IF(ZR$8="","",TEXT(LOOKUP(9^9,$PJ$9:ZR$9),"MMMM")) ->  | ZS7: =IF(ZS$8="","",TEXT(LOOKUP(9^9,$PJ$9:ZS$9),"MMMM")) -> décembre | ZT7: =IF(ZT$8="","",TEXT(LOOKUP(9^9,$PJ$9:ZT$9),"MMMM")) ->  | ZU7: =IF(ZU$8="","",TEXT(LOOKUP(9^9,$PJ$9:ZU$9),"MMMM")) ->  | ZV7: =IF(ZV$8="","",TEXT(LOOKUP(9^9,$PJ$9:ZV$9),"MMMM")) ->  | ZW7: =IF(ZW$8="","",TEXT(LOOKUP(9^9,$PJ$9:ZW$9),"MMMM")) ->  | ZX7: =IF(ZX$8="","",TEXT(LOOKUP(9^9,$PJ$9:ZX$9),"MMMM")) -> janvier | ZY7: =IF(ZY$8="","",TEXT(LOOKUP(9^9,$PJ$9:ZY$9),"MMMM")) ->  | ZZ7: =IF(ZZ$8="","",TEXT(LOOKUP(9^9,$PJ$9:ZZ$9),"MMMM")) ->  | AAA7: =IF(AAA$8="","",TEXT(LOOKUP(9^9,$PJ$9:AAA$9),"MMMM")) ->  | AAB7: =IF(AAB$8="","",TEXT(LOOKUP(9^9,$PJ$9:AAB$9),"MMMM")) -> 
AD8: =TEXT(AD9,"DDDD") -> lundi | AI8: =TEXT(AI9,"DDDD") -> mardi | AN8: =TEXT(AN9,"DDDD") -> mercredi | AS8: =TEXT(AS9,"DDDD") -> jeudi | AX8: =TEXT(AX9,"DDDD") -> vendredi | BC8: =TEXT(BC9,"DDDD") -> samedi | BH8: =TEXT(BH9,"DDDD") -> lundi | BM8: =TEXT(BM9,"DDDD") -> mardi | BR8: =TEXT(BR9,"DDDD") -> mercredi | BW8: =TEXT(BW9,"DDDD") -> jeudi | CB8: =TEXT(CB9,"DDDD") -> vendredi | CG8: =TEXT(CG9,"DDDD") -> samedi | CL8: =TEXT(CL9,"DDDD") -> lundi | CQ8: =TEXT(CQ9,"DDDD") -> mardi | CV8: =TEXT(CV9,"DDDD") -> mercredi | DA8: =TEXT(DA9,"DDDD") -> jeudi | DF8: =TEXT(DF9,"DDDD") -> vendredi | DK8: =TEXT(DK9,"DDDD") -> samedi | DP8: =TEXT(DP9,"DDDD") -> lundi | DU8: =TEXT(DU9,"DDDD") -> mardi | DZ8: =TEXT(DZ9,"DDDD") -> mercredi | EE8: =TEXT(EE9,"DDDD") -> jeudi | EJ8: =TEXT(EJ9,"DDDD") -> vendredi | EO8: =TEXT(EO9,"DDDD") -> samedi | EU8: =TEXT(EU9,"DDDD") -> lundi | EZ8: =TEXT(EZ9,"DDDD") -> mardi | FE8: =TEXT(FE9,"DDDD") -> mercredi | FJ8: =TEXT(FJ9,"DDDD") -> jeudi | FO8: =TEXT(FO9,"DDDD") -> vendredi | FT8: =TEXT(FT9,"DDDD") -> samedi | FY8: =TEXT(FY9,"DDDD") -> lundi | GD8: =TEXT(GD9,"DDDD") -> mardi | GI8: =TEXT(GI9,"DDDD") -> mercredi | GN8: =TEXT(GN9,"DDDD") -> jeudi | GS8: =TEXT(GS9,"DDDD") -> vendredi | GX8: =TEXT(GX9,"DDDD") -> samedi | HC8: =TEXT(HC9,"DDDD") -> lundi | HH8: =TEXT(HH9,"DDDD") -> mardi | HM8: =TEXT(HM9,"DDDD") -> mercredi | HR8: =TEXT(HR9,"DDDD") -> jeudi | HW8: =TEXT(HW9,"DDDD") -> vendredi | IB8: =TEXT(IB9,"DDDD") -> samedi | IG8: =TEXT(IG9,"DDDD") -> lundi | IL8: =TEXT(IL9,"DDDD") -> mardi | IQ8: =TEXT(IQ9,"DDDD") -> mercredi | IV8: =TEXT(IV9,"DDDD") -> jeudi | JA8: =TEXT(JA9,"DDDD") -> vendredi | JF8: =TEXT(JF9,"DDDD") -> samedi | JK8: =TEXT(JK9,"DDDD") -> lundi | JP8: =TEXT(JP9,"DDDD") -> mardi | JU8: =TEXT(JU9,"DDDD") -> mercredi | JZ8: =TEXT(JZ9,"DDDD") -> jeudi | KE8: =TEXT(KE9,"DDDD") -> vendredi | KJ8: =TEXT(KJ9,"DDDD") -> samedi | KP8: =TEXT(KP9,"DDDD") -> lundi | KU8: =TEXT(KU9,"DDDD") -> mardi | KZ8: =TEXT(KZ9,"DDDD") -> mercredi | LE8: =TEXT(LE9,"DDDD") -> jeudi | LJ8: =TEXT(LJ9,"DDDD") -> vendredi | LO8: =TEXT(LO9,"DDDD") -> samedi | LU8: =TEXT(LU9,"DDDD") -> lundi | LZ8: =TEXT(LZ9,"DDDD") -> mardi | ME8: =TEXT(ME9,"DDDD") -> mercredi | MJ8: =TEXT(MJ9,"DDDD") -> jeudi | MO8: =TEXT(MO9,"DDDD") -> vendredi | MT8: =TEXT(MT9,"DDDD") -> samedi | MZ8: =TEXT(MZ9,"DDDD") -> lundi | NE8: =TEXT(NE9,"DDDD") -> mardi | NJ8: =TEXT(NJ9,"DDDD") -> mercredi | NO8: =TEXT(NO9,"DDDD") -> jeudi | NT8: =TEXT(NT9,"DDDD") -> vendredi | NY8: =TEXT(NY9,"DDDD") -> samedi | OE8: =TEXT(OE9,"DDDD") -> lundi | OJ8: =TEXT(OJ9,"DDDD") -> mardi | OO8: =TEXT(OO9,"DDDD") -> mercredi | OT8: =TEXT(OT9,"DDDD") -> jeudi | OY8: =TEXT(OY9,"DDDD") -> vendredi | PD8: =TEXT(PD9,"DDDD") -> samedi | PJ8: =TEXT(PJ9,"DDDD") -> lundi | PO8: =TEXT(PO9,"DDDD") -> mardi | PT8: =TEXT(PT9,"DDDD") -> mercredi | PY8: =TEXT(PY9,"DDDD") -> jeudi | QD8: =TEXT(QD9,"DDDD") -> vendredi | QI8: =TEXT(QI9,"DDDD") -> samedi | QO8: =TEXT(QO9,"DDDD") -> lundi | QT8: =TEXT(QT9,"DDDD") -> mardi | QY8: =TEXT(QY9,"DDDD") -> mercredi | RD8: =TEXT(RD9,"DDDD") -> jeudi | RI8: =TEXT(RI9,"DDDD") -> vendredi | RN8: =TEXT(RN9,"DDDD") -> samedi | RT8: =TEXT(RT9,"DDDD") -> lundi | RY8: =TEXT(RY9,"DDDD") -> mardi | SD8: =TEXT(SD9,"DDDD") -> mercredi | SI8: =TEXT(SI9,"DDDD") -> jeudi | SN8: =TEXT(SN9,"DDDD") -> vendredi | SS8: =TEXT(SS9,"DDDD") -> samedi | SY8: =TEXT(SY9,"DDDD") -> lundi | TD8: =TEXT(TD9,"DDDD") -> mardi | TI8: =TEXT(TI9,"DDDD") -> mercredi | TN8: =TEXT(TN9,"DDDD") -> jeudi | TS8: =TEXT(TS9,"DDDD") -> vendredi | TX8: =TEXT(TX9,"DDDD") -> samedi | UD8: =TEXT(UD9,"DDDD") -> lundi | UI8: =TEXT(UI9,"DDDD") -> mardi | UO8: =TEXT(UO9,"DDDD") -> mercredi | UT8: =TEXT(UT9,"DDDD") -> jeudi | UY8: =TEXT(UY9,"DDDD") -> vendredi | VD8: =TEXT(VD9,"DDDD") -> samedi | VJ8: =TEXT(VJ9,"DDDD") -> lundi | VO8: =TEXT(VO9,"DDDD") -> mardi | VT8: =TEXT(VT9,"DDDD") -> mercredi | VY8: =TEXT(VY9,"DDDD") -> jeudi | WD8: =TEXT(WD9,"DDDD") -> vendredi | WI8: =TEXT(WI9,"DDDD") -> samedi | WO8: =TEXT(WO9,"DDDD") -> lundi | WT8: =TEXT(WT9,"DDDD") -> mardi | WY8: =TEXT(WY9,"DDDD") -> mercredi | XD8: =TEXT(XD9,"DDDD") -> jeudi | XI8: =TEXT(XI9,"DDDD") -> vendredi | XN8: =TEXT(XN9,"DDDD") -> samedi | XT8: =TEXT(XT9,"DDDD") -> lundi | XY8: =TEXT(XY9,"DDDD") -> mardi | YD8: =TEXT(YD9,"DDDD") -> mercredi | YI8: =TEXT(YI9,"DDDD") -> jeudi | YN8: =TEXT(YN9,"DDDD") -> vendredi | YS8: =TEXT(YS9,"DDDD") -> samedi | YY8: =TEXT(YY9,"DDDD") -> lundi | ZD8: =TEXT(ZD9,"DDDD") -> mardi | ZI8: =TEXT(ZI9,"DDDD") -> mercredi | ZN8: =TEXT(ZN9,"DDDD") -> jeudi | ZS8: =TEXT(ZS9,"DDDD") -> vendredi | ZX8: =TEXT(ZX9,"DDDD") -> samedi
A9: =IF(ISBLANK(JK9),"",COUNTA($JK$9:JK9)) -> 1 | E9: =IF('Calcul Stat'!$R$1=0,TODAY(),'Calcul Stat'!$R$1) -> 2021-12-20 | K9: Novembre | T9: Décembre | AD9: 2021-08-02 | AI9: =IF(TEXT((AD9+1),"DDDD")="Dimanche",(AD9+2),(AD9+1)) -> 2021-08-03 | AN9: =IF(TEXT((AI9+1),"DDDD")="Dimanche",(AI9+2),(AI9+1)) -> 2021-08-04 | AS9: =IF(TEXT((AN9+1),"DDDD")="Dimanche",(AN9+2),(AN9+1)) -> 2021-08-05 | AX9: =IF(TEXT((AS9+1),"DDDD")="Dimanche",(AS9+2),(AS9+1)) -> 2021-08-06 | BC9: =IF(TEXT((AX9+1),"DDDD")="Dimanche",(AX9+2),(AX9+1)) -> 2021-08-07 | BH9: =IF(TEXT((BC9+1),"DDDD")="Dimanche",(BC9+2),(BC9+1)) -> 2021-08-09 | BM9: =IF(TEXT((BH9+1),"DDDD")="Dimanche",(BH9+2),(BH9+1)) -> 2021-08-10 | BR9: =IF(TEXT((BM9+1),"DDDD")="Dimanche",(BM9+2),(BM9+1)) -> 2021-08-11 | BW9: =IF(TEXT((BR9+1),"DDDD")="Dimanche",(BR9+2),(BR9+1)) -> 2021-08-12 | CB9: =IF(TEXT((BW9+1),"DDDD")="Dimanche",(BW9+2),(BW9+1)) -> 2021-08-13 | CG9: =IF(TEXT((CB9+1),"DDDD")="Dimanche",(CB9+2),(CB9+1)) -> 2021-08-14 | CL9: =IF(TEXT((CG9+1),"DDDD")="Dimanche",(CG9+2),(CG9+1)) -> 2021-08-16 | CQ9: =IF(TEXT((CL9+1),"DDDD")="Dimanche",(CL9+2),(CL9+1)) -> 2021-08-17 | CV9: =IF(TEXT((CQ9+1),"DDDD")="Dimanche",(CQ9+2),(CQ9+1)) -> 2021-08-18 | DA9: =IF(TEXT((CV9+1),"DDDD")="Dimanche",(CV9+2),(CV9+1)) -> 2021-08-19 | DF9: =IF(TEXT((DA9+1),"DDDD")="Dimanche",(DA9+2),(DA9+1)) -> 2021-08-20 | DK9: =IF(TEXT((DF9+1),"DDDD")="Dimanche",(DF9+2),(DF9+1)) -> 2021-08-21 | DP9: =IF(TEXT((DK9+1),"DDDD")="Dimanche",(DK9+2),(DK9+1)) -> 2021-08-23 | DU9: =IF(TEXT((DP9+1),"DDDD")="Dimanche",(DP9+2),(DP9+1)) -> 2021-08-24 | DZ9: =IF(TEXT((DU9+1),"DDDD")="Dimanche",(DU9+2),(DU9+1)) -> 2021-08-25 | EE9: =IF(TEXT((DZ9+1),"DDDD")="Dimanche",(DZ9+2),(DZ9+1)) -> 2021-08-26 | EJ9: =IF(TEXT((EE9+1),"DDDD")="Dimanche",(EE9+2),(EE9+1)) -> 2021-08-27 | EO9: =IF(TEXT((EJ9+1),"DDDD")="Dimanche",(EJ9+2),(EJ9+1)) -> 2021-08-28 | EU9: =IF(TEXT((EO9+1),"DDDD")="Dimanche",(EO9+2),(EO9+1)) -> 2021-08-30 | EZ9: =IF(TEXT((EU9+1),"DDDD")="Dimanche",(EU9+2),(EU9+1)) -> 2021-08-31 | FE9: =IF(TEXT((EZ9+1),"DDDD")="Dimanche",(EZ9+2),(EZ9+1)) -> 2021-09-01 | FJ9: =IF(TEXT((FE9+1),"DDDD")="Dimanche",(FE9+2),(FE9+1)) -> 2021-09-02 | FO9: =IF(TEXT((FJ9+1),"DDDD")="Dimanche",(FJ9+2),(FJ9+1)) -> 2021-09-03 | FT9: =IF(TEXT((FO9+1),"DDDD")="Dimanche",(FO9+2),(FO9+1)) -> 2021-09-04 | FY9: =IF(TEXT((FT9+1),"DDDD")="Dimanche",(FT9+2),(FT9+1)) -> 2021-09-06 | GD9: =IF(TEXT((FY9+1),"DDDD")="Dimanche",(FY9+2),(FY9+1)) -> 2021-09-07 | GI9: =IF(TEXT((GD9+1),"DDDD")="Dimanche",(GD9+2),(GD9+1)) -> 2021-09-08 | GN9: =IF(TEXT((GI9+1),"DDDD")="Dimanche",(GI9+2),(GI9+1)) -> 2021-09-09 | GS9: =IF(TEXT((GN9+1),"DDDD")="Dimanche",(GN9+2),(GN9+1)) -> 2021-09-10 | GX9: =IF(TEXT((GS9+1),"DDDD")="Dimanche",(GS9+2),(GS9+1)) -> 2021-09-11 | HC9: =IF(TEXT((GX9+1),"DDDD")="Dimanche",(GX9+2),(GX9+1)) -> 2021-09-13 | HH9: =IF(TEXT((HC9+1),"DDDD")="Dimanche",(HC9+2),(HC9+1)) -> 2021-09-14 | HM9: =IF(TEXT((HH9+1),"DDDD")="Dimanche",(HH9+2),(HH9+1)) -> 2021-09-15 | HR9: =IF(TEXT((HM9+1),"DDDD")="Dimanche",(HM9+2),(HM9+1)) -> 2021-09-16 | HW9: =IF(TEXT((HR9+1),"DDDD")="Dimanche",(HR9+2),(HR9+1)) -> 2021-09-17 | IB9: =IF(TEXT((HW9+1),"DDDD")="Dimanche",(HW9+2),(HW9+1)) -> 2021-09-18 | IG9: =IF(TEXT((IB9+1),"DDDD")="Dimanche",(IB9+2),(IB9+1)) -> 2021-09-20 | IL9: =IF(TEXT((IG9+1),"DDDD")="Dimanche",(IG9+2),(IG9+1)) -> 2021-09-21 | IQ9: =IF(TEXT((IL9+1),"DDDD")="Dimanche",(IL9+2),(IL9+1)) -> 2021-09-22 | IV9: =IF(TEXT((IQ9+1),"DDDD")="Dimanche",(IQ9+2),(IQ9+1)) -> 2021-09-23 | JA9: =IF(TEXT((IV9+1),"DDDD")="Dimanche",(IV9+2),(IV9+1)) -> 2021-09-24 | JF9: =IF(TEXT((JA9+1),"DDDD")="Dimanche",(JA9+2),(JA9+1)) -> 2021-09-25 | JK9: =IF(TEXT((JF9+1),"DDDD")="Dimanche",(JF9+2),(JF9+1)) -> 2021-09-27 | JP9: =IF(TEXT((JK9+1),"DDDD")="Dimanche",(JK9+2),(JK9+1)) -> 2021-09-28 | JU9: =IF(TEXT((JP9+1),"DDDD")="Dimanche",(JP9+2),(JP9+1)) -> 2021-09-29 | JZ9: =IF(TEXT((JU9+1),"DDDD")="Dimanche",(JU9+2),(JU9+1)) -> 2021-09-30 | KE9: =IF(TEXT((JZ9+1),"DDDD")="Dimanche",(JZ9+2),(JZ9+1)) -> 2021-10-01 | KJ9: =IF(TEXT((KE9+1),"DDDD")="Dimanche",(KE9+2),(KE9+1)) -> 2021-10-02 | KP9: =IF(TEXT((KJ9+1),"DDDD")="Dimanche",(KJ9+2),(KJ9+1)) -> 2021-10-04 | KU9: =IF(TEXT((KP9+1),"DDDD")="Dimanche",(KP9+2),(KP9+1)) -> 2021-10-05 | KZ9: =IF(TEXT((KU9+1),"DDDD")="Dimanche",(KU9+2),(KU9+1)) -> 2021-10-06 | LE9: =IF(TEXT((KZ9+1),"DDDD")="Dimanche",(KZ9+2),(KZ9+1)) -> 2021-10-07 | LJ9: =IF(TEXT((LE9+1),"DDDD")="Dimanche",(LE9+2),(LE9+1)) -> 2021-10-08 | LO9: =IF(TEXT((LJ9+1),"DDDD")="Dimanche",(LJ9+2),(LJ9+1)) -> 2021-10-09 | LU9: =IF(TEXT((LO9+1),"DDDD")="Dimanche",(LO9+2),(LO9+1)) -> 2021-10-11 | LZ9: =IF(TEXT((LU9+1),"DDDD")="Dimanche",(LU9+2),(LU9+1)) -> 2021-10-12 | ME9: =IF(TEXT((LZ9+1),"DDDD")="Dimanche",(LZ9+2),(LZ9+1)) -> 2021-10-13 | MJ9: =IF(TEXT((ME9+1),"DDDD")="Dimanche",(ME9+2),(ME9+1)) -> 2021-10-14 | MO9: =IF(TEXT((MJ9+1),"DDDD")="Dimanche",(MJ9+2),(MJ9+1)) -> 2021-10-15 | MT9: =IF(TEXT((MO9+1),"DDDD")="Dimanche",(MO9+2),(MO9+1)) -> 2021-10-16 | MZ9: =IF(TEXT((MT9+1),"DDDD")="Dimanche",(MT9+2),(MT9+1)) -> 2021-10-18 | NE9: =IF(TEXT((MZ9+1),"DDDD")="Dimanche",(MZ9+2),(MZ9+1)) -> 2021-10-19 | NJ9: =IF(TEXT((NE9+1),"DDDD")="Dimanche",(NE9+2),(NE9+1)) -> 2021-10-20 | NO9: =IF(TEXT((NJ9+1),"DDDD")="Dimanche",(NJ9+2),(NJ9+1)) -> 2021-10-21 | NT9: =IF(TEXT((NO9+1),"DDDD")="Dimanche",(NO9+2),(NO9+1)) -> 2021-10-22 | NY9: =IF(TEXT((NT9+1),"DDDD")="Dimanche",(NT9+2),(NT9+1)) -> 2021-10-23 | OE9: =IF(TEXT((NY9+1),"DDDD")="Dimanche",(NY9+2),(NY9+1)) -> 2021-10-25 | OJ9: =IF(TEXT((OE9+1),"DDDD")="Dimanche",(OE9+2),(OE9+1)) -> 2021-10-26 | OO9: =IF(TEXT((OJ9+1),"DDDD")="Dimanche",(OJ9+2),(OJ9+1)) -> 2021-10-27 | OT9: =IF(TEXT((OO9+1),"DDDD")="Dimanche",(OO9+2),(OO9+1)) -> 2021-10-28 | OY9: =IF(TEXT((OT9+1),"DDDD")="Dimanche",(OT9+2),(OT9+1)) -> 2021-10-29 | PD9: =IF(TEXT((OY9+1),"DDDD")="Dimanche",(OY9+2),(OY9+1)) -> 2021-10-30 | PJ9: =IF(TEXT((PD9+1),"DDDD")="Dimanche",(PD9+2),(PD9+1)) -> 2021-11-01 | PO9: =IF(TEXT((PJ9+1),"DDDD")="Dimanche",(PJ9+2),(PJ9+1)) -> 2021-11-02 | PT9: =IF(TEXT((PO9+1),"DDDD")="Dimanche",(PO9+2),(PO9+1)) -> 2021-11-03 | PY9: =IF(TEXT((PT9+1),"DDDD")="Dimanche",(PT9+2),(PT9+1)) -> 2021-11-04 | QD9: =IF(TEXT((PY9+1),"DDDD")="Dimanche",(PY9+2),(PY9+1)) -> 2021-11-05 | QI9: =IF(TEXT((QD9+1),"DDDD")="Dimanche",(QD9+2),(QD9+1)) -> 2021-11-06 | QO9: =IF(TEXT((QI9+1),"DDDD")="Dimanche",(QI9+2),(QI9+1)) -> 2021-11-08 | QT9: =IF(TEXT((QO9+1),"DDDD")="Dimanche",(QO9+2),(QO9+1)) -> 2021-11-09 | QY9: =IF(TEXT((QT9+1),"DDDD")="Dimanche",(QT9+2),(QT9+1)) -> 2021-11-10 | RD9: =IF(TEXT((QY9+1),"DDDD")="Dimanche",(QY9+2),(QY9+1)) -> 2021-11-11 | RI9: =IF(TEXT((RD9+1),"DDDD")="Dimanche",(RD9+2),(RD9+1)) -> 2021-11-12 | RN9: =IF(TEXT((RI9+1),"DDDD")="Dimanche",(RI9+2),(RI9+1)) -> 2021-11-13 | RT9: =IF(TEXT((RN9+1),"DDDD")="Dimanche",(RN9+2),(RN9+1)) -> 2021-11-15 | RY9: =IF(TEXT((RT9+1),"DDDD")="Dimanche",(RT9+2),(RT9+1)) -> 2021-11-16 | SD9: =IF(TEXT((RY9+1),"DDDD")="Dimanche",(RY9+2),(RY9+1)) -> 2021-11-17 | SI9: =IF(TEXT((SD9+1),"DDDD")="Dimanche",(SD9+2),(SD9+1)) -> 2021-11-18 | SN9: =IF(TEXT((SI9+1),"DDDD")="Dimanche",(SI9+2),(SI9+1)) -> 2021-11-19 | SS9: =IF(TEXT((SN9+1),"DDDD")="Dimanche",(SN9+2),(SN9+1)) -> 2021-11-20 | SY9: =IF(TEXT((SS9+1),"DDDD")="Dimanche",(SS9+2),(SS9+1)) -> 2021-11-22 | TD9: =IF(TEXT((SY9+1),"DDDD")="Dimanche",(SY9+2),(SY9+1)) -> 2021-11-23 | TI9: =IF(TEXT((TD9+1),"DDDD")="Dimanche",(TD9+2),(TD9+1)) -> 2021-11-24 | TN9: =IF(TEXT((TI9+1),"DDDD")="Dimanche",(TI9+2),(TI9+1)) -> 2021-11-25 | TS9: =IF(TEXT((TN9+1),"DDDD")="Dimanche",(TN9+2),(TN9+1)) -> 2021-11-26 | TX9: =IF(TEXT((TS9+1),"DDDD")="Dimanche",(TS9+2),(TS9+1)) -> 2021-11-27 | UD9: =IF(TEXT((TX9+1),"DDDD")="Dimanche",(TX9+2),(TX9+1)) -> 2021-11-29 | UI9: =IF(TEXT((UD9+1),"DDDD")="Dimanche",(UD9+2),(UD9+1)) -> 2021-11-30 | UO9: =IF(TEXT((UI9+1),"DDDD")="Dimanche",(UI9+2),(UI9+1)) -> 2021-12-01 | UT9: =IF(TEXT((UO9+1),"DDDD")="Dimanche",(UO9+2),(UO9+1)) -> 2021-12-02 | UY9: =IF(TEXT((UT9+1),"DDDD")="Dimanche",(UT9+2),(UT9+1)) -> 2021-12-03 | VD9: =IF(TEXT((UY9+1),"DDDD")="Dimanche",(UY9+2),(UY9+1)) -> 2021-12-04 | VJ9: =IF(TEXT((VD9+1),"DDDD")="Dimanche",(VD9+2),(VD9+1)) -> 2021-12-06 | VO9: =IF(TEXT((VJ9+1),"DDDD")="Dimanche",(VJ9+2),(VJ9+1)) -> 2021-12-07 | VT9: =IF(TEXT((VO9+1),"DDDD")="Dimanche",(VO9+2),(VO9+1)) -> 2021-12-08 | VY9: =IF(TEXT((VT9+1),"DDDD")="Dimanche",(VT9+2),(VT9+1)) -> 2021-12-09 | WD9: =IF(TEXT((VY9+1),"DDDD")="Dimanche",(VY9+2),(VY9+1)) -> 2021-12-10 | WI9: =IF(TEXT((WD9+1),"DDDD")="Dimanche",(WD9+2),(WD9+1)) -> 2021-12-11 | WO9: =IF(TEXT((WI9+1),"DDDD")="Dimanche",(WI9+2),(WI9+1)) -> 2021-12-13 | WT9: =IF(TEXT((WO9+1),"DDDD")="Dimanche",(WO9+2),(WO9+1)) -> 2021-12-14 | WY9: =IF(TEXT((WT9+1),"DDDD")="Dimanche",(WT9+2),(WT9+1)) -> 2021-12-15 | XD9: =IF(TEXT((WY9+1),"DDDD")="Dimanche",(WY9+2),(WY9+1)) -> 2021-12-16 | XI9: =IF(TEXT((XD9+1),"DDDD")="Dimanche",(XD9+2),(XD9+1)) -> 2021-12-17 | XN9: =IF(TEXT((XI9+1),"DDDD")="Dimanche",(XI9+2),(XI9+1)) -> 2021-12-18 | XT9: =IF(TEXT((XN9+1),"DDDD")="Dimanche",(XN9+2),(XN9+1)) -> 2021-12-20 | XY9: =IF(TEXT((XT9+1),"DDDD")="Dimanche",(XT9+2),(XT9+1)) -> 2021-12-21 | YD9: =IF(TEXT((XY9+1),"DDDD")="Dimanche",(XY9+2),(XY9+1)) -> 2021-12-22 | YI9: =IF(TEXT((YD9+1),"DDDD")="Dimanche",(YD9+2),(YD9+1)) -> 2021-12-23 | YN9: =IF(TEXT((YI9+1),"DDDD")="Dimanche",(YI9+2),(YI9+1)) -> 2021-12-24 | YS9: =IF(TEXT((YN9+1),"DDDD")="Dimanche",(YN9+2),(YN9+1)) -> 2021-12-25 | YY9: =IF(TEXT((YS9+1),"DDDD")="Dimanche",(YS9+2),(YS9+1)) -> 2021-12-27 | ZD9: =IF(TEXT((YY9+1),"DDDD")="Dimanche",(YY9+2),(YY9+1)) -> 2021-12-28 | ZI9: =IF(TEXT((ZD9+1),"DDDD")="Dimanche",(ZD9+2),(ZD9+1)) -> 2021-12-29 | ZN9: =IF(TEXT((ZI9+1),"DDDD")="Dimanche",(ZI9+2),(ZI9+1)) -> 2021-12-30 | ZS9: =IF(TEXT((ZN9+1),"DDDD")="Dimanche",(ZN9+2),(ZN9+1)) -> 2021-12-31 | ZX9: =IF(TEXT((ZS9+1),"DDDD")="Dimanche",(ZS9+2),(ZS9+1)) -> 2022-01-01
A10: =IF(ISBLANK(JK10),"",COUNTA($JK$9:JK10)) -> 2 | B10: Nom | E10: Debut | F10: Pause | G10: Fin | H10: Durée | I10: Ecart | K10: ABS | L10: RET | M10: CP | N10: 09:00:00 | O10: 11:00:00 | P10: 13:00:00 | Q10: TT | R10: Samedi | S10: Durée | T10: ABS | U10: RET | V10: CP | W10: 09:00:00 | X10: 11:00:00 | Y10: 13:00:00 | Z10: TT | AA10: Samedi | AB10: Durée | AD10: Debut | AE10: Pause | AF10: Fin | AG10: Durée | AH10: Ecart | AI10: Debut | AJ10: Pause | AK10: Fin | AL10: Durée | AM10: Ecart | AN10: Debut | AO10: Pause | AP10: Fin | AQ10: Durée | AR10: Ecart | AS10: Debut | AT10: Pause | AU10: Fin | AV10: Durée | AW10: Ecart | AX10: Debut | AY10: Pause | AZ10: Fin | BA10: Durée | BB10: Ecart | BC10: Debut | BD10: Pause | BE10: Fin | BF10: Durée | BG10: Ecart | BH10: Debut | BI10: Pause | BJ10: Fin | BK10: Durée | BL10: Ecart | BM10: Debut | BN10: Pause | BO10: Fin | BP10: Durée | BQ10: Ecart | BR10: Debut | BS10: Pause | BT10: Fin | BU10: Durée | BV10: Ecart | BW10: Debut | BX10: Pause | BY10: Fin | BZ10: Durée | CA10: Ecart | CB10: Debut | CC10: Pause | CD10: Fin | CE10: Durée | CF10: Ecart | CG10: Debut | CH10: Pause | CI10: Fin | CJ10: Durée | CK10: Ecart | CL10: Debut | CM10: Pause | CN10: Fin | CO10: Durée | CP10: Ecart | CQ10: Debut | CR10: Pause | CS10: Fin | CT10: Durée | CU10: Ecart | CV10: Debut | CW10: Pause | CX10: Fin | CY10: Durée | CZ10: Ecart | DA10: Debut | DB10: Pause | DC10: Fin | DD10: Durée | DE10: Ecart | DF10: Debut | DG10: Pause | DH10: Fin | DI10: Durée | DJ10: Ecart | DK10: Debut | DL10: Pause | DM10: Fin | DN10: Durée | DO10: Ecart | DP10: Debut | DQ10: Pause | DR10: Fin | DS10: Durée | DT10: Ecart | DU10: Debut | DV10: Pause | DW10: Fin | DX10: Durée | DY10: Ecart | DZ10: Debut | EA10: Pause | EB10: Fin | EC10: Durée | ED10: Ecart | EE10: Debut | EF10: Pause | EG10: Fin | EH10: Durée | EI10: Ecart | EJ10: Debut | EK10: Pause | EL10: Fin | EM10: Durée | EN10: Ecart | EO10: Debut | EP10: Pause | EQ10: Fin | ER10: Durée | ES10: Ecart | ET10: Volume | EU10: Debut | EV10: Pause | EW10: Fin | EX10: Durée | EY10: Ecart | EZ10: Debut | FA10: Pause | FB10: Fin | FC10: Durée | FD10: Ecart | FE10: Debut | FF10: Pause | FG10: Fin | FH10: Durée | FI10: Ecart | FJ10: Debut | FK10: Pause | FL10: Fin | FM10: Durée | FN10: Ecart | FO10: Debut | FP10: Pause | FQ10: Fin | FR10: Durée | FS10: Ecart | FT10: Debut | FU10: Pause | FV10: Fin | FW10: Durée | FX10: Ecart | FY10: Debut | FZ10: Pause | GA10: Fin | GB10: Durée | GC10: Ecart | GD10: Debut | GE10: Pause | GF10: Fin | GG10: Durée | GH10: Ecart | GI10: Debut | GJ10: Pause | GK10: Fin | GL10: Durée | GM10: Ecart | GN10: Debut | GO10: Pause | GP10: Fin | GQ10: Durée | GR10: Ecart | GS10: Debut | GT10: Pause | GU10: Fin | GV10: Durée | GW10: Ecart | GX10: Debut | GY10: Pause | GZ10: Fin | HA10: Durée | HB10: Ecart | HC10: Debut | HD10: Pause | HE10: Fin | HF10: Durée | HG10: Ecart | HH10: Debut | HI10: Pause | HJ10: Fin | HK10: Durée | HL10: Ecart | HM10: Debut | HN10: Pause | HO10: Fin | HP10: Durée | HQ10: Ecart | HR10: Debut | HS10: Pause | HT10: Fin | HU10: Durée | HV10: Ecart | HW10: Debut | HX10: Pause | HY10: Fin | HZ10: Durée | IA10: Ecart | IB10: Debut | IC10: Pause | ID10: Fin | IE10: Durée | IF10: Ecart | IG10: Debut | IH10: Pause | II10: Fin | IJ10: Durée | IK10: Ecart | IL10: Debut | IM10: Pause | IN10: Fin | IO10: Durée | IP10: Ecart | IQ10: Debut | IR10: Pause | IS10: Fin | IT10: Durée | IU10: Ecart | IV10: Debut | IW10: Pause | IX10: Fin | IY10: Durée | IZ10: Ecart | JA10: Debut | JB10: Pause | JC10: Fin | JD10: Durée | JE10: Ecart | JF10: Debut | JG10: Pause | JH10: Fin | JI10: Durée | JJ10: Ecart | JK10: Debut | JL10: Pause | JM10: Fin | JN10: Durée | JO10: Ecart | JP10: Debut | JQ10: Pause | JR10: Fin | JS10: Durée | JT10: Ecart | JU10: Debut | JV10: Pause | JW10: Fin | JX10: Durée | JY10: Ecart | JZ10: Debut | KA10: Pause | KB10: Fin | KC10: Durée | KD10: Ecart | KE10: Debut | KF10: Pause | KG10: Fin | KH10: Durée | KI10: Ecart | KJ10: Debut | KK10: Pause | KL10: Fin | KM10: Durée | KN10: Ecart | KO10: Volume | KP10: Debut | KQ10: Pause | KR10: Fin | KS10: Durée | KT10: Ecart | KU10: Debut | KV10: Pause | KW10: Fin | KX10: Durée | KY10: Ecart | KZ10: Debut | LA10: Pause | LB10: Fin | LC10: Durée | LD10: Ecart | LE10: Debut | LF10: Pause | LG10: Fin | LH10: Durée | LI10: Ecart | LJ10: Debut | LK10: Pause | LL10: Fin | LM10: Durée | LN10: Ecart | LO10: Debut | LP10: Pause | LQ10: Fin | LR10: Durée | LS10: Ecart | LT10: Volume | LU10: Debut | LV10: Pause | LW10: Fin | LX10: Durée | LY10: Ecart | LZ10: Debut | MA10: Pause | MB10: Fin | MC10: Durée | MD10: Ecart | ME10: Debut | MF10: Pause | MG10: Fin | MH10: Durée | MI10: Ecart | MJ10: Debut | MK10: Pause | ML10: Fin | MM10: Durée | MN10: Ecart | MO10: Debut | MP10: Pause | MQ10: Fin | MR10: Durée | MS10: Ecart | MT10: Debut | MU10: Pause | MV10: Fin | MW10: Durée | MX10: Ecart | MY10: Volume | MZ10: Debut | NA10: Pause | NB10: Fin | NC10: Durée | ND10: Ecart | NE10: Debut | NF10: Pause | NG10: Fin | NH10: Durée | NI10: Ecart | NJ10: Debut | NK10: Pause | NL10: Fin | NM10: Durée | NN10: Ecart | NO10: Debut | NP10: Pause | NQ10: Fin | NR10: Durée | NS10: Ecart | NT10: Debut | NU10: Pause | NV10: Fin | NW10: Durée | NX10: Ecart | NY10: Debut | NZ10: Pause | OA10: Fin | OB10: Durée | OC10: Ecart | OD10: Volume | OE10: Debut | OF10: Pause | OG10: Fin | OH10: Durée | OI10: Ecart | OJ10: Debut | OK10: Pause | OL10: Fin | OM10: Durée | ON10: Ecart | OO10: Debut | OP10: Pause | OQ10: Fin | OR10: Durée | OS10: Ecart | OT10: Debut | OU10: Pause | OV10: Fin | OW10: Durée | OX10: Ecart | OY10: Debut | OZ10: Pause | PA10: Fin | PB10: Durée | PC10: Ecart | PD10: Debut | PE10: Pause | PF10: Fin | PG10: Durée | PH10: Ecart | PI10: Volume | PJ10: Debut | PK10: Pause | PL10: Fin | PM10: Durée | PN10: Ecart | PO10: Debut | PP10: Pause | PQ10: Fin | PR10: Durée | PS10: Ecart | PT10: Debut | PU10: Pause | PV10: Fin | PW10: Durée | PX10: Ecart | PY10: Debut | PZ10: Pause | QA10: Fin | QB10: Durée | QC10: Ecart | QD10: Debut | QE10: Pause | QF10: Fin | QG10: Durée | QH10: Ecart | QI10: Debut | QJ10: Pause | QK10: Fin | QL10: Durée | QM10: Ecart | QN10: Volume | QO10: Debut | QP10: Pause | QQ10: Fin | QR10: Durée | QS10: Ecart | QT10: Debut | QU10: Pause | QV10: Fin | QW10: Durée | QX10: Ecart | QY10: Debut | QZ10: Pause | RA10: Fin | RB10: Durée | RC10: Ecart | RD10: Debut | RE10: Pause | RF10: Fin | RG10: Durée | RH10: Ecart | RI10: Debut | RJ10: Pause | RK10: Fin | RL10: Durée | RM10: Ecart | RN10: Debut | RO10: Pause | RP10: Fin | RQ10: Durée | RR10: Ecart | RS10: Volume | RT10: Debut | RU10: Pause | RV10: Fin | RW10: Durée | RX10: Ecart | RY10: Debut | RZ10: Pause | SA10: Fin | SB10: Durée | SC10: Ecart | SD10: Debut | SE10: Pause | SF10: Fin | SG10: Durée | SH10: Ecart | SI10: Debut | SJ10: Pause | SK10: Fin | SL10: Durée | SM10: Ecart | SN10: Debut | SO10: Pause | SP10: Fin | SQ10: Durée | SR10: Ecart | SS10: Debut | ST10: Pause | SU10: Fin | SV10: Durée | SW10: Ecart | SX10: Volume | SY10: Debut | SZ10: Pause | TA10: Fin | TB10: Durée | TC10: Ecart | TD10: Debut | TE10: Pause | TF10: Fin | TG10: Durée | TH10: Ecart | TI10: Debut | TJ10: Pause | TK10: Fin | TL10: Durée | TM10: Ecart | TN10: Debut | TO10: Pause | TP10: Fin | TQ10: Durée | TR10: Ecart | TS10: Debut | TT10: Pause | TU10: Fin | TV10: Durée | TW10: Ecart | TX10: Debut | TY10: Pause | TZ10: Fin | UA10: Durée | UB10: Ecart | UC10: Volume | UD10: Debut | UE10: Pause | UF10: Fin | UG10: Durée | UH10: Ecart | UI10: Debut | UJ10: Pause | UK10: Fin | UL10: Durée | UM10: Ecart | UO10: Debut | UP10: Pause | UQ10: Fin | UR10: Durée | US10: Ecart | UT10: Debut | UU10: Pause | UV10: Fin | UW10: Durée | UX10: Ecart | UY10: Debut | UZ10: Pause | VA10: Fin | VB10: Durée | VC10: Ecart | VD10: Debut | VE10: Pause | VF10: Fin | VG10: Durée | VH10: Ecart | VI10: Volume | VJ10: Debut | VK10: Pause | VL10: Fin | VM10: Durée | VN10: Ecart | VO10: Debut | VP10: Pause | VQ10: Fin | VR10: Durée | VS10: Ecart | VT10: Debut | VU10: Pause | VV10: Fin | VW10: Durée | VX10: Ecart | VY10: Debut | VZ10: Pause | WA10: Fin | WB10: Durée | WC10: Ecart | WD10: Debut | WE10: Pause | WF10: Fin | WG10: Durée | WH10: Ecart | WI10: Debut | WJ10: Pause | WK10: Fin | WL10: Durée | WM10: Ecart | WN10: Volume | WO10: Debut | WP10: Pause | WQ10: Fin | WR10: Durée | WS10: Ecart | WT10: Debut | WU10: Pause | WV10: Fin | WW10: Durée | WX10: Ecart | WY10: Debut | WZ10: Pause | XA10: Fin | XB10: Durée | XC10: Ecart | XD10: Debut | XE10: Pause | XF10: Fin | XG10: Durée | XH10: Ecart | XI10: Debut | XJ10: Pause | XK10: Fin | XL10: Durée | XM10: Ecart | XN10: Debut | XO10: Pause | XP10: Fin | XQ10: Durée | XR10: Ecart | XS10: Volume | XT10: Debut | XU10: Pause | XV10: Fin | XW10: Durée | XX10: Ecart | XY10: Debut | XZ10: Pause | YA10: Fin | YB10: Durée | YC10: Ecart | YD10: Debut | YE10: Pause | YF10: Fin | YG10: Durée | YH10: Ecart | YI10: Debut | YJ10: Pause | YK10: Fin | YL10: Durée | YM10: Ecart | YN10: Debut | YO10: Pause | YP10: Fin | YQ10: Durée | YR10: Ecart | YS10: Debut | YT10: Pause | YU10: Fin | YV10: Durée | YW10: Ecart | YX10: Volume | YY10: Debut | YZ10: Pause | ZA10: Fin | ZB10: Durée | ZC10: Ecart | ZD10: Debut | ZE10: Pause | ZF10: Fin | ZG10: Durée | ZH10: Ecart | ZI10: Debut | ZJ10: Pause | ZK10: Fin | ZL10: Durée | ZM10: Ecart | ZN10: Debut | ZO10: Pause | ZP10: Fin | ZQ10: Durée | ZR10: Ecart | ZS10: Debut | ZT10: Pause | ZU10: Fin | ZV10: Durée | ZW10: Ecart | ZX10: Debut | ZY10: Pause | ZZ10: Fin | AAA10: Durée | AAB10: Ecart
A11: =IF(ISBLANK(JK11),"",COUNTA($JK$9:JK11)) -> 3 | B11: =BDD!B2 -> Rojo Mampionona RANDRIANARIVELO | C11: =BDD!J2 -> Jour | D11: =IFERROR(VLOOKUP($B11,BDD!$B:$M,12,0),"-") -> Ambohitrimanjaka | E11: =IFERROR(IF(HLOOKUP($E$9,$AD$9:$XFD$23,$A11,0)=0,"",HLOOKUP($E$9,$AD$9:$XFD$23,$A11,0)),"") ->  | F11: =IFERROR(IF(SUMPRODUCT(--(((OFFSET($AC$10,-1,1,,$B$1))=(E$9))*ISNUMBER(OFFSET($AC11,,2,,$B$1))),OFFSET($AC11,,2,,$B$1))=0,"",SUMPRODUCT(--(((OFFSET($AC$10,-1,1,,$B$1))=(E$9))*ISNUMBER(OFFSET($AC11,,2,,$B$1))),OFFSET($AC11,,2,,$B$1))),"") ->  | G11: =IFERROR(SUMPRODUCT(--(((OFFSET($AC$10,-1,1,,$B$1))=(E$9))*ISNUMBER(OFFSET($AC11,,3,,$B$1))),OFFSET($AC11,,3,,$B$1)),"") -> 00:00:00 | H11: =IFERROR(SUMPRODUCT(--(((OFFSET($AC$10,-1,1,,$B$1))=(E$9))*ISNUMBER(OFFSET($AC11,,4,,$B$1))),OFFSET($AC11,,4,,$B$1)),"") -> 00:00:00 | K11: =COUNTIFS($AD11:$AAY11,K$10,$AD$7:$AAY$7,K$9) -> 0 | L11: =COUNTIFS($AD11:$AAY11,L$10,$AD$7:$AAY$7,K$9) -> 0 | M11: =COUNTIFS($AD11:$AAY11,M$10,$AD$7:$AAY$7,K$9) -> 0 | N11: =COUNTIFS($AD11:$AAY11,N$10,$AD$7:$AAY$7,K$9) -> 6 | O11: =COUNTIFS($AD11:$AAY11,O$10,$AD$7:$AAY$7,K$9) -> 14 | P11: =COUNTIFS($AD11:$AAY11,P$10,$AD$7:$AAY$7,K$9) -> 0 | Q11: =COUNTIFS($AD11:$AAY11,Q$10,$AD$7:$AAY$7,K$9) -> 0 | R11: =IFERROR(SUMPRODUCT(--((MONTH(OFFSET($AC$10,-1,1,,$B$1))=MONTH(1&K$9))*ISNUMBER(OFFSET($AC11,,5,,$B$1))),OFFSET($AC11,,5,,$B$1)),"") -> 0 | S11: =IFERROR(SUMPRODUCT(--((MONTH(OFFSET($AC$10,-1,1,,$B$1))=MONTH(1&K$9))*ISNUMBER(OFFSET($AC11,,4,,$B$1))),OFFSET($AC11,,4,,$B$1)),"") -> 7.333333333 | T11: =COUNTIFS($AD11:$AAY11,T$10,$AD$7:$AAY$7,T$9) -> 0 | U11: =COUNTIFS($AD11:$AAY11,U$10,$AD$7:$AAY$7,T$9) -> 0 | V11: =COUNTIFS($AD11:$AAY11,V$10,$AD$7:$AAY$7,T$9) -> 2 | W11: =COUNTIFS($AD11:$AAY11,W$10,$AD$7:$AAY$7,T$9) -> 3 | X11: =COUNTIFS($AD11:$AAY11,X$10,$AD$7:$AAY$7,T$9) -> 5 | Y11: =COUNTIFS($AD11:$AAY11,Y$10,$AD$7:$AAY$7,T$9) -> 0 | Z11: =COUNTIFS($AD11:$AAY11,Z$10,$AD$7:$AAY$7,T$9) -> 0 | AA11: =IFERROR(SUMPRODUCT(--((MONTH(OFFSET($AC$10,-1,1,,$B$1))=MONTH(1&T$9))*ISNUMBER(OFFSET($AC11,,5,,$B$1))),OFFSET($AC11,,5,,$B$1)),"") -> 1 | AB11: =IFERROR(SUMPRODUCT(--((MONTH(OFFSET($AC$10,-1,1,,$B$1))=MONTH(1&T$9))*ISNUMBER(OFFSET($AC11,,4,,$B$1))),OFFSET($AC11,,4,,$B$1)),"") -> 3.333333333 | AD11: 09:00:00 | AF11: 18:00:00 | AG11: 08:00:00 | AI11: 09:00:00 | AK11: 18:00:00 | AL11: 08:00:00 | AN11: 09:00:00 | AP11: 18:00:00 | AQ11: 08:00:00 | AS11: 09:00:00 | AU11: 18:00:00 | AV11: 08:00:00 | AX11: 09:00:00 | AZ11: 18:00:00 | BA11: 08:00:00 | BE11: - | BF11: - | BH11: 09:00:00 | BJ11: 18:00:00 | BK11: 08:00:00 | BM11: 09:00:00 | BO11: 18:00:00 | BP11: 08:00:00 | BR11: 09:00:00 | BT11: 18:00:00 | BU11: 08:00:00 | BW11: 09:00:00 | BY11: 18:00:00 | BZ11: 08:00:00 | CB11: 09:00:00 | CD11: 18:00:00 | CE11: 08:00:00 | CI11: - | CJ11: - | CL11: 09:00:00 | CN11: 18:00:00 | CO11: 08:00:00 | CQ11: 09:00:00 | CS11: 18:00:00 | CT11: 08:00:00 | CV11: 09:00:00 | CX11: 18:00:00 | CY11: 08:00:00 | DA11: 09:00:00 | DC11: 18:00:00 | DD11: 08:00:00 | DF11: 09:00:00 | DH11: 18:00:00 | DI11: 08:00:00 | DM11: - | DN11: - | DP11: 09:00:00 | DR11: 18:00:00 | DS11: 08:00:00 | DU11: 09:00:00 | DW11: 18:00:00 | DX11: 08:00:00 | DZ11: 09:00:00 | EB11: 18:00:00 | EC11: 08:00:00 | EE11: 09:00:00 | EG11: 18:00:00 | EH11: 08:00:00 | EJ11: 09:00:00 | EL11: 18:00:00 | EM11: 08:00:00 | EQ11: - | ER11: - | ET11: =IFERROR(IF(SUM(DS11,DX11,EC11,EH11,EM11,ER11)=0,"",SUM(DS11,DX11,EC11,EH11,EM11,ER11)),"-") -> 1.666666667 | EU11: 09:00:00 | EW11: 18:00:00 | EX11: 08:00:00 | EZ11: 09:00:00 | FB11: 18:00:00 | FC11: 08:00:00 | FE11: 09:00:00 | FG11: 18:00:00 | FH11: 08:00:00 | FJ11: 09:00:00 | FL11: 18:00:00 | FM11: 08:00:00 | FO11: 09:00:00 | FQ11: 18:00:00 | FR11: 08:00:00 | FT11: OFF | FV11: - | FW11: - | FY11: 09:00:00 | GA11: 18:00:00 | GB11: 08:00:00 | GD11: 09:00:00 | GF11: 18:00:00 | GG11: 08:00:00 | GI11: 09:00:00 | GK11: 18:00:00 | GL11: 08:00:00 | GN11: 09:00:00 | GP11: 18:00:00 | GQ11: 08:00:00 | GS11: 09:00:00 | GU11: 18:00:00 | GV11: 08:00:00 | GX11: OFF | GZ11: - | HA11: - | HC11: 09:00:00 | HE11: 18:00:00 | HF11: 08:00:00 | HH11: 09:00:00 | HJ11: 18:00:00 | HK11: 08:00:00 | HM11: 09:00:00 | HO11: 18:00:00 | HP11: 08:00:00 | HR11: 09:00:00 | HT11: 18:00:00 | HU11: 08:00:00 | HW11: 09:00:00 | HY11: 18:00:00 | HZ11: 08:00:00 | IB11: OFF | ID11: - | IE11: - | IG11: 11:00:00 | II11: 20:00:00 | IJ11: 08:00:00 | IL11: 11:00:00 | IN11: 20:00:00 | IO11: 08:00:00 | IQ11: 11:00:00 | IS11: 20:00:00 | IT11: 08:00:00 | IV11: 11:00:00 | IX11: 20:00:00 | IY11: 08:00:00 | JA11: 11:00:00 | JC11: 20:00:00 | JD11: 08:00:00 | JE11: TT | JF11: OFF | JH11: - | JI11: - | JJ11: =IF(JI11="-","",1) ->  | JK11: 09:00:00 | JL11: 12:00:00 | JM11: =IFERROR(IF(JK11="","-",IF($C11="Mi-Temps",(JK11+$C$2),IF($C11="All.",(JK11+$C$1)-$C$3,(JK11+$C$1)))),"-") -> 18:00:00 | JN11: =IFERROR(IF(JL11="",(JM11-JK11),((JM11-JK11)-$C$3)),"-") -> 08:00:00 | JP11: 09:00:00 | JQ11: 12:00:00 | JR11: =IFERROR(IF(JP11="","-",IF($C11="Mi-Temps",(JP11+$C$2),IF($C11="All.",(JP11+$C$1)-$C$3,(JP11+$C$1)))),"-") -> 18:00:00 | JS11: =IFERROR(IF(JQ11="",(JR11-JP11),((JR11-JP11)-$C$3)),"-") -> 08:00:00 | JU11: 08:30:00 | JV11: 12:00:00 | JW11: 18:00:00 | JX11: =IFERROR(IF(JV11="",(JW11-JU11),((JW11-JU11)-$C$3)),"-") -> 08:30:00 | JZ11: 08:30:00 | KA11: 12:00:00 | KB11: 18:00:00 | KC11: =IFERROR(IF(KA11="",(KB11-JZ11),((KB11-JZ11)-$C$3)),"-") -> 08:30:00 | KE11: 08:30:00 | KF11: 12:00:00 | KG11: 16:30:00 | KH11: =IFERROR(IF(KF11="",(KG11-KE11),((KG11-KE11)-$C$3)),"-") -> 07:00:00 | KJ11: OFF | KL11: =IFERROR(IF(KJ11="","-",IF($C11="Mi-Temps",(KJ11+$C$2),IF($C11="All.",(KJ11+$C$1)-$C$3,(KJ11+$C$1)))),"-") -> - | KM11: =IFERROR(IF(KK11="",(KL11-KJ11),((KL11-KJ11)-$C$3)),"-") -> - | KN11: =IF(KM11="-","",1) ->  | KO11: =IFERROR(IF(SUM(JN11,JS11,JX11,KC11,KH11,KM11)=0,"",SUM(JN11,JS11,JX11,KC11,KH11,KM11)),"-") -> 1.666666667 | KP11: 08:30:00 | KQ11: 12:00:00 | KR11: 18:00:00 | KS11: =IFERROR(IF(KQ11="",(KR11-KP11),((KR11-KP11)-$C$3)),"-") -> 08:30:00 | KU11: 08:30:00 | KV11: 12:00:00 | KW11: 18:00:00 | KX11: =IFERROR(IF(KV11="",(KW11-KU11),((KW11-KU11)-$C$3)),"-") -> 08:30:00 | KZ11: 08:30:00 | LA11: 12:00:00 | LB11: 18:00:00 | LC11: =IFERROR(IF(LA11="",(LB11-KZ11),((LB11-KZ11)-$C$3)),"-") -> 08:30:00 | LE11: 08:30:00 | LF11: 12:00:00 | LG11: 18:00:00 | LH11: =IFERROR(IF(LF11="",(LG11-LE11),((LG11-LE11)-$C$3)),"-") -> 08:30:00 | LJ11: 08:30:00 | LK11: 12:00:00 | LL11: 15:30:00 | LM11: =IFERROR(IF(LK11="",(LL11-LJ11),((LL11-LJ11)-$C$3)),"-") -> 06:00:00 | LO11: OFF | LQ11: =IFERROR(IF(LO11="","-",IF($C11="Mi-Temps",(LO11+$C$2),IF($C11="All.",(LO11+$C$1)-$C$3,(LO11+$C$1)))),"-") -> - | LR11: =IFERROR(IF(LP11="",(LQ11-LO11),((LQ11-LO11)-$C$3)),"-") -> - | LS11: =IF(LR11="-","",1) ->  | LT11: =IFERROR(IF(SUM(KS11,KX11,LC11,LH11,LM11,LR11)=0,"",SUM(KS11,KX11,LC11,LH11,LM11,LR11)),"-") -> 1.666666667 | LU11: 08:30:00 | LV11: 12:00:00 | LW11: 18:00:00 | LX11: =IFERROR(IF(LV11="",(LW11-LU11),((LW11-LU11)-$C$3)),"-") -> 08:30:00 | LZ11: 08:30:00 | MA11: 12:00:00 | MB11: 18:00:00 | MC11: =IFERROR(IF(MA11="",(MB11-LZ11),((MB11-LZ11)-$C$3)),"-") -> 08:30:00 | ME11: 08:30:00 | MF11: 12:00:00 | MG11: 18:00:00 | MH11: =IFERROR(IF(MF11="",(MG11-ME11),((MG11-ME11)-$C$3)),"-") -> 08:30:00 | MJ11: 08:30:00 | MK11: 12:00:00 | ML11: 18:00:00 | MM11: =IFERROR(IF(MK11="",(ML11-MJ11),((ML11-MJ11)-$C$3)),"-") -> 08:30:00 | MO11: 08:30:00 | MP11: 12:00:00 | MQ11: 15:30:00 | MR11: =IFERROR(IF(MP11="",(MQ11-MO11),((MQ11-MO11)-$C$3)),"-") -> 06:00:00 | MT11: OFF | MV11: =IFERROR(IF(MT11="","-",IF($C11="Mi-Temps",(MT11+$C$2),IF($C11="All.",(MT11+$C$1)-$C$3,(MT11+$C$1)))),"-") -> - | MW11: =IFERROR(IF(MU11="",(MV11-MT11),((MV11-MT11)-$C$3)),"-") -> - | MX11: =IF(MW11="-","",1) ->  | MY11: =IFERROR(IF(SUM(LX11,MC11,MH11,MM11,MR11,MW11)=0,"",SUM(LX11,MC11,MH11,MM11,MR11,MW11)),"-") -> 1.666666667 | MZ11: 08:30:00 | NA11: 12:00:00 | NB11: 18:00:00 | NC11: =IFERROR(IF(NA11="",(NB11-MZ11),((NB11-MZ11)-$C$3)),"-") -> 08:30:00 | NE11: 08:30:00 | NF11: 12:00:00 | NG11: 18:00:00 | NH11: =IFERROR(IF(NF11="",(NG11-NE11),((NG11-NE11)-$C$3)),"-") -> 08:30:00 | NJ11: 08:30:00 | NK11: 12:00:00 | NL11: 18:00:00 | NM11: =IFERROR(IF(NK11="",(NL11-NJ11),((NL11-NJ11)-$C$3)),"-") -> 08:30:00 | NO11: 08:30:00 | NP11: 12:00:00 | NQ11: 18:00:00 | NR11: =IFERROR(IF(NP11="",(NQ11-NO11),((NQ11-NO11)-$C$3)),"-") -> 08:30:00 | NT11: 08:30:00 | NU11: 12:00:00 | NV11: 15:30:00 | NW11: =IFERROR(IF(NU11="",(NV11-NT11),((NV11-NT11)-$C$3)),"-") -> 06:00:00 | NY11: OFF | OA11: =IFERROR(IF(NY11="","-",IF($C11="Mi-Temps",(NY11+$C$2),IF($C11="All.",(NY11+$C$1)-$C$3,(NY11+$C$1)))),"-") -> - | OB11: =IFERROR(IF(NZ11="",(OA11-NY11),((OA11-NY11)-$C$3)),"-") -> - | OC11: =IF(OB11="-","",1) ->  | OD11: =IFERROR(IF(SUM(NC11,NH11,NM11,NR11,NW11,OB11)=0,"",SUM(NC11,NH11,NM11,NR11,NW11,OB11)),"-") -> 1.666666667 | OE11: CP | OG11: =IFERROR(IF(OE11="","-",IF($C11="Mi-Temps",(OE11+$C$2),IF($C11="All.",(OE11+$C$1)-$C$3,(OE11+$C$1)))),"-") -> - | OH11: =IFERROR((IF(OF11="",(OG11-OE11),((OG11-OE11)-$C$3))),"-") -> - | OJ11: CP | OL11: =IFERROR(IF(OJ11="","-",IF($C11="Mi-Temps",(OJ11+$C$2),IF($C11="All.",(OJ11+$C$1)-$C$3,(OJ11+$C$1)))),"-") -> - | OM11: =IFERROR((IF(OK11="",(OL11-OJ11),((OL11-OJ11)-$C$3))),"-") -> - | OO11: 08:30:00 | OP11: 12:00:00 | OQ11: 18:00:00 | OR11: =IFERROR((IF(OP11="",(OQ11-OO11),((OQ11-OO11)-$C$3))),"-") -> 08:30:00 | OT11: 08:30:00 | OU11: 12:00:00 | OV11: 18:00:00 | OW11: =IFERROR((IF(OU11="",(OV11-OT11),((OV11-OT11)-$C$3))),"-") -> 08:30:00 | OY11: 08:30:00 | OZ11: 12:00:00 | PA11: 16:30:00 | PB11: =IFERROR((IF(OZ11="",(PA11-OY11),((PA11-OY11)-$C$3))),"-") -> 07:00:00 | PD11: OFF | PF11: =IFERROR(IF(PD11="","-",IF($C11="Mi-Temps",(PD11+$C$2),IF($C11="All.",(PD11+$C$1)-$C$3,(PD11+$C$1)))),"-") -> - | PG11: =IFERROR(IF(PE11="",(PF11-PD11),((PF11-PD11)-$C$3)),"-") -> - | PH11: =IF(PG11="-","",1) ->  | PI11: =IFERROR(IF(SUM(OH11,OM11,OR11,OW11,PB11,PG11)=0,"",SUM(OH11,OM11,OR11,OW11,PB11,PG11)),"-") -> 1 | PJ11: FNT | PL11: =IFERROR(IF(PJ11="","-",IF($C11="Mi-Temps",(PJ11+$C$2),IF($C11="All.",(PJ11+$C$1)-$C$3,(PJ11+$C$1)))),"-") -> - | PM11: 08:00:00 | PO11: 09:00:00 | PP11: 12:00:00 | PQ11: =IFERROR(IF(PO11="","-",IF($C11="Mi-Temps",(PO11+$C$2),IF($C11="All.",(PO11+$C$1)-$C$3,(PO11+$C$1)))),"-") -> 18:00:00 | PR11: =IFERROR(IF(PP11="",(PQ11-PO11),((PQ11-PO11)-$C$3)),"-") -> 08:00:00 | PT11: 09:00:00 | PU11: 12:00:00 | PV11: =IFERROR(IF(PT11="","-",IF($C11="Mi-Temps",(PT11+$C$2),IF($C11="All.",(PT11+$C$1)-$C$3,(PT11+$C$1)))),"-") -> 18:00:00 | PW11: =IFERROR(IF(PU11="",(PV11-PT11),((PV11-PT11)-$C$3)),"-") -> 08:00:00 | PY11: 09:00:00 | PZ11: 12:00:00 | QA11: =IFERROR(IF(PY11="","-",IF($C11="Mi-Temps",(PY11+$C$2),IF($C11="All.",(PY11+$C$1)-$C$3,(PY11+$C$1)))),"-") -> 18:00:00 | QB11: =IFERROR(IF(PZ11="",(QA11-PY11),((QA11-PY11)-$C$3)),"-") -> 08:00:00 | QD11: 09:00:00 | QE11: 12:00:00 | QF11: =IFERROR(IF(QD11="","-",IF($C11="Mi-Temps",(QD11+$C$2),IF($C11="All.",(QD11+$C$1)-$C$3,(QD11+$C$1)))),"-") -> 18:00:00 | QG11: =IFERROR(IF(QE11="",(QF11-QD11),((QF11-QD11)-$C$3)),"-") -> 08:00:00 | QI11: OFF | QK11: =IFERROR(IF(QI11="","-",IF($C11="Mi-Temps",(QI11+$C$2),IF($C11="All.",(QI11+$C$1)-$C$3,(QI11+$C$1)))),"-") -> - | QL11: =IFERROR(IF(QJ11="",(QK11-QI11),((QK11-QI11)-$C$3)),"-") -> - | QM11: =IF(QL11="-","",1) ->  | QN11: =IFERROR(IF(SUM(PM11,PR11,PW11,QB11,QG11,QL11)=0,"",SUM(PM11,PR11,PW11,QB11,QG11,QL11)),"-") -> 1.666666667 | QO11: 11:00:00 | QP11: 14:00:00 | QQ11: =IFERROR(IF(QO11="","-",IF($C11="Mi-Temps",(QO11+$C$2),IF($C11="All.",(QO11+$C$1)-$C$3,(QO11+$C$1)))),"-") -> 20:00:00 | QR11: =IFERROR(IF(OR(QO11="CP",QO11="FNT"),$C$5,IF(QP11="",(QQ11-QO11),((QQ11-QO11)-$C$3))),"-") -> 08:00:00 | QT11: 11:00:00 | QU11: 14:00:00 | QV11: =IFERROR(IF(QT11="","-",IF($C11="Mi-Temps",(QT11+$C$2),IF($C11="All.",(QT11+$C$1)-$C$3,(QT11+$C$1)))),"-") -> 20:00:00 | QW11: =IFERROR(IF(OR(QT11="CP",QT11="FNT"),$C$5,IF(QU11="",(QV11-QT11),((QV11-QT11)-$C$3))),"-") -> 08:00:00 | QY11: 11:00:00 | QZ11: 14:00:00 | RA11: =IFERROR(IF(QY11="","-",IF($C11="Mi-Temps",(QY11+$C$2),IF($C11="All.",(QY11+$C$1)-$C$3,(QY11+$C$1)))),"-") -> 20:00:00 | RB11: =IFERROR(IF(OR(QY11="CP",QY11="FNT"),$C$5,IF(QZ11="",(RA11-QY11),((RA11-QY11)-$C$3))),"-") -> 08:00:00 | RD11: FNT | RF11: =IFERROR(IF(RD11="","-",IF($C11="Mi-Temps",(RD11+$C$2),IF($C11="All.",(RD11+$C$1)-$C$3,(RD11+$C$1)))),"-") -> - | RG11: =IFERROR(IF(OR(RD11="CP",RD11="FNT"),$C$5,IF(RE11="",(RF11-RD11),((RF11-RD11)-$C$3))),"-") -> 08:00:00 | RI11: 11:00:00 | RJ11: 14:00:00 | RK11: =IFERROR(IF(RI11="","-",IF($C11="Mi-Temps",(RI11+$C$2),IF($C11="All.",(RI11+$C$1)-$C$3,(RI11+$C$1)))),"-") -> 20:00:00 | RL11: =IFERROR(IF(OR(RI11="CP",RI11="FNT"),$C$5,IF(RJ11="",(RK11-RI11),((RK11-RI11)-$C$3))),"-") -> 08:00:00 | RN11: OFF | RP11: =IFERROR(IF(RN11="","-",IF($C11="Mi-Temps",(RN11+$C$2),IF($C11="All.",(RN11+$C$1)-$C$3,(RN11+$C$1)))),"-") -> - | RQ11: =IFERROR(IF(OR(RN11="CP",RN11="FNT"),$C$5,IF(RO11="",(RP11-RN11),((RP11-RN11)-$C$3))),"-") -> - | RR11: =IF(RQ11="-","",1) ->  | RS11: =IFERROR(IF(SUM(QR11,QW11,RB11,RG11,RL11,RQ11)=0,"",SUM(QR11,QW11,RB11,RG11,RL11,RQ11)),"-") -> 1.666666667 | RT11: 11:00:00 | RU11: 14:00:00 | RV11: =IFERROR(IF(RT11="","-",IF($C11="Mi-Temps",(RT11+$C$2),IF($C11="All.",(RT11+$C$1)-$C$3,(RT11+$C$1)))),"-") -> 20:00:00 | RW11: =IFERROR(IF(OR(RT11="CP",RT11="FNT"),$C$5,IF(RU11="",(RV11-RT11),((RV11-RT11)-$C$3))),"-") -> 08:00:00 | RY11: 11:00:00 | RZ11: 14:00:00 | SA11: =IFERROR(IF(RY11="","-",IF($C11="Mi-Temps",(RY11+$C$2),IF($C11="All.",(RY11+$C$1)-$C$3,(RY11+$C$1)))),"-") -> 20:00:00 | SB11: =IFERROR(IF(OR(RY11="CP",RY11="FNT"),$C$5,IF(RZ11="",(SA11-RY11),((SA11-RY11)-$C$3))),"-") -> 08:00:00 | SD11: 11:00:00 | SE11: 14:00:00 | SF11: =IFERROR(IF(SD11="","-",IF($C11="Mi-Temps",(SD11+$C$2),IF($C11="All.",(SD11+$C$1)-$C$3,(SD11+$C$1)))),"-") -> 20:00:00 | SG11: =IFERROR(IF(OR(SD11="CP",SD11="FNT"),$C$5,IF(SE11="",(SF11-SD11),((SF11-SD11)-$C$3))),"-") -> 08:00:00 | SI11: 11:00:00 | SJ11: 14:00:00 | SK11: =IFERROR(IF(SI11="","-",IF($C11="Mi-Temps",(SI11+$C$2),IF($C11="All.",(SI11+$C$1)-$C$3,(SI11+$C$1)))),"-") -> 20:00:00 | SL11: =IFERROR(IF(OR(SI11="CP",SI11="FNT"),$C$5,IF(SJ11="",(SK11-SI11),((SK11-SI11)-$C$3))),"-") -> 08:00:00 | SN11: 11:00:00 | SO11: 14:00:00 | SP11: =IFERROR(IF(SN11="","-",IF($C11="Mi-Temps",(SN11+$C$2),IF($C11="All.",(SN11+$C$1)-$C$3,(SN11+$C$1)))),"-") -> 20:00:00 | SQ11: =IFERROR(IF(OR(SN11="CP",SN11="FNT"),$C$5,IF(SO11="",(SP11-SN11),((SP11-SN11)-$C$3))),"-") -> 08:00:00 | SS11: OFF | SU11: =IFERROR(IF(SS11="","-",IF($C11="Mi-Temps",(SS11+$C$2),IF($C11="All.",(SS11+$C$1)-$C$3,(SS11+$C$1)))),"-") -> - | SV11: =IFERROR(IF(OR(SS11="CP",SS11="FNT"),$C$5,IF(ST11="",(SU11-SS11),((SU11-SS11)-$C$3))),"-") -> - | SW11: =IF(SV11="-","",1) ->  | SX11: =IFERROR(IF(SUM(RW11,SB11,SG11,SL11,SQ11,SV11)=0,"",SUM(RW11,SB11,SG11,SL11,SQ11,SV11)),"-") -> 1.666666667 | SY11: 11:00:00 | SZ11: 14:00:00 | TA11: =IFERROR(IF(SY11="","-",IF($C11="Mi-Temps",(SY11+$C$2),IF($C11="All.",(SY11+$C$1)-$C$3,(SY11+$C$1)))),"-") -> 20:00:00 | TB11: =IFERROR(IF(OR(SY11="CP",SY11="FNT"),$C$5,IF(SZ11="",(TA11-SY11),((TA11-SY11)-$C$3))),"-") -> 08:00:00 | TD11: 11:00:00 | TE11: 14:00:00 | TF11: =IFERROR(IF(TD11="","-",IF($C11="Mi-Temps",(TD11+$C$2),IF($C11="All.",(TD11+$C$1)-$C$3,(TD11+$C$1)))),"-") -> 20:00:00 | TG11: =IFERROR(IF(OR(TD11="CP",TD11="FNT"),$C$5,IF(TE11="",(TF11-TD11),((TF11-TD11)-$C$3))),"-") -> 08:00:00 | TI11: 11:00:00 | TJ11: 14:00:00 | TK11: =IFERROR(IF(TI11="","-",IF($C11="Mi-Temps",(TI11+$C$2),IF($C11="All.",(TI11+$C$1)-$C$3,(TI11+$C$1)))),"-") -> 20:00:00 | TL11: =IFERROR(IF(OR(TI11="CP",TI11="FNT"),$C$5,IF(TJ11="",(TK11-TI11),((TK11-TI11)-$C$3))),"-") -> 08:00:00 | TN11: 11:00:00 | TO11: 14:00:00 | TP11: =IFERROR(IF(TN11="","-",IF($C11="Mi-Temps",(TN11+$C$2),IF($C11="All.",(TN11+$C$1)-$C$3,(TN11+$C$1)))),"-") -> 20:00:00 | TQ11: =IFERROR(IF(OR(TN11="CP",TN11="FNT"),$C$5,IF(TO11="",(TP11-TN11),((TP11-TN11)-$C$3))),"-") -> 08:00:00 | TS11: 11:00:00 | TT11: 14:00:00 | TU11: =IFERROR(IF(TS11="","-",IF($C11="Mi-Temps",(TS11+$C$2),IF($C11="All.",(TS11+$C$1)-$C$3,(TS11+$C$1)))),"-") -> 20:00:00 | TV11: =IFERROR(IF(OR(TS11="CP",TS11="FNT"),$C$5,IF(TT11="",(TU11-TS11),((TU11-TS11)-$C$3))),"-") -> 08:00:00 | TX11: OFF | TZ11: =IFERROR(IF(TX11="","-",IF($C11="Mi-Temps",(TX11+$C$2),IF($C11="All.",(TX11+$C$1)-$C$3,(TX11+$C$1)))),"-") -> - | UA11: =IFERROR(IF(OR(TX11="CP",TX11="FNT"),$C$5,IF(TY11="",(TZ11-TX11),((TZ11-TX11)-$C$3))),"-") -> - | UB11: =IF(UA11="-","",1) ->  | UC11: =IFERROR(IF(SUM(TB11,TG11,TL11,TQ11,TV11,UA11)=0,"",SUM(TB11,TG11,TL11,TQ11,TV11,UA11)),"-") -> 1.666666667 | UD11: 09:00:00 | UE11: 12:00:00 | UF11: =IFERROR(IF(UD11="","-",IF($C11="Mi-Temps",(UD11+$C$2),IF($C11="All.",(UD11+$C$1)-$C$3,(UD11+$C$1)))),"-") -> 18:00:00 | UG11: =IFERROR(IF(UE11="",(UF11-UD11),((UF11-UD11)-$C$3)),"-") -> 08:00:00 | UI11: 09:00:00 | UJ11: 12:00:00 | UK11: =IFERROR(IF(UI11="","-",IF($C11="Mi-Temps",(UI11+$C$2),IF($C11="All.",(UI11+$C$1)-$C$3,(UI11+$C$1)))),"-") -> 18:00:00 | UL11: =IFERROR(IF(UJ11="",(UK11-UI11),((UK11-UI11)-$C$3)),"-") -> 08:00:00 | UO11: 09:00:00 | UP11: 12:00:00 | UQ11: =IFERROR(IF(UO11="","-",IF($C11="Mi-Temps",(UO11+$C$2),IF($C11="All.",(UO11+$C$1)-$C$3,(UO11+$C$1)))),"-") -> 18:00:00 | UR11: =IFERROR(IF(UP11="",(UQ11-UO11),((UQ11-UO11)-$C$3)),"-") -> 08:00:00 | UT11: 09:00:00 | UU11: 12:00:00 | UV11: =IFERROR(IF(UT11="","-",IF($C11="Mi-Temps",(UT11+$C$2),IF($C11="All.",(UT11+$C$1)-$C$3,(UT11+$C$1)))),"-") -> 18:00:00 | UW11: =IFERROR(IF(UU11="",(UV11-UT11),((UV11-UT11)-$C$3)),"-") -> 08:00:00 | UY11: OFF | VA11: =IFERROR(IF(UY11="","-",IF($C11="Mi-Temps",(UY11+$C$2),IF($C11="All.",(UY11+$C$1)-$C$3,(UY11+$C$1)))),"-") -> - | VB11: =IFERROR(IF(UZ11="",(VA11-UY11),((VA11-UY11)-$C$3)),"-") -> - | VD11: 09:00:00 | VE11: 12:00:00 | VF11: =IFERROR(IF(VD11="","-",IF($C11="Mi-Temps",(VD11+$C$2),IF($C11="All.",(VD11+$C$1)-$C$3,(VD11+$C$1)))),"-") -> 18:00:00 | VG11: =IFERROR(IF(VE11="",(VF11-VD11),((VF11-VD11)-$C$3)),"-") -> 08:00:00 | VH11: =IF(VG11="-","",1) -> 1 | VI11: =IFERROR(IF(SUM(UG11,UL11,UR11,UW11,VB11,VG11)=0,"",SUM(UG11,UL11,UR11,UW11,VB11,VG11)),"-") -> 1.666666667 | VJ11: 11:00:00 | VK11: 13:00:00 | VL11: =IFERROR(IF(VJ11="","-",IF($C11="Mi-Temps",(VJ11+$C$2),IF($C11="All.",(VJ11+$C$1)-$C$3,(VJ11+$C$1)))),"-") -> 20:00:00 | VM11: =IFERROR(IF(OR(VJ11="CP",VJ11="FNT"),$C$5,IF(VK11="",(VL11-VJ11),((VL11-VJ11)-$C$3))),"-") -> 08:00:00 | VO11: 11:00:00 | VP11: 13:00:00 | VQ11: =IFERROR(IF(VO11="","-",IF($C11="Mi-Temps",(VO11+$C$2),IF($C11="All.",(VO11+$C$1)-$C$3,(VO11+$C$1)))),"-") -> 20:00:00 | VR11: =IFERROR(IF(OR(VO11="CP",VO11="FNT"),$C$5,IF(VP11="",(VQ11-VO11),((VQ11-VO11)-$C$3))),"-") -> 08:00:00 | VT11: 11:00:00 | VU11: 13:00:00 | VV11: =IFERROR(IF(VT11="","-",IF($C11="Mi-Temps",(VT11+$C$2),IF($C11="All.",(VT11+$C$1)-$C$3,(VT11+$C$1)))),"-") -> 20:00:00 | VW11: =IFERROR(IF(OR(VT11="CP",VT11="FNT"),$C$5,IF(VU11="",(VV11-VT11),((VV11-VT11)-$C$3))),"-") -> 08:00:00 | VY11: 11:00:00 | VZ11: 13:00:00 | WA11: =IFERROR(IF(VY11="","-",IF($C11="Mi-Temps",(VY11+$C$2),IF($C11="All.",(VY11+$C$1)-$C$3,(VY11+$C$1)))),"-") -> 20:00:00 | WB11: =IFERROR(IF(OR(VY11="CP",VY11="FNT"),$C$5,IF(VZ11="",(WA11-VY11),((WA11-VY11)-$C$3))),"-") -> 08:00:00 | WD11: 11:00:00 | WE11: 13:00:00 | WF11: =IFERROR(IF(WD11="","-",IF($C11="Mi-Temps",(WD11+$C$2),IF($C11="All.",(WD11+$C$1)-$C$3,(WD11+$C$1)))),"-") -> 20:00:00 | WG11: =IFERROR(IF(OR(WD11="CP",WD11="FNT"),$C$5,IF(WE11="",(WF11-WD11),((WF11-WD11)-$C$3))),"-") -> 08:00:00 | WI11: OFF | WK11: =IFERROR(IF(WI11="","-",IF($C11="Mi-Temps",(WI11+$C$2),IF($C11="All.",(WI11+$C$1)-$C$3,(WI11+$C$1)))),"-") -> - | WL11: =IFERROR(IF(OR(WI11="CP",WI11="FNT"),$C$5,IF(WJ11="",(WK11-WI11),((WK11-WI11)-$C$3))),"-") -> - | WM11: =IF(WL11="-","",1) ->  | WN11: =IFERROR(IF(SUM(VM11,VR11,VW11,WB11,WG11,WL11)=0,"",SUM(VM11,VR11,VW11,WB11,WG11,WL11)),"-") -> 1.666666667 | WQ11: =IFERROR(IF(WO11="","-",IF($C11="Mi-Temps",(WO11+$C$2),IF($C11="All.",(WO11+$C$1)-$C$3,(WO11+$C$1)))),"-") -> - | WR11: =IFERROR(IF(WP11="",(WQ11-WO11),((WQ11-WO11)-$C$3)),"-") -> - | WV11: =IFERROR(IF(WT11="","-",IF($C11="Mi-Temps",(WT11+$C$2),IF($C11="All.",(WT11+$C$1)-$C$3,(WT11+$C$1)))),"-") -> - | WW11: =IFERROR(IF(WU11="",(WV11-WT11),((WV11-WT11)-$C$3)),"-") -> - | XA11: =IFERROR(IF(WY11="","-",IF($C11="Mi-Temps",(WY11+$C$2),IF($C11="All.",(WY11+$C$1)-$C$3,(WY11+$C$1)))),"-") -> - | XB11: =IFERROR(IF(WZ11="",(XA11-WY11),((XA11-WY11)-$C$3)),"-") -> - | XF11: =IFERROR(IF(XD11="","-",IF($C11="Mi-Temps",(XD11+$C$2),IF($C11="All.",(XD11+$C$1)-$C$3,(XD11+$C$1)))),"-") -> - | XG11: =IFERROR(IF(XE11="",(XF11-XD11),((XF11-XD11)-$C$3)),"-") -> - | XK11: =IFERROR(IF(XI11="","-",IF($C11="Mi-Temps",(XI11+$C$2),IF($C11="All.",(XI11+$C$1)-$C$3,(XI11+$C$1)))),"-") -> - | XL11: =IFERROR(IF(XJ11="",(XK11-XI11),((XK11-XI11)-$C$3)),"-") -> - | XN11: OFF | XP11: =IFERROR(IF(XN11="","-",IF($C11="Mi-Temps",(XN11+$C$2),IF($C11="All.",(XN11+$C$1)-$C$3,(XN11+$C$1)))),"-") -> - | XQ11: =IFERROR(IF(XO11="",(XP11-XN11),((XP11-XN11)-$C$3)),"-") -> - | XR11: =IF(XQ11="-","",1) ->  | XS11: =IFERROR(IF(SUM(WR11,WW11,XB11,XG11,XL11,XQ11)=0,"",SUM(WR11,WW11,XB11,XG11,XL11,XQ11)),"-") ->  | XV11: =IFERROR(IF(XT11="","-",IF($C11="Mi-Temps",(XT11+$C$2),IF($C11="All.",(XT11+$C$1)-$C$3,(XT11+$C$1)))),"-") -> - | XW11: =IFERROR(IF(OR(XT11="CP",XT11="FNT"),$C$5,IF(XU11="",(XV11-XT11),((XV11-XT11)-$C$3))),"-") -> - | YA11: =IFERROR(IF(XY11="","-",IF($C11="Mi-Temps",(XY11+$C$2),IF($C11="All.",(XY11+$C$1)-$C$3,(XY11+$C$1)))),"-") -> - | YB11: =IFERROR(IF(OR(XY11="CP",XY11="FNT"),$C$5,IF(XZ11="",(YA11-XY11),((YA11-XY11)-$C$3))),"-") -> - | YF11: =IFERROR(IF(YD11="","-",IF($C11="Mi-Temps",(YD11+$C$2),IF($C11="All.",(YD11+$C$1)-$C$3,(YD11+$C$1)))),"-") -> - | YG11: =IFERROR(IF(OR(YD11="CP",YD11="FNT"),$C$5,IF(YE11="",(YF11-YD11),((YF11-YD11)-$C$3))),"-") -> - | YK11: =IFERROR(IF(YI11="","-",IF($C11="Mi-Temps",(YI11+$C$2),IF($C11="All.",(YI11+$C$1)-$C$3,(YI11+$C$1)))),"-") -> - | YL11: =IFERROR(IF(OR(YI11="CP",YI11="FNT"),$C$5,IF(YJ11="",(YK11-YI11),((YK11-YI11)-$C$3))),"-") -> - | YP11: =IFERROR(IF(YN11="","-",IF($C11="Mi-Temps",(YN11+$C$2),IF($C11="All.",(YN11+$C$1)-$C$3,(YN11+$C$1)))),"-") -> - | YQ11: =IFERROR(IF(OR(YN11="CP",YN11="FNT"),$C$5,IF(YO11="",(YP11-YN11),((YP11-YN11)-$C$3))),"-") -> - | YU11: =IFERROR(IF(YS11="","-",IF($C11="Mi-Temps",(YS11+$C$2),IF($C11="All.",(YS11+$C$1)-$C$3,(YS11+$C$1)))),"-") -> - | YV11: =IFERROR(IF(OR(YS11="CP",YS11="FNT"),$C$5,IF(YT11="",(YU11-YS11),((YU11-YS11)-$C$3))),"-") -> - | YX11: =IFERROR(IF(SUM(XW11,YB11,YG11,YL11,YQ11,YV11)=0,"",SUM(XW11,YB11,YG11,YL11,YQ11,YV11)),"-") ->  | ZA11: =IFERROR(IF(YY11="","-",IF($C11="Mi-Temps",(YY11+$C$2),IF($C11="All.",(YY11+$C$1)-$C$3,(YY11+$C$1)))),"-") -> - | ZB11: =IFERROR(IF(OR(YY11="CP",YY11="FNT"),$C$5,IF(YZ11="",(ZA11-YY11),((ZA11-YY11)-$C$3))),"-") -> - | ZF11: =IFERROR(IF(ZD11="","-",IF($C11="Mi-Temps",(ZD11+$C$2),IF($C11="All.",(ZD11+$C$1)-$C$3,(ZD11+$C$1)))),"-") -> - | ZG11: =IFERROR(IF(OR(ZD11="CP",ZD11="FNT"),$C$5,IF(ZE11="",(ZF11-ZD11),((ZF11-ZD11)-$C$3))),"-") -> - | ZI11: CP | ZK11: =IFERROR(IF(ZI11="","-",IF($C11="Mi-Temps",(ZI11+$C$2),IF($C11="All.",(ZI11+$C$1)-$C$3,(ZI11+$C$1)))),"-") -> - | ZL11: =IFERROR(IF(OR(ZI11="CP",ZI11="FNT"),$C$5,IF(ZJ11="",(ZK11-ZI11),((ZK11-ZI11)-$C$3))),"-") -> 08:00:00 | ZN11: CP | ZP11: =IFERROR(IF(ZN11="","-",IF($C11="Mi-Temps",(ZN11+$C$2),IF($C11="All.",(ZN11+$C$1)-$C$3,(ZN11+$C$1)))),"-") -> - | ZQ11: =IFERROR(IF(OR(ZN11="CP",ZN11="FNT"),$C$5,IF(ZO11="",(ZP11-ZN11),((ZP11-ZN11)-$C$3))),"-") -> 08:00:00 | ZU11: =IFERROR(IF(ZS11="","-",IF($C11="Mi-Temps",(ZS11+$C$2),IF($C11="All.",(ZS11+$C$1)-$C$3,(ZS11+$C$1)))),"-") -> - | ZV11: =IFERROR(IF(OR(ZS11="CP",ZS11="FNT"),$C$5,IF(ZT11="",(ZU11-ZS11),((ZU11-ZS11)-$C$3))),"-") -> - | ZZ11: =IFERROR(IF(ZX11="","-",IF($C11="Mi-Temps",(ZX11+$C$2),IF($C11="All.",(ZX11+$C$1)-$C$3,(ZX11+$C$1)))),"-") -> - | AAA11: =IFERROR(IF(OR(ZX11="CP",ZX11="FNT"),$C$5,IF(ZY11="",(ZZ11-ZX11),((ZZ11-ZX11)-$C$3))),"-") -> -
A12: =IF(ISBLANK(JK12),"",COUNTA($JK$9:JK12)) -> 4 | B12: =BDD!B3 -> RAKOTOMALALA Mamy Tsilavina | C12: =BDD!J3 -> Rotation | D12: =IFERROR(VLOOKUP($B12,BDD!$B:$M,12,0),"-") -> Ambodimita Ambohimanarina | E12: 13:00:00 | F12: 15:00:00 | G12: 22:00:00 | H12: 08:00:00 | K12: 0 | L12: 0 | M12: 0 | N12: 0 | O12: 11 | P12: 10 | Q12: 0 | R12: 0 | S12: 7.333333333 | T12: 0 | U12: 0 | V12: 3 | W12: 5 | X12: 8 | Y12: 7 | Z12: 0 | AA12: 1 | AB12: 7.666666667 | AD12: 09:00:00 | AF12: 18:00:00 | AG12: 08:00:00 | AI12: 09:00:00 | AK12: 18:00:00 | AL12: 08:00:00 | AN12: 09:00:00 | AP12: 18:00:00 | AQ12: 08:00:00 | AS12: 09:00:00 | AU12: 18:00:00 | AV12: 08:00:00 | AX12: 09:00:00 | AZ12: 18:00:00 | BA12: 08:00:00 | BE12: - | BF12: - | BH12: 09:00:00 | BJ12: 18:00:00 | BK12: 08:00:00 | BM12: 09:00:00 | BO12: 18:00:00 | BP12: 08:00:00 | BR12: 09:00:00 | BT12: 18:00:00 | BU12: 08:00:00 | BW12: 09:00:00 | BY12: 18:00:00 | BZ12: 08:00:00 | CB12: 09:00:00 | CD12: 18:00:00 | CE12: 08:00:00 | CI12: - | CJ12: - | CL12: 09:00:00 | CN12: 18:00:00 | CO12: 08:00:00 | CQ12: 09:00:00 | CS12: 18:00:00 | CT12: 08:00:00 | CV12: 09:00:00 | CX12: 18:00:00 | CY12: 08:00:00 | DA12: 09:00:00 | DC12: 18:00:00 | DD12: 08:00:00 | DF12: 09:00:00 | DH12: 18:00:00 | DI12: 08:00:00 | DM12: - | DN12: - | DP12: 09:00:00 | DR12: 18:00:00 | DS12: 08:00:00 | DU12: 09:00:00 | DW12: 18:00:00 | DX12: 08:00:00 | DZ12: 09:00:00 | EB12: 18:00:00 | EC12: 08:00:00 | EE12: 09:00:00 | EG12: 18:00:00 | EH12: 08:00:00 | EJ12: 09:00:00 | EL12: 18:00:00 | EM12: 08:00:00 | EQ12: - | ER12: - | ET12: 1.666666667 | EU12: 09:00:00 | EW12: 18:00:00 | EX12: 08:00:00 | EZ12: 09:00:00 | FB12: 18:00:00 | FC12: 08:00:00 | FE12: 11:00:00 | FG12: 20:00:00 | FH12: 08:00:00 | FJ12: 11:00:00 | FL12: 20:00:00 | FM12: 08:00:00 | FO12: 09:00:00 | FQ12: 18:00:00 | FR12: 08:00:00 | FT12: OFF | FV12: - | FW12: - | FY12: 09:00:00 | GA12: 18:00:00 | GB12: 08:00:00 | GD12: 09:00:00 | GF12: 18:00:00 | GG12: 08:00:00 | GI12: 09:00:00 | GK12: 18:00:00 | GL12: 08:00:00 | GN12: 09:00:00 | GP12: 18:00:00 | GQ12: 08:00:00 | GS12: 09:00:00 | GU12: 18:00:00 | GV12: 08:00:00 | GX12: OFF | GZ12: - | HA12: - | HC12: 11:00:00 | HE12: 20:00:00 | HF12: 08:00:00 | HH12: 11:00:00 | HJ12: 20:00:00 | HK12: 08:00:00 | HM12: 11:00:00 | HO12: 20:00:00 | HP12: 08:00:00 | HR12: 11:00:00 | HT12: 20:00:00 | HU12: 08:00:00 | HW12: 11:00:00 | HY12: 20:00:00 | HZ12: 08:00:00 | IB12: OFF | ID12: - | IE12: - | IG12: 09:00:00 | II12: 18:00:00 | IJ12: 08:00:00 | IL12: 09:00:00 | IN12: 18:00:00 | IO12: 08:00:00 | IQ12: 09:00:00 | IS12: 18:00:00 | IT12: 08:00:00 | IV12: 09:00:00 | IX12: 18:00:00 | IY12: 08:00:00 | JA12: 09:00:00 | JC12: 18:00:00 | JD12: 08:00:00 | JF12: OFF | JH12: - | JI12: - | JJ12: =IF(JI12="-","",1) ->  | JK12: 11:00:00 | JL12: 14:00:00 | JM12: 20:00:00 | JN12: 08:00:00 | JP12: 11:00:00 | JQ12: 14:00:00 | JR12: 20:00:00 | JS12: 08:00:00 | JU12: 11:00:00 | JV12: 14:00:00 | JW12: =IFERROR(IF(JU12="","-",IF($C12="Mi-Temps",(JU12+$C$2),IF($C12="All.",(JU12+$C$1)-$C$3,(JU12+$C$1)))),"-") -> 20:00:00 | JX12: 08:00:00 | JZ12: 11:00:00 | KA12: 14:00:00 | KB12: =IFERROR(IF(JZ12="","-",IF($C12="Mi-Temps",(JZ12+$C$2),IF($C12="All.",(JZ12+$C$1)-$C$3,(JZ12+$C$1)))),"-") -> 20:00:00 | KC12: 08:00:00 | KE12: 11:00:00 | KF12: 14:00:00 | KG12: =IFERROR(IF(KE12="","-",IF($C12="Mi-Temps",(KE12+$C$2),IF($C12="All.",(KE12+$C$1)-$C$3,(KE12+$C$1)))),"-") -> 20:00:00 | KH12: 08:00:00 | KJ12: OFF | KL12: - | KM12: - | KN12: =IF(KM12="-","",1) ->  | KO12: 1.666666667 | KP12: OFF | KR12: =IFERROR(IF(KP12="","-",IF($C12="Mi-Temps",(KP12+$C$2),IF($C12="All.",(KP12+$C$1)-$C$3,(KP12+$C$1)))),"-") -> - | KS12: - | KU12: 09:00:00 | KV12: 12:00:00 | KW12: =IFERROR(IF(KU12="","-",IF($C12="Mi-Temps",(KU12+$C$2),IF($C12="All.",(KU12+$C$1)-$C$3,(KU12+$C$1)))),"-") -> 18:00:00 | KX12: 08:00:00 | KZ12: 09:00:00 | LA12: 12:00:00 | LB12: =IFERROR(IF(KZ12="","-",IF($C12="Mi-Temps",(KZ12+$C$2),IF($C12="All.",(KZ12+$C$1)-$C$3,(KZ12+$C$1)))),"-") -> 18:00:00 | LC12: 08:00:00 | LE12: 09:00:00 | LF12: 12:00:00 | LG12: =IFERROR(IF(LE12="","-",IF($C12="Mi-Temps",(LE12+$C$2),IF($C12="All.",(LE12+$C$1)-$C$3,(LE12+$C$1)))),"-") -> 18:00:00 | LH12: 08:00:00 | LJ12: 09:00:00 | LK12: 12:00:00 | LL12: =IFERROR(IF(LJ12="","-",IF($C12="Mi-Temps",(LJ12+$C$2),IF($C12="All.",(LJ12+$C$1)-$C$3,(LJ12+$C$1)))),"-") -> 18:00:00 | LM12: 08:00:00 | LO12: 09:00:00 | LP12: 12:00:00 | LQ12: 18:00:00 | LR12: 08:00:00 | LS12: =IF(LR12="-","",1) -> 1 | LT12: 1.666666667 | LU12: 11:00:00 | LV12: 14:00:00 | LW12: =IFERROR(IF(LU12="","-",IF($C12="Mi-Temps",(LU12+$C$2),IF($C12="All.",(LU12+$C$1)-$C$3,(LU12+$C$1)))),"-") -> 20:00:00 | LX12: 08:00:00 | LZ12: 11:00:00 | MA12: 14:00:00 | MB12: =IFERROR(IF(LZ12="","-",IF($C12="Mi-Temps",(LZ12+$C$2),IF($C12="All.",(LZ12+$C$1)-$C$3,(LZ12+$C$1)))),"-") -> 20:00:00 | MC12: 08:00:00 | ME12: 11:00:00 | MF12: 14:00:00 | MG12: =IFERROR(IF(ME12="","-",IF($C12="Mi-Temps",(ME12+$C$2),IF($C12="All.",(ME12+$C$1)-$C$3,(ME12+$C$1)))),"-") -> 20:00:00 | MH12: 08:00:00 | MJ12: 11:00:00 | MK12: 14:00:00 | ML12: =IFERROR(IF(MJ12="","-",IF($C12="Mi-Temps",(MJ12+$C$2),IF($C12="All.",(MJ12+$C$1)-$C$3,(MJ12+$C$1)))),"-") -> 20:00:00 | MM12: 08:00:00 | MO12: 11:00:00 | MP12: 14:00:00 | MQ12: =IFERROR(IF(MO12="","-",IF($C12="Mi-Temps",(MO12+$C$2),IF($C12="All.",(MO12+$C$1)-$C$3,(MO12+$C$1)))),"-") -> 20:00:00 | MR12: 08:00:00 | MT12: OFF | MV12: - | MW12: - | MX12: =IF(MW12="-","",1) ->  | MY12: 1.666666667 | MZ12: 09:00:00 | NA12: 12:00:00 | NB12: =IFERROR(IF(MZ12="","-",IF($C12="Mi-Temps",(MZ12+$C$2),IF($C12="All.",(MZ12+$C$1)-$C$3,(MZ12+$C$1)))),"-") -> 18:00:00 | NC12: 08:00:00 | NE12: 09:00:00 | NF12: 12:00:00 | NG12: =IFERROR(IF(NE12="","-",IF($C12="Mi-Temps",(NE12+$C$2),IF($C12="All.",(NE12+$C$1)-$C$3,(NE12+$C$1)))),"-") -> 18:00:00 | NH12: 08:00:00 | NJ12: 09:00:00 | NK12: 12:00:00 | NL12: =IFERROR(IF(NJ12="","-",IF($C12="Mi-Temps",(NJ12+$C$2),IF($C12="All.",(NJ12+$C$1)-$C$3,(NJ12+$C$1)))),"-") -> 18:00:00 | NM12: 08:00:00 | NO12: 09:00:00 | NP12: 12:00:00 | NQ12: =IFERROR(IF(NO12="","-",IF($C12="Mi-Temps",(NO12+$C$2),IF($C12="All.",(NO12+$C$1)-$C$3,(NO12+$C$1)))),"-") -> 18:00:00 | NR12: 08:00:00 | NT12: 09:00:00 | NU12: 12:00:00 | NV12: =IFERROR(IF(NT12="","-",IF($C12="Mi-Temps",(NT12+$C$2),IF($C12="All.",(NT12+$C$1)-$C$3,(NT12+$C$1)))),"-") -> 18:00:00 | NW12: 08:00:00 | NY12: OFF | OA12: - | OB12: - | OC12: =IF(OB12="-","",1) ->  | OD12: 1.666666667 | OE12: 11:00:00 | OF12: 14:00:00 | OG12: 20:00:00 | OH12: 08:00:00 | OJ12: 11:00:00 | OK12: 14:00:00 | OL12: 20:00:00 | OM12: 08:00:00 | OO12: 11:00:00 | OP12: 14:00:00 | OQ12: =IFERROR(IF(OO12="","-",IF($C12="Mi-Temps",(OO12+$C$2),IF($C12="All.",(OO12+$C$1)-$C$3,(OO12+$C$1)))),"-") -> 20:00:00 | OR12: 08:00:00 | OT12: 11:00:00 | OU12: 14:00:00 | OV12: =IFERROR(IF(OT12="","-",IF($C12="Mi-Temps",(OT12+$C$2),IF($C12="All.",(OT12+$C$1)-$C$3,(OT12+$C$1)))),"-") -> 20:00:00 | OW12: 08:00:00 | OY12: 11:00:00 | OZ12: 14:00:00 | PA12: =IFERROR(IF(OY12="","-",IF($C12="Mi-Temps",(OY12+$C$2),IF($C12="All.",(OY12+$C$1)-$C$3,(OY12+$C$1)))),"-") -> 20:00:00 | PB12: 08:00:00 | PD12: OFF | PF12: - | PG12: - | PH12: =IF(PG12="-","",1) ->  | PI12: 1.666666667 | PJ12: FNT | PL12: - | PM12: 08:00:00 | PO12: 11:00:00 | PP12: 14:00:00 | PQ12: 20:00:00 | PR12: 08:00:00 | PT12: 11:00:00 | PU12: 14:00:00 | PV12: 20:00:00 | PW12: 08:00:00 | PY12: 11:00:00 | PZ12: 14:00:00 | QA12: 20:00:00 | QB12: 08:00:00 | QD12: 11:00:00 | QE12: 14:00:00 | QF12: 20:00:00 | QG12: 08:00:00 | QI12: OFF | QK12: - | QL12: - | QM12: =IF(QL12="-","",1) ->  | QN12: 1.666666667 | QO12: 13:00:00 | QP12: 15:00:00 | QQ12: 22:00:00 | QR12: 08:00:00 | QT12: 13:00:00 | QU12: 15:00:00 | QV12: 22:00:00 | QW12: 08:00:00 | QY12: 13:00:00 | QZ12: 15:00:00 | RA12: 22:00:00 | RB12: 08:00:00 | RD12: 13:00:00 | RE12: 15:00:00 | RF12: 22:00:00 | RG12: 08:00:00 | RI12: 13:00:00 | RJ12: 15:00:00 | RK12: 22:00:00 | RL12: 08:00:00 | RN12: OFF | RP12: - | RQ12: - | RR12: =IF(RQ12="-","",1) ->  | RS12: =IFERROR(IF(SUM(QR12,QW12,RB12,RG12,RL12,RQ12)=0,"",SUM(QR12,QW12,RB12,RG12,RL12,RQ12)),"-") -> 1.666666667 | RT12: 11:00:00 | RU12: 14:00:00 | RV12: 20:00:00 | RW12: 08:00:00 | RY12: 11:00:00 | RZ12: 14:00:00 | SA12: 20:00:00 | SB12: 08:00:00 | SD12: 11:00:00 | SE12: 14:00:00 | SF12: 20:00:00 | SG12: 08:00:00 | SI12: 11:00:00 | SJ12: 14:00:00 | SK12: 20:00:00 | SL12: 08:00:00 | SN12: 11:00:00 | SO12: 14:00:00 | SP12: 20:00:00 | SQ12: 08:00:00 | SS12: OFF | SU12: - | SV12: - | SW12: =IF(SV12="-","",1) ->  | SX12: =IFERROR(IF(SUM(RW12,SB12,SG12,SL12,SQ12,SV12)=0,"",SUM(RW12,SB12,SG12,SL12,SQ12,SV12)),"-") -> 1.666666667 | SY12: 13:00:00 | SZ12: 15:00:00 | TA12: 22:00:00 | TB12: 08:00:00 | TD12: 13:00:00 | TE12: 15:00:00 | TF12: 22:00:00 | TG12: 08:00:00 | TI12: 13:00:00 | TJ12: 15:00:00 | TK12: 22:00:00 | TL12: 08:00:00 | TN12: 13:00:00 | TO12: 15:00:00 | TP12: 22:00:00 | TQ12: 08:00:00 | TS12: 13:00:00 | TT12: 15:00:00 | TU12: 22:00:00 | TV12: 08:00:00 | TX12: OFF | TZ12: - | UA12: - | UB12: =IF(UA12="-","",1) ->  | UC12: =IFERROR(IF(SUM(TB12,TG12,TL12,TQ12,TV12,UA12)=0,"",SUM(TB12,TG12,TL12,TQ12,TV12,UA12)),"-") -> 1.666666667 | UD12: 11:00:00 | UE12: 13:00:00 | UF12: 20:00:00 | UG12: 08:00:00 | UI12: 11:00:00 | UJ12: 13:00:00 | UK12: 20:00:00 | UL12: 08:00:00 | UO12: 11:00:00 | UP12: 13:00:00 | UQ12: 20:00:00 | UR12: 08:00:00 | UT12: 11:00:00 | UU12: 13:00:00 | UV12: 20:00:00 | UW12: 08:00:00 | UY12: 11:00:00 | UZ12: 13:00:00 | VA12: 20:00:00 | VB12: 08:00:00 | VD12: OFF | VF12: - | VG12: - | VH12: =IF(VG12="-","",1) ->  | VI12: =IFERROR(IF(SUM(UG12,UL12,UR12,UW12,VB12,VG12)=0,"",SUM(UG12,UL12,UR12,UW12,VB12,VG12)),"-") -> 1.666666667 | VJ12: 09:00:00 | VK12: 12:00:00 | VL12: 18:00:00 | VM12: 08:00:00 | VO12: 09:00:00 | VP12: 12:00:00 | VQ12: 18:00:00 | VR12: 08:00:00 | VT12: 09:00:00 | VU12: 12:00:00 | VV12: 18:00:00 | VW12: 08:00:00 | VY12: 09:00:00 | VZ12: 12:00:00 | WA12: 18:00:00 | WB12: 08:00:00 | WD12: OFF | WF12: - | WG12: - | WI12: 13:00:00 | WJ12: 15:00:00 | WK12: 22:00:00 | WL12: 08:00:00 | WM12: =IF(WL12="-","",1) -> 1 | WN12: =IFERROR(IF(SUM(VM12,VR12,VW12,WB12,WG12,WL12)=0,"",SUM(VM12,VR12,VW12,WB12,WG12,WL12)),"-") -> 1.666666667 | WO12: 11:00:00 | WP12: 14:00:00 | WQ12: 20:00:00 | WR12: =IFERROR(IF(OR(WO12="CP",WO12="FNT"),$C$5,IF(WP12="",(WQ12-WO12),((WQ12-WO12)-$C$3))),"-") -> 08:00:00 | WT12: 11:00:00 | WU12: 14:00:00 | WV12: 20:00:00 | WW12: =IFERROR(IF(OR(WT12="CP",WT12="FNT"),$C$5,IF(WU12="",(WV12-WT12),((WV12-WT12)-$C$3))),"-") -> 08:00:00 | WY12: 11:00:00 | WZ12: 14:00:00 | XA12: 20:00:00 | XB12: =IFERROR(IF(OR(WY12="CP",WY12="FNT"),$C$5,IF(WZ12="",(XA12-WY12),((XA12-WY12)-$C$3))),"-") -> 08:00:00 | XD12: 11:00:00 | XE12: 14:00:00 | XF12: 20:00:00 | XG12: =IFERROR(IF(OR(XD12="CP",XD12="FNT"),$C$5,IF(XE12="",(XF12-XD12),((XF12-XD12)-$C$3))),"-") -> 08:00:00 | XI12: 11:00:00 | XJ12: 14:00:00 | XK12: 20:00:00 | XL12: =IFERROR(IF(OR(XI12="CP",XI12="FNT"),$C$5,IF(XJ12="",(XK12-XI12),((XK12-XI12)-$C$3))),"-") -> 08:00:00 | XN12: OFF | XP12: - | XQ12: =IFERROR(IF(OR(XN12="CP",XN12="FNT"),$C$5,IF(XO12="",(XP12-XN12),((XP12-XN12)-$C$3))),"-") -> - | XR12: =IF(XQ12="-","",1) ->  | XS12: =IFERROR(IF(SUM(WR12,WW12,XB12,XG12,XL12,XQ12)=0,"",SUM(WR12,WW12,XB12,XG12,XL12,XQ12)),"-") -> 1.666666667 | XT12: 13:00:00 | XU12: 15:00:00 | XV12: 22:00:00 | XW12: 08:00:00 | XY12: 13:00:00 | XZ12: 15:00:00 | YA12: 22:00:00 | YB12: 08:00:00 | YD12: 13:00:00 | YE12: 15:00:00 | YF12: 22:00:00 | YG12: 08:00:00 | YI12: 13:00:00 | YJ12: 15:00:00 | YK12: 22:00:00 | YL12: 08:00:00 | YN12: 09:00:00 | YO12: 12:00:00 | YP12: 18:00:00 | YQ12: 08:00:00 | YS12: OFF | YU12: - | YV12: - | YW12: =IF(YV12="-","",1) ->  | YX12: =IFERROR(IF(SUM(XW12,YB12,YG12,YL12,YQ12,YV12)=0,"",SUM(XW12,YB12,YG12,YL12,YQ12,YV12)),"-") -> 1.666666667 | YY12: 13:00:00 | YZ12: 15:00:00 | ZA12: 22:00:00 | ZB12: 08:00:00 | ZD12: 13:00:00 | ZE12: 15:00:00 | ZF12: 22:00:00 | ZG12: 08:00:00 | ZI12: CP | ZK12: - | ZL12: 08:00:00 | ZN12: CP | ZP12: - | ZQ12: 08:00:00 | ZS12: CP | ZU12: - | ZV12: 08:00:00 | ZX12: OFF | ZZ12: - | AAA12: -
A13: =IF(ISBLANK(JK13),"",COUNTA($JK$9:JK13)) -> 5 | B13: =BDD!B4 -> RAKOTOMAVO Andrianarija | C13: =BDD!J4 -> Jour | D13: =IFERROR(VLOOKUP($B13,BDD!$B:$M,12,0),"-") -> 0 | E13: 13:00:00 | F13: 15:00:00 | G13: 22:00:00 | H13: 08:00:00 | K13: 0 | L13: 0 | M13: 3 | N13: 5 | O13: 6 | P13: 6 | Q13: 0 | R13: 0 | S13: 7.333333333 | T13: 0 | U13: 0 | V13: 0 | W13: 8 | X13: 8 | Y13: 7 | Z13: 0 | AA13: 1 | AB13: 7.666666667 | AD13: 09:00:00 | AF13: 18:00:00 | AG13: 08:00:00 | AI13: 09:00:00 | AK13: 18:00:00 | AL13: 08:00:00 | AN13: 09:00:00 | AP13: 18:00:00 | AQ13: 08:00:00 | AS13: 09:00:00 | AU13: 18:00:00 | AV13: 08:00:00 | AX13: 09:00:00 | AZ13: 18:00:00 | BA13: 08:00:00 | BE13: - | BF13: - | BH13: 09:00:00 | BJ13: 18:00:00 | BK13: 08:00:00 | BM13: 09:00:00 | BO13: 18:00:00 | BP13: 08:00:00 | BR13: 09:00:00 | BT13: 18:00:00 | BU13: 08:00:00 | BW13: 09:00:00 | BY13: 18:00:00 | BZ13: 08:00:00 | CB13: 09:00:00 | CD13: 18:00:00 | CE13: 08:00:00 | CI13: - | CJ13: - | CL13: 09:00:00 | CN13: 18:00:00 | CO13: 08:00:00 | CQ13: 09:00:00 | CS13: 18:00:00 | CT13: 08:00:00 | CV13: 09:00:00 | CX13: 18:00:00 | CY13: 08:00:00 | DA13: 09:00:00 | DC13: 18:00:00 | DD13: 08:00:00 | DF13: 09:00:00 | DH13: 18:00:00 | DI13: 08:00:00 | DM13: - | DN13: - | DP13: 09:00:00 | DR13: 18:00:00 | DS13: 08:00:00 | DU13: 09:00:00 | DW13: 18:00:00 | DX13: 08:00:00 | DZ13: 09:00:00 | EB13: 18:00:00 | EC13: 08:00:00 | EE13: 09:00:00 | EG13: 18:00:00 | EH13: 08:00:00 | EJ13: 09:00:00 | EL13: 18:00:00 | EM13: 08:00:00 | EQ13: - | ER13: - | ET13: 1.666666667 | EU13: 09:00:00 | EW13: 18:00:00 | EX13: 08:00:00 | EZ13: 09:00:00 | FB13: 18:00:00 | FC13: 08:00:00 | FE13: 09:00:00 | FG13: 18:00:00 | FH13: 08:00:00 | FJ13: 09:00:00 | FL13: 18:00:00 | FM13: 08:00:00 | FO13: 09:00:00 | FQ13: 18:00:00 | FR13: 08:00:00 | FT13: OFF | FV13: - | FW13: - | FY13: 09:00:00 | GA13: 18:00:00 | GB13: 08:00:00 | GD13: 09:00:00 | GF13: 18:00:00 | GG13: 08:00:00 | GI13: 09:00:00 | GK13: 18:00:00 | GL13: 08:00:00 | GN13: 09:00:00 | GP13: 18:00:00 | GQ13: 08:00:00 | GS13: 09:00:00 | GU13: 18:00:00 | GV13: 08:00:00 | GX13: OFF | GZ13: - | HA13: - | HC13: 11:00:00 | HE13: 20:00:00 | HF13: 08:00:00 | HH13: 11:00:00 | HJ13: 20:00:00 | HK13: 08:00:00 | HM13: 11:00:00 | HO13: 20:00:00 | HP13: 08:00:00 | HR13: 11:00:00 | HT13: 20:00:00 | HU13: 08:00:00 | HW13: 11:00:00 | HY13: 20:00:00 | HZ13: 08:00:00 | IB13: OFF | ID13: - | IE13: - | IG13: 09:00:00 | II13: 18:00:00 | IJ13: 08:00:00 | IL13: 09:00:00 | IN13: 18:00:00 | IO13: 08:00:00 | IQ13: 09:00:00 | IS13: 18:00:00 | IT13: 08:00:00 | IV13: 09:00:00 | IX13: 18:00:00 | IY13: 08:00:00 | JA13: 09:00:00 | JC13: 18:00:00 | JD13: 08:00:00 | JF13: OFF | JH13: - | JI13: - | JK13: OFF | JM13: - | JN13: - | JP13: 09:00:00 | JQ13: 12:00:00 | JR13: 18:00:00 | JS13: 08:00:00 | JU13: 09:00:00 | JV13: 12:00:00 | JW13: 18:00:00 | JX13: 08:00:00 | JZ13: 09:00:00 | KA13: 12:00:00 | KB13: 18:00:00 | KC13: 08:00:00 | KE13: 09:00:00 | KF13: 12:00:00 | KG13: 18:00:00 | KH13: 08:00:00 | KJ13: 09:00:00 | KK13: 12:00:00 | KL13: 18:00:00 | KM13: 08:00:00 | KN13: 1 | KO13: 1.666666667 | KP13: 09:00:00 | KQ13: 13:00:00 | KR13: 18:00:00 | KS13: 08:00:00 | KU13: 09:00:00 | KV13: 13:00:00 | KW13: 18:00:00 | KX13: 08:00:00 | KZ13: 09:00:00 | LA13: 13:00:00 | LB13: 18:00:00 | LC13: 08:00:00 | LE13: 09:00:00 | LF13: 13:00:00 | LG13: 18:00:00 | LH13: 08:00:00 | LJ13: 09:00:00 | LK13: 13:00:00 | LL13: 18:00:00 | LM13: 08:00:00 | LO13: OFF | LQ13: - | LR13: - | LT13: 1.666666667 | LU13: 11:00:00 | LV13: 14:00:00 | LW13: 20:00:00 | LX13: 08:00:00 | LZ13: 11:00:00 | MA13: 14:00:00 | MB13: 20:00:00 | MC13: 08:00:00 | ME13: 11:00:00 | MF13: 14:00:00 | MG13: 20:00:00 | MH13: 08:00:00 | MJ13: 11:00:00 | MK13: 14:00:00 | ML13: 20:00:00 | MM13: 08:00:00 | MO13: 11:00:00 | MP13: 14:00:00 | MQ13: 20:00:00 | MR13: 08:00:00 | MT13: OFF | MV13: - | MW13: - | MY13: 1.666666667 | MZ13: 09:00:00 | NA13: 13:00:00 | NB13: 18:00:00 | NC13: 08:00:00 | NE13: 09:00:00 | NF13: 13:00:00 | NG13: 18:00:00 | NH13: 08:00:00 | NJ13: 09:00:00 | NK13: 13:00:00 | NL13: 18:00:00 | NM13: 08:00:00 | NO13: 09:00:00 | NP13: 13:00:00 | NQ13: 18:00:00 | NR13: 08:00:00 | NT13: 09:00:00 | NU13: 13:00:00 | NV13: 18:00:00 | NW13: 08:00:00 | NY13: OFF | OA13: - | OB13: - | OD13: 1.666666667 | OE13: 11:00:00 | OF13: 14:00:00 | OG13: 20:00:00 | OH13: 08:00:00 | OJ13: 11:00:00 | OK13: 14:00:00 | OL13: 20:00:00 | OM13: 08:00:00 | OO13: 11:00:00 | OP13: 14:00:00 | OQ13: 20:00:00 | OR13: 08:00:00 | OT13: 11:00:00 | OU13: 14:00:00 | OV13: 20:00:00 | OW13: 08:00:00 | OY13: 11:00:00 | OZ13: 14:00:00 | PA13: 20:00:00 | PB13: 08:00:00 | PD13: OFF | PF13: - | PG13: - | PI13: 1.666666667 | PJ13: FNT | PL13: - | PM13: 08:00:00 | PO13: 11:00:00 | PP13: 14:00:00 | PQ13: 20:00:00 | PR13: 08:00:00 | PT13: 11:00:00 | PU13: 14:00:00 | PV13: 20:00:00 | PW13: 08:00:00 | PY13: 11:00:00 | PZ13: 14:00:00 | QA13: 20:00:00 | QB13: 08:00:00 | QD13: 11:00:00 | QE13: 14:00:00 | QF13: 20:00:00 | QG13: 08:00:00 | QI13: OFF | QK13: - | QL13: - | QN13: 1.666666667 | QO13: 13:00:00 | QP13: 15:00:00 | QQ13: 22:00:00 | QR13: 08:00:00 | QT13: 13:00:00 | QU13: 15:00:00 | QV13: 22:00:00 | QW13: 08:00:00 | QY13: 13:00:00 | QZ13: 15:00:00 | RA13: 22:00:00 | RB13: 08:00:00 | RD13: 10:00:00 | RE13: 12:00:00 | RF13: 19:00:00 | RG13: 08:00:00 | RI13: 13:00:00 | RJ13: 15:00:00 | RK13: 22:00:00 | RL13: 08:00:00 | RN13: OFF | RP13: - | RQ13: - | RS13: 1.666666667 | RT13: 09:00:00 | RU13: 12:00:00 | RV13: 18:00:00 | RW13: 08:00:00 | RY13: 09:00:00 | RZ13: 12:00:00 | SA13: 18:00:00 | SB13: 08:00:00 | SD13: 09:00:00 | SE13: 12:00:00 | SF13: 18:00:00 | SG13: 08:00:00 | SI13: 09:00:00 | SJ13: 12:00:00 | SK13: 18:00:00 | SL13: 08:00:00 | SN13: 09:00:00 | SO13: 12:00:00 | SP13: 18:00:00 | SQ13: 08:00:00 | SS13: OFF | SU13: - | SV13: - | SX13: 1.666666667 | SY13: CP | TA13: - | TB13: 08:00:00 | TD13: CP | TF13: - | TG13: 08:00:00 | TI13: CP | TK13: - | TL13: 08:00:00 | TN13: 11:00:00 | TO13: 14:00:00 | TP13: 20:00:00 | TQ13: 08:00:00 | TS13: 11:00:00 | TT13: 14:00:00 | TU13: 20:00:00 | TV13: 08:00:00 | TX13: OFF | TZ13: - | UA13: - | UC13: 1.666666667 | UD13: 13:00:00 | UE13: 15:00:00 | UF13: 22:00:00 | UG13: 08:00:00 | UI13: 13:00:00 | UJ13: 15:00:00 | UK13: 22:00:00 | UL13: 08:00:00 | UO13: 13:00:00 | UP13: 15:00:00 | UQ13: 22:00:00 | UR13: 08:00:00 | UT13: 13:00:00 | UU13: 15:00:00 | UV13: 22:00:00 | UW13: 08:00:00 | UY13: 13:00:00 | UZ13: 15:00:00 | VA13: 22:00:00 | VB13: 08:00:00 | VD13: OFF | VF13: - | VG13: - | VI13: 1.666666667 | VJ13: OFF | VL13: - | VM13: - | VO13: 11:00:00 | VP13: 14:00:00 | VQ13: 20:00:00 | VR13: 08:00:00 | VT13: 11:00:00 | VU13: 14:00:00 | VV13: 20:00:00 | VW13: 08:00:00 | VY13: 11:00:00 | VZ13: 14:00:00 | WA13: 20:00:00 | WB13: 08:00:00 | WD13: 11:00:00 | WE13: 14:00:00 | WF13: 20:00:00 | WG13: 08:00:00 | WI13: 09:00:00 | WJ13: 12:00:00 | WK13: 18:00:00 | WL13: 08:00:00 | WM13: 1 | WN13: 1.666666667 | WO13: 09:00:00 | WP13: 12:00:00 | WQ13: 18:00:00 | WR13: 08:00:00 | WT13: 09:00:00 | WU13: 12:00:00 | WV13: 18:00:00 | WW13: 08:00:00 | WY13: 09:00:00 | WZ13: 12:00:00 | XA13: 18:00:00 | XB13: 08:00:00 | XD13: 09:00:00 | XE13: 12:00:00 | XF13: 18:00:00 | XG13: 08:00:00 | XI13: 09:00:00 | XJ13: 12:00:00 | XK13: 18:00:00 | XL13: 08:00:00 | XN13: OFF | XP13: - | XQ13: - | XS13: 1.666666667 | XT13: 13:00:00 | XU13: 15:00:00 | XV13: 22:00:00 | XW13: 08:00:00 | XY13: 13:00:00 | XZ13: 15:00:00 | YA13: 22:00:00 | YB13: 08:00:00 | YD13: 13:00:00 | YE13: 15:00:00 | YF13: 22:00:00 | YG13: 08:00:00 | YI13: 13:00:00 | YJ13: 15:00:00 | YK13: 22:00:00 | YL13: 08:00:00 | YN13: 09:00:00 | YO13: 12:00:00 | YP13: 18:00:00 | YQ13: 08:00:00 | YS13: OFF | YU13: - | YV13: - | YX13: 1.666666667 | YY13: 11:00:00 | YZ13: 14:00:00 | ZA13: 20:00:00 | ZB13: 08:00:00 | ZD13: 11:00:00 | ZE13: 14:00:00 | ZF13: 20:00:00 | ZG13: 08:00:00 | ZI13: 11:00:00 | ZJ13: 14:00:00 | ZK13: 20:00:00 | ZL13: 08:00:00 | ZN13: 11:00:00 | ZO13: 14:00:00 | ZP13: 20:00:00 | ZQ13: 08:00:00 | ZS13: 09:00:00 | ZT13: 13:00:00 | ZU13: 18:00:00 | ZV13: 08:00:00 | ZX13: OFF | ZZ13: - | AAA13: -
A14: =IF(ISBLANK(JK14),"",COUNTA($JK$9:JK14)) -> 6 | B14: =BDD!B5 -> RAKOTOASIMBOLA Toavina Jery | C14: =BDD!J5 -> Mi-temps | D14: =IFERROR(VLOOKUP($B14,BDD!$B:$M,12,0),"-") -> Mandroseza | E14: 18:00:00 | G14: 22:00:00 | H14: 04:00:00 | K14: 2 | L14: 0 | M14: 5 | N14: 0 | O14: 0 | P14: 0 | Q14: 0 | R14: 0 | S14: 3.333333333 | T14: 1 | U14: 0 | V14: 2 | W14: 0 | X14: 0 | Y14: 0 | Z14: 0 | AA14: 0 | AB14: 3.958333333 | AD14: 16:00:00 | AF14: 20:00:00 | AG14: 04:00:00 | AI14: 16:00:00 | AK14: 20:00:00 | AL14: 04:00:00 | AN14: 16:00:00 | AP14: 20:00:00 | AQ14: 04:00:00 | AS14: 16:00:00 | AU14: 20:00:00 | AV14: 04:00:00 | AX14: 16:00:00 | AZ14: 20:00:00 | BA14: 04:00:00 | BE14: - | BF14: - | BH14: 16:00:00 | BJ14: 20:00:00 | BK14: 04:00:00 | BM14: 16:00:00 | BO14: 20:00:00 | BP14: 04:00:00 | BR14: 16:00:00 | BT14: 20:00:00 | BU14: 04:00:00 | BW14: 16:00:00 | BY14: 20:00:00 | BZ14: 04:00:00 | CB14: 16:00:00 | CD14: 20:00:00 | CE14: 04:00:00 | CI14: - | CJ14: - | CL14: 16:00:00 | CN14: 20:00:00 | CO14: 04:00:00 | CQ14: 16:00:00 | CS14: 20:00:00 | CT14: 04:00:00 | CV14: 16:00:00 | CX14: 20:00:00 | CY14: 04:00:00 | DA14: 16:00:00 | DC14: 20:00:00 | DD14: 04:00:00 | DF14: 16:00:00 | DH14: 20:00:00 | DI14: 04:00:00 | DM14: - | DN14: - | DP14: 16:00:00 | DR14: 20:00:00 | DS14: 04:00:00 | DU14: 16:00:00 | DW14: 20:00:00 | DX14: 04:00:00 | DZ14: 16:00:00 | EB14: 20:00:00 | EC14: 04:00:00 | EE14: 16:00:00 | EG14: 20:00:00 | EH14: 04:00:00 | EJ14: 16:00:00 | EL14: 20:00:00 | EM14: 04:00:00 | EQ14: - | ER14: - | ET14: 0.8333333333 | EU14: 16:00:00 | EW14: 20:00:00 | EX14: 04:00:00 | EZ14: 16:00:00 | FB14: 20:00:00 | FC14: 04:00:00 | FE14: 16:00:00 | FG14: 20:00:00 | FH14: 04:00:00 | FJ14: 16:00:00 | FL14: 20:00:00 | FM14: 04:00:00 | FO14: 16:00:00 | FQ14: 20:00:00 | FR14: 04:00:00 | FT14: OFF | FV14: - | FW14: - | FY14: 16:00:00 | GA14: 20:00:00 | GB14: 04:00:00 | GD14: 16:00:00 | GF14: 20:00:00 | GG14: 04:00:00 | GI14: 16:00:00 | GK14: 20:00:00 | GL14: 04:00:00 | GN14: 16:00:00 | GP14: 20:00:00 | GQ14: 04:00:00 | GS14: 16:00:00 | GU14: 20:00:00 | GV14: 04:00:00 | GX14: OFF | GZ14: - | HA14: - | HC14: 16:00:00 | HE14: 20:00:00 | HF14: 04:00:00 | HH14: 16:00:00 | HJ14: 20:00:00 | HK14: 04:00:00 | HM14: 16:00:00 | HO14: 20:00:00 | HP14: 04:00:00 | HR14: 16:00:00 | HT14: 20:00:00 | HU14: 04:00:00 | HW14: 16:00:00 | HY14: 20:00:00 | HZ14: 04:00:00 | IB14: OFF | ID14: - | IE14: - | IG14: 16:00:00 | II14: 20:00:00 | IJ14: 04:00:00 | IL14: 16:00:00 | IN14: 20:00:00 | IO14: 04:00:00 | IQ14: 16:00:00 | IS14: 20:00:00 | IT14: 04:00:00 | IV14: 16:00:00 | IX14: 20:00:00 | IY14: 04:00:00 | JA14: 16:00:00 | JC14: 20:00:00 | JD14: 04:00:00 | JF14: OFF | JH14: - | JI14: - | JK14: 16:00:00 | JM14: 20:00:00 | JN14: 04:00:00 | JP14: 16:00:00 | JR14: 20:00:00 | JS14: 04:00:00 | JU14: 16:00:00 | JW14: 20:00:00 | JX14: 04:00:00 | JZ14: 16:00:00 | KB14: 20:00:00 | KC14: 04:00:00 | KE14: 16:00:00 | KG14: 20:00:00 | KH14: 04:00:00 | KJ14: OFF | KL14: - | KM14: - | KO14: 0.8333333333 | KP14: 16:00:00 | KR14: 20:00:00 | KS14: 04:00:00 | KU14: 16:00:00 | KW14: 20:00:00 | KX14: 04:00:00 | KZ14: 16:00:00 | LB14: 20:00:00 | LC14: 04:00:00 | LE14: 16:00:00 | LG14: 20:00:00 | LH14: 04:00:00 | LJ14: 16:00:00 | LL14: 20:00:00 | LM14: 04:00:00 | LO14: OFF | LQ14: - | LR14: - | LT14: 0.8333333333 | LU14: 16:00:00 | LW14: 20:00:00 | LX14: 04:00:00 | LZ14: CP | MB14: - | MC14: - | ME14: 16:00:00 | MG14: 20:00:00 | MH14: 04:00:00 | MJ14: 16:00:00 | ML14: 20:00:00 | MM14: 04:00:00 | MO14: 16:00:00 | MQ14: 20:00:00 | MR14: 04:00:00 | MT14: OFF | MV14: - | MW14: - | MY14: 0.6666666667 | MZ14: 16:00:00 | NB14: 20:00:00 | NC14: 04:00:00 | NE14: 16:00:00 | NG14: 20:00:00 | NH14: 04:00:00 | NJ14: 16:00:00 | NL14: 20:00:00 | NM14: 04:00:00 | NO14: 16:00:00 | NQ14: 20:00:00 | NR14: 04:00:00 | NT14: 16:00:00 | NV14: 20:00:00 | NW14: 04:00:00 | NY14: OFF | OA14: - | OB14: - | OD14: 0.8333333333 | OE14: 16:00:00 | OG14: 20:00:00 | OH14: 04:00:00 | OJ14: 16:00:00 | OL14: 20:00:00 | OM14: 04:00:00 | OO14: 16:00:00 | OQ14: 20:00:00 | OR14: 04:00:00 | OT14: 16:00:00 | OV14: 20:00:00 | OW14: 04:00:00 | OY14: 16:00:00 | PA14: 20:00:00 | PB14: 04:00:00 | PD14: OFF | PF14: - | PG14: - | PI14: 0.8333333333 | PJ14: FNT | PL14: - | PM14: 04:00:00 | PO14: 16:00:00 | PQ14: 20:00:00 | PR14: 04:00:00 | PT14: 16:00:00 | PV14: 20:00:00 | PW14: 04:00:00 | PY14: 16:00:00 | QA14: 20:00:00 | QB14: 04:00:00 | QD14: 16:00:00 | QF14: 20:00:00 | QG14: 04:00:00 | QI14: OFF | QK14: - | QL14: - | QN14: 0.8333333333 | QO14: CP | QQ14: - | QR14: 04:00:00 | QT14: CP | QV14: - | QW14: 04:00:00 | QY14: CP | RA14: - | RB14: 04:00:00 | RD14: CP | RF14: - | RG14: 04:00:00 | RI14: CP | RK14: - | RL14: 04:00:00 | RN14: OFF | RP14: - | RQ14: - | RS14: 0.8333333333 | RT14: 18:00:00 | RV14: 22:00:00 | RW14: 04:00:00 | RY14: 18:00:00 | SA14: 22:00:00 | SB14: 04:00:00 | SD14: 18:00:00 | SF14: 22:00:00 | SG14: 04:00:00 | SI14: 18:00:00 | SK14: 22:00:00 | SL14: 04:00:00 | SN14: 18:00:00 | SP14: 22:00:00 | SQ14: 04:00:00 | SS14: OFF | SU14: - | SV14: - | SX14: 0.8333333333 | SY14: 18:00:00 | TA14: 22:00:00 | TB14: 04:00:00 | TD14: 18:00:00 | TF14: 22:00:00 | TG14: 04:00:00 | TI14: 18:00:00 | TK14: 22:00:00 | TL14: 04:00:00 | TN14: 18:00:00 | TP14: 22:00:00 | TQ14: 04:00:00 | TS14: 18:00:00 | TU14: 22:00:00 | TV14: 04:00:00 | TX14: OFF | TZ14: - | UA14: - | UC14: 0.8333333333 | UD14: ABS | UF14: - | UG14: - | UI14: ABS | UK14: - | UL14: - | UO14: ABS | UQ14: - | UR14: - | UT14: 18:00:00 | UV14: 22:00:00 | UW14: 04:00:00 | UY14: 18:00:00 | VA14: 22:00:00 | VB14: 04:00:00 | VD14: OFF | VF14: - | VG14: - | VI14: 0.3333333333 | VJ14: 18:00:00 | VL14: 22:00:00 | VM14: 04:00:00 | VO14: 18:00:00 | VQ14: 22:00:00 | VR14: 04:00:00 | VT14: 18:00:00 | VV14: 22:00:00 | VW14: 04:00:00 | VY14: 18:00:00 | WA14: 22:00:00 | WB14: 04:00:00 | WD14: 18:00:00 | WF14: 22:00:00 | WG14: 04:00:00 | WI14: OFF | WK14: - | WL14: - | WN14: =IFERROR(IF(SUM(VM14,VR14,VW14,WB14,WG14,WL14)=0,"",SUM(VM14,VR14,VW14,WB14,WG14,WL14)),"-") -> 0.8333333333 | WO14: 18:00:00 | WQ14: 22:00:00 | WR14: 04:00:00 | WT14: 18:00:00 | WV14: 22:00:00 | WW14: 04:00:00 | WY14: 18:00:00 | XA14: 22:00:00 | XB14: 04:00:00 | XD14: 18:00:00 | XF14: 22:00:00 | XG14: 04:00:00 | XI14: 18:00:00 | XK14: 22:00:00 | XL14: 04:00:00 | XN14: OFF | XP14: - | XQ14: - | XS14: =IFERROR(IF(SUM(WR14,WW14,XB14,XG14,XL14,XQ14)=0,"",SUM(WR14,WW14,XB14,XG14,XL14,XQ14)),"-") -> 0.8333333333 | XT14: 18:00:00 | XV14: 22:00:00 | XW14: 04:00:00 | XY14: 18:00:00 | YA14: 22:00:00 | YB14: 04:00:00 | YD14: 18:00:00 | YF14: 22:00:00 | YG14: 04:00:00 | YI14: 18:00:00 | YK14: 22:00:00 | YL14: 04:00:00 | YN14: 18:00:00 | YO14: TT | YP14: 22:00:00 | YQ14: 04:00:00 | YS14: OFF | YU14: - | YV14: - | YX14: =IFERROR(IF(SUM(XW14,YB14,YG14,YL14,YQ14,YV14)=0,"",SUM(XW14,YB14,YG14,YL14,YQ14,YV14)),"-") -> 0.8333333333 | YY14: 18:00:00 | ZA14: 22:00:00 | ZB14: 04:00:00 | ZD14: 18:00:00 | ZF14: 22:00:00 | ZG14: 04:00:00 | ZI14: CP | ZK14: - | ZL14: 08:00:00 | ZN14: CP | ZP14: - | ZQ14: 08:00:00 | ZS14: 18:00:00 | ZT14: TT | ZU14: 22:00:00 | ZV14: 03:00:00 | ZX14: OFF | ZZ14: - | AAA14: -
A15: =IF(ISBLANK(JK15),"",COUNTA($JK$9:JK15)) -> 7 | B15: =BDD!B6 -> RAZAFIMAHATRATRA Mamy Herilanto | C15: =BDD!J6 -> Rotation | D15: =IFERROR(VLOOKUP($B15,BDD!$B:$M,12,0),"-") -> Andavamamba Anatihazo | E15: 09:00:00 | F15: 12:00:00 | G15: 18:00:00 | H15: 08:00:00 | K15: 0 | L15: 0 | M15: 0 | N15: 5 | O15: 15 | P15: 0 | Q15: 0 | R15: 0 | S15: 7.333333333 | T15: 0 | U15: 0 | V15: 0 | W15: 6 | X15: 12 | Y15: 5 | Z15: 0 | AA15: 0 | AB15: 7.666666667 | AD15: 16:00:00 | AF15: 20:00:00 | AG15: 04:00:00 | AI15: 16:00:00 | AK15: 20:00:00 | AL15: 04:00:00 | AN15: 16:00:00 | AP15: 20:00:00 | AQ15: 04:00:00 | AS15: 16:00:00 | AU15: 20:00:00 | AV15: 04:00:00 | AX15: 16:00:00 | AZ15: 20:00:00 | BA15: 04:00:00 | BE15: - | BF15: - | BH15: 16:00:00 | BJ15: 20:00:00 | BK15: 04:00:00 | BM15: 16:00:00 | BO15: 20:00:00 | BP15: 04:00:00 | BR15: 16:00:00 | BT15: 20:00:00 | BU15: 04:00:00 | BW15: 16:00:00 | BY15: 20:00:00 | BZ15: 04:00:00 | CB15: 16:00:00 | CD15: 20:00:00 | CE15: 04:00:00 | CI15: - | CJ15: - | CL15: 16:00:00 | CN15: 20:00:00 | CO15: 04:00:00 | CQ15: 16:00:00 | CS15: 20:00:00 | CT15: 04:00:00 | CV15: 16:00:00 | CX15: 20:00:00 | CY15: 04:00:00 | DA15: 16:00:00 | DC15: 20:00:00 | DD15: 04:00:00 | DF15: 16:00:00 | DH15: 20:00:00 | DI15: 04:00:00 | DM15: - | DN15: - | DP15: 16:00:00 | DR15: 20:00:00 | DS15: 04:00:00 | DU15: 16:00:00 | DW15: 20:00:00 | DX15: 04:00:00 | DZ15: 16:00:00 | EB15: 20:00:00 | EC15: 04:00:00 | EE15: 16:00:00 | EG15: 20:00:00 | EH15: 04:00:00 | EJ15: 16:00:00 | EL15: 20:00:00 | EM15: 04:00:00 | EQ15: - | ER15: - | ET15: 0.8333333333 | EU15: 16:00:00 | EW15: 20:00:00 | EX15: 04:00:00 | EZ15: 16:00:00 | FB15: 20:00:00 | FC15: 04:00:00 | FE15: 10:00:00 | FG15: 19:00:00 | FH15: 08:00:00 | FJ15: 10:00:00 | FL15: 19:00:00 | FM15: 08:00:00 | FO15: 10:00:00 | FQ15: 19:00:00 | FR15: 08:00:00 | FT15: OFF | FV15: - | FW15: - | FY15: 11:00:00 | GA15: 20:00:00 | GB15: 08:00:00 | GD15: 11:00:00 | GF15: 20:00:00 | GG15: 08:00:00 | GI15: 11:00:00 | GK15: 20:00:00 | GL15: 08:00:00 | GN15: 11:00:00 | GP15: 20:00:00 | GQ15: 08:00:00 | GS15: 11:00:00 | GU15: 20:00:00 | GV15: 08:00:00 | GX15: OFF | GZ15: - | HA15: - | HC15: 11:00:00 | HE15: 20:00:00 | HF15: 08:00:00 | HH15: 11:00:00 | HJ15: 20:00:00 | HK15: 08:00:00 | HM15: 11:00:00 | HO15: 20:00:00 | HP15: 08:00:00 | HR15: 11:00:00 | HT15: 20:00:00 | HU15: 08:00:00 | HW15: 11:00:00 | HY15: 20:00:00 | HZ15: 08:00:00 | IB15: OFF | ID15: - | IE15: - | IG15: 11:00:00 | II15: 20:00:00 | IJ15: 08:00:00 | IL15: 11:00:00 | IN15: 20:00:00 | IO15: 08:00:00 | IQ15: 11:00:00 | IS15: 20:00:00 | IT15: 08:00:00 | IV15: 11:00:00 | IX15: 20:00:00 | IY15: 08:00:00 | JA15: 11:00:00 | JC15: 20:00:00 | JD15: 08:00:00 | JF15: OFF | JH15: - | JI15: - | JK15: 09:00:00 | JL15: 12:00:00 | JM15: 18:00:00 | JN15: 08:00:00 | JP15: 09:00:00 | JQ15: 12:00:00 | JR15: 18:00:00 | JS15: 08:00:00 | JU15: 09:00:00 | JV15: 12:00:00 | JW15: 18:00:00 | JX15: 08:00:00 | JZ15: 09:00:00 | KA15: 12:00:00 | KB15: 18:00:00 | KC15: 08:00:00 | KE15: 09:00:00 | KF15: 12:00:00 | KG15: 18:00:00 | KH15: 08:00:00 | KJ15: OFF | KL15: - | KM15: - | KO15: 1.666666667 | KP15: 11:00:00 | KQ15: 14:00:00 | KR15: 20:00:00 | KS15: 08:00:00 | KU15: 11:00:00 | KV15: 14:00:00 | KW15: 20:00:00 | KX15: 08:00:00 | KZ15: 11:00:00 | LA15: 14:00:00 | LB15: 20:00:00 | LC15: 08:00:00 | LE15: 11:00:00 | LF15: 14:00:00 | LG15: 20:00:00 | LH15: 08:00:00 | LJ15: 11:00:00 | LK15: 14:00:00 | LL15: 20:00:00 | LM15: 08:00:00 | LO15: OFF | LQ15: - | LR15: - | LT15: 1.666666667 | LU15: 09:00:00 | LV15: 12:00:00 | LW15: 18:00:00 | LX15: 08:00:00 | LZ15: 09:00:00 | MA15: 12:00:00 | MB15: 18:00:00 | MC15: 08:00:00 | ME15: 09:00:00 | MF15: 12:00:00 | MG15: 18:00:00 | MH15: 08:00:00 | MJ15: OFF | ML15: - | MM15: - | MO15: 09:00:00 | MP15: 12:00:00 | MQ15: 18:00:00 | MR15: 08:00:00 | MT15: 11:00:00 | MU15: 14:00:00 | MV15: 20:00:00 | MW15: 08:00:00 | MX15: 1 | MY15: 1.666666667 | MZ15: 11:00:00 | NA15: 14:00:00 | NB15: 20:00:00 | NC15: 08:00:00 | NE15: 11:00:00 | NF15: 14:00:00 | NG15: 20:00:00 | NH15: 08:00:00 | NJ15: 11:00:00 | NK15: 14:00:00 | NL15: 20:00:00 | NM15: 08:00:00 | NO15: 11:00:00 | NP15: 14:00:00 | NQ15: 20:00:00 | NR15: 08:00:00 | NT15: 11:00:00 | NU15: 14:00:00 | NV15: 20:00:00 | NW15: 08:00:00 | NY15: OFF | OA15: - | OB15: - | OD15: 1.666666667 | OE15: 09:00:00 | OF15: 13:00:00 | OG15: 18:00:00 | OH15: 08:00:00 | OJ15: 09:00:00 | OK15: 13:00:00 | OL15: 18:00:00 | OM15: 08:00:00 | OO15: 09:00:00 | OP15: 13:00:00 | OQ15: 18:00:00 | OR15: 08:00:00 | OT15: 09:00:00 | OU15: 13:00:00 | OV15: 18:00:00 | OW15: 08:00:00 | OY15: 09:00:00 | OZ15: 13:00:00 | PA15: 18:00:00 | PB15: 08:00:00 | PD15: OFF | PF15: - | PG15: - | PI15: 1.666666667 | PJ15: FNT | PL15: - | PM15: 08:00:00 | PO15: 11:00:00 | PP15: 14:00:00 | PQ15: 20:00:00 | PR15: 08:00:00 | PT15: 11:00:00 | PU15: 14:00:00 | PV15: 20:00:00 | PW15: 08:00:00 | PY15: 11:00:00 | PZ15: 14:00:00 | QA15: 20:00:00 | QB15: 08:00:00 | QD15: 11:00:00 | QE15: 14:00:00 | QF15: 20:00:00 | QG15: 08:00:00 | QI15: OFF | QK15: - | QL15: - | QN15: 1.666666667 | QO15: 11:00:00 | QP15: 14:00:00 | QQ15: 20:00:00 | QR15: 08:00:00 | QT15: 11:00:00 | QU15: 14:00:00 | QV15: 20:00:00 | QW15: 08:00:00 | QY15: 11:00:00 | QZ15: 14:00:00 | RA15: 20:00:00 | RB15: 08:00:00 | RD15: FNT | RF15: - | RG15: 08:00:00 | RI15: 11:00:00 | RJ15: 14:00:00 | RK15: 20:00:00 | RL15: 08:00:00 | RN15: OFF | RP15: - | RQ15: - | RS15: 1.666666667 | RT15: 11:00:00 | RU15: 14:00:00 | RV15: 20:00:00 | RW15: 08:00:00 | RY15: 11:00:00 | RZ15: 14:00:00 | SA15: 20:00:00 | SB15: 08:00:00 | SD15: 11:00:00 | SE15: 14:00:00 | SF15: 20:00:00 | SG15: 08:00:00 | SI15: 11:00:00 | SJ15: 14:00:00 | SK15: 20:00:00 | SL15: 08:00:00 | SN15: 11:00:00 | SO15: 14:00:00 | SP15: 20:00:00 | SQ15: 08:00:00 | SS15: OFF | SU15: - | SV15: - | SX15: 1.666666667 | SY15: 09:00:00 | SZ15: 12:00:00 | TA15: 18:00:00 | TB15: 08:00:00 | TD15: 09:00:00 | TE15: 12:00:00 | TF15: 18:00:00 | TG15: 08:00:00 | TI15: 09:00:00 | TJ15: 12:00:00 | TK15: 18:00:00 | TL15: 08:00:00 | TN15: 09:00:00 | TO15: 12:00:00 | TP15: 18:00:00 | TQ15: 08:00:00 | TS15: 09:00:00 | TT15: 12:00:00 | TU15: 18:00:00 | TV15: 08:00:00 | TX15: OFF | TZ15: - | UA15: - | UC15: 1.666666667 | UD15: 11:00:00 | UE15: 14:00:00 | UF15: 20:00:00 | UG15: 08:00:00 | UI15: 11:00:00 | UJ15: 14:00:00 | UK15: 20:00:00 | UL15: 08:00:00 | UO15: 11:00:00 | UP15: 14:00:00 | UQ15: 20:00:00 | UR15: 08:00:00 | UT15: 11:00:00 | UU15: 14:00:00 | UV15: 20:00:00 | UW15: 08:00:00 | UY15: 11:00:00 | UZ15: 14:00:00 | VA15: 20:00:00 | VB15: 08:00:00 | VD15: OFF | VF15: - | VG15: - | VI15: 1.666666667 | VJ15: 11:00:00 | VK15: 14:00:00 | VL15: 20:00:00 | VM15: 08:00:00 | VO15: 11:00:00 | VP15: 14:00:00 | VQ15: 20:00:00 | VR15: 08:00:00 | VT15: 11:00:00 | VU15: 14:00:00 | VV15: 20:00:00 | VW15: 08:00:00 | VY15: 11:00:00 | VZ15: 14:00:00 | WA15: 20:00:00 | WB15: 08:00:00 | WD15: 11:00:00 | WE15: 14:00:00 | WF15: 20:00:00 | WG15: 08:00:00 | WI15: OFF | WK15: - | WL15: - | WN15: 1.666666667 | WO15: 13:00:00 | WP15: 15:00:00 | WQ15: 22:00:00 | WR15: 08:00:00 | WT15: 13:00:00 | WU15: 15:00:00 | WV15: 22:00:00 | WW15: 08:00:00 | WY15: 13:00:00 | WZ15: 15:00:00 | XA15: 22:00:00 | XB15: 08:00:00 | XD15: 13:00:00 | XE15: 15:00:00 | XF15: 22:00:00 | XG15: 08:00:00 | XI15: 13:00:00 | XJ15: 15:00:00 | XK15: 22:00:00 | XL15: 08:00:00 | XN15: OFF | XP15: - | XQ15: - | XS15: 1.666666667 | XT15: 09:00:00 | XU15: 12:00:00 | XV15: 18:00:00 | XW15: 08:00:00 | XY15: 09:00:00 | XZ15: 12:00:00 | YA15: 18:00:00 | YB15: 08:00:00 | YD15: 09:00:00 | YE15: 12:00:00 | YF15: 18:00:00 | YG15: 08:00:00 | YI15: 09:00:00 | YJ15: 12:00:00 | YK15: 18:00:00 | YL15: 08:00:00 | YN15: 09:00:00 | YO15: 12:00:00 | YP15: 18:00:00 | YQ15: 08:00:00 | YS15: OFF | YU15: - | YV15: - | YX15: 1.666666667 | YY15: 11:00:00 | YZ15: 13:00:00 | ZA15: 20:00:00 | ZB15: 08:00:00 | ZD15: 11:00:00 | ZE15: 13:00:00 | ZF15: 20:00:00 | ZG15: 08:00:00 | ZI15: 11:00:00 | ZJ15: 13:00:00 | ZK15: 20:00:00 | ZL15: 08:00:00 | ZN15: 11:00:00 | ZO15: 13:00:00 | ZP15: 20:00:00 | ZQ15: 08:00:00 | ZS15: 09:00:00 | ZT15: 13:00:00 | ZU15: 18:00:00 | ZV15: 08:00:00 | ZX15: OFF | ZZ15: - | AAA15: -
A16: =IF(ISBLANK(JK16),"",COUNTA($JK$9:JK16)) -> 8 | B16: =BDD!B7 -> FALINIRINA Antsa Fitahiana | C16: =BDD!J7 -> Jour | D16: =IFERROR(VLOOKUP($B16,BDD!$B:$M,12,0),"-") -> Amboditsiry | E16: CP | G16: 00:00:00 | H16: 08:00:00 | K16: 0 | L16: 0 | M16: 0 | N16: 1 | O16: 11 | P16: 8 | Q16: 0 | R16: 1 | S16: 7.333333333 | T16: 0 | U16: 0 | V16: 2 | W16: 1 | X16: 13 | Y16: 7 | Z16: 0 | AA16: 1 | AB16: 7.666666667 | AD16: 09:00:00 | AF16: 18:00:00 | AG16: 08:00:00 | AI16: 09:00:00 | AK16: 18:00:00 | AL16: 08:00:00 | AN16: 09:00:00 | AP16: 18:00:00 | AQ16: 08:00:00 | AS16: 09:00:00 | AU16: 18:00:00 | AV16: 08:00:00 | AX16: 09:00:00 | AZ16: 18:00:00 | BA16: 08:00:00 | BE16: - | BF16: - | BH16: 09:00:00 | BJ16: 18:00:00 | BK16: 08:00:00 | BM16: 09:00:00 | BO16: 18:00:00 | BP16: 08:00:00 | BR16: 09:00:00 | BT16: 18:00:00 | BU16: 08:00:00 | BW16: 09:00:00 | BY16: 18:00:00 | BZ16: 08:00:00 | CB16: 09:00:00 | CD16: 18:00:00 | CE16: 08:00:00 | CI16: - | CJ16: - | CL16: 09:00:00 | CN16: 18:00:00 | CO16: 08:00:00 | CQ16: 09:00:00 | CS16: 18:00:00 | CT16: 08:00:00 | CV16: 09:00:00 | CX16: 18:00:00 | CY16: 08:00:00 | DA16: 09:00:00 | DC16: 18:00:00 | DD16: 08:00:00 | DF16: 09:00:00 | DH16: 18:00:00 | DI16: 08:00:00 | DM16: - | DN16: - | DP16: 09:00:00 | DR16: 18:00:00 | DS16: 08:00:00 | DU16: 09:00:00 | DW16: 18:00:00 | DX16: 08:00:00 | DZ16: 09:00:00 | EB16: 18:00:00 | EC16: 08:00:00 | EE16: 09:00:00 | EG16: 18:00:00 | EH16: 08:00:00 | EJ16: 09:00:00 | EL16: 18:00:00 | EM16: 08:00:00 | EQ16: - | ER16: - | ET16: 1.666666667 | EU16: 09:00:00 | EW16: 18:00:00 | EX16: 08:00:00 | EZ16: 09:00:00 | FB16: 18:00:00 | FC16: 08:00:00 | FE16: 09:00:00 | FG16: 18:00:00 | FH16: 08:00:00 | FJ16: OFF | FL16: - | FM16: - | FO16: 09:00:00 | FQ16: 18:00:00 | FR16: 08:00:00 | FT16: 09:00:00 | FV16: 18:00:00 | FW16: 08:00:00 | FX16: 1 | FY16: 09:00:00 | GA16: 18:00:00 | GB16: 08:00:00 | GD16: 09:00:00 | GF16: 18:00:00 | GG16: 08:00:00 | GI16: 09:00:00 | GK16: 18:00:00 | GL16: 08:00:00 | GN16: 09:00:00 | GP16: 18:00:00 | GQ16: 08:00:00 | GS16: 09:00:00 | GU16: 18:00:00 | GV16: 08:00:00 | GX16: OFF | GZ16: - | HA16: - | HC16: 09:00:00 | HE16: 18:00:00 | HF16: 08:00:00 | HH16: 09:00:00 | HJ16: 18:00:00 | HK16: 08:00:00 | HM16: 09:00:00 | HO16: 18:00:00 | HP16: 08:00:00 | HR16: 09:00:00 | HT16: 18:00:00 | HU16: 08:00:00 | HW16: 09:00:00 | HY16: 18:00:00 | HZ16: 08:00:00 | IB16: OFF | ID16: - | IE16: - | IG16: 11:00:00 | II16: 20:00:00 | IJ16: 08:00:00 | IL16: 11:00:00 | IN16: 20:00:00 | IO16: 08:00:00 | IQ16: 11:00:00 | IS16: 20:00:00 | IT16: 08:00:00 | IV16: 11:00:00 | IX16: 20:00:00 | IY16: 08:00:00 | JA16: 11:00:00 | JC16: 20:00:00 | JD16: 08:00:00 | JF16: OFF | JH16: - | JI16: - | JK16: 09:00:00 | JL16: 12:00:00 | JM16: 18:00:00 | JN16: 08:00:00 | JP16: 09:00:00 | JQ16: 12:00:00 | JR16: 18:00:00 | JS16: 08:00:00 | JU16: CP | JW16: - | JX16: - | JZ16: CP | KB16: - | KC16: - | KE16: 09:00:00 | KF16: 12:00:00 | KG16: 18:00:00 | KH16: 08:00:00 | KJ16: OFF | KL16: - | KM16: - | KO16: 1 | KP16: 11:00:00 | KQ16: 13:00:00 | KR16: 20:00:00 | KS16: 08:00:00 | KU16: 11:00:00 | KV16: 13:00:00 | KW16: 20:00:00 | KX16: 08:00:00 | KZ16: 11:00:00 | LA16: 13:00:00 | LB16: 20:00:00 | LC16: 08:00:00 | LE16: 11:00:00 | LF16: 13:00:00 | LG16: 20:00:00 | LH16: 08:00:00 | LJ16: 11:00:00 | LK16: 13:00:00 | LL16: 20:00:00 | LM16: 08:00:00 | LO16: OFF | LQ16: - | LR16: - | LT16: 1.666666667 | LU16: 09:00:00 | LV16: 12:00:00 | LW16: 18:00:00 | LX16: 08:00:00 | LZ16: 09:00:00 | MA16: 12:00:00 | MB16: 18:00:00 | MC16: 08:00:00 | ME16: 09:00:00 | MF16: 12:00:00 | MG16: 18:00:00 | MH16: 08:00:00 | MJ16: 09:00:00 | MK16: 12:00:00 | ML16: 18:00:00 | MM16: 08:00:00 | MO16: 09:00:00 | MP16: 12:00:00 | MQ16: 18:00:00 | MR16: 08:00:00 | MT16: OFF | MV16: - | MW16: - | MY16: 1.666666667 | MZ16: 11:00:00 | NA16: 14:00:00 | NB16: 20:00:00 | NC16: 08:00:00 | NE16: 11:00:00 | NF16: 14:00:00 | NG16: 20:00:00 | NH16: 08:00:00 | NJ16: 11:00:00 | NK16: 14:00:00 | NL16: 20:00:00 | NM16: 08:00:00 | NO16: 11:00:00 | NP16: 14:00:00 | NQ16: 20:00:00 | NR16: 08:00:00 | NT16: 11:00:00 | NU16: 14:00:00 | NV16: 20:00:00 | NW16: 08:00:00 | NY16: OFF | OA16: - | OB16: - | OD16: 1.666666667 | OE16: 09:00:00 | OF16: 12:00:00 | OG16: 18:00:00 | OH16: 08:00:00 | OJ16: 09:00:00 | OK16: 12:00:00 | OL16: 18:00:00 | OM16: 08:00:00 | OO16: 09:00:00 | OP16: 12:00:00 | OQ16: 18:00:00 | OR16: 08:00:00 | OT16: 09:00:00 | OU16: 12:00:00 | OV16: 18:00:00 | OW16: 08:00:00 | OY16: 09:00:00 | OZ16: 12:00:00 | PA16: 18:00:00 | PB16: 08:00:00 | PD16: OFF | PF16: - | PG16: - | PI16: 1.666666667 | PJ16: FNT | PL16: - | PM16: 08:00:00 | PO16: 13:00:00 | PP16: 15:00:00 | PQ16: 22:00:00 | PR16: 08:00:00 | PT16: 13:00:00 | PU16: 15:00:00 | PV16: 22:00:00 | PW16: 08:00:00 | PY16: 11:00:00 | PZ16: 14:00:00 | QA16: 20:00:00 | QB16: 08:00:00 | QD16: 13:00:00 | QE16: 15:00:00 | QF16: 22:00:00 | QG16: 08:00:00 | QI16: OFF | QK16: - | QL16: - | QN16: 1.666666667 | QO16: 11:00:00 | QP16: 14:00:00 | QQ16: 20:00:00 | QR16: 08:00:00 | QT16: 11:00:00 | QU16: 14:00:00 | QV16: 20:00:00 | QW16: 08:00:00 | QY16: 11:00:00 | QZ16: 14:00:00 | RA16: 20:00:00 | RB16: 08:00:00 | RD16: FNT | RF16: - | RG16: 08:00:00 | RI16: 11:00:00 | RJ16: 14:00:00 | RK16: 20:00:00 | RL16: 08:00:00 | RN16: OFF | RP16: - | RQ16: - | RS16: 1.666666667 | RT16: 13:00:00 | RU16: 15:00:00 | RV16: 22:00:00 | RW16: 08:00:00 | RY16: 13:00:00 | RZ16: 15:00:00 | SA16: 22:00:00 | SB16: 08:00:00 | SD16: 13:00:00 | SE16: 15:00:00 | SF16: 22:00:00 | SG16: 08:00:00 | SI16: 13:00:00 | SJ16: 15:00:00 | SK16: 22:00:00 | SL16: 08:00:00 | SN16: 13:00:00 | SO16: 15:00:00 | SP16: 22:00:00 | SQ16: 08:00:00 | SS16: OFF | SU16: - | SV16: - | SX16: 1.666666667 | SY16: 11:00:00 | SZ16: 14:00:00 | TA16: 20:00:00 | TB16: 08:00:00 | TD16: 11:00:00 | TE16: 14:00:00 | TF16: 20:00:00 | TG16: 08:00:00 | TI16: 11:00:00 | TJ16: 14:00:00 | TK16: 20:00:00 | TL16: 08:00:00 | TN16: 11:00:00 | TO16: 14:00:00 | TP16: 20:00:00 | TQ16: 08:00:00 | TS16: OFF | TU16: - | TV16: - | TX16: 09:00:00 | TY16: 13:00:00 | TZ16: 18:00:00 | UA16: 08:00:00 | UB16: 1 | UC16: 1.666666667 | UD16: 11:00:00 | UE16: 14:00:00 | UF16: 20:00:00 | UG16: 08:00:00 | UI16: 11:00:00 | UJ16: 14:00:00 | UK16: 20:00:00 | UL16: 08:00:00 | UO16: 11:00:00 | UP16: 14:00:00 | UQ16: 20:00:00 | UR16: 08:00:00 | UT16: 11:00:00 | UU16: 14:00:00 | UV16: 20:00:00 | UW16: 08:00:00 | UY16: 11:00:00 | UZ16: 14:00:00 | VA16: 20:00:00 | VB16: 08:00:00 | VD16: OFF | VF16: - | VG16: - | VI16: 1.666666667 | VJ16: 13:00:00 | VK16: 15:00:00 | VL16: 22:00:00 | VM16: 08:00:00 | VO16: 13:00:00 | VP16: 15:00:00 | VQ16: 22:00:00 | VR16: 08:00:00 | VT16: 13:00:00 | VU16: 15:00:00 | VV16: 22:00:00 | VW16: 08:00:00 | VY16: 13:00:00 | VZ16: 15:00:00 | WA16: 22:00:00 | WB16: 08:00:00 | WD16: 13:00:00 | WE16: 15:00:00 | WF16: 22:00:00 | WG16: 08:00:00 | WI16: OFF | WK16: - | WL16: - | WN16: 1.666666667 | WO16: 11:00:00 | WP16: 14:00:00 | WQ16: 20:00:00 | WR16: 08:00:00 | WT16: 11:00:00 | WU16: 14:00:00 | WV16: 20:00:00 | WW16: 08:00:00 | WY16: 11:00:00 | WZ16: 14:00:00 | XA16: 20:00:00 | XB16: 08:00:00 | XD16: OFF | XF16: - | XG16: - | XI16: 11:00:00 | XJ16: 14:00:00 | XK16: 20:00:00 | XL16: 08:00:00 | XN16: 13:00:00 | XO16: 15:00:00 | XP16: 22:00:00 | XQ16: 08:00:00 | XR16: 1 | XS16: 1.666666667 | XT16: CP | XV16: - | XW16: 08:00:00 | XY16: CP | YA16: - | YB16: 08:00:00 | YD16: 11:00:00 | YE16: 14:00:00 | YF16: 20:00:00 | YG16: 08:00:00 | YI16: 11:00:00 | YJ16: 14:00:00 | YK16: 20:00:00 | YL16: 08:00:00 | YN16: 13:00:00 | YO16: TT | YP16: 22:00:00 | YQ16: 08:00:00 | YS16: OFF | YU16: - | YV16: - | YX16: 1.666666667 | YY16: 11:00:00 | YZ16: 13:00:00 | ZA16: 20:00:00 | ZB16: 08:00:00 | ZD16: 11:00:00 | ZE16: 13:00:00 | ZF16: 20:00:00 | ZG16: 08:00:00 | ZI16: 11:00:00 | ZJ16: 13:00:00 | ZK16: 20:00:00 | ZL16: 08:00:00 | ZN16: 11:00:00 | ZO16: 13:00:00 | ZP16: 20:00:00 | ZQ16: 08:00:00 | ZS16: 09:00:00 | ZT16: 13:00:00 | ZU16: 18:00:00 | ZV16: 08:00:00 | ZX16: OFF | ZZ16: - | AAA16: -
A17: =IF(ISBLANK(JK17),"",COUNTA($JK$9:JK17)) -> 9 | B17: =BDD!B8 -> RAZAFIMANDIMBY Faraniaina Sandri Fabio Linda | C17: =BDD!J8 -> ALL. | D17: =IFERROR(VLOOKUP($B17,BDD!$B:$M,12,0),"-") -> Ambohidroa | E17: 09:00:00 | F17: 12:00:00 | G17: 17:00:00 | H17: 07:00:00 | K17: 0 | L17: 0 | M17: 0 | N17: 13 | O17: 0 | P17: 0 | Q17: 0 | R17: 1 | S17: 6.458333333 | T17: 0 | U17: 0 | V17: 0 | W17: 12 | X17: 0 | Y17: 0 | Z17: 0 | AA17: 0 | AB17: 6.708333333 | AD17: 09:00:00 | AF17: 17:00:00 | AG17: 07:00:00 | AI17: 09:00:00 | AK17: 17:00:00 | AL17: 07:00:00 | AN17: 09:00:00 | AP17: 17:00:00 | AQ17: 07:00:00 | AS17: 09:00:00 | AU17: 17:00:00 | AV17: 07:00:00 | AX17: 09:00:00 | AZ17: 17:00:00 | BA17: 07:00:00 | BE17: - | BF17: - | BH17: 09:00:00 | BJ17: 17:00:00 | BK17: 07:00:00 | BM17: 09:00:00 | BO17: 17:00:00 | BP17: 07:00:00 | BR17: 09:00:00 | BT17: 17:00:00 | BU17: 07:00:00 | BW17: 09:00:00 | BY17: 17:00:00 | BZ17: 07:00:00 | CB17: 09:00:00 | CD17: 17:00:00 | CE17: 07:00:00 | CI17: - | CJ17: - | CL17: 09:00:00 | CN17: 17:00:00 | CO17: 07:00:00 | CQ17: 09:00:00 | CS17: 17:00:00 | CT17: 07:00:00 | CV17: 09:00:00 | CX17: 17:00:00 | CY17: 07:00:00 | DA17: 09:00:00 | DC17: 17:00:00 | DD17: 07:00:00 | DF17: 09:00:00 | DH17: 17:00:00 | DI17: 07:00:00 | DM17: - | DN17: - | DP17: 09:00:00 | DR17: 17:00:00 | DS17: 07:00:00 | DU17: 09:00:00 | DW17: 17:00:00 | DX17: 07:00:00 | DZ17: 09:00:00 | EB17: 17:00:00 | EC17: 07:00:00 | EE17: 09:00:00 | EG17: 17:00:00 | EH17: 07:00:00 | EJ17: 09:00:00 | EL17: 17:00:00 | EM17: 07:00:00 | EQ17: - | ER17: - | ET17: 1.458333333 | EU17: 09:00:00 | EW17: 17:00:00 | EX17: 07:00:00 | EZ17: 09:00:00 | FB17: 17:00:00 | FC17: 07:00:00 | FE17: 09:00:00 | FG17: 17:00:00 | FH17: 07:00:00 | FJ17: 09:00:00 | FL17: 17:00:00 | FM17: 07:00:00 | FO17: 10:00:00 | FQ17: 18:00:00 | FR17: 07:00:00 | FT17: OFF | FV17: - | FW17: - | FY17: 09:00:00 | GA17: 17:00:00 | GB17: 07:00:00 | GD17: 09:00:00 | GF17: 17:00:00 | GG17: 07:00:00 | GI17: 09:00:00 | GK17: 17:00:00 | GL17: 07:00:00 | GN17: 09:00:00 | GP17: 17:00:00 | GQ17: 07:00:00 | GS17: 09:00:00 | GU17: 17:00:00 | GV17: 07:00:00 | GX17: OFF | GZ17: - | HA17: - | HC17: 09:00:00 | HE17: 17:00:00 | HF17: 07:00:00 | HH17: 09:00:00 | HJ17: 17:00:00 | HK17: 07:00:00 | HM17: 09:00:00 | HO17: 17:00:00 | HP17: 07:00:00 | HR17: 09:00:00 | HT17: 17:00:00 | HU17: 07:00:00 | HW17: 09:00:00 | HY17: 17:00:00 | HZ17: 07:00:00 | IB17: OFF | ID17: - | IE17: - | IG17: 09:00:00 | II17: 17:00:00 | IJ17: 07:00:00 | IL17: 09:00:00 | IN17: 17:00:00 | IO17: 07:00:00 | IQ17: 09:00:00 | IS17: 17:00:00 | IT17: 07:00:00 | IV17: 09:00:00 | IX17: 17:00:00 | IY17: 07:00:00 | JA17: OFF | JC17: - | JD17: - | JF17: 09:00:00 | JH17: 17:00:00 | JI17: 07:00:00 | JJ17: 1 | JK17: 09:00:00 | JL17: 12:00:00 | JM17: 17:00:00 | JN17: 07:00:00 | JP17: 09:00:00 | JQ17: 12:00:00 | JR17: 17:00:00 | JS17: 07:00:00 | JU17: 09:00:00 | JV17: 12:00:00 | JW17: 17:00:00 | JX17: 07:00:00 | JZ17: 09:00:00 | KA17: 12:00:00 | KB17: 17:00:00 | KC17: 07:00:00 | KE17: 09:00:00 | KF17: 12:00:00 | KG17: 17:00:00 | KH17: 07:00:00 | KJ17: OFF | KL17: - | KM17: - | KO17: 1.458333333 | KP17: 09:00:00 | KQ17: 13:00:00 | KR17: 17:00:00 | KS17: 07:00:00 | KU17: 09:00:00 | KV17: 13:00:00 | KW17: 17:00:00 | KX17: 07:00:00 | KZ17: 09:00:00 | LA17: 13:00:00 | LB17: 17:00:00 | LC17: 07:00:00 | LE17: 09:00:00 | LF17: 13:00:00 | LG17: 17:00:00 | LH17: 07:00:00 | LJ17: 09:00:00 | LK17: 13:00:00 | LL17: 17:00:00 | LM17: 07:00:00 | LO17: OFF | LQ17: - | LR17: - | LT17: 1.458333333 | LU17: 09:00:00 | LV17: 12:00:00 | LW17: 17:00:00 | LX17: 07:00:00 | LZ17: 09:00:00 | MA17: 12:00:00 | MB17: 17:00:00 | MC17: 07:00:00 | ME17: 09:00:00 | MF17: 12:00:00 | MG17: 17:00:00 | MH17: 07:00:00 | MJ17: 09:00:00 | MK17: 12:00:00 | ML17: 17:00:00 | MM17: 07:00:00 | MO17: 09:00:00 | MP17: 12:00:00 | MQ17: 17:00:00 | MR17: 07:00:00 | MT17: OFF | MV17: - | MW17: - | MY17: 1.458333333 | MZ17: 09:00:00 | NA17: 12:00:00 | NB17: 17:00:00 | NC17: 07:00:00 | NE17: 09:00:00 | NF17: 12:00:00 | NG17: 17:00:00 | NH17: 07:00:00 | NJ17: 09:00:00 | NK17: 12:00:00 | NL17: 17:00:00 | NM17: 07:00:00 | NO17: 09:00:00 | NP17: 12:00:00 | NQ17: 17:00:00 | NR17: 07:00:00 | NT17: 09:00:00 | NU17: 12:00:00 | NV17: 17:00:00 | NW17: 07:00:00 | NY17: OFF | OA17: - | OB17: - | OD17: 1.458333333 | OE17: 09:00:00 | OF17: 12:00:00 | OG17: 17:00:00 | OH17: 07:00:00 | OJ17: 09:00:00 | OK17: 12:00:00 | OL17: 17:00:00 | OM17: 07:00:00 | OO17: 09:00:00 | OP17: 12:00:00 | OQ17: 17:00:00 | OR17: 07:00:00 | OT17: 09:00:00 | OU17: 12:00:00 | OV17: 17:00:00 | OW17: 07:00:00 | OY17: 09:00:00 | OZ17: 12:00:00 | PA17: 17:00:00 | PB17: 07:00:00 | PD17: OFF | PF17: - | PG17: - | PI17: 1.458333333 | PJ17: FNT | PL17: - | PM17: 07:00:00 | PO17: 09:00:00 | PP17: 12:00:00 | PQ17: 17:00:00 | PR17: 07:00:00 | PT17: 09:00:00 | PU17: 12:00:00 | PV17: 17:00:00 | PW17: 07:00:00 | PY17: 09:00:00 | PZ17: 12:00:00 | QA17: 17:00:00 | QB17: 07:00:00 | QD17: 09:00:00 | QE17: 12:00:00 | QF17: 17:00:00 | QG17: 07:00:00 | QI17: OFF | QK17: - | QL17: - | QN17: 1.458333333 | QO17: 09:00:00 | QP17: 12:00:00 | QQ17: 17:00:00 | QR17: 07:00:00 | QT17: 09:00:00 | QU17: 12:00:00 | QV17: 17:00:00 | QW17: 07:00:00 | QY17: 09:00:00 | QZ17: 12:00:00 | RA17: 17:00:00 | RB17: 07:00:00 | RD17: FNT | RF17: - | RG17: 08:00:00 | RI17: 09:00:00 | RJ17: 12:00:00 | RK17: 17:00:00 | RL17: 07:00:00 | RN17: OFF | RP17: - | RQ17: - | RS17: 1.5 | RT17: 09:00:00 | RU17: 12:00:00 | RV17: 17:00:00 | RW17: 07:00:00 | RY17: 09:00:00 | RZ17: 12:00:00 | SA17: 17:00:00 | SB17: 07:00:00 | SD17: 09:00:00 | SE17: 12:00:00 | SF17: 17:00:00 | SG17: 07:00:00 | SI17: OFF | SK17: - | SL17: - | SN17: 09:00:00 | SO17: 12:00:00 | SP17: 17:00:00 | SQ17: 07:00:00 | SS17: 09:00:00 | ST17: 12:00:00 | SU17: 17:00:00 | SV17: 07:00:00 | SW17: 1 | SX17: 1.458333333 | SY17: 10:00:00 | SZ17: 13:00:00 | TA17: 18:00:00 | TB17: 07:00:00 | TD17: 10:00:00 | TE17: 13:00:00 | TF17: 18:00:00 | TG17: 07:00:00 | TI17: 10:00:00 | TJ17: 13:00:00 | TK17: 18:00:00 | TL17: 07:00:00 | TN17: 10:00:00 | TO17: 13:00:00 | TP17: 18:00:00 | TQ17: 07:00:00 | TS17: 10:00:00 | TT17: 13:00:00 | TU17: 18:00:00 | TV17: 07:00:00 | TX17: OFF | TZ17: - | UA17: - | UC17: 1.458333333 | UD17: 10:00:00 | UE17: 13:00:00 | UF17: 18:00:00 | UG17: 07:00:00 | UI17: 10:00:00 | UJ17: 13:00:00 | UK17: 18:00:00 | UL17: 07:00:00 | UO17: 10:00:00 | UP17: 13:00:00 | UQ17: 18:00:00 | UR17: 07:00:00 | UT17: 10:00:00 | UU17: 13:00:00 | UV17: 18:00:00 | UW17: 07:00:00 | UY17: 09:00:00 | UZ17: 13:00:00 | VA17: 17:00:00 | VB17: 07:00:00 | VD17: OFF | VF17: - | VG17: - | VI17: 1.458333333 | VJ17: 09:00:00 | VK17: 12:00:00 | VL17: 17:00:00 | VM17: 07:00:00 | VO17: 09:00:00 | VP17: 12:00:00 | VQ17: 17:00:00 | VR17: 07:00:00 | VT17: 09:00:00 | VU17: 12:00:00 | VV17: 17:00:00 | VW17: 07:00:00 | VY17: 09:00:00 | VZ17: 12:00:00 | WA17: 17:00:00 | WB17: 07:00:00 | WD17: 09:00:00 | WE17: 12:00:00 | WF17: 17:00:00 | WG17: 07:00:00 | WI17: OFF | WK17: - | WL17: - | WN17: 1.458333333 | WO17: 10:00:00 | WP17: 12:00:00 | WQ17: 18:00:00 | WR17: 07:00:00 | WT17: 10:00:00 | WU17: 12:00:00 | WV17: 18:00:00 | WW17: 07:00:00 | WY17: 10:00:00 | WZ17: 12:00:00 | XA17: 18:00:00 | XB17: 07:00:00 | XD17: 10:00:00 | XE17: 12:00:00 | XF17: 18:00:00 | XG17: 07:00:00 | XI17: 10:00:00 | XJ17: 12:00:00 | XK17: 18:00:00 | XL17: 07:00:00 | XN17: OFF | XP17: - | XQ17: - | XS17: 1.458333333 | XT17: 09:00:00 | XU17: 12:00:00 | XV17: 17:00:00 | XW17: 07:00:00 | XY17: 09:00:00 | XZ17: 12:00:00 | YA17: 17:00:00 | YB17: 07:00:00 | YD17: 09:00:00 | YE17: 12:00:00 | YF17: 17:00:00 | YG17: 07:00:00 | YI17: 09:00:00 | YJ17: 12:00:00 | YK17: 17:00:00 | YL17: 07:00:00 | YN17: 09:00:00 | YO17: 12:00:00 | YP17: 17:00:00 | YQ17: 07:00:00 | YS17: OFF | YU17: - | YV17: - | YX17: 1.458333333 | YY17: 10:00:00 | YZ17: 12:00:00 | ZA17: 18:00:00 | ZB17: 07:00:00 | ZD17: 10:00:00 | ZE17: 12:00:00 | ZF17: 18:00:00 | ZG17: 07:00:00 | ZI17: 10:00:00 | ZJ17: 12:00:00 | ZK17: 18:00:00 | ZL17: 07:00:00 | ZN17: 10:00:00 | ZO17: 12:00:00 | ZP17: 18:00:00 | ZQ17: 07:00:00 | ZS17: 09:00:00 | ZT17: 12:00:00 | ZU17: 17:00:00 | ZV17: 07:00:00 | ZX17: OFF | ZZ17: - | AAA17: -
A18: =IF(ISBLANK(JK18),"",COUNTA($JK$9:JK18)) -> 10 | B18: =BDD!B9 -> RAJAONARIVELO Njaraniaina Lovasoa Malalatiana | C18: =BDD!J9 -> Rotation | D18: =IFERROR(VLOOKUP($B18,BDD!$B:$M,12,0),"-") -> Isaingy Ampanefy | E18: 11:00:00 | F18: 14:00:00 | G18: 20:00:00 | H18: 08:00:00 | K18: 0 | L18: 0 | M18: 0 | N18: 5 | O18: 10 | P18: 5 | Q18: 0 | R18: 4 | S18: 7.333333333 | T18: 0 | U18: 0 | V18: 1 | W18: 2 | X18: 18 | Y18: 2 | Z18: 0 | AA18: 2 | AB18: 7.666666667 | AD18: 09:00:00 | AF18: 18:00:00 | AG18: 08:00:00 | AI18: 09:00:00 | AK18: 18:00:00 | AL18: 08:00:00 | AN18: 09:00:00 | AP18: 18:00:00 | AQ18: 08:00:00 | AS18: 09:00:00 | AU18: 18:00:00 | AV18: 08:00:00 | AX18: 09:00:00 | AZ18: 18:00:00 | BA18: 08:00:00 | BE18: - | BF18: - | BH18: 09:00:00 | BJ18: 18:00:00 | BK18: 08:00:00 | BM18: 09:00:00 | BO18: 18:00:00 | BP18: 08:00:00 | BR18: 09:00:00 | BT18: 18:00:00 | BU18: 08:00:00 | BW18: 09:00:00 | BY18: 18:00:00 | BZ18: 08:00:00 | CB18: 09:00:00 | CD18: 18:00:00 | CE18: 08:00:00 | CI18: - | CJ18: - | CL18: 09:00:00 | CN18: 18:00:00 | CO18: 08:00:00 | CQ18: 09:00:00 | CS18: 18:00:00 | CT18: 08:00:00 | CV18: 09:00:00 | CX18: 18:00:00 | CY18: 08:00:00 | DA18: 09:00:00 | DC18: 18:00:00 | DD18: 08:00:00 | DF18: 09:00:00 | DH18: 18:00:00 | DI18: 08:00:00 | DM18: - | DN18: - | DP18: 09:00:00 | DR18: 18:00:00 | DS18: 08:00:00 | DU18: 09:00:00 | DW18: 18:00:00 | DX18: 08:00:00 | DZ18: 09:00:00 | EB18: 18:00:00 | EC18: 08:00:00 | EE18: 09:00:00 | EG18: 18:00:00 | EH18: 08:00:00 | EJ18: 09:00:00 | EL18: 18:00:00 | EM18: 08:00:00 | EQ18: - | ER18: - | ET18: 1.666666667 | EU18: 09:00:00 | EW18: 18:00:00 | EX18: 08:00:00 | EZ18: 09:00:00 | FB18: 18:00:00 | FC18: 08:00:00 | FE18: OFF | FG18: - | FH18: - | FJ18: 11:00:00 | FL18: 20:00:00 | FM18: 08:00:00 | FO18: 11:00:00 | FQ18: 20:00:00 | FR18: 08:00:00 | FT18: 11:00:00 | FV18: 20:00:00 | FW18: 08:00:00 | FX18: 1 | FY18: 11:00:00 | GA18: 20:00:00 | GB18: 08:00:00 | GD18: 11:00:00 | GF18: 20:00:00 | GG18: 08:00:00 | GI18: OFF | GK18: - | GL18: - | GN18: 11:00:00 | GP18: 20:00:00 | GQ18: 08:00:00 | GS18: 11:00:00 | GU18: 20:00:00 | GV18: 08:00:00 | GX18: 11:00:00 | GZ18: 20:00:00 | HA18: 08:00:00 | HB18: 1 | HC18: 11:00:00 | HE18: 20:00:00 | HF18: 08:00:00 | HH18: 11:00:00 | HJ18: 20:00:00 | HK18: 08:00:00 | HM18: OFF | HO18: - | HP18: - | HR18: 11:00:00 | HT18: 20:00:00 | HU18: 08:00:00 | HW18: 11:00:00 | HY18: 20:00:00 | HZ18: 08:00:00 | IB18: 09:00:00 | ID18: 18:00:00 | IE18: 08:00:00 | IF18: 1 | IG18: 09:00:00 | II18: 18:00:00 | IJ18: 08:00:00 | IL18: 09:00:00 | IN18: 18:00:00 | IO18: 08:00:00 | IQ18: OFF | IS18: - | IT18: - | IV18: 09:00:00 | IX18: 18:00:00 | IY18: 08:00:00 | JA18: 09:00:00 | JC18: 18:00:00 | JD18: 08:00:00 | JF18: 11:00:00 | JH18: 20:00:00 | JI18: 08:00:00 | JJ18: 1 | JK18: 11:00:00 | JL18: 14:00:00 | JM18: 20:00:00 | JN18: 08:00:00 | JP18: 11:00:00 | JQ18: 14:00:00 | JR18: 20:00:00 | JS18: 08:00:00 | JU18: OFF | JW18: - | JX18: - | JZ18: 11:00:00 | KA18: 14:00:00 | KB18: 20:00:00 | KC18: 08:00:00 | KE18: 11:00:00 | KF18: 14:00:00 | KG18: 20:00:00 | KH18: 08:00:00 | KJ18: 11:00:00 | KK18: 14:00:00 | KL18: 20:00:00 | KM18: 08:00:00 | KN18: 1 | KO18: 1.666666667 | KP18: 11:00:00 | KQ18: 14:00:00 | KR18: 20:00:00 | KS18: 08:00:00 | KU18: 11:00:00 | KV18: 14:00:00 | KW18: 20:00:00 | KX18: 08:00:00 | KZ18: OFF | LB18: - | LC18: - | LE18: 11:00:00 | LF18: 14:00:00 | LG18: 20:00:00 | LH18: 08:00:00 | LJ18: 11:00:00 | LK18: 14:00:00 | LL18: 20:00:00 | LM18: 08:00:00 | LO18: 11:00:00 | LP18: 14:00:00 | LQ18: 20:00:00 | LR18: 08:00:00 | LS18: 1 | LT18: 1.666666667 | LU18: 09:00:00 | LV18: 12:00:00 | LW18: 18:00:00 | LX18: 08:00:00 | LZ18: 09:00:00 | MA18: 12:00:00 | MB18: 18:00:00 | MC18: 08:00:00 | ME18: OFF | MG18: - | MH18: - | MJ18: 09:00:00 | MK18: 12:00:00 | ML18: 18:00:00 | MM18: 08:00:00 | MO18: 09:00:00 | MP18: 12:00:00 | MQ18: 18:00:00 | MR18: 08:00:00 | MT18: 09:00:00 | MU18: 12:00:00 | MV18: 18:00:00 | MW18: 08:00:00 | MX18: 1 | MY18: 1.666666667 | MZ18: 11:00:00 | NA18: 14:00:00 | NB18: 20:00:00 | NC18: 08:00:00 | NE18: 11:00:00 | NF18: 14:00:00 | NG18: 20:00:00 | NH18: 08:00:00 | NJ18: OFF | NL18: - | NM18: - | NO18: 11:00:00 | NP18: 14:00:00 | NQ18: 20:00:00 | NR18: 08:00:00 | NT18: 11:00:00 | NU18: 14:00:00 | NV18: 20:00:00 | NW18: 08:00:00 | NY18: 11:00:00 | NZ18: 14:00:00 | OA18: 20:00:00 | OB18: 08:00:00 | OC18: 1 | OD18: 1.666666667 | OE18: 09:00:00 | OF18: 12:00:00 | OG18: 18:00:00 | OH18: 08:00:00 | OJ18: 09:00:00 | OK18: 12:00:00 | OL18: 18:00:00 | OM18: 08:00:00 | OO18: OFF | OQ18: - | OR18: - | OT18: 09:00:00 | OU18: 12:00:00 | OV18: 18:00:00 | OW18: 08:00:00 | OY18: 09:00:00 | OZ18: 12:00:00 | PA18: 18:00:00 | PB18: 08:00:00 | PD18: 09:00:00 | PE18: 12:00:00 | PF18: 18:00:00 | PG18: 08:00:00 | PH18: 1 | PI18: 1.666666667 | PJ18: FNT | PL18: - | PM18: 08:00:00 | PO18: 13:00:00 | PP18: 15:00:00 | PQ18: 22:00:00 | PR18: 08:00:00 | PT18: OFF | PV18: - | PW18: - | PY18: 13:00:00 | PZ18: 15:00:00 | QA18: 22:00:00 | QB18: 08:00:00 | QD18: 13:00:00 | QE18: 15:00:00 | QF18: 22:00:00 | QG18: 08:00:00 | QI18: 09:00:00 | QJ18: 12:00:00 | QK18: 18:00:00 | QL18: 08:00:00 | QM18: 1 | QN18: 1.666666667 | QO18: 09:00:00 | QP18: 12:00:00 | QQ18: 18:00:00 | QR18: 08:00:00 | QT18: 09:00:00 | QU18: 12:00:00 | QV18: 18:00:00 | QW18: 08:00:00 | QY18: OFF | RA18: - | RB18: - | RD18: FNT | RF18: - | RG18: 08:00:00 | RI18: 09:00:00 | RJ18: 12:00:00 | RK18: 18:00:00 | RL18: 08:00:00 | RN18: 09:00:00 | RO18: 12:00:00 | RP18: 18:00:00 | RQ18: 08:00:00 | RR18: 1 | RS18: 1.666666667 | RT18: 11:00:00 | RU18: 14:00:00 | RV18: 20:00:00 | RW18: 08:00:00 | RY18: 11:00:00 | RZ18: 14:00:00 | SA18: 20:00:00 | SB18: 08:00:00 | SD18: OFF | SF18: - | SG18: - | SI18: 11:00:00 | SJ18: 14:00:00 | SK18: 20:00:00 | SL18: 08:00:00 | SN18: 11:00:00 | SO18: 14:00:00 | SP18: 20:00:00 | SQ18: 08:00:00 | SS18: 13:00:00 | ST18: 15:00:00 | SU18: 22:00:00 | SV18: 08:00:00 | SW18: 1 | SX18: 1.666666667 | SY18: 11:00:00 | SZ18: 14:00:00 | TA18: 20:00:00 | TB18: 08:00:00 | TD18: 11:00:00 | TE18: 14:00:00 | TF18: 20:00:00 | TG18: 08:00:00 | TI18: OFF | TK18: - | TL18: - | TN18: 11:00:00 | TO18: 14:00:00 | TP18: 20:00:00 | TQ18: 08:00:00 | TS18: 11:00:00 | TT18: 14:00:00 | TU18: 20:00:00 | TV18: 08:00:00 | TX18: 13:00:00 | TY18: 15:00:00 | TZ18: 22:00:00 | UA18: 08:00:00 | UB18: 1 | UC18: 1.666666667 | UD18: 11:00:00 | UE18: 13:00:00 | UF18: 20:00:00 | UG18: 08:00:00 | UI18: 11:00:00 | UJ18: 13:00:00 | UK18: 20:00:00 | UL18: 08:00:00 | UO18: OFF | UQ18: - | UR18: - | UT18: 11:00:00 | UU18: 13:00:00 | UV18: 20:00:00 | UW18: 08:00:00 | UY18: 11:00:00 | UZ18: 13:00:00 | VA18: 20:00:00 | VB18: 08:00:00 | VD18: 13:00:00 | VE18: 15:00:00 | VF18: 22:00:00 | VG18: 08:00:00 | VH18: 1 | VI18: 1.666666667 | VJ18: 11:00:00 | VK18: 13:00:00 | VL18: 20:00:00 | VM18: 08:00:00 | VO18: 11:00:00 | VP18: 13:00:00 | VQ18: 20:00:00 | VR18: 08:00:00 | VT18: CP | VV18: - | VW18: 08:00:00 | VY18: 11:00:00 | VZ18: 13:00:00 | WA18: 20:00:00 | WB18: 08:00:00 | WD18: 11:00:00 | WE18: 13:00:00 | WF18: 20:00:00 | WG18: 08:00:00 | WI18: OFF | WK18: - | WL18: - | WN18: 1.666666667 | WO18: 11:00:00 | WP18: 14:00:00 | WQ18: 20:00:00 | WR18: 08:00:00 | WT18: 11:00:00 | WU18: 14:00:00 | WV18: 20:00:00 | WW18: 08:00:00 | WY18: OFF | XA18: - | XB18: - | XD18: 11:00:00 | XE18: 14:00:00 | XF18: 20:00:00 | XG18: 08:00:00 | XI18: 11:00:00 | XJ18: 14:00:00 | XK18: 20:00:00 | XL18: 08:00:00 | XN18: 09:00:00 | XO18: 12:00:00 | XP18: 18:00:00 | XQ18: 08:00:00 | XR18: 1 | XS18: 1.666666667 | XT18: 11:00:00 | XU18: 14:00:00 | XV18: 20:00:00 | XW18: 08:00:00 | XY18: 11:00:00 | XZ18: 14:00:00 | YA18: 20:00:00 | YB18: 08:00:00 | YD18: 11:00:00 | YE18: TT | YF18: 20:00:00 | YG18: 08:00:00 | YI18: 11:00:00 | YJ18: 14:00:00 | YK18: 20:00:00 | YL18: 08:00:00 | YN18: 09:00:00 | YO18: 14:00:00 | YP18: 18:00:00 | YQ18: 08:00:00 | YS18: OFF | YU18: - | YV18: - | YX18: 1.666666667 | YY18: 11:00:00 | YZ18: 14:00:00 | ZA18: 20:00:00 | ZB18: 08:00:00 | ZD18: 11:00:00 | ZE18: 14:00:00 | ZF18: 20:00:00 | ZG18: 08:00:00 | ZI18: 11:00:00 | ZJ18: TT | ZK18: 20:00:00 | ZL18: 08:00:00 | ZN18: 11:00:00 | ZO18: 14:00:00 | ZP18: 20:00:00 | ZQ18: 08:00:00 | ZS18: 13:00:00 | ZT18: TT | ZU18: 22:00:00 | ZV18: 08:00:00 | ZX18: OFF | ZZ18: - | AAA18: -
A19: =IF(ISBLANK(JK19),"",COUNTA($JK$9:JK19)) -> 11 | B19: =BDD!B10 -> RABENJANAHARY Fanomezantsoa | C19: =BDD!J10 -> Rotation | D19: =IFERROR(VLOOKUP($B19,BDD!$B:$M,12,0),"-") -> Faliarivo Ampitatafika | E19: 11:00:00 | F19: 14:00:00 | G19: 20:00:00 | H19: 08:00:00 | K19: 0 | L19: 0 | M19: 5 | N19: 5 | O19: 5 | P19: 6 | Q19: 0 | R19: 0 | S19: 5.666666667 | T19: 0 | U19: 0 | V19: 0 | W19: 6 | X19: 14 | Y19: 3 | Z19: 0 | AA19: 0 | AB19: 7.666666667 | AD19: 09:00:00 | AF19: 18:00:00 | AG19: 08:00:00 | AI19: 09:00:00 | AK19: 18:00:00 | AL19: 08:00:00 | AN19: 09:00:00 | AP19: 18:00:00 | AQ19: 08:00:00 | AS19: 09:00:00 | AU19: 18:00:00 | AV19: 08:00:00 | AX19: 09:00:00 | AZ19: 18:00:00 | BA19: 08:00:00 | BE19: - | BF19: - | BH19: 09:00:00 | BJ19: 18:00:00 | BK19: 08:00:00 | BM19: 09:00:00 | BO19: 18:00:00 | BP19: 08:00:00 | BR19: 09:00:00 | BT19: 18:00:00 | BU19: 08:00:00 | BW19: 09:00:00 | BY19: 18:00:00 | BZ19: 08:00:00 | CB19: 09:00:00 | CD19: 18:00:00 | CE19: 08:00:00 | CI19: - | CJ19: - | CL19: 09:00:00 | CN19: 18:00:00 | CO19: 08:00:00 | CQ19: 09:00:00 | CS19: 18:00:00 | CT19: 08:00:00 | CV19: 09:00:00 | CX19: 18:00:00 | CY19: 08:00:00 | DA19: 09:00:00 | DC19: 18:00:00 | DD19: 08:00:00 | DF19: 09:00:00 | DH19: 18:00:00 | DI19: 08:00:00 | DM19: - | DN19: - | DP19: 09:00:00 | DR19: 18:00:00 | DS19: 08:00:00 | DU19: 09:00:00 | DW19: 18:00:00 | DX19: 08:00:00 | DZ19: 09:00:00 | EB19: 18:00:00 | EC19: 08:00:00 | EE19: 09:00:00 | EG19: 18:00:00 | EH19: 08:00:00 | EJ19: 09:00:00 | EL19: 18:00:00 | EM19: 08:00:00 | EQ19: - | ER19: - | ET19: 1.666666667 | EU19: 09:00:00 | EW19: 18:00:00 | EX19: 08:00:00 | EZ19: 09:00:00 | FB19: 18:00:00 | FC19: 08:00:00 | FE19: 11:00:00 | FG19: 20:00:00 | FH19: 08:00:00 | FJ19: 11:00:00 | FL19: 20:00:00 | FM19: 08:00:00 | FO19: 11:00:00 | FQ19: 20:00:00 | FR19: 08:00:00 | FT19: OFF | FV19: - | FW19: - | FY19: 11:00:00 | GA19: 20:00:00 | GB19: 08:00:00 | GD19: 11:00:00 | GF19: 20:00:00 | GG19: 08:00:00 | GI19: 11:00:00 | GK19: 20:00:00 | GL19: 08:00:00 | GN19: 11:00:00 | GP19: 20:00:00 | GQ19: 08:00:00 | GS19: 11:00:00 | GU19: 20:00:00 | GV19: 08:00:00 | GX19: OFF | GZ19: - | HA19: - | HC19: 09:00:00 | HE19: 18:00:00 | HF19: 08:00:00 | HH19: 09:00:00 | HJ19: 18:00:00 | HK19: 08:00:00 | HM19: 09:00:00 | HO19: 18:00:00 | HP19: 08:00:00 | HR19: 09:00:00 | HT19: 18:00:00 | HU19: 08:00:00 | HW19: 09:00:00 | HY19: 18:00:00 | HZ19: 08:00:00 | IB19: OFF | ID19: - | IE19: - | IG19: 11:00:00 | II19: 20:00:00 | IJ19: 08:00:00 | IL19: 11:00:00 | IN19: 20:00:00 | IO19: 08:00:00 | IQ19: 11:00:00 | IS19: 20:00:00 | IT19: 08:00:00 | IV19: 11:00:00 | IX19: 20:00:00 | IY19: 08:00:00 | JA19: 11:00:00 | JC19: 20:00:00 | JD19: 08:00:00 | JF19: OFF | JH19: - | JI19: - | JK19: 09:00:00 | JL19: 13:00:00 | JM19: 18:00:00 | JN19: 08:00:00 | JP19: 11:00:00 | JQ19: 14:00:00 | JR19: 20:00:00 | JS19: 08:00:00 | JU19: 09:00:00 | JV19: 13:00:00 | JW19: 18:00:00 | JX19: 08:00:00 | JZ19: 09:00:00 | KA19: 13:00:00 | KB19: 18:00:00 | KC19: 08:00:00 | KE19: 09:00:00 | KF19: 13:00:00 | KG19: 18:00:00 | KH19: 08:00:00 | KJ19: OFF | KL19: - | KM19: - | KO19: 1.666666667 | KP19: 11:00:00 | KQ19: 14:00:00 | KR19: 20:00:00 | KS19: 08:00:00 | KU19: 11:00:00 | KV19: 14:00:00 | KW19: 20:00:00 | KX19: 08:00:00 | KZ19: 11:00:00 | LA19: 14:00:00 | LB19: 20:00:00 | LC19: 08:00:00 | LE19: 11:00:00 | LF19: 14:00:00 | LG19: 20:00:00 | LH19: 08:00:00 | LJ19: 11:00:00 | LK19: 14:00:00 | LL19: 20:00:00 | LM19: 08:00:00 | LO19: OFF | LQ19: - | LR19: - | LT19: 1.666666667 | LU19: 09:00:00 | LV19: 13:00:00 | LW19: 18:00:00 | LX19: 08:00:00 | LZ19: 11:00:00 | MA19: 14:00:00 | MB19: 20:00:00 | MC19: 08:00:00 | ME19: 09:00:00 | MF19: 13:00:00 | MG19: 18:00:00 | MH19: 08:00:00 | MJ19: 09:00:00 | MK19: 13:00:00 | ML19: 18:00:00 | MM19: 08:00:00 | MO19: 09:00:00 | MP19: 13:00:00 | MQ19: 18:00:00 | MR19: 08:00:00 | MT19: OFF | MV19: - | MW19: - | MY19: 1.666666667 | MZ19: 11:00:00 | NA19: 13:00:00 | NB19: 20:00:00 | NC19: 08:00:00 | NE19: 11:00:00 | NF19: 13:00:00 | NG19: 20:00:00 | NH19: 08:00:00 | NJ19: 11:00:00 | NK19: 13:00:00 | NL19: 20:00:00 | NM19: 08:00:00 | NO19: OFF | NQ19: - | NR19: - | NT19: 11:00:00 | NU19: 13:00:00 | NV19: 20:00:00 | NW19: 08:00:00 | NY19: 09:00:00 | NZ19: 13:00:00 | OA19: 18:00:00 | OB19: 08:00:00 | OC19: 1 | OD19: 1.666666667 | OE19: 09:00:00 | OF19: 13:00:00 | OG19: 18:00:00 | OH19: 08:00:00 | OJ19: 09:00:00 | OK19: 13:00:00 | OL19: 18:00:00 | OM19: 08:00:00 | OO19: 09:00:00 | OP19: 13:00:00 | OQ19: 18:00:00 | OR19: 08:00:00 | OT19: 09:00:00 | OU19: 13:00:00 | OV19: 18:00:00 | OW19: 08:00:00 | OY19: 09:00:00 | OZ19: 13:00:00 | PA19: 18:00:00 | PB19: 08:00:00 | PD19: OFF | PF19: - | PG19: - | PI19: 1.666666667 | PJ19: FNT | PL19: - | PM19: - | PO19: CP | PQ19: - | PR19: - | PT19: CP | PV19: - | PW19: - | PY19: CP | QA19: - | QB19: - | QD19: CP | QF19: - | QG19: - | QI19: CP | QK19: - | QL19: - | QO19: 13:00:00 | QP19: 15:00:00 | QQ19: 22:00:00 | QR19: 08:00:00 | QT19: 13:00:00 | QU19: 15:00:00 | QV19: 22:00:00 | QW19: 08:00:00 | QY19: 13:00:00 | QZ19: 15:00:00 | RA19: 22:00:00 | RB19: 08:00:00 | RD19: FNT | RF19: - | RG19: 08:00:00 | RI19: 13:00:00 | RJ19: 15:00:00 | RK19: 22:00:00 | RL19: 08:00:00 | RN19: OFF | RP19: - | RQ19: - | RS19: 1.666666667 | RT19: 11:00:00 | RU19: 14:00:00 | RV19: 20:00:00 | RW19: 08:00:00 | RY19: 11:00:00 | RZ19: 14:00:00 | SA19: 20:00:00 | SB19: 08:00:00 | SD19: 11:00:00 | SE19: 14:00:00 | SF19: 20:00:00 | SG19: 08:00:00 | SI19: 11:00:00 | SJ19: 14:00:00 | SK19: 20:00:00 | SL19: 08:00:00 | SN19: 11:00:00 | SO19: 14:00:00 | SP19: 20:00:00 | SQ19: 08:00:00 | SS19: OFF | SU19: - | SV19: - | SX19: 1.666666667 | SY19: 09:00:00 | SZ19: 12:00:00 | TA19: 18:00:00 | TB19: 08:00:00 | TD19: 09:00:00 | TE19: 12:00:00 | TF19: 18:00:00 | TG19: 08:00:00 | TI19: 09:00:00 | TJ19: 12:00:00 | TK19: 18:00:00 | TL19: 08:00:00 | TN19: 09:00:00 | TO19: 12:00:00 | TP19: 18:00:00 | TQ19: 08:00:00 | TS19: 09:00:00 | TT19: 12:00:00 | TU19: 18:00:00 | TV19: 08:00:00 | TX19: OFF | TZ19: - | UA19: - | UC19: 1.666666667 | UD19: 13:00:00 | UE19: 15:00:00 | UF19: 22:00:00 | UG19: 08:00:00 | UI19: 13:00:00 | UJ19: 15:00:00 | UK19: 22:00:00 | UL19: 08:00:00 | UO19: 13:00:00 | UP19: 15:00:00 | UQ19: 22:00:00 | UR19: 08:00:00 | UT19: 13:00:00 | UU19: 15:00:00 | UV19: 22:00:00 | UW19: 08:00:00 | UY19: 13:00:00 | UZ19: 15:00:00 | VA19: 22:00:00 | VB19: 08:00:00 | VD19: OFF | VF19: - | VG19: - | VI19: 1.666666667 | VJ19: 11:00:00 | VK19: 12:00:00 | VL19: 20:00:00 | VM19: 08:00:00 | VO19: 11:00:00 | VP19: 12:00:00 | VQ19: 20:00:00 | VR19: 08:00:00 | VT19: 11:00:00 | VU19: 12:00:00 | VV19: 20:00:00 | VW19: 08:00:00 | VY19: 11:00:00 | VZ19: 12:00:00 | WA19: 20:00:00 | WB19: 08:00:00 | WD19: 11:00:00 | WE19: 12:00:00 | WF19: 20:00:00 | WG19: 08:00:00 | WI19: OFF | WK19: - | WL19: - | WN19: 1.666666667 | WO19: 11:00:00 | WP19: 14:00:00 | WQ19: 20:00:00 | WR19: 08:00:00 | WT19: 11:00:00 | WU19: 14:00:00 | WV19: 20:00:00 | WW19: 08:00:00 | WY19: 11:00:00 | WZ19: 14:00:00 | XA19: 20:00:00 | XB19: 08:00:00 | XD19: 11:00:00 | XE19: 14:00:00 | XF19: 20:00:00 | XG19: 08:00:00 | XI19: 11:00:00 | XJ19: 14:00:00 | XK19: 20:00:00 | XL19: 08:00:00 | XN19: OFF | XP19: - | XQ19: - | XS19: 1.666666667 | XT19: 11:00:00 | XU19: 14:00:00 | XV19: 20:00:00 | XW19: 08:00:00 | XY19: 11:00:00 | XZ19: 14:00:00 | YA19: 20:00:00 | YB19: 08:00:00 | YD19: 11:00:00 | YE19: 14:00:00 | YF19: 20:00:00 | YG19: 08:00:00 | YI19: 11:00:00 | YJ19: 14:00:00 | YK19: 20:00:00 | YL19: 08:00:00 | YN19: 09:00:00 | YO19: 14:00:00 | YP19: 18:00:00 | YQ19: 08:00:00 | YS19: OFF | YU19: - | YV19: - | YX19: 1.666666667 | YY19: 09:00:00 | YZ19: 12:00:00 | ZA19: 18:00:00 | ZB19: 08:00:00 | ZD19: 09:00:00 | ZE19: 12:00:00 | ZF19: 18:00:00 | ZG19: 08:00:00 | ZI19: 09:00:00 | ZJ19: 12:00:00 | ZK19: 18:00:00 | ZL19: 08:00:00 | ZN19: 09:00:00 | ZO19: 12:00:00 | ZP19: 18:00:00 | ZQ19: 08:00:00 | ZS19: 09:00:00 | ZT19: 12:00:00 | ZU19: 18:00:00 | ZV19: 08:00:00 | ZX19: OFF | ZZ19: - | AAA19: -
A20: =IF(ISBLANK(JK20),"",COUNTA($JK$9:JK20)) -> 12 | B20: =BDD!B11 -> RAVONIAINA Fenotoky Jean Baptiste | C20: =BDD!J11 -> Rotation | D20: =IFERROR(VLOOKUP($B20,BDD!$B:$M,12,0),"-") -> Saropody tanjombato | E20: 11:00:00 | F20: 14:00:00 | G20: 20:00:00 | H20: 08:00:00 | K20: 0 | L20: 0 | M20: 0 | N20: 2 | O20: 14 | P20: 4 | Q20: 0 | R20: 1 | S20: 7.333333333 | T20: 0 | U20: 0 | V20: 0 | W20: 9 | X20: 9 | Y20: 5 | Z20: 0 | AA20: 0 | AB20: 7.666666667 | AD20: 09:00:00 | AF20: 18:00:00 | AG20: 08:00:00 | AI20: 09:00:00 | AK20: 18:00:00 | AL20: 08:00:00 | AN20: 09:00:00 | AP20: 18:00:00 | AQ20: 08:00:00 | AS20: 09:00:00 | AU20: 18:00:00 | AV20: 08:00:00 | AX20: 09:00:00 | AZ20: 18:00:00 | BA20: 08:00:00 | BE20: - | BF20: - | BH20: 09:00:00 | BJ20: 18:00:00 | BK20: 08:00:00 | BM20: 09:00:00 | BO20: 18:00:00 | BP20: 08:00:00 | BR20: 09:00:00 | BT20: 18:00:00 | BU20: 08:00:00 | BW20: 09:00:00 | BY20: 18:00:00 | BZ20: 08:00:00 | CB20: 09:00:00 | CD20: 18:00:00 | CE20: 08:00:00 | CI20: - | CJ20: - | CL20: 09:00:00 | CN20: 18:00:00 | CO20: 08:00:00 | CQ20: 09:00:00 | CS20: 18:00:00 | CT20: 08:00:00 | CV20: 09:00:00 | CX20: 18:00:00 | CY20: 08:00:00 | DA20: 09:00:00 | DC20: 18:00:00 | DD20: 08:00:00 | DF20: 09:00:00 | DH20: 18:00:00 | DI20: 08:00:00 | DM20: - | DN20: - | DP20: 09:00:00 | DR20: 18:00:00 | DS20: 08:00:00 | DU20: 09:00:00 | DW20: 18:00:00 | DX20: 08:00:00 | DZ20: 09:00:00 | EB20: 18:00:00 | EC20: 08:00:00 | EE20: 09:00:00 | EG20: 18:00:00 | EH20: 08:00:00 | EJ20: 09:00:00 | EL20: 18:00:00 | EM20: 08:00:00 | EQ20: - | ER20: - | ET20: 1.666666667 | EU20: 09:00:00 | EW20: 18:00:00 | EX20: 08:00:00 | EZ20: 09:00:00 | FB20: 18:00:00 | FC20: 08:00:00 | FE20: 11:00:00 | FG20: 20:00:00 | FH20: 08:00:00 | FJ20: 11:00:00 | FL20: 20:00:00 | FM20: 08:00:00 | FO20: 11:00:00 | FQ20: 20:00:00 | FR20: 08:00:00 | FT20: OFF | FV20: - | FW20: - | FY20: 11:00:00 | GA20: 20:00:00 | GB20: 08:00:00 | GD20: 11:00:00 | GF20: 20:00:00 | GG20: 08:00:00 | GI20: 11:00:00 | GK20: 20:00:00 | GL20: 08:00:00 | GN20: 11:00:00 | GP20: 20:00:00 | GQ20: 08:00:00 | GS20: 11:00:00 | GU20: 20:00:00 | GV20: 08:00:00 | GX20: OFF | GZ20: - | HA20: - | HC20: 11:00:00 | HE20: 20:00:00 | HF20: 08:00:00 | HH20: 11:00:00 | HJ20: 20:00:00 | HK20: 08:00:00 | HM20: 11:00:00 | HO20: 20:00:00 | HP20: 08:00:00 | HR20: 11:00:00 | HT20: 20:00:00 | HU20: 08:00:00 | HW20: 11:00:00 | HY20: 20:00:00 | HZ20: 08:00:00 | IB20: OFF | ID20: - | IE20: - | IG20: 09:00:00 | II20: 18:00:00 | IJ20: 08:00:00 | IL20: 09:00:00 | IN20: 18:00:00 | IO20: 08:00:00 | IQ20: 09:00:00 | IS20: 18:00:00 | IT20: 08:00:00 | IV20: 09:00:00 | IX20: 18:00:00 | IY20: 08:00:00 | JA20: 09:00:00 | JC20: 18:00:00 | JD20: 08:00:00 | JF20: OFF | JH20: - | JI20: - | JK20: 11:00:00 | JL20: 14:00:00 | JM20: 20:00:00 | JN20: 08:00:00 | JP20: 09:00:00 | JQ20: 13:00:00 | JR20: 18:00:00 | JS20: 08:00:00 | JU20: 11:00:00 | JV20: 14:00:00 | JW20: 20:00:00 | JX20: 08:00:00 | JZ20: 11:00:00 | KA20: 13:00:00 | KB20: 20:00:00 | KC20: 08:00:00 | KE20: 11:00:00 | KF20: 14:00:00 | KG20: 20:00:00 | KH20: 08:00:00 | KJ20: OFF | KL20: - | KM20: - | KO20: 1.666666667 | KP20: 11:00:00 | KQ20: 14:00:00 | KR20: 20:00:00 | KS20: 08:00:00 | KU20: 11:00:00 | KV20: 14:00:00 | KW20: 20:00:00 | KX20: 08:00:00 | KZ20: 11:00:00 | LA20: 14:00:00 | LB20: 20:00:00 | LC20: 08:00:00 | LE20: 11:00:00 | LF20: 14:00:00 | LG20: 20:00:00 | LH20: 08:00:00 | LJ20: 11:00:00 | LK20: 14:00:00 | LL20: 20:00:00 | LM20: 08:00:00 | LO20: OFF | LQ20: - | LR20: - | LT20: 1.666666667 | LU20: 09:00:00 | LV20: 13:00:00 | LW20: 18:00:00 | LX20: 08:00:00 | LZ20: 09:00:00 | MA20: 13:00:00 | MB20: 18:00:00 | MC20: 08:00:00 | ME20: 09:00:00 | MF20: 13:00:00 | MG20: 18:00:00 | MH20: 08:00:00 | MJ20: 09:00:00 | MK20: 13:00:00 | ML20: 18:00:00 | MM20: 08:00:00 | MO20: 09:00:00 | MP20: 13:00:00 | MQ20: 18:00:00 | MR20: 08:00:00 | MT20: OFF | MV20: - | MW20: - | MY20: 1.666666667 | MZ20: 11:00:00 | NA20: 13:00:00 | NB20: 20:00:00 | NC20: 08:00:00 | NE20: 11:00:00 | NF20: 13:00:00 | NG20: 20:00:00 | NH20: 08:00:00 | NJ20: CP | NL20: - | NM20: - | NO20: CP | NQ20: - | NR20: - | NT20: CP | NV20: - | NW20: - | NY20: OFF | OA20: - | OB20: - | OD20: 0.6666666667 | OE20: 11:00:00 | OF20: 14:00:00 | OG20: 20:00:00 | OH20: 08:00:00 | OJ20: 11:00:00 | OK20: 14:00:00 | OL20: 20:00:00 | OM20: 08:00:00 | OO20: 11:00:00 | OP20: 14:00:00 | OQ20: 20:00:00 | OR20: 08:00:00 | OT20: 11:00:00 | OU20: 14:00:00 | OV20: 20:00:00 | OW20: 08:00:00 | OY20: 11:00:00 | OZ20: 14:00:00 | PA20: 20:00:00 | PB20: 08:00:00 | PD20: OFF | PF20: - | PG20: - | PI20: 1.666666667 | PJ20: FNT | PL20: - | PM20: 08:00:00 | PO20: 13:00:00 | PP20: 15:00:00 | PQ20: 22:00:00 | PR20: 08:00:00 | PT20: 13:00:00 | PU20: 15:00:00 | PV20: 22:00:00 | PW20: 08:00:00 | PY20: 13:00:00 | PZ20: 15:00:00 | QA20: 22:00:00 | QB20: 08:00:00 | QD20: OFF | QF20: - | QG20: - | QI20: 13:00:00 | QJ20: 15:00:00 | QK20: 22:00:00 | QL20: 08:00:00 | QM20: 1 | QN20: 1.666666667 | QO20: 11:00:00 | QP20: 14:00:00 | QQ20: 20:00:00 | QR20: 08:00:00 | QT20: 11:00:00 | QU20: 14:00:00 | QV20: 20:00:00 | QW20: 08:00:00 | QY20: 11:00:00 | QZ20: 14:00:00 | RA20: 20:00:00 | RB20: 08:00:00 | RD20: FNT | RF20: - | RG20: 08:00:00 | RI20: 11:00:00 | RJ20: 14:00:00 | RK20: 20:00:00 | RL20: 08:00:00 | RN20: OFF | RP20: - | RQ20: - | RS20: 1.666666667 | RT20: 11:00:00 | RU20: 15:00:00 | RV20: 20:00:00 | RW20: 08:00:00 | RY20: 11:00:00 | RZ20: 15:00:00 | SA20: 20:00:00 | SB20: 08:00:00 | SD20: 11:00:00 | SE20: 15:00:00 | SF20: 20:00:00 | SG20: 08:00:00 | SI20: 11:00:00 | SJ20: 15:00:00 | SK20: 20:00:00 | SL20: 08:00:00 | SN20: 11:00:00 | SO20: 15:00:00 | SP20: 20:00:00 | SQ20: 08:00:00 | SS20: OFF | SU20: - | SV20: - | SX20: 1.666666667 | SY20: 11:00:00 | SZ20: 14:00:00 | TA20: 20:00:00 | TB20: 08:00:00 | TD20: 11:00:00 | TE20: 14:00:00 | TF20: 20:00:00 | TG20: 08:00:00 | TI20: 11:00:00 | TJ20: 14:00:00 | TK20: 20:00:00 | TL20: 08:00:00 | TN20: 11:00:00 | TO20: 14:00:00 | TP20: 20:00:00 | TQ20: 08:00:00 | TS20: 11:00:00 | TT20: 14:00:00 | TU20: 20:00:00 | TV20: 08:00:00 | TX20: OFF | TZ20: - | UA20: - | UC20: 1.666666667 | UD20: 09:00:00 | UE20: 12:00:00 | UF20: 18:00:00 | UG20: 08:00:00 | UI20: 09:00:00 | UJ20: 12:00:00 | UK20: 18:00:00 | UL20: 08:00:00 | UO20: 09:00:00 | UP20: 12:00:00 | UQ20: 18:00:00 | UR20: 08:00:00 | UT20: 09:00:00 | UU20: 12:00:00 | UV20: 18:00:00 | UW20: 08:00:00 | UY20: 09:00:00 | UZ20: 12:00:00 | VA20: 18:00:00 | VB20: 08:00:00 | VD20: OFF | VF20: - | VG20: - | VI20: 1.666666667 | VJ20: 11:00:00 | VK20: 12:00:00 | VL20: 20:00:00 | VM20: 08:00:00 | VO20: 11:00:00 | VP20: 12:00:00 | VQ20: 20:00:00 | VR20: 08:00:00 | VT20: 11:00:00 | VU20: 12:00:00 | VV20: 20:00:00 | VW20: 08:00:00 | VY20: 11:00:00 | VZ20: 12:00:00 | WA20: 20:00:00 | WB20: 08:00:00 | WD20: 11:00:00 | WE20: 12:00:00 | WF20: 20:00:00 | WG20: 08:00:00 | WI20: OFF | WK20: - | WL20: - | WN20: 1.666666667 | WO20: 13:00:00 | WP20: 15:00:00 | WQ20: 22:00:00 | WR20: 08:00:00 | WT20: 13:00:00 | WU20: 15:00:00 | WV20: 22:00:00 | WW20: 08:00:00 | WY20: 13:00:00 | WZ20: 15:00:00 | XA20: 22:00:00 | XB20: 08:00:00 | XD20: 13:00:00 | XE20: 15:00:00 | XF20: 22:00:00 | XG20: 08:00:00 | XI20: 13:00:00 | XJ20: 15:00:00 | XK20: 22:00:00 | XL20: 08:00:00 | XN20: OFF | XP20: - | XQ20: - | XS20: 1.666666667 | XT20: 11:00:00 | XU20: 14:00:00 | XV20: 20:00:00 | XW20: 08:00:00 | XY20: 11:00:00 | XZ20: 14:00:00 | YA20: 20:00:00 | YB20: 08:00:00 | YD20: 11:00:00 | YE20: 14:00:00 | YF20: 20:00:00 | YG20: 08:00:00 | YI20: 11:00:00 | YJ20: 14:00:00 | YK20: 20:00:00 | YL20: 08:00:00 | YN20: 09:00:00 | YO20: 14:00:00 | YP20: 18:00:00 | YQ20: 08:00:00 | YS20: OFF | YU20: - | YV20: - | YX20: 1.666666667 | YY20: 09:00:00 | YZ20: 12:00:00 | ZA20: 18:00:00 | ZB20: 08:00:00 | ZD20: 09:00:00 | ZE20: 12:00:00 | ZF20: 18:00:00 | ZG20: 08:00:00 | ZI20: 09:00:00 | ZJ20: 12:00:00 | ZK20: 18:00:00 | ZL20: 08:00:00 | ZN20: 09:00:00 | ZO20: 12:00:00 | ZP20: 18:00:00 | ZQ20: 08:00:00 | ZS20: 09:00:00 | ZT20: 12:00:00 | ZU20: 18:00:00 | ZV20: 08:00:00 | ZX20: OFF | ZZ20: - | AAA20: -
A21: =IF(ISBLANK(JK21),"",COUNTA($JK$9:JK21)) -> 13 | B21: =BDD!B12 -> RAKOTOARIVONY Manitrarilala Josephson Rosa | C21: =BDD!J12 -> Rotation | D21: =IFERROR(VLOOKUP($B21,BDD!$B:$M,12,0),"-") -> Amboditsiry | E21: 11:00:00 | F21: 13:00:00 | G21: 20:00:00 | H21: 08:00:00 | K21: 0 | L21: 0 | M21: 0 | N21: 0 | O21: 8 | P21: 6 | Q21: 0 | R21: 1 | S21: 5 | T21: 0 | U21: 0 | V21: 0 | W21: 0 | X21: 14 | Y21: 6 | Z21: 0 | AA21: 0 | AB21: 6.666666667 | AF21: - | AG21: - | AK21: - | AL21: - | AP21: - | AQ21: - | AU21: - | AV21: - | AZ21: - | BA21: - | BE21: - | BF21: - | BJ21: - | BK21: - | BO21: - | BP21: - | BT21: - | BU21: - | BY21: - | BZ21: - | CD21: - | CE21: - | CI21: - | CJ21: - | CN21: - | CO21: - | CS21: - | CT21: - | CX21: - | CY21: - | DC21: - | DD21: - | DH21: - | DI21: - | DM21: - | DN21: - | DR21: - | DS21: - | DW21: - | DX21: - | EB21: - | EC21: - | EG21: - | EH21: - | EL21: - | EM21: - | EQ21: - | ER21: - | EW21: - | EX21: - | FB21: - | FC21: - | FG21: - | FH21: - | FL21: - | FM21: - | FQ21: - | FR21: - | FV21: - | FW21: - | FY21: 09:00:00 | GA21: 18:00:00 | GB21: 08:00:00 | GD21: 09:00:00 | GF21: 18:00:00 | GG21: 08:00:00 | GI21: 09:00:00 | GK21: 18:00:00 | GL21: 08:00:00 | GN21: 09:00:00 | GP21: 18:00:00 | GQ21: 08:00:00 | GS21: 09:00:00 | GU21: 18:00:00 | GV21: 08:00:00 | GX21: OFF | GZ21: - | HA21: - | HC21: 09:00:00 | HE21: 18:00:00 | HF21: 08:00:00 | HH21: 09:00:00 | HJ21: 18:00:00 | HK21: 08:00:00 | HM21: 09:00:00 | HO21: 18:00:00 | HP21: 08:00:00 | HR21: 09:00:00 | HT21: 18:00:00 | HU21: 08:00:00 | HW21: 09:00:00 | HY21: 18:00:00 | HZ21: 08:00:00 | IB21: OFF | ID21: - | IE21: - | IG21: 09:00:00 | II21: 18:00:00 | IJ21: 08:00:00 | IL21: 09:00:00 | IN21: 18:00:00 | IO21: 08:00:00 | IQ21: 09:00:00 | IS21: 18:00:00 | IT21: 08:00:00 | IV21: 09:00:00 | IX21: 18:00:00 | IY21: 08:00:00 | JA21: 09:00:00 | JC21: 18:00:00 | JD21: 08:00:00 | JF21: OFF | JH21: - | JI21: - | JK21: - | JM21: - | JN21: - | JP21: - | JR21: - | JS21: - | JU21: - | JW21: - | JX21: - | JZ21: - | KB21: - | KC21: - | KE21: - | KG21: - | KH21: - | KJ21: - | KL21: - | KM21: - | KP21: 11:00:00 | KQ21: 14:00:00 | KR21: 20:00:00 | KS21: 08:00:00 | KU21: 11:00:00 | KV21: 14:00:00 | KW21: 20:00:00 | KX21: 08:00:00 | KZ21: 11:00:00 | LA21: 14:00:00 | LB21: 20:00:00 | LC21: 08:00:00 | LE21: 11:00:00 | LF21: 14:00:00 | LG21: 20:00:00 | LH21: 08:00:00 | LJ21: 11:00:00 | LK21: 14:00:00 | LL21: 20:00:00 | LM21: 08:00:00 | LO21: OFF | LQ21: - | LR21: - | LT21: 1.666666667 | LU21: 11:00:00 | LV21: 14:00:00 | LW21: 20:00:00 | LX21: 08:00:00 | LZ21: 11:00:00 | MA21: 14:00:00 | MB21: 20:00:00 | MC21: 08:00:00 | ME21: 11:00:00 | MF21: 14:00:00 | MG21: 20:00:00 | MH21: 08:00:00 | MJ21: 11:00:00 | MK21: 14:00:00 | ML21: 20:00:00 | MM21: 08:00:00 | MO21: 11:00:00 | MP21: 14:00:00 | MQ21: 20:00:00 | MR21: 08:00:00 | MT21: OFF | MV21: - | MW21: - | MY21: 1.666666667 | MZ21: 11:00:00 | NA21: 13:00:00 | NB21: 20:00:00 | NC21: 08:00:00 | NE21: 11:00:00 | NF21: 13:00:00 | NG21: 20:00:00 | NH21: 08:00:00 | NJ21: 11:00:00 | NK21: 13:00:00 | NL21: 20:00:00 | NM21: 08:00:00 | NO21: 11:00:00 | NP21: 13:00:00 | NQ21: 20:00:00 | NR21: 08:00:00 | NT21: 11:00:00 | NU21: 13:00:00 | NV21: 20:00:00 | NW21: 08:00:00 | NY21: OFF | OA21: - | OB21: - | OD21: 1.666666667 | OG21: - | OH21: - | OL21: - | OM21: - | OQ21: - | OR21: - | OV21: - | OW21: - | PA21: - | PB21: - | PF21: - | PG21: - | PL21: - | PM21: =IFERROR(IF(PK21="",(PL21-PJ21),((PL21-PJ21)-$C$3)),"-") -> - | PQ21: - | PR21: - | PV21: - | PW21: - | QA21: - | QB21: - | QF21: - | QG21: - | QK21: - | QL21: - | QO21: 11:00:00 | QP21: 14:00:00 | QQ21: 20:00:00 | QR21: 08:00:00 | QT21: 11:00:00 | QU21: 14:00:00 | QV21: 20:00:00 | QW21: 08:00:00 | QY21: 11:00:00 | QZ21: 14:00:00 | RA21: 20:00:00 | RB21: 08:00:00 | RD21: FNT | RF21: - | RG21: 08:00:00 | RI21: OFF | RK21: - | RL21: - | RN21: 13:00:00 | RO21: 15:00:00 | RP21: 22:00:00 | RQ21: 08:00:00 | RR21: 1 | RS21: 1.666666667 | RT21: 13:00:00 | RU21: 15:00:00 | RV21: 22:00:00 | RW21: 08:00:00 | RY21: 13:00:00 | RZ21: 15:00:00 | SA21: 22:00:00 | SB21: 08:00:00 | SD21: 13:00:00 | SE21: 15:00:00 | SF21: 22:00:00 | SG21: 08:00:00 | SI21: 13:00:00 | SJ21: 15:00:00 | SK21: 22:00:00 | SL21: 08:00:00 | SN21: 13:00:00 | SO21: 15:00:00 | SP21: 22:00:00 | SQ21: 08:00:00 | SS21: OFF | SU21: - | SV21: - | SX21: 1.666666667 | SY21: 11:00:00 | SZ21: 14:00:00 | TA21: 20:00:00 | TB21: 08:00:00 | TD21: 11:00:00 | TE21: 14:00:00 | TF21: 20:00:00 | TG21: 08:00:00 | TI21: 11:00:00 | TJ21: 14:00:00 | TK21: 20:00:00 | TL21: 08:00:00 | TN21: 11:00:00 | TO21: 14:00:00 | TP21: 20:00:00 | TQ21: 08:00:00 | TS21: 11:00:00 | TT21: 14:00:00 | TU21: 20:00:00 | TV21: 08:00:00 | TX21: OFF | TZ21: - | UA21: - | UC21: 1.666666667 | UF21: - | UG21: - | UK21: - | UL21: - | UQ21: - | UR21: - | UV21: - | UW21: - | VA21: - | VB21: - | VF21: - | VG21: - | VJ21: 13:00:00 | VK21: 15:00:00 | VL21: 22:00:00 | VM21: 08:00:00 | VO21: 13:00:00 | VP21: 15:00:00 | VQ21: 22:00:00 | VR21: 08:00:00 | VT21: 13:00:00 | VU21: 15:00:00 | VV21: 22:00:00 | VW21: 08:00:00 | VY21: 13:00:00 | VZ21: 15:00:00 | WA21: 22:00:00 | WB21: 08:00:00 | WD21: 13:00:00 | WE21: 15:00:00 | WF21: 22:00:00 | WG21: 08:00:00 | WI21: OFF | WK21: - | WL21: - | WN21: 1.666666667 | WO21: 11:00:00 | WP21: 13:00:00 | WQ21: 20:00:00 | WR21: 08:00:00 | WT21: 11:00:00 | WU21: 13:00:00 | WV21: 20:00:00 | WW21: 08:00:00 | WY21: 11:00:00 | WZ21: 13:00:00 | XA21: 20:00:00 | XB21: 08:00:00 | XD21: 11:00:00 | XE21: 13:00:00 | XF21: 20:00:00 | XG21: 08:00:00 | XI21: 11:00:00 | XJ21: 13:00:00 | XK21: 20:00:00 | XL21: 08:00:00 | XN21: OFF | XP21: - | XQ21: - | XS21: 1.666666667 | XT21: 11:00:00 | XU21: 13:00:00 | XV21: 20:00:00 | XW21: 08:00:00 | XY21: 11:00:00 | XZ21: 13:00:00 | YA21: 20:00:00 | YB21: 08:00:00 | YD21: 11:00:00 | YE21: 13:00:00 | YF21: 20:00:00 | YG21: 08:00:00 | YI21: 11:00:00 | YJ21: 13:00:00 | YK21: 20:00:00 | YL21: 08:00:00 | YN21: 13:00:00 | YO21: TT | YP21: 22:00:00 | YQ21: 08:00:00 | YS21: OFF | YU21: - | YV21: - | YX21: 1.666666667 | YY21: 11:00:00 | YZ21: 14:00:00 | ZA21: 20:00:00 | ZB21: 08:00:00 | ZD21: 11:00:00 | ZE21: 14:00:00 | ZF21: 20:00:00 | ZG21: 08:00:00 | ZI21: 11:00:00 | ZJ21: 14:00:00 | ZK21: 20:00:00 | ZL21: 08:00:00 | ZN21: 11:00:00 | ZO21: 14:00:00 | ZP21: 20:00:00 | ZQ21: 08:00:00 | ZS21: 11:00:00 | ZT21: TT | ZU21: 20:00:00 | ZV21: 08:00:00 | ZX21: OFF | ZZ21: - | AAA21: -
A22: =IF(ISBLANK(JK22),"",COUNTA($JK$9:JK22)) -> 14 | B22: =BDD!B13 -> RABEARIMALANTO Tsimbanavalona Hanitriniela | C22: =BDD!J13 -> ALL. | D22: =IFERROR(VLOOKUP($B22,BDD!$B:$M,12,0),"-") -> 0 | F22: 13:00:00 | G22: 00:00:00 | H22: 00:00:00 | K22: 0 | L22: 0 | M22: 0 | N22: 0 | O22: 0 | P22: 0 | Q22: 0 | R22: 0 | S22: 4.416666667 | T22: 0 | U22: 0 | V22: 0 | W22: 2 | X22: 0 | Y22: 0 | Z22: 0 | AA22: 0 | AB22: 2.145833333 | AF22: - | AG22: - | AK22: - | AL22: - | AP22: - | AQ22: - | AU22: - | AV22: - | AZ22: - | BA22: - | BE22: - | BF22: - | BJ22: - | BK22: - | BO22: - | BP22: - | BT22: - | BU22: - | BY22: - | BZ22: - | CD22: - | CE22: - | CI22: - | CJ22: - | CN22: - | CO22: - | CS22: - | CT22: - | CX22: - | CY22: - | DC22: - | DD22: - | DH22: - | DI22: - | DM22: - | DN22: - | DR22: - | DS22: - | DW22: - | DX22: - | EB22: - | EC22: - | EG22: - | EH22: - | EL22: - | EM22: - | EQ22: - | ER22: - | EW22: - | EX22: - | FB22: - | FC22: - | FG22: - | FH22: - | FL22: - | FM22: - | FQ22: - | FR22: - | FV22: - | FW22: - | FY22: 09:00:00 | GA22: 17:00:00 | GB22: 07:00:00 | GD22: 09:00:00 | GF22: 17:00:00 | GG22: 07:00:00 | GI22: 09:00:00 | GK22: 17:00:00 | GL22: 07:00:00 | GN22: 09:00:00 | GP22: 17:00:00 | GQ22: 07:00:00 | GS22: 09:00:00 | GU22: 17:00:00 | GV22: 07:00:00 | GX22: OFF | GZ22: - | HA22: - | HC22: 09:00:00 | HE22: 17:00:00 | HF22: 07:00:00 | HH22: 09:00:00 | HJ22: 17:00:00 | HK22: 07:00:00 | HM22: 09:00:00 | HO22: 17:00:00 | HP22: 07:00:00 | HR22: 09:00:00 | HT22: 17:00:00 | HU22: 07:00:00 | HW22: 09:00:00 | HY22: 17:00:00 | HZ22: 07:00:00 | IB22: OFF | ID22: - | IE22: - | IG22: 09:00:00 | II22: 17:00:00 | IJ22: 07:00:00 | IL22: 09:00:00 | IN22: 17:00:00 | IO22: 07:00:00 | IQ22: 09:00:00 | IS22: 17:00:00 | IT22: 07:00:00 | IV22: 09:00:00 | IX22: 17:00:00 | IY22: 07:00:00 | JA22: 09:00:00 | JC22: 17:00:00 | JD22: 07:00:00 | JF22: OFF | JH22: - | JI22: - | JK22: - | JM22: - | JN22: - | JP22: - | JR22: - | JS22: - | JU22: - | JW22: - | JX22: - | JZ22: - | KB22: - | KC22: - | KE22: - | KG22: - | KH22: - | KJ22: - | KL22: - | KM22: - | KP22: 10:00:00 | KQ22: 12:00:00 | KR22: 18:00:00 | KS22: 07:00:00 | KU22: 10:00:00 | KV22: 12:00:00 | KW22: 18:00:00 | KX22: 07:00:00 | KZ22: 10:00:00 | LA22: 12:00:00 | LB22: 18:00:00 | LC22: 07:00:00 | LE22: 10:00:00 | LF22: 12:00:00 | LG22: 18:00:00 | LH22: 07:00:00 | LJ22: 10:00:00 | LK22: 12:00:00 | LL22: 18:00:00 | LM22: 07:00:00 | LO22: OFF | LQ22: - | LR22: - | LT22: 1.458333333 | LU22: 10:00:00 | LV22: 12:00:00 | LW22: 18:00:00 | LX22: 07:00:00 | LZ22: 10:00:00 | MA22: 12:00:00 | MB22: 18:00:00 | MC22: 07:00:00 | ME22: 10:00:00 | MF22: 12:00:00 | MG22: 18:00:00 | MH22: 07:00:00 | MJ22: 10:00:00 | MK22: 12:00:00 | ML22: 18:00:00 | MM22: 07:00:00 | MO22: 10:00:00 | MP22: 12:00:00 | MQ22: 18:00:00 | MR22: 07:00:00 | MT22: OFF | MV22: - | MW22: - | MY22: 1.458333333 | MZ22: 10:00:00 | NA22: 12:00:00 | NB22: 18:00:00 | NC22: 07:00:00 | NE22: 10:00:00 | NF22: 12:00:00 | NG22: 18:00:00 | NH22: 07:00:00 | NJ22: 10:00:00 | NK22: 12:00:00 | NL22: 18:00:00 | NM22: 07:00:00 | NO22: 10:00:00 | NP22: 12:00:00 | NQ22: 18:00:00 | NR22: 07:00:00 | NT22: 10:00:00 | NU22: 12:00:00 | NV22: 18:00:00 | NW22: 07:00:00 | NY22: OFF | OA22: - | OB22: - | OD22: 1.458333333 | OG22: - | OH22: - | OL22: - | OM22: - | OQ22: - | OR22: - | OV22: - | OW22: - | PA22: - | PB22: - | PF22: - | PG22: - | PL22: - | PM22: =IFERROR(IF(PK22="",(PL22-PJ22),((PL22-PJ22)-$C$3)),"-") -> - | PQ22: - | PR22: - | PV22: - | PW22: - | QA22: - | QB22: - | QF22: - | QG22: - | QK22: - | QL22: - | QO22: 12:00:00 | QP22: 14:00:00 | QQ22: 20:00:00 | QR22: 07:00:00 | QT22: 12:00:00 | QU22: 14:00:00 | QV22: 20:00:00 | QW22: 07:00:00 | QY22: 10:00:00 | QZ22: 12:00:00 | RA22: 18:00:00 | RB22: 07:00:00 | RD22: FNT | RF22: - | RG22: 08:00:00 | RI22: 10:00:00 | RJ22: 12:00:00 | RK22: 18:00:00 | RL22: 07:00:00 | RN22: OFF | RP22: - | RQ22: - | RS22: 1.5 | RT22: 10:00:00 | RU22: 12:00:00 | RV22: 18:00:00 | RW22: 07:00:00 | RY22: 10:00:00 | RZ22: 12:00:00 | SA22: 18:00:00 | SB22: 07:00:00 | SD22: 12:00:00 | SE22: 12:00:00 | SF22: 20:00:00 | SG22: 07:00:00 | SI22: 10:00:00 | SJ22: 12:00:00 | SK22: 18:00:00 | SL22: 07:00:00 | SN22: 10:00:00 | SO22: 12:00:00 | SP22: 18:00:00 | SQ22: 07:00:00 | SS22: OFF | SU22: - | SV22: - | SX22: 1.458333333 | SY22: 10:00:00 | SZ22: 13:00:00 | TA22: 18:00:00 | TB22: 07:00:00 | TD22: 10:00:00 | TE22: 13:00:00 | TF22: 18:00:00 | TG22: 07:00:00 | TI22: 10:00:00 | TJ22: 13:00:00 | TK22: 18:00:00 | TL22: 07:00:00 | TN22: 10:00:00 | TO22: 13:00:00 | TP22: 18:00:00 | TQ22: 07:00:00 | TS22: 10:00:00 | TT22: 13:00:00 | TU22: 18:00:00 | TV22: 07:00:00 | TX22: OFF | TZ22: - | UA22: - | UC22: 1.458333333 | UF22: - | UG22: - | UK22: - | UL22: - | UQ22: - | UR22: - | UV22: - | UW22: - | VA22: - | VB22: - | VF22: - | VG22: - | VJ22: 10:00:00 | VK22: 13:00:00 | VL22: 18:00:00 | VM22: 07:00:00 | VO22: 10:00:00 | VP22: 13:00:00 | VQ22: 18:00:00 | VR22: 07:00:00 | VT22: 10:00:00 | VU22: 13:00:00 | VV22: 18:00:00 | VW22: 07:00:00 | VY22: 10:00:00 | VZ22: 13:00:00 | WA22: 18:00:00 | WB22: 07:00:00 | WD22: 09:00:00 | WE22: 13:00:00 | WF22: 17:00:00 | WG22: 07:00:00 | WI22: OFF | WK22: - | WL22: - | WN22: 1.458333333 | WO22: 10:00:00 | WP22: 13:00:00 | WQ22: 18:00:00 | WR22: 07:00:00 | WT22: 10:00:00 | WV22: 11:30:00 | WW22: 01:30:00 | XA22: - | XB22: - | XF22: - | XG22: - | XK22: - | XL22: - | XN22: OFF | XP22: - | XQ22: - | XS22: 0.3541666667 | XU22: 13:00:00 | XV22: - | XW22: - | XZ22: 13:00:00 | YA22: - | YB22: - | YE22: 13:00:00 | YF22: - | YG22: - | YJ22: 13:00:00 | YK22: - | YL22: - | YO22: 13:00:00 | YP22: - | YQ22: - | YS22: OFF | YU22: - | YV22: - | ZA22: - | ZB22: - | ZF22: - | ZG22: - | ZK22: - | ZL22: - | ZP22: - | ZQ22: - | ZS22: 09:00:00 | ZU22: 17:00:00 | ZV22: 08:00:00 | ZX22: OFF | ZZ22: - | AAA22: -
A23: =IF(ISBLANK(JK23),"",COUNTA($JK$9:JK23)) -> 15 | B23: =BDD!B14 -> RAVAOARIMANANA Sarindra | C23: =BDD!J14 -> Rotation | D23: =IFERROR(VLOOKUP($B23,BDD!$B:$M,12,0),"-") -> Anosisoa Ambohimanarina | E23: 11:00:00 | F23: 13:00:00 | G23: 20:00:00 | H23: 08:00:00 | K23: 0 | L23: 0 | M23: 0 | N23: 0 | O23: 5 | P23: 9 | Q23: 0 | R23: 0 | S23: 5 | T23: 0 | U23: 0 | V23: 0 | W23: 7 | X23: 9 | Y23: 4 | Z23: 0 | AA23: 0 | AB23: 6.666666667 | AF23: - | AG23: - | AK23: - | AL23: - | AP23: - | AQ23: - | AU23: - | AV23: - | AZ23: - | BA23: - | BE23: - | BF23: - | BJ23: - | BK23: - | BO23: - | BP23: - | BT23: - | BU23: - | BY23: - | BZ23: - | CD23: - | CE23: - | CI23: - | CJ23: - | CN23: - | CO23: - | CS23: - | CT23: - | CX23: - | CY23: - | DC23: - | DD23: - | DH23: - | DI23: - | DM23: - | DN23: - | DR23: - | DS23: - | DW23: - | DX23: - | EB23: - | EC23: - | EG23: - | EH23: - | EL23: - | EM23: - | EQ23: - | ER23: - | EW23: - | EX23: - | FB23: - | FC23: - | FG23: - | FH23: - | FL23: - | FM23: - | FQ23: - | FR23: - | FV23: - | FW23: - | FY23: 09:00:00 | GA23: 18:00:00 | GB23: 08:00:00 | GD23: 09:00:00 | GF23: 18:00:00 | GG23: 08:00:00 | GI23: 09:00:00 | GK23: 18:00:00 | GL23: 08:00:00 | GN23: 09:00:00 | GP23: 18:00:00 | GQ23: 08:00:00 | GS23: 09:00:00 | GU23: 18:00:00 | GV23: 08:00:00 | GX23: OFF | GZ23: - | HA23: - | HC23: 09:00:00 | HE23: 18:00:00 | HF23: 08:00:00 | HH23: 09:00:00 | HJ23: 18:00:00 | HK23: 08:00:00 | HM23: 09:00:00 | HO23: 18:00:00 | HP23: 08:00:00 | HR23: 09:00:00 | HT23: 18:00:00 | HU23: 08:00:00 | HW23: 09:00:00 | HY23: 18:00:00 | HZ23: 08:00:00 | IB23: OFF | ID23: - | IE23: - | IG23: 11:00:00 | II23: 20:00:00 | IJ23: 08:00:00 | IL23: 11:00:00 | IN23: 20:00:00 | IO23: 08:00:00 | IQ23: 11:00:00 | IS23: 20:00:00 | IT23: 08:00:00 | IV23: 11:00:00 | IX23: 20:00:00 | IY23: 08:00:00 | JA23: 11:00:00 | JC23: 20:00:00 | JD23: 08:00:00 | JF23: OFF | JH23: - | JI23: - | JK23: - | JM23: - | JN23: - | JP23: - | JR23: - | JS23: - | JU23: - | JW23: - | JX23: - | JZ23: - | KB23: - | KC23: - | KE23: - | KG23: - | KH23: - | KJ23: - | KL23: - | KM23: - | KP23: 09:00:00 | KQ23: 12:00:00 | KR23: 18:00:00 | KS23: 08:00:00 | KU23: 09:00:00 | KV23: 12:00:00 | KW23: 18:00:00 | KX23: 08:00:00 | KZ23: 09:00:00 | LA23: 12:00:00 | LB23: 18:00:00 | LC23: 08:00:00 | LE23: 09:00:00 | LF23: 12:00:00 | LG23: 18:00:00 | LH23: 08:00:00 | LJ23: 09:00:00 | LK23: 12:00:00 | LL23: 18:00:00 | LM23: 08:00:00 | LO23: OFF | LQ23: - | LR23: - | LT23: 1.666666667 | LU23: 11:00:00 | LV23: 14:00:00 | LW23: 20:00:00 | LX23: 08:00:00 | LZ23: 09:00:00 | MA23: 17:00:00 | MB23: 18:00:00 | MC23: 08:00:00 | ME23: 11:00:00 | MF23: 14:00:00 | MG23: 20:00:00 | MH23: 08:00:00 | MJ23: 11:00:00 | MK23: 14:00:00 | ML23: 20:00:00 | MM23: 08:00:00 | MO23: 11:00:00 | MP23: 14:00:00 | MQ23: 20:00:00 | MR23: 08:00:00 | MT23: OFF | MV23: - | MW23: - | MY23: 1.666666667 | MZ23: 09:00:00 | NA23: 13:00:00 | NB23: 18:00:00 | NC23: 08:00:00 | NE23: 09:00:00 | NF23: 13:00:00 | NG23: 18:00:00 | NH23: 08:00:00 | NJ23: 09:00:00 | NK23: 13:00:00 | NL23: 18:00:00 | NM23: 08:00:00 | NO23: 09:00:00 | NP23: 13:00:00 | NQ23: 18:00:00 | NR23: 08:00:00 | NT23: 09:00:00 | NU23: 13:00:00 | NV23: 18:00:00 | NW23: 08:00:00 | NY23: OFF | OA23: - | OB23: - | OD23: 1.666666667 | OG23: - | OH23: - | OL23: - | OM23: - | OQ23: - | OR23: - | OV23: - | OW23: - | PA23: - | PB23: - | PF23: - | PG23: - | PL23: - | PM23: =IFERROR(IF(PK23="",(PL23-PJ23),((PL23-PJ23)-$C$3)),"-") -> - | PQ23: - | PR23: - | PV23: - | PW23: - | QA23: - | QB23: - | QF23: - | QG23: - | QK23: - | QL23: - | QO23: 13:00:00 | QP23: 15:00:00 | QQ23: 22:00:00 | QR23: 08:00:00 | QT23: 13:00:00 | QU23: 15:00:00 | QV23: 22:00:00 | QW23: 08:00:00 | QY23: 13:00:00 | QZ23: 15:00:00 | RA23: 22:00:00 | RB23: 08:00:00 | RD23: FNT | RF23: - | RG23: 08:00:00 | RI23: 13:00:00 | RJ23: 15:00:00 | RK23: 22:00:00 | RL23: 08:00:00 | RN23: OFF | RP23: - | RQ23: - | RS23: 1.666666667 | RT23: 11:00:00 | RU23: 14:00:00 | RV23: 20:00:00 | RW23: 08:00:00 | RY23: 11:00:00 | RZ23: 14:00:00 | SA23: 20:00:00 | SB23: 08:00:00 | SD23: 11:00:00 | SE23: 14:00:00 | SF23: 20:00:00 | SG23: 08:00:00 | SI23: 11:00:00 | SJ23: 14:00:00 | SK23: 20:00:00 | SL23: 08:00:00 | SN23: 11:00:00 | SO23: 14:00:00 | SP23: 20:00:00 | SQ23: 08:00:00 | SS23: OFF | SU23: - | SV23: - | SX23: 1.666666667 | SY23: 13:00:00 | SZ23: 15:00:00 | TA23: 22:00:00 | TB23: 08:00:00 | TD23: 13:00:00 | TE23: 15:00:00 | TF23: 22:00:00 | TG23: 08:00:00 | TI23: 13:00:00 | TJ23: 15:00:00 | TK23: 22:00:00 | TL23: 08:00:00 | TN23: 13:00:00 | TO23: 15:00:00 | TP23: 22:00:00 | TQ23: 08:00:00 | TS23: 13:00:00 | TT23: 15:00:00 | TU23: 22:00:00 | TV23: 08:00:00 | TX23: OFF | TZ23: - | UA23: - | UC23: 1.666666667 | UF23: - | UG23: - | UK23: - | UL23: - | UQ23: - | UR23: - | UV23: - | UW23: - | VA23: - | VB23: - | VF23: - | VG23: - | VJ23: 11:00:00 | VK23: 12:00:00 | VL23: 20:00:00 | VM23: 08:00:00 | VO23: 11:00:00 | VP23: 12:00:00 | VQ23: 20:00:00 | VR23: 08:00:00 | VT23: 11:00:00 | VU23: 12:00:00 | VV23: 20:00:00 | VW23: 08:00:00 | VY23: 11:00:00 | VZ23: 12:00:00 | WA23: 20:00:00 | WB23: 08:00:00 | WD23: 11:00:00 | WE23: 12:00:00 | WF23: 20:00:00 | WG23: 08:00:00 | WI23: OFF | WK23: - | WL23: - | WN23: 1.666666667 | WO23: 09:00:00 | WP23: 12:00:00 | WQ23: 18:00:00 | WR23: 08:00:00 | WT23: 09:00:00 | WU23: 12:00:00 | WV23: 18:00:00 | WW23: 08:00:00 | WY23: 09:00:00 | WZ23: 12:00:00 | XA23: 18:00:00 | XB23: 08:00:00 | XD23: 09:00:00 | XE23: 12:00:00 | XF23: 18:00:00 | XG23: 08:00:00 | XI23: 09:00:00 | XJ23: 12:00:00 | XK23: 18:00:00 | XL23: 08:00:00 | XN23: OFF | XP23: - | XQ23: - | XS23: 1.666666667 | XT23: 11:00:00 | XU23: 13:00:00 | XV23: 20:00:00 | XW23: 08:00:00 | XY23: 11:00:00 | XZ23: 13:00:00 | YA23: 20:00:00 | YB23: 08:00:00 | YD23: 11:00:00 | YE23: 13:00:00 | YF23: 20:00:00 | YG23: 08:00:00 | YI23: 11:00:00 | YJ23: 13:00:00 | YK23: 20:00:00 | YL23: 08:00:00 | YN23: 09:00:00 | YO23: 13:00:00 | YP23: 18:00:00 | YQ23: 08:00:00 | YS23: OFF | YU23: - | YV23: - | YX23: 1.666666667 | YY23: 13:00:00 | YZ23: 15:00:00 | ZA23: 22:00:00 | ZB23: 08:00:00 | ZD23: 13:00:00 | ZE23: 15:00:00 | ZF23: 22:00:00 | ZG23: 08:00:00 | ZI23: 13:00:00 | ZJ23: 15:00:00 | ZK23: 22:00:00 | ZL23: 08:00:00 | ZN23: 13:00:00 | ZO23: 15:00:00 | ZP23: 22:00:00 | ZQ23: 08:00:00 | ZS23: 09:00:00 | ZT23: 12:00:00 | ZU23: 18:00:00 | ZV23: 08:00:00 | ZX23: OFF | ZZ23: - | AAA23: -
RN27: ² | RX27: n

Sheet Calcul Stat
A1: Horodateur_Local | B1: Opérateurs | C1: ID FACTURE | D1: Satut | E1: Motif de rejet | F1: DateReFormated | G1: Horodateur_Local | H1: Mois | I1: Année | J1: Heure | K1: TRANCHE | L1: Delta heure | M1: PIA | N1: Doublon | Q1: 00:05:00 | R1: =$F$2 -> 2021-12-20 | S1: =IF(R1<TODAY(),"",((NOW()-INT(NOW())))) ->  | T1: Global | U1: 90 | V1: Temps planifié | W1: Temps Connecté | X1: Temps production | Y1: Temps restant | Z1: Traités | AA1: Accepted | AB1: Rejected | AC1: Prod/H | AD1: DMT | AE1: Doublon | AF1: Taux rejet | AG1: Prod restant | AI1: Incident
A2: 20 déc. 2021, 11:07:26 | B2: RABENJANAHARY Fanomezantsoa | C2: 8ad3c4f6-30f3-4f94-8990-cf65dd2a5af7 | D2: Accepted | E2: null | F2: 2021-12-20 | G2: 20 | H2: déc. | I2: 2021 | J2: 11:07:26 | K2: =INT(J2*24)/24 -> 11:00:00 | L2: =IF(B2=B1,(J2-J1),"") ->  | O2: =IF(B1<>B2,J2,"") -> 11:07:26 | Q2: 04:00:00 | U2: ="01:00:00"/$U$1 -> 0.000462962963 | V2: =SUM(V4:V24) -> 2.958333333 | W2: 2.132800926 | X2: 2.311111111 | Y2: 0.6472222222 | Z2: 5141 | AA2: 3995 | AB2: 1146 | AC2: =IFERROR(IF($R$1=TODAY(),ROUND((Z2/((W2)*24)),0),ROUND((Z2/((V2)*24)),0)),"-") -> 72 | AD2: =IFERROR(((W2*24)/Z2)/24,"-") -> 00:00:35.844 | AE2: =SUM(AE4:AE24) -> 22 | AF2: =IFERROR(AB2/Z2,"-") -> 0.22291383 | AG2: =SUM(AG4:AG24) -> 1398 | AI2: =SUM(AI4:AI24) -> 0
A3: 20 déc. 2021, 11:08:16 | B3: RABENJANAHARY Fanomezantsoa | C3: 60ee5277-443f-49c1-88be-af34bd98e0aa | D3: Accepted | E3: null | F3: 2021-12-20 | G3: 20 | H3: déc. | I3: 2021 | J3: 11:08:16 | K3: 11:00:00 | L3: 00:00:50 | Q3: 01:00:00 | R3: NOM | S3: Ancienneté | T3: Shift | U3: 1ère Facture | V3: Temps planifié | W3: Temps Connecté | X3: Temps production | Y3: Temps restant | Z3: Traités | AA3: Accepted | AB3: Rejected | AC3: Prod/H | AD3: DMT | AE3: Doublon | AF3: Taux rejet | AG3: Prod restant | AH3: RANG | AI3: Incident | AJ3: Config | AK3: Login PIA | AL3: TOUR | AN3: Productivité par Config | AO3: Prod/h | AP3: Nb Agent
A4: 20 déc. 2021, 11:08:40 | B4: RABENJANAHARY Fanomezantsoa | C4: d2449537-0ac6-4942-bda3-0faae52a0cfd | D4: Accepted | E4: null | F4: 2021-12-20 | G4: 20 | H4: déc. | I4: 2021 | J4: 11:08:40 | K4: 11:00:00 | L4: 00:00:24 | R4: =IF(BDD!B1="","",BDD!B2) -> Rojo Mampionona RANDRIANARIVELO | S4: =IFERROR(VLOOKUP($R4,BDD!$B:$H,7,0),"") -> Plus de 3 Mois | T4: =IFERROR((VLOOKUP($R4,Planning!$B$11:$E$23,4,0)),"-") ->  | U4: =IFERROR(VLOOKUP($R4,$B:$O,14,0),"-") -> - | V4: =IF($Z4="-","-",VLOOKUP($R4,Planning!$B$11:$H$23,7,0)) -> - | W4: =IFERROR(IF(Z4="-","-",IF($R$1<TODAY(),SUMIF($B:$B,$R4,$L:$L)-$Q$3,IF($T4=0.75,($S$1-T4),(IF(VLOOKUP($R4,Planning!$B:$I,5,0)<='Calcul Stat'!$S$1,(($S$1-T4)-$Q$3),($S$1-T4)))))),"-") -> - | X4: =IFERROR(IF(($U$2*Z4)>$V4,$V4,($U$2*Z4)),"-") -> - | Y4: =IFERROR(IF((VLOOKUP($R4,Planning!$B$11:$H$23,7,0)-$V4)+(IF($X4>$V4,"",($V4-X4)))=0,"-",(VLOOKUP($R4,Planning!$B$11:$H$23,7,0)-$V4)+(IF($X4>$V4,"",($V4-X4)))),"-") -> - | Z4: =IFERROR(IF(R4="","-",IF(COUNTIFS($B:$B,$R4)=0,"-",IF($AE4="-",COUNTIFS($B:$B,$R4),COUNTIFS($B:$B,$R4)-AE4))),"-") -> - | AA4: =IF(R4="","-",IF(COUNTIFS($B:$B,$R4,$D:$D,"Accepted")=0,"-",COUNTIFS($B:$B,$R4,$D:$D,"Accepted")-COUNTIFS($B:$B,$R4,$D:$D,"Accepted",$N:$N,1))) -> - | AB4: =IF(R4="","-",IF(COUNTIFS($B:$B,$R4,$D:$D,"Rejected")=0,"-",COUNTIFS($B:$B,$R4,$D:$D,"Rejected")-COUNTIFS($B:$B,$R4,$D:$D,"Rejected",$N:$N,1))) -> - | AC4: =IFERROR(IF($R$1=TODAY(),((Z4/((W4-AI4)*24))),((Z4/((V4-AI4)*24)))),"-") -> - | AD4: =IFERROR(IF(R4="","-",((W4*24)/Z4)/24),"-") -> - | AE4: =IFERROR(IF($R4="","-", IF(SUMIFS($N:$N,$B:$B,$R4)=0,"-",SUMIFS($N:$N,$B:$B,$R4))),"-") -> - | AF4: =IFERROR(AB4/Z4,"-") -> - | AG4: =IFERROR((Y4*24)*$U$1,"-") -> - | AH4: =IFERROR(IF(RANK($AC4,$AC$4:$AC$24)=1,RANK($AC4,$AC$4:$AC$24)&" "&"er",RANK($AC4,$AC$4:$AC$24)&" "&"éme"),"") ->  | AI4: =IF(Z4="-","-",SUMIFS(Incident!$F:$F,Incident!$C:$C,$R$1,Incident!$A:$A,$R4,Incident!$B:$B,"Débrief")+SUMIFS(Incident!$F:$F,Incident!$C:$C,$R$1,Incident!$A:$A,$R4,Incident!$B:$B,"Formation")) -> - | AJ4: =IFERROR(VLOOKUP($R4,BDD!$B:$F,4,0),"") -> 0 | AK4: =IFERROR(VLOOKUP($R4,BDD!$B:$L,10,0),"-") -> T 15 | AL4: =IFERROR(VLOOKUP($R4,BDD!$B:$K,9,0),"") -> Jour | AN4: Win10/RAM 8Go/Corei3 | AO4: =IFERROR(IF($R$1=TODAY(),(SUMIF($AJ$4:$AJ$24,$AN4,$Z$4:$Z$24)/(SUMIF($AJ$4:$AJ$24,$AN4,$W$4:$W$24)*24)),(SUMIF($AJ$4:$AJ$24,$AN4,$Z$4:$Z$24)/(SUMIF($AJ$4:$AJ$24,$AN4,$V$4:$V$24)*24))),"-") -> - | AP4: =COUNTIF($AJ$4:$AJ$24,$AN4) -> 0
A5: 20 déc. 2021, 11:08:57 | B5: RABENJANAHARY Fanomezantsoa | C5: 90a804e2-f9f6-4f5c-a7f9-c9048f0eec17 | D5: Accepted | E5: null | F5: 2021-12-20 | G5: 20 | H5: déc. | I5: 2021 | J5: 11:08:57 | K5: 11:00:00 | L5: 00:00:17 | R5: =IF(BDD!B2="","",BDD!B3) -> RAKOTOMALALA Mamy Tsilavina | S5: =IFERROR(VLOOKUP($R5,BDD!$B:$H,7,0),"") -> Plus de 3 Mois | T5: =IFERROR((VLOOKUP($R5,Planning!$B$11:$E$23,4,0)),"-") -> 13:00:00 | U5: 13:12:52 | V5: =IF($Z5="-","-",VLOOKUP($R5,Planning!$B$11:$H$23,7,0)) -> 0.3333333333 | W5: =IFERROR(IF(Z5="-","-",IF($R$1<TODAY(),SUMIF($B:$B,$R5,$L:$L)-$Q$3,IF($T5=0.75,($S$1-T5),(IF(VLOOKUP($R5,Planning!$B:$I,5,0)<='Calcul Stat'!$S$1,(($S$1-T5)-$Q$3),($S$1-T5)))))),"-") -> 0.1529861111 | X5: =IFERROR(IF(($U$2*Z5)>$V5,$V5,($U$2*Z5)),"-") -> 0.1402777778 | Y5: =IFERROR(IF((VLOOKUP($R5,Planning!$B$11:$H$23,7,0)-$V5)+(IF($X5>$V5,"",($V5-X5)))=0,"-",(VLOOKUP($R5,Planning!$B$11:$H$23,7,0)-$V5)+(IF($X5>$V5,"",($V5-X5)))),"-") -> 04:38:00 | Z5: 303 | AA5: 241 | AB5: 62 | AC5: =IFERROR(IF($R$1=TODAY(),((Z5/((W5-AI5)*24))),((Z5/((V5-AI5)*24)))),"-") -> 37.875 | AD5: =IFERROR(IF(R5="","-",((W5*24)/Z5)/24),"-") -> 00:00:43.624 | AE5: - | AF5: =IFERROR(AB5/Z5,"-") -> 0.204620462 | AG5: =IFERROR((Y5*24)*$U$1,"-") -> 417 | AH5: 8 éme | AI5: =IF(Z5="-","-",SUMIFS(Incident!$F:$F,Incident!$C:$C,$R$1,Incident!$A:$A,$R5,Incident!$B:$B,"Débrief")+SUMIFS(Incident!$F:$F,Incident!$C:$C,$R$1,Incident!$A:$A,$R5,Incident!$B:$B,"Formation")) -> 0 | AJ5: =IFERROR(VLOOKUP($R5,BDD!$B:$F,4,0),"") -> 0 | AK5: =IFERROR(VLOOKUP($R5,BDD!$B:$L,10,0),"-") -> T 3 | AL5: =IFERROR(VLOOKUP($R5,BDD!$B:$K,9,0),"") -> Rotation | AN5: Win7/RAM 3Go/Core2Duo | AO5: =IFERROR(IF($R$1=TODAY(),(SUMIF($AJ$4:$AJ$24,$AN5,$Z$4:$Z$24)/(SUMIF($AJ$4:$AJ$24,$AN5,$W$4:$W$24)*24)),(SUMIF($AJ$4:$AJ$24,$AN5,$Z$4:$Z$24)/(SUMIF($AJ$4:$AJ$24,$AN5,$V$4:$V$24)*24))),"-") -> - | AP5: =COUNTIF($AJ$4:$AJ$24,$AN5) -> 0
A6: 20 déc. 2021, 11:09:29 | B6: RABENJANAHARY Fanomezantsoa | C6: 7129f15f-30b6-4901-bc1d-f07cec949ba9 | D6: Accepted | E6: null | F6: 2021-12-20 | G6: 20 | H6: déc. | I6: 2021 | J6: 11:09:29 | K6: 11:00:00 | L6: 00:00:32 | R6: =IF(BDD!B3="","",BDD!B4) -> RAKOTOMAVO Andrianarija | S6: =IFERROR(VLOOKUP($R6,BDD!$B:$H,7,0),"") -> Plus de 3 Mois | T6: =IFERROR((VLOOKUP($R6,Planning!$B$11:$E$23,4,0)),"-") -> 13:00:00 | U6: 13:18:59 | V6: =IF($Z6="-","-",VLOOKUP($R6,Planning!$B$11:$H$23,7,0)) -> 0.3333333333 | W6: =IFERROR(IF(Z6="-","-",IF($R$1<TODAY(),SUMIF($B:$B,$R6,$L:$L)-$Q$3,IF($T6=0.75,($S$1-T6),(IF(VLOOKUP($R6,Planning!$B:$I,5,0)<='Calcul Stat'!$S$1,(($S$1-T6)-$Q$3),($S$1-T6)))))),"-") -> 0.1494675926 | X6: 0.1027777778 | Y6: =IFERROR(IF((VLOOKUP($R6,Planning!$B$11:$H$23,7,0)-$V6)+(IF($X6>$V6,"",($V6-X6)))=0,"-",(VLOOKUP($R6,Planning!$B$11:$H$23,7,0)-$V6)+(IF($X6>$V6,"",($V6-X6)))),"-") -> 05:32:00 | Z6: 222 | AA6: 184 | AB6: 38 | AC6: 27.75 | AD6: =IFERROR(IF(R6="","-",((W6*24)/Z6)/24),"-") -> 00:00:58.171 | AE6: 1 | AF6: 0.1711711712 | AG6: 498 | AH6: 9 éme | AI6: =IF(Z6="-","-",SUMIFS(Incident!$F:$F,Incident!$C:$C,$R$1,Incident!$A:$A,$R6,Incident!$B:$B,"Débrief")+SUMIFS(Incident!$F:$F,Incident!$C:$C,$R$1,Incident!$A:$A,$R6,Incident!$B:$B,"Formation")) -> 0 | AJ6: =IFERROR(VLOOKUP($R6,BDD!$B:$F,4,0),"") -> 0 | AK6: =IFERROR(VLOOKUP($R6,BDD!$B:$L,10,0),"-") -> T 6 | AL6: =IFERROR(VLOOKUP($R6,BDD!$B:$K,9,0),"") -> Jour | AN6: Win7/RAM 4Go/Core2Duo | AO6: =IFERROR(IF($R$1=TODAY(),(SUMIF($AJ$4:$AJ$24,$AN6,$Z$4:$Z$24)/(SUMIF($AJ$4:$AJ$24,$AN6,$W$4:$W$24)*24)),(SUMIF($AJ$4:$AJ$24,$AN6,$Z$4:$Z$24)/(SUMIF($AJ$4:$AJ$24,$AN6,$V$4:$V$24)*24))),"-") -> - | AP6: =COUNTIF($AJ$4:$AJ$24,$AN6) -> 0
A7: 20 déc. 2021, 11:10:05 | B7: RABENJANAHARY Fanomezantsoa | C7: 9d16c0da-d757-44c4-9c78-7f799fbc6fe0 | D7: Accepted | E7: null | F7: 2021-12-20 | G7: 20 | H7: déc. | I7: 2021 | J7: 11:10:05 | K7: 11:00:00 | L7: 00:00:36 | R7: =IF(BDD!B4="","",BDD!B5) -> RAKOTOASIMBOLA Toavina Jery | S7: =IFERROR(VLOOKUP($R7,BDD!$B:$H,7,0),"") -> Plus de 3 Mois | T7: =IFERROR((VLOOKUP($R7,Planning!$B$11:$E$23,4,0)),"-") -> 18:00:00 | U7: - | V7: =IF($Z7="-","-",VLOOKUP($R7,Planning!$B$11:$H$23,7,0)) -> - | W7: =IFERROR(IF(Z7="-","-",IF($R$1<TODAY(),SUMIF($B:$B,$R7,$L:$L)-$Q$3,IF($T7=0.75,($S$1-T7),(IF(VLOOKUP($R7,Planning!$B:$I,5,0)<='Calcul Stat'!$S$1,(($S$1-T7)-$Q$3),($S$1-T7)))))),"-") -> - | X7: - | Y7: =IFERROR(IF((VLOOKUP($R7,Planning!$B$11:$H$23,7,0)-$V7)+(IF($X7>$V7,"",($V7-X7)))=0,"-",(VLOOKUP($R7,Planning!$B$11:$H$23,7,0)-$V7)+(IF($X7>$V7,"",($V7-X7)))),"-") -> - | Z7: - | AA7: - | AB7: - | AC7: - | AD7: - | AE7: - | AF7: - | AG7: - | AI7: =IF(Z7="-","-",SUMIFS(Incident!$F:$F,Incident!$C:$C,$R$1,Incident!$A:$A,$R7,Incident!$B:$B,"Débrief")+SUMIFS(Incident!$F:$F,Incident!$C:$C,$R$1,Incident!$A:$A,$R7,Incident!$B:$B,"Formation")) -> - | AJ7: =IFERROR(VLOOKUP($R7,BDD!$B:$F,4,0),"") -> 0 | AK7: =IFERROR(VLOOKUP($R7,BDD!$B:$L,10,0),"-") -> T 6 | AL7: =IFERROR(VLOOKUP($R7,BDD!$B:$K,9,0),"") -> Mi-temps | AN7: Win10/RAM 4Go/Corei3 | AO7: =IFERROR(IF($R$1=TODAY(),(SUMIF($AJ$4:$AJ$24,$AN7,$Z$4:$Z$24)/(SUMIF($AJ$4:$AJ$24,$AN7,$W$4:$W$24)*24)),(SUMIF($AJ$4:$AJ$24,$AN7,$Z$4:$Z$24)/(SUMIF($AJ$4:$AJ$24,$AN7,$V$4:$V$24)*24))),"-") -> - | AP7: =COUNTIF($AJ$4:$AJ$24,$AN7) -> 0
A8: 20 déc. 2021, 11:10:33 | B8: RABENJANAHARY Fanomezantsoa | C8: 5261e85e-28df-4266-ab9b-4fbb413ef583 | D8: Accepted | E8: null | F8: 2021-12-20 | G8: 20 | H8: déc. | I8: 2021 | J8: 11:10:33 | K8: 11:00:00 | L8: 00:00:28 | R8: =IF(BDD!B5="","",BDD!B6) -> RAZAFIMAHATRATRA Mamy Herilanto | S8: =IFERROR(VLOOKUP($R8,BDD!$B:$H,7,0),"") -> Plus de 3 Mois | T8: =IFERROR((VLOOKUP($R8,Planning!$B$11:$E$23,4,0)),"-") -> 09:00:00 | U8: 09:17:45 | V8: =IF($Z8="-","-",VLOOKUP($R8,Planning!$B$11:$H$23,7,0)) -> 0.3333333333 | W8: =IFERROR(IF(Z8="-","-",IF($R$1<TODAY(),SUMIF($B:$B,$R8,$L:$L)-$Q$3,IF($T8=0.75,($S$1-T8),(IF(VLOOKUP($R8,Planning!$B:$I,5,0)<='Calcul Stat'!$S$1,(($S$1-T8)-$Q$3),($S$1-T8)))))),"-") -> 0.3170138889 | X8: 0.3333333333 | Y8: =IFERROR(IF((VLOOKUP($R8,Planning!$B$11:$H$23,7,0)-$V8)+(IF($X8>$V8,"",($V8-X8)))=0,"-",(VLOOKUP($R8,Planning!$B$11:$H$23,7,0)-$V8)+(IF($X8>$V8,"",($V8-X8)))),"-") -> - | Z8: 759 | AA8: 678 | AB8: 81 | AC8: 94.875 | AD8: 00:00:36.087 | AE8: 1 | AF8: 0.1067193676 | AG8: - | AH8: 2 éme | AI8: =IF(Z8="-","-",SUMIFS(Incident!$F:$F,Incident!$C:$C,$R$1,Incident!$A:$A,$R8,Incident!$B:$B,"Débrief")+SUMIFS(Incident!$F:$F,Incident!$C:$C,$R$1,Incident!$A:$A,$R8,Incident!$B:$B,"Formation")) -> 0 | AJ8: =IFERROR(VLOOKUP($R8,BDD!$B:$F,4,0),"") -> 0 | AK8: =IFERROR(VLOOKUP($R8,BDD!$B:$L,10,0),"-") -> T 6 | AL8: =IFERROR(VLOOKUP($R8,BDD!$B:$K,9,0),"") -> Rotation | AN8: Win10/RAM 8Go/Corei5 | AO8: =IFERROR(IF($R$1=TODAY(),(SUMIF($AJ$4:$AJ$24,$AN8,$Z$4:$Z$24)/(SUMIF($AJ$4:$AJ$24,$AN8,$W$4:$W$24)*24)),(SUMIF($AJ$4:$AJ$24,$AN8,$Z$4:$Z$24)/(SUMIF($AJ$4:$AJ$24,$AN8,$V$4:$V$24)*24))),"-") -> - | AP8: =COUNTIF($AJ$4:$AJ$24,$AN8) -> 0
A9: 20 déc. 2021, 11:10:51 | B9: RABENJANAHARY Fanomezantsoa | C9: 405d2612-dbc0-4c90-8929-4b4dc5f48bd7 | D9: Accepted | E9: null | F9: 2021-12-20 | G9: 20 | H9: déc. | I9: 2021 | J9: 11:10:51 | K9: 11:00:00 | L9: 00:00:18 | R9: =IF(BDD!B6="","",BDD!B7) -> FALINIRINA Antsa Fitahiana | S9: =IFERROR(VLOOKUP($R9,BDD!$B:$H,7,0),"") -> Plus de 3 Mois | T9: =IFERROR((VLOOKUP($R9,Planning!$B$11:$E$23,4,0)),"-") -> CP | U9: - | V9: =IF($Z9="-","-",VLOOKUP($R9,Planning!$B$11:$H$23,7,0)) -> - | W9: =IFERROR(IF(Z9="-","-",IF($R$1<TODAY(),SUMIF($B:$B,$R9,$L:$L)-$Q$3,IF($T9=0.75,($S$1-T9),(IF(VLOOKUP($R9,Planning!$B:$I,5,0)<='Calcul Stat'!$S$1,(($S$1-T9)-$Q$3),($S$1-T9)))))),"-") -> - | X9: - | Y9: =IFERROR(IF((VLOOKUP($R9,Planning!$B$11:$H$23,7,0)-$V9)+(IF($X9>$V9,"",($V9-X9)))=0,"-",(VLOOKUP($R9,Planning!$B$11:$H$23,7,0)-$V9)+(IF($X9>$V9,"",($V9-X9)))),"-") -> - | Z9: - | AA9: - | AB9: - | AC9: - | AD9: - | AE9: - | AF9: - | AG9: - | AI9: =IF(Z9="-","-",SUMIFS(Incident!$F:$F,Incident!$C:$C,$R$1,Incident!$A:$A,$R9,Incident!$B:$B,"Débrief")+SUMIFS(Incident!$F:$F,Incident!$C:$C,$R$1,Incident!$A:$A,$R9,Incident!$B:$B,"Formation")) -> - | AJ9: =IFERROR(VLOOKUP($R9,BDD!$B:$F,4,0),"") -> 0 | AK9: =IFERROR(VLOOKUP($R9,BDD!$B:$L,10,0),"-") -> T 3 | AL9: =IFERROR(VLOOKUP($R9,BDD!$B:$K,9,0),"") -> Jour
A10: 20 déc. 2021, 11:11:21 | B10: RABENJANAHARY Fanomezantsoa | C10: 039be132-d2cb-4cf5-9586-2c898c8e57e6 | D10: Accepted | E10: null | F10: 2021-12-20 | G10: 20 | H10: déc. | I10: 2021 | J10: 11:11:21 | K10: 11:00:00 | L10: 00:00:30 | R10: =IF(BDD!B7="","",BDD!B8) -> RAZAFIMANDIMBY Faraniaina Sandri Fabio Linda | S10: =IFERROR(VLOOKUP($R10,BDD!$B:$H,7,0),"") -> Plus de 3 Mois | T10: =IFERROR((VLOOKUP($R10,Planning!$B$11:$E$23,4,0)),"-") -> 09:00:00 | U10: 09:10:51 | V10: =IF($Z10="-","-",VLOOKUP($R10,Planning!$B$11:$H$23,7,0)) -> 0.2916666667 | W10: =IFERROR(IF(Z10="-","-",IF($R$1<TODAY(),SUMIF($B:$B,$R10,$L:$L)-$Q$3,IF($T10=0.75,($S$1-T10),(IF(VLOOKUP($R10,Planning!$B:$I,5,0)<='Calcul Stat'!$S$1,(($S$1-T10)-$Q$3),($S$1-T10)))))),"-") -> 0.2916319444 | X10: 0.2916666667 | Y10: =IFERROR(IF((VLOOKUP($R10,Planning!$B$11:$H$23,7,0)-$V10)+(IF($X10>$V10,"",($V10-X10)))=0,"-",(VLOOKUP($R10,Planning!$B$11:$H$23,7,0)-$V10)+(IF($X10>$V10,"",($V10-X10)))),"-") -> - | Z10: 740 | AA10: 551 | AB10: 189 | AC10: 105.7142857 | AD10: 00:00:34.050 | AE10: 4 | AF10: 0.2554054054 | AG10: - | AH10: 1 er | AI10: =IF(Z10="-","-",SUMIFS(Incident!$F:$F,Incident!$C:$C,$R$1,Incident!$A:$A,$R10,Incident!$B:$B,"Débrief")+SUMIFS(Incident!$F:$F,Incident!$C:$C,$R$1,Incident!$A:$A,$R10,Incident!$B:$B,"Formation")) -> 0 | AJ10: =IFERROR(VLOOKUP($R10,BDD!$B:$F,4,0),"") -> 0 | AK10: =IFERROR(VLOOKUP($R10,BDD!$B:$L,10,0),"-") -> T 6 | AL10: =IFERROR(VLOOKUP($R10,BDD!$B:$K,9,0),"") -> ALL.
A11: 20 déc. 2021, 11:12:00 | B11: RABENJANAHARY Fanomezantsoa | C11: 7b7ce081-a380-4d98-b59c-b063acf38d7e | D11: Accepted | E11: null | F11: 2021-12-20 | G11: 20 | H11: déc. | I11: 2021 | J11: 11:12:00 | K11: 11:00:00 | L11: 00:00:39 | R11: =IF(BDD!B8="","",BDD!B9) -> RAJAONARIVELO Njaraniaina Lovasoa Malalatiana | S11: =IFERROR(VLOOKUP($R11,BDD!$B:$H,7,0),"") -> Plus de 3 Mois | T11: =IFERROR((VLOOKUP($R11,Planning!$B$11:$E$23,4,0)),"-") -> 11:00:00 | U11: 11:51:53 | V11: =IF($Z11="-","-",VLOOKUP($R11,Planning!$B$11:$H$23,7,0)) -> 0.3333333333 | W11: =IFERROR(IF(Z11="-","-",IF($R$1<TODAY(),SUMIF($B:$B,$R11,$L:$L)-$Q$3,IF($T11=0.75,($S$1-T11),(IF(VLOOKUP($R11,Planning!$B:$I,5,0)<='Calcul Stat'!$S$1,(($S$1-T11)-$Q$3),($S$1-T11)))))),"-") -> 0.2099768519 | X11: 0.2555555556 | Y11: =IFERROR(IF((VLOOKUP($R11,Planning!$B$11:$H$23,7,0)-$V11)+(IF($X11>$V11,"",($V11-X11)))=0,"-",(VLOOKUP($R11,Planning!$B$11:$H$23,7,0)-$V11)+(IF($X11>$V11,"",($V11-X11)))),"-") -> 01:52:00 | Z11: 552 | AA11: 538 | AB11: 14 | AC11: 69 | AD11: 00:00:32.866 | AE11: - | AF11: 0.02536231884 | AG11: 168 | AH11: 7 éme | AI11: =IF(Z11="-","-",SUMIFS(Incident!$F:$F,Incident!$C:$C,$R$1,Incident!$A:$A,$R11,Incident!$B:$B,"Débrief")+SUMIFS(Incident!$F:$F,Incident!$C:$C,$R$1,Incident!$A:$A,$R11,Incident!$B:$B,"Formation")) -> 0 | AJ11: =IFERROR(VLOOKUP($R11,BDD!$B:$F,4,0),"") -> 0 | AK11: =IFERROR(VLOOKUP($R11,BDD!$B:$L,10,0),"-") -> T 6 | AL11: =IFERROR(VLOOKUP($R11,BDD!$B:$K,9,0),"") -> Rotation | AN11: Productivité par Login | AO11: Prod/h | AP11: Nb Agent
A12: 20 déc. 2021, 11:13:56 | B12: RABENJANAHARY Fanomezantsoa | C12: e39a381f-a4bc-4389-a419-5be9c03a4d15 | D12: Accepted | E12: null | F12: 2021-12-20 | G12: 20 | H12: déc. | I12: 2021 | J12: 11:13:56 | K12: 11:00:00 | L12: 00:01:56 | R12: =IF(BDD!B9="","",BDD!B10) -> RABENJANAHARY Fanomezantsoa | S12: =IFERROR(VLOOKUP($R12,BDD!$B:$H,7,0),"") -> Plus de 3 Mois | T12: =IFERROR((VLOOKUP($R12,Planning!$B$11:$E$23,4,0)),"-") -> 11:00:00 | U12: 11:07:26 | V12: =IF($Z12="-","-",VLOOKUP($R12,Planning!$B$11:$H$23,7,0)) -> 0.3333333333 | W12: =IFERROR(IF(Z12="-","-",IF($R$1<TODAY(),SUMIF($B:$B,$R12,$L:$L)-$Q$3,IF($T12=0.75,($S$1-T12),(IF(VLOOKUP($R12,Planning!$B:$I,5,0)<='Calcul Stat'!$S$1,(($S$1-T12)-$Q$3),($S$1-T12)))))),"-") -> 0.2407523148 | X12: 0.2703703704 | Y12: =IFERROR(IF((VLOOKUP($R12,Planning!$B$11:$H$23,7,0)-$V12)+(IF($X12>$V12,"",($V12-X12)))=0,"-",(VLOOKUP($R12,Planning!$B$11:$H$23,7,0)-$V12)+(IF($X12>$V12,"",($V12-X12)))),"-") -> 01:30:40 | Z12: 584 | AA12: 437 | AB12: 147 | AC12: 73 | AD12: 00:00:35.618 | AE12: 4 | AF12: 0.2517123288 | AG12: 136 | AH12: 6 éme | AI12: =IF(Z12="-","-",SUMIFS(Incident!$F:$F,Incident!$C:$C,$R$1,Incident!$A:$A,$R12,Incident!$B:$B,"Débrief")+SUMIFS(Incident!$F:$F,Incident!$C:$C,$R$1,Incident!$A:$A,$R12,Incident!$B:$B,"Formation")) -> 0 | AJ12: =IFERROR(VLOOKUP($R12,BDD!$B:$F,4,0),"") -> 0 | AK12: =IFERROR(VLOOKUP($R12,BDD!$B:$L,10,0),"-") -> T 15 | AL12: =IFERROR(VLOOKUP($R12,BDD!$B:$K,9,0),"") -> Rotation | AN12: codage1@devloop.onmicrosoft.com | AO12: =IFERROR(IF($R$1=TODAY(),(SUMIF($AK$4:$AK$24,$AN12,$Z$4:$Z$24)/(SUMIF($AK$4:$AK$24,$AN12,$W$4:$W$24)*24)),(SUMIF($AK$4:$AK$24,$AN12,$Z$4:$Z$24)/(SUMIF($AK$4:$AK$24,$AN12,$V$4:$V$24)*24))),"-") -> - | AP12: =COUNTIF($AK$4:$AK$24,$AN12) -> 0
A13: 20 déc. 2021, 11:14:21 | B13: RABENJANAHARY Fanomezantsoa | C13: 25d5368f-0468-43c2-9313-01e9e071553c | D13: Rejected | E13: Page manquante/ Informations incomplètes/ Abscence Montant | F13: 2021-12-20 | G13: 20 | H13: déc. | I13: 2021 | J13: 11:14:21 | K13: 11:00:00 | L13: 00:00:25 | R13: =IF(BDD!B10="","",BDD!B11) -> RAVONIAINA Fenotoky Jean Baptiste | S13: =IFERROR(VLOOKUP($R13,BDD!$B:$H,7,0),"") -> Plus de 3 Mois | T13: =IFERROR((VLOOKUP($R13,Planning!$B$11:$E$23,4,0)),"-") -> 11:00:00 | U13: 11:09:15 | V13: =IF($Z13="-","-",VLOOKUP($R13,Planning!$B$11:$H$23,7,0)) -> 0.3333333333 | W13: =IFERROR(IF(Z13="-","-",IF($R$1<TODAY(),SUMIF($B:$B,$R13,$L:$L)-$Q$3,IF($T13=0.75,($S$1-T13),(IF(VLOOKUP($R13,Planning!$B:$I,5,0)<='Calcul Stat'!$S$1,(($S$1-T13)-$Q$3),($S$1-T13)))))),"-") -> 0.2393171296 | X13: 0.2726851852 | Y13: =IFERROR(IF((VLOOKUP($R13,Planning!$B$11:$H$23,7,0)-$V13)+(IF($X13>$V13,"",($V13-X13)))=0,"-",(VLOOKUP($R13,Planning!$B$11:$H$23,7,0)-$V13)+(IF($X13>$V13,"",($V13-X13)))),"-") -> 01:27:20 | Z13: 589 | AA13: 404 | AB13: 185 | AC13: 73.625 | AD13: 00:00:35.105 | AE13: - | AF13: 0.3140916808 | AG13: 131 | AH13: 5 éme | AI13: =IF(Z13="-","-",SUMIFS(Incident!$F:$F,Incident!$C:$C,$R$1,Incident!$A:$A,$R13,Incident!$B:$B,"Débrief")+SUMIFS(Incident!$F:$F,Incident!$C:$C,$R$1,Incident!$A:$A,$R13,Incident!$B:$B,"Formation")) -> 0 | AJ13: =IFERROR(VLOOKUP($R13,BDD!$B:$F,4,0),"") -> 0 | AK13: =IFERROR(VLOOKUP($R13,BDD!$B:$L,10,0),"-") -> T 3 | AL13: =IFERROR(VLOOKUP($R13,BDD!$B:$K,9,0),"") -> Rotation | AN13: codage11@devloop92.onmicrosoft.com | AO13: - | AP13: 0
A14: 20 déc. 2021, 11:14:51 | B14: RABENJANAHARY Fanomezantsoa | C14: 89c15064-ec48-4d20-9eca-c27297dcc6af | D14: Accepted | E14: null | F14: 2021-12-20 | G14: 20 | H14: déc. | I14: 2021 | J14: 11:14:51 | K14: 11:00:00 | L14: 00:00:30 | R14: =IF(BDD!B11="","",BDD!B12) -> RAKOTOARIVONY Manitrarilala Josephson Rosa | S14: =IFERROR(VLOOKUP($R14,BDD!$B:$H,7,0),"") -> Plus de 3 Mois | T14: =IFERROR((VLOOKUP($R14,Planning!$B$11:$E$23,4,0)),"-") -> 11:00:00 | U14: 10:20:32 | V14: =IF($Z14="-","-",VLOOKUP($R14,Planning!$B$11:$H$23,7,0)) -> 0.3333333333 | W14: =IFERROR(IF(Z14="-","-",IF($R$1<TODAY(),SUMIF($B:$B,$R14,$L:$L)-$Q$3,IF($T14=0.75,($S$1-T14),(IF(VLOOKUP($R14,Planning!$B:$I,5,0)<='Calcul Stat'!$S$1,(($S$1-T14)-$Q$3),($S$1-T14)))))),"-") -> 0.2733680556 | X14: 0.312962963 | Y14: =IFERROR(IF((VLOOKUP($R14,Planning!$B$11:$H$23,7,0)-$V14)+(IF($X14>$V14,"",($V14-X14)))=0,"-",(VLOOKUP($R14,Planning!$B$11:$H$23,7,0)-$V14)+(IF($X14>$V14,"",($V14-X14)))),"-") -> 00:29:20 | Z14: 676 | AA14: 428 | AB14: 248 | AC14: 84.5 | AD14: 00:00:34.939 | AE14: 6 | AF14: 0.3668639053 | AG14: 44 | AH14: 4 éme | AI14: =IF(Z14="-","-",SUMIFS(Incident!$F:$F,Incident!$C:$C,$R$1,Incident!$A:$A,$R14,Incident!$B:$B,"Débrief")+SUMIFS(Incident!$F:$F,Incident!$C:$C,$R$1,Incident!$A:$A,$R14,Incident!$B:$B,"Formation")) -> 0 | AJ14: =IFERROR(VLOOKUP($R14,BDD!$B:$F,4,0),"") -> 0 | AK14: =IFERROR(VLOOKUP($R14,BDD!$B:$L,10,0),"-") -> T 15 | AL14: =IFERROR(VLOOKUP($R14,BDD!$B:$K,9,0),"") -> Rotation | AN14: codage12@devloop92.onmicrosoft.com | AO14: - | AP14: 0
A15: 20 déc. 2021, 11:15:12 | B15: RABENJANAHARY Fanomezantsoa | C15: 3eb1470e-b702-452d-b803-7e6e5469f214 | D15: Accepted | E15: null | F15: 2021-12-20 | G15: 20 | H15: déc. | I15: 2021 | J15: 11:15:12 | K15: 11:00:00 | L15: 00:00:21 | R15: =IF(BDD!B12="","",BDD!B13) -> RABEARIMALANTO Tsimbanavalona Hanitriniela | S15: =IFERROR(VLOOKUP($R15,BDD!$B:$H,7,0),"") -> Plus de 3 Mois | T15: =IFERROR((VLOOKUP($R15,Planning!$B$11:$E$23,4,0)),"-") ->  | U15: - | V15: =IF($Z15="-","-",VLOOKUP($R15,Planning!$B$11:$H$23,7,0)) -> - | W15: =IFERROR(IF(Z15="-","-",IF($R$1<TODAY(),SUMIF($B:$B,$R15,$L:$L)-$Q$3,IF($T15=0.75,($S$1-T15),(IF(VLOOKUP($R15,Planning!$B:$I,5,0)<='Calcul Stat'!$S$1,(($S$1-T15)-$Q$3),($S$1-T15)))))),"-") -> - | X15: - | Y15: =IFERROR(IF((VLOOKUP($R15,Planning!$B$11:$H$23,7,0)-$V15)+(IF($X15>$V15,"",($V15-X15)))=0,"-",(VLOOKUP($R15,Planning!$B$11:$H$23,7,0)-$V15)+(IF($X15>$V15,"",($V15-X15)))),"-") -> - | Z15: - | AA15: - | AB15: - | AC15: - | AD15: - | AE15: - | AF15: - | AG15: - | AI15: =IF(Z15="-","-",SUMIFS(Incident!$F:$F,Incident!$C:$C,$R$1,Incident!$A:$A,$R15,Incident!$B:$B,"Débrief")+SUMIFS(Incident!$F:$F,Incident!$C:$C,$R$1,Incident!$A:$A,$R15,Incident!$B:$B,"Formation")) -> - | AJ15: =IFERROR(VLOOKUP($R15,BDD!$B:$F,4,0),"") -> 0 | AK15: =IFERROR(VLOOKUP($R15,BDD!$B:$L,10,0),"-") -> T 15 | AL15: =IFERROR(VLOOKUP($R15,BDD!$B:$K,9,0),"") -> ALL. | AN15: codage13@devloop92.onmicrosoft.com | AO15: - | AP15: 0
A16: 20 déc. 2021, 11:15:29 | B16: RABENJANAHARY Fanomezantsoa | C16: 05601236-7f71-4e4d-af84-247b30766013 | D16: Rejected | E16: Page manquante/ Informations incomplètes/ Abscence Montant | F16: 2021-12-20 | G16: 20 | H16: déc. | I16: 2021 | J16: 11:15:29 | K16: 11:00:00 | L16: 00:00:17 | R16: =IF(BDD!B13="","",BDD!B14) -> RAVAOARIMANANA Sarindra | S16: =IFERROR(VLOOKUP($R16,BDD!$B:$H,7,0),"") -> Plus de 3 Mois | T16: =IFERROR((VLOOKUP($R16,Planning!$B$11:$E$23,4,0)),"-") -> 11:00:00 | U16: 10:42:11 | V16: =IF($Z16="-","-",VLOOKUP($R16,Planning!$B$11:$H$23,7,0)) -> 0.3333333333 | W16: =IFERROR(IF(Z16="-","-",IF($R$1<TODAY(),SUMIF($B:$B,$R16,$L:$L)-$Q$3,IF($T16=0.75,($S$1-T16),(IF(VLOOKUP($R16,Planning!$B:$I,5,0)<='Calcul Stat'!$S$1,(($S$1-T16)-$Q$3),($S$1-T16)))))),"-") -> 0.258287037 | X16: 0.3314814815 | Y16: =IFERROR(IF((VLOOKUP($R16,Planning!$B$11:$H$23,7,0)-$V16)+(IF($X16>$V16,"",($V16-X16)))=0,"-",(VLOOKUP($R16,Planning!$B$11:$H$23,7,0)-$V16)+(IF($X16>$V16,"",($V16-X16)))),"-") -> 00:02:40 | Z16: 716 | AA16: 534 | AB16: 182 | AC16: 89.5 | AD16: 00:00:31.168 | AE16: 6 | AF16: 0.2541899441 | AG16: 4 | AH16: 3 éme | AI16: =IF(Z16="-","-",SUMIFS(Incident!$F:$F,Incident!$C:$C,$R$1,Incident!$A:$A,$R16,Incident!$B:$B,"Débrief")+SUMIFS(Incident!$F:$F,Incident!$C:$C,$R$1,Incident!$A:$A,$R16,Incident!$B:$B,"Formation")) -> 0 | AJ16: =IFERROR(VLOOKUP($R16,BDD!$B:$F,4,0),"") -> 0 | AK16: =IFERROR(VLOOKUP($R16,BDD!$B:$L,10,0),"-") -> T 15 | AL16: =IFERROR(VLOOKUP($R16,BDD!$B:$K,9,0),"") -> Rotation | AN16: codage14@devloop92.onmicrosoft.com | AO16: - | AP16: 0
A17: 20 déc. 2021, 11:15:43 | B17: RABENJANAHARY Fanomezantsoa | C17: 06c354be-763c-4858-939a-7a1a36f0b99b | D17: Rejected | E17: Page manquante/ Informations incomplètes/ Abscence Montant | F17: 2021-12-20 | G17: 20 | H17: déc. | I17: 2021 | J17: 11:15:43 | K17: 11:00:00 | L17: 00:00:14 | R17: =IF(BDD!B14="","",BDD!B15) -> 0 | S17: =IFERROR(VLOOKUP($R17,BDD!$B:$H,7,0),"") ->  | T17: =IFERROR((VLOOKUP($R17,Planning!$B$11:$E$23,4,0)),"-") -> - | U17: - | V17: =IF($Z17="-","-",VLOOKUP($R17,Planning!$B$11:$H$23,7,0)) -> - | W17: =IFERROR(IF(Z17="-","-",IF($R$1<TODAY(),SUMIF($B:$B,$R17,$L:$L)-$Q$3,IF($T17=0.75,($S$1-T17),(IF(VLOOKUP($R17,Planning!$B:$I,5,0)<='Calcul Stat'!$S$1,(($S$1-T17)-$Q$3),($S$1-T17)))))),"-") -> - | X17: - | Y17: =IFERROR(IF((VLOOKUP($R17,Planning!$B$11:$H$23,7,0)-$V17)+(IF($X17>$V17,"",($V17-X17)))=0,"-",(VLOOKUP($R17,Planning!$B$11:$H$23,7,0)-$V17)+(IF($X17>$V17,"",($V17-X17)))),"-") -> - | Z17: - | AA17: - | AB17: - | AC17: - | AD17: - | AE17: - | AF17: - | AG17: - | AI17: =IF(Z17="-","-",SUMIFS(Incident!$F:$F,Incident!$C:$C,$R$1,Incident!$A:$A,$R17,Incident!$B:$B,"Débrief")+SUMIFS(Incident!$F:$F,Incident!$C:$C,$R$1,Incident!$A:$A,$R17,Incident!$B:$B,"Formation")) -> - | AJ17: =IFERROR(VLOOKUP($R17,BDD!$B:$F,4,0),"") ->  | AK17: =IFERROR(VLOOKUP($R17,BDD!$B:$L,10,0),"-") -> - | AL17: =IFERROR(VLOOKUP($R17,BDD!$B:$K,9,0),"") ->  | AN17: codage4@devloop.onmicrosoft.com | AO17: - | AP17: 0
A18: 20 déc. 2021, 11:16:09 | B18: RABENJANAHARY Fanomezantsoa | C18: 0957be5e-8037-4208-b6cc-484c1d0dab7c | D18: Rejected | E18: Factures multiples | F18: 2021-12-20 | G18: 20 | H18: déc. | I18: 2021 | J18: 11:16:09 | K18: 11:00:00 | L18: 00:00:26 | R18: =IF(BDD!B15="","",BDD!B16) ->  | S18: =IFERROR(VLOOKUP($R18,BDD!$B:$H,7,0),"") ->  | T18: =IFERROR((VLOOKUP($R18,Planning!$B$11:$E$23,4,0)),"-") -> - | U18: - | V18: =IF($Z18="-","-",VLOOKUP($R18,Planning!$B$11:$H$23,7,0)) -> - | W18: =IFERROR(IF(Z18="-","-",IF($R$1<TODAY(),SUMIF($B:$B,$R18,$L:$L)-$Q$3,IF($T18=0.75,($S$1-T18),(IF(VLOOKUP($R18,Planning!$B:$I,5,0)<='Calcul Stat'!$S$1,(($S$1-T18)-$Q$3),($S$1-T18)))))),"-") -> - | X18: - | Y18: =IFERROR(IF((VLOOKUP($R18,Planning!$B$11:$H$23,7,0)-$V18)+(IF($X18>$V18,"",($V18-X18)))=0,"-",(VLOOKUP($R18,Planning!$B$11:$H$23,7,0)-$V18)+(IF($X18>$V18,"",($V18-X18)))),"-") -> - | Z18: - | AA18: - | AB18: - | AC18: - | AD18: - | AE18: - | AF18: - | AG18: - | AI18: =IF(Z18="-","-",SUMIFS(Incident!$F:$F,Incident!$C:$C,$R$1,Incident!$A:$A,$R18,Incident!$B:$B,"Débrief")+SUMIFS(Incident!$F:$F,Incident!$C:$C,$R$1,Incident!$A:$A,$R18,Incident!$B:$B,"Formation")) -> - | AJ18: =IFERROR(VLOOKUP($R18,BDD!$B:$F,4,0),"") ->  | AK18: =IFERROR(VLOOKUP($R18,BDD!$B:$L,10,0),"-") -> - | AL18: =IFERROR(VLOOKUP($R18,BDD!$B:$K,9,0),"") ->  | AN18: codage6@devloop92.onmicrosoft.com | AO18: - | AP18: 0
A19: 20 déc. 2021, 11:16:56 | B19: RABENJANAHARY Fanomezantsoa | C19: 75d0ff3e-dd52-4f7a-a96b-6aef32304cdd | D19: Accepted | E19: null | F19: 2021-12-20 | G19: 20 | H19: déc. | I19: 2021 | J19: 11:16:56 | K19: 11:00:00 | L19: 00:00:47 | R19: =IF(BDD!B16="","",BDD!B17) ->  | S19: =IFERROR(VLOOKUP($R19,BDD!$B:$H,7,0),"") ->  | T19: =IFERROR((VLOOKUP($R19,Planning!$B$11:$E$23,4,0)),"-") -> - | U19: - | V19: =IF($Z19="-","-",VLOOKUP($R19,Planning!$B$11:$H$23,7,0)) -> - | W19: =IFERROR(IF(Z19="-","-",IF($R$1<TODAY(),SUMIF($B:$B,$R19,$L:$L)-$Q$3,IF($T19=0.75,($S$1-T19),(IF(VLOOKUP($R19,Planning!$B:$I,5,0)<='Calcul Stat'!$S$1,(($S$1-T19)-$Q$3),($S$1-T19)))))),"-") -> - | X19: - | Y19: =IFERROR(IF((VLOOKUP($R19,Planning!$B$11:$H$23,7,0)-$V19)+(IF($X19>$V19,"",($V19-X19)))=0,"-",(VLOOKUP($R19,Planning!$B$11:$H$23,7,0)-$V19)+(IF($X19>$V19,"",($V19-X19)))),"-") -> - | Z19: - | AA19: - | AB19: - | AC19: - | AD19: - | AE19: - | AF19: - | AG19: - | AI19: =IF(Z19="-","-",SUMIFS(Incident!$F:$F,Incident!$C:$C,$R$1,Incident!$A:$A,$R19,Incident!$B:$B,"Débrief")+SUMIFS(Incident!$F:$F,Incident!$C:$C,$R$1,Incident!$A:$A,$R19,Incident!$B:$B,"Formation")) -> - | AJ19: =IFERROR(VLOOKUP($R19,BDD!$B:$F,4,0),"") ->  | AK19: =IFERROR(VLOOKUP($R19,BDD!$B:$L,10,0),"-") -> - | AL19: =IFERROR(VLOOKUP($R19,BDD!$B:$K,9,0),"") ->  | AN19: codage7@devloop92.onmicrosoft.com | AO19: - | AP19: 0
A20: 20 déc. 2021, 11:17:20 | B20: RABENJANAHARY Fanomezantsoa | C20: 6c655a89-333b-48d0-87ae-765752c2e16d | D20: Accepted | E20: null | F20: 2021-12-20 | G20: 20 | H20: déc. | I20: 2021 | J20: 11:17:20 | K20: 11:00:00 | L20: 00:00:24 | S20: =IFERROR(VLOOKUP($R20,BDD!$B:$H,7,0),"") ->  | T20: =IFERROR((VLOOKUP($R20,Planning!$B$11:$E$23,4,0)),"-") -> - | U20: - | V20: =IF($Z20="-","-",VLOOKUP($R20,Planning!$B$11:$H$23,7,0)) -> - | W20: =IFERROR(IF(Z20="-","-",IF($R$1<TODAY(),SUMIF($B:$B,$R20,$L:$L)-$Q$3,IF($T20=0.75,($S$1-T20),(IF(VLOOKUP($R20,Planning!$B:$I,5,0)<='Calcul Stat'!$S$1,(($S$1-T20)-$Q$3),($S$1-T20)))))),"-") -> - | X20: - | Y20: =IFERROR(IF((VLOOKUP($R20,Planning!$B$11:$H$23,7,0)-$V20)+(IF($X20>$V20,"",($V20-X20)))=0,"-",(VLOOKUP($R20,Planning!$B$11:$H$23,7,0)-$V20)+(IF($X20>$V20,"",($V20-X20)))),"-") -> - | Z20: - | AA20: - | AB20: - | AC20: - | AD20: - | AE20: - | AF20: - | AG20: - | AI20: =IF(Z20="-","-",SUMIFS(Incident!$F:$F,Incident!$C:$C,$R$1,Incident!$A:$A,$R20,Incident!$B:$B,"Débrief")+SUMIFS(Incident!$F:$F,Incident!$C:$C,$R$1,Incident!$A:$A,$R20,Incident!$B:$B,"Formation")) -> - | AJ20: =IFERROR(VLOOKUP($R20,BDD!$B:$F,4,0),"") ->  | AK20: =IFERROR(VLOOKUP($R20,BDD!$B:$L,10,0),"-") -> - | AL20: =IFERROR(VLOOKUP($R20,BDD!$B:$K,9,0),"") ->  | AN20: codage8@devloop92.onmicrosoft.com | AO20: - | AP20: 0
A21: 20 déc. 2021, 11:17:55 | B21: RABENJANAHARY Fanomezantsoa | C21: e7fa3a21-5f42-4571-8b32-be68c46aea07 | D21: Accepted | E21: null | F21: 2021-12-20 | G21: 20 | H21: déc. | I21: 2021 | J21: 11:17:55 | K21: 11:00:00 | L21: 00:00:35 | S21: =IFERROR(VLOOKUP($R21,BDD!$B:$H,7,0),"") ->  | T21: =IFERROR((VLOOKUP($R21,Planning!$B$11:$E$23,4,0)),"-") -> - | U21: - | V21: =IF($Z21="-","-",VLOOKUP($R21,Planning!$B$11:$H$23,7,0)) -> - | W21: =IFERROR(IF(Z21="-","-",IF($R$1<TODAY(),SUMIF($B:$B,$R21,$L:$L)-$Q$3,IF($T21=0.75,($S$1-T21),(IF(VLOOKUP($R21,Planning!$B:$I,5,0)<='Calcul Stat'!$S$1,(($S$1-T21)-$Q$3),($S$1-T21)))))),"-") -> - | X21: - | Y21: =IFERROR(IF((VLOOKUP($R21,Planning!$B$11:$H$23,7,0)-$V21)+(IF($X21>$V21,"",($V21-X21)))=0,"-",(VLOOKUP($R21,Planning!$B$11:$H$23,7,0)-$V21)+(IF($X21>$V21,"",($V21-X21)))),"-") -> - | Z21: - | AA21: - | AB21: - | AC21: - | AD21: - | AE21: - | AF21: - | AG21: - | AI21: =IF(Z21="-","-",SUMIFS(Incident!$F:$F,Incident!$C:$C,$R$1,Incident!$A:$A,$R21,Incident!$B:$B,"Débrief")+SUMIFS(Incident!$F:$F,Incident!$C:$C,$R$1,Incident!$A:$A,$R21,Incident!$B:$B,"Formation")) -> - | AJ21: =IFERROR(VLOOKUP($R21,BDD!$B:$F,4,0),"") ->  | AK21: =IFERROR(VLOOKUP($R21,BDD!$B:$L,10,0),"-") -> - | AL21: =IFERROR(VLOOKUP($R21,BDD!$B:$K,9,0),"") ->  | AN21: codage9@devloop92.onmicrosoft.com | AO21: - | AP21: 0
A22: 20 déc. 2021, 11:18:15 | B22: RABENJANAHARY Fanomezantsoa | C22: d4748238-5ef7-41d2-8c9c-122844c9fac2 | D22: Accepted | E22: null | F22: 2021-12-20 | G22: 20 | H22: déc. | I22: 2021 | J22: 11:18:15 | K22: 11:00:00 | L22: 00:00:20 | S22: =IFERROR(VLOOKUP($R22,BDD!$B:$H,7,0),"") ->  | T22: =IFERROR((VLOOKUP($R22,Planning!$B$11:$E$23,4,0)),"-") -> - | U22: - | V22: =IF($Z22="-","-",VLOOKUP($R22,Planning!$B$11:$H$23,7,0)) -> - | W22: =IFERROR(IF(Z22="-","-",IF($R$1<TODAY(),SUMIF($B:$B,$R22,$L:$L)-$Q$3,IF($T22=0.75,($S$1-T22),(IF(VLOOKUP($R22,Planning!$B:$I,5,0)<='Calcul Stat'!$S$1,(($S$1-T22)-$Q$3),($S$1-T22)))))),"-") -> - | X22: - | Y22: =IFERROR(IF((VLOOKUP($R22,Planning!$B$11:$H$23,7,0)-$V22)+(IF($X22>$V22,"",($V22-X22)))=0,"-",(VLOOKUP($R22,Planning!$B$11:$H$23,7,0)-$V22)+(IF($X22>$V22,"",($V22-X22)))),"-") -> - | Z22: - | AA22: - | AB22: - | AC22: - | AD22: - | AE22: - | AF22: - | AG22: - | AI22: =IF(Z22="-","-",SUMIFS(Incident!$F:$F,Incident!$C:$C,$R$1,Incident!$A:$A,$R22,Incident!$B:$B,"Débrief")+SUMIFS(Incident!$F:$F,Incident!$C:$C,$R$1,Incident!$A:$A,$R22,Incident!$B:$B,"Formation")) -> - | AJ22: =IFERROR(VLOOKUP($R22,BDD!$B:$F,4,0),"") ->  | AK22: =IFERROR(VLOOKUP($R22,BDD!$B:$L,10,0),"-") -> -
A23: 20 déc. 2021, 11:18:39 | B23: RABENJANAHARY Fanomezantsoa | C23: 52367258-cc8a-4ec2-b46e-173f45e11338 | D23: Accepted | E23: null | F23: 2021-12-20 | G23: 20 | H23: déc. | I23: 2021 | J23: 11:18:39 | K23: 11:00:00 | L23: 00:00:24 | S23: =IFERROR(VLOOKUP($R23,BDD!$B:$H,7,0),"") ->  | T23: =IFERROR((VLOOKUP($R23,Planning!$B$11:$E$23,4,0)),"-") -> - | U23: - | V23: =IF($Z23="-","-",VLOOKUP($R23,Planning!$B$11:$H$23,7,0)) -> - | W23: =IFERROR(IF(Z23="-","-",IF($R$1<TODAY(),SUMIF($B:$B,$R23,$L:$L)-$Q$3,IF($T23=0.75,($S$1-T23),(IF(VLOOKUP($R23,Planning!$B:$I,5,0)<='Calcul Stat'!$S$1,(($S$1-T23)-$Q$3),($S$1-T23)))))),"-") -> - | X23: - | Y23: =IFERROR(IF((VLOOKUP($R23,Planning!$B$11:$H$23,7,0)-$V23)+(IF($X23>$V23,"",($V23-X23)))=0,"-",(VLOOKUP($R23,Planning!$B$11:$H$23,7,0)-$V23)+(IF($X23>$V23,"",($V23-X23)))),"-") -> - | Z23: - | AA23: - | AB23: - | AC23: - | AD23: - | AE23: - | AF23: - | AG23: - | AI23: =IF(Z23="-","-",SUMIFS(Incident!$F:$F,Incident!$C:$C,$R$1,Incident!$A:$A,$R23,Incident!$B:$B,"Débrief")+SUMIFS(Incident!$F:$F,Incident!$C:$C,$R$1,Incident!$A:$A,$R23,Incident!$B:$B,"Formation")) -> - | AJ23: =IFERROR(VLOOKUP($R23,BDD!$B:$F,4,0),"") ->  | AK23: =IFERROR(VLOOKUP($R23,BDD!$B:$L,10,0),"-") -> - | AN23: Level | AO23: Effectifs | AP23: Taux
A24: 20 déc. 2021, 11:19:02 | B24: RABENJANAHARY Fanomezantsoa | C24: b19fcb6e-d849-4f04-ad73-11be0c73c3e2 | D24: Accepted | E24: null | F24: 2021-12-20 | G24: 20 | H24: déc. | I24: 2021 | J24: 11:19:02 | K24: 11:00:00 | L24: 00:00:23 | S24: =IFERROR(VLOOKUP($R24,BDD!$B:$H,7,0),"") ->  | T24: =IFERROR((VLOOKUP($R24,Planning!$B$11:$E$23,4,0)),"-") -> - | U24: - | V24: =IF($Z24="-","-",VLOOKUP($R24,Planning!$B$11:$H$23,7,0)) -> - | W24: =IFERROR(IF(Z24="-","-",IF($R$1<TODAY(),SUMIF($B:$B,$R24,$L:$L)-$Q$3,IF($T24=0.75,($S$1-T24),(IF(VLOOKUP($R24,Planning!$B:$I,5,0)<='Calcul Stat'!$S$1,(($S$1-T24)-$Q$3),($S$1-T24)))))),"-") -> - | X24: - | Y24: =IFERROR(IF((VLOOKUP($R24,Planning!$B$11:$H$23,7,0)-$V24)+(IF($X24>$V24,"",($V24-X24)))=0,"-",(VLOOKUP($R24,Planning!$B$11:$H$23,7,0)-$V24)+(IF($X24>$V24,"",($V24-X24)))),"-") -> - | Z24: - | AA24: - | AB24: - | AC24: - | AD24: - | AE24: - | AF24: - | AG24: - | AI24: =IF(Z24="-","-",SUMIFS(Incident!$F:$F,Incident!$C:$C,$R$1,Incident!$A:$A,$R24,Incident!$B:$B,"Débrief")+SUMIFS(Incident!$F:$F,Incident!$C:$C,$R$1,Incident!$A:$A,$R24,Incident!$B:$B,"Formation")) -> - | AJ24: =IFERROR(VLOOKUP($R24,BDD!$B:$F,4,0),"") ->  | AK24: =IFERROR(VLOOKUP($R24,BDD!$B:$L,10,0),"-") -> - | AN24: High Perf (>= Prod/H) | AO24: =COUNTIF($AC$4:$AC$24,">="&$U$1) -> 2 | AP24: =$AO24/COUNTA($R$5:$R$24) -> 0.1333333333
A25: 20 déc. 2021, 11:19:31 | B25: RABENJANAHARY Fanomezantsoa | C25: b745d58a-115e-4110-87ca-2b934a271c42 | D25: Accepted | E25: null | F25: 2021-12-20 | G25: 20 | H25: déc. | I25: 2021 | J25: 11:19:31 | K25: 11:00:00 | L25: 00:00:29 | AN25: Low Perf (< Prod/H) | AO25: =COUNTIF($AC$4:$AC$24,"<"&($U$1-20)) -> 3 | AP25: =$AO25/COUNTA($R$5:$R$24) -> 0.2
A26: 20 déc. 2021, 11:20:29 | B26: RABENJANAHARY Fanomezantsoa | C26: b377df7d-121d-44eb-83cd-0dc07d43e3f8 | D26: Accepted | E26: null | F26: 2021-12-20 | G26: 20 | H26: déc. | I26: 2021 | J26: 11:20:29 | K26: 11:00:00 | L26: 00:00:58 | R26: Opérateurs | S26: All
A27: 20 déc. 2021, 11:21:00 | B27: RABENJANAHARY Fanomezantsoa | C27: 872eb477-86c7-436b-a0a0-261ae4b6a17e | D27: Accepted | E27: null | F27: 2021-12-20 | G27: 20 | H27: déc. | I27: 2021 | J27: 11:21:00 | K27: 11:00:00 | L27: 00:00:31 | U27: =$S$26 -> All
A28: 20 déc. 2021, 11:21:32 | B28: RABENJANAHARY Fanomezantsoa | C28: b38f0f8a-2afe-4ed7-b15f-0061014e9da7 | D28: Accepted | E28: null | F28: 2021-12-20 | G28: 20 | H28: déc. | I28: 2021 | J28: 11:21:32 | K28: 11:00:00 | L28: 00:00:32 | R28: TOTAL | S28: =SUM(S$30:S$45) -> 5163 | U28: =SUM(U$30:U$45) -> 4012 | V28: =SUM(V$30:V$45) -> 1151 | W28: =SUM(W$30:W$45) -> 5163 | X28: =SUM(X$30:X$45) -> 22 | Y28: =IFERROR(V28/W28,"-") -> 0.2229324036
A29: 20 déc. 2021, 11:21:53 | B29: RABENJANAHARY Fanomezantsoa | C29: 95030a75-06ee-4ae5-a422-e2dc152a6be4 | D29: Accepted | E29: null | F29: 2021-12-20 | G29: 20 | H29: déc. | I29: 2021 | J29: 11:21:53 | K29: 11:00:00 | L29: 00:00:21 | S29: Traités Globals | U29: Accepted | V29: Rejected | W29: Total | X29: Doublon | Y29: Taux de rejet | Z29: Répartition Prod
A30: 20 déc. 2021, 11:22:17 | B30: RABENJANAHARY Fanomezantsoa | C30: db88483e-0ff9-4d9f-baa2-6fa73612e575 | D30: Rejected | E30: Factures multiples | F30: 2021-12-20 | G30: 20 | H30: déc. | I30: 2021 | J30: 11:22:17 | K30: 11:00:00 | L30: 00:00:24 | R30: 08:00:00 | S30: =COUNTIFS('Calcul Stat'!$D:$D,'Calcul Stat'!U$29,'Calcul Stat'!$K:$K,'Calcul Stat'!$R30)+COUNTIFS('Calcul Stat'!$D:$D,'Calcul Stat'!V$29,'Calcul Stat'!$K:$K,'Calcul Stat'!$R30) -> 0 | U30: =IF($S$26="ALL",COUNTIFS('Calcul Stat'!$D:$D,'Calcul Stat'!U$29,'Calcul Stat'!$K:$K,'Calcul Stat'!$R30),COUNTIFS('Calcul Stat'!$D:$D,'Calcul Stat'!U$29,'Calcul Stat'!$B:$B,$S$26,'Calcul Stat'!$K:$K,'Calcul Stat'!$R30)) -> 0 | V30: =IF($S$26="ALL",COUNTIFS('Calcul Stat'!$D:$D,'Calcul Stat'!V$29,'Calcul Stat'!$K:$K,'Calcul Stat'!$R30),COUNTIFS('Calcul Stat'!$D:$D,'Calcul Stat'!V$29,'Calcul Stat'!$B:$B,$S$26,'Calcul Stat'!$K:$K,'Calcul Stat'!$R30)) -> 0 | W30: =IFERROR(SUM(U30:V30),"") -> 0 | X30: =IF($S$26="ALL",SUMIFS('Calcul Stat'!$N:$N,'Calcul Stat'!$K:$K,'Calcul Stat'!$R30),SUMIFS('Calcul Stat'!$N:$N,'Calcul Stat'!$B:$B,$S$26,'Calcul Stat'!$K:$K,'Calcul Stat'!$R30)) -> 0 | Y30: =IFERROR(IF(OR(S30=0,U30=0),"",V30/$V$28),"-") ->  | Z30: =IFERROR(IF($U$27="All",($W30/$W$28),W30/$S30),"-") -> 0
A31: 20 déc. 2021, 11:22:59 | B31: RABENJANAHARY Fanomezantsoa | C31: be513aeb-13a9-40fa-9f4f-c65ceb319bbe | D31: Accepted | E31: null | F31: 2021-12-20 | G31: 20 | H31: déc. | I31: 2021 | J31: 11:22:59 | K31: 11:00:00 | L31: 00:00:42 | R31: 09:00:00 | S31: =COUNTIFS('Calcul Stat'!$D:$D,'Calcul Stat'!U$29,'Calcul Stat'!$K:$K,'Calcul Stat'!$R31)+COUNTIFS('Calcul Stat'!$D:$D,'Calcul Stat'!V$29,'Calcul Stat'!$K:$K,'Calcul Stat'!$R31) -> 59 | U31: =IF($S$26="ALL",COUNTIFS('Calcul Stat'!$D:$D,'Calcul Stat'!U$29,'Calcul Stat'!$K:$K,'Calcul Stat'!$R31),COUNTIFS('Calcul Stat'!$D:$D,'Calcul Stat'!U$29,'Calcul Stat'!$B:$B,$S$26,'Calcul Stat'!$K:$K,'Calcul Stat'!$R31)) -> 57 | V31: =IF($S$26="ALL",COUNTIFS('Calcul Stat'!$D:$D,'Calcul Stat'!V$29,'Calcul Stat'!$K:$K,'Calcul Stat'!$R31),COUNTIFS('Calcul Stat'!$D:$D,'Calcul Stat'!V$29,'Calcul Stat'!$B:$B,$S$26,'Calcul Stat'!$K:$K,'Calcul Stat'!$R31)) -> 2 | W31: =IFERROR(SUM(U31:V31),"") -> 59 | X31: =IF($S$26="ALL",SUMIFS('Calcul Stat'!$N:$N,'Calcul Stat'!$K:$K,'Calcul Stat'!$R31),SUMIFS('Calcul Stat'!$N:$N,'Calcul Stat'!$B:$B,$S$26,'Calcul Stat'!$K:$K,'Calcul Stat'!$R31)) -> 1 | Y31: =IFERROR(IF(OR(S31=0,U31=0),"",V31/$V$28),"-") -> 0.001737619461 | Z31: 0.01142746465
A32: 20 déc. 2021, 11:23:17 | B32: RABENJANAHARY Fanomezantsoa | C32: 37964a45-4dce-4da3-8f24-b9cd5db9d982 | D32: Rejected | E32: Factures multiples | F32: 2021-12-20 | G32: 20 | H32: déc. | I32: 2021 | J32: 11:23:17 | K32: 11:00:00 | L32: 00:00:18 | R32: 10:00:00 | S32: =COUNTIFS('Calcul Stat'!$D:$D,'Calcul Stat'!U$29,'Calcul Stat'!$K:$K,'Calcul Stat'!$R32)+COUNTIFS('Calcul Stat'!$D:$D,'Calcul Stat'!V$29,'Calcul Stat'!$K:$K,'Calcul Stat'!$R32) -> 243 | U32: =IF($S$26="ALL",COUNTIFS('Calcul Stat'!$D:$D,'Calcul Stat'!U$29,'Calcul Stat'!$K:$K,'Calcul Stat'!$R32),COUNTIFS('Calcul Stat'!$D:$D,'Calcul Stat'!U$29,'Calcul Stat'!$B:$B,$S$26,'Calcul Stat'!$K:$K,'Calcul Stat'!$R32)) -> 198 | V32: =IF($S$26="ALL",COUNTIFS('Calcul Stat'!$D:$D,'Calcul Stat'!V$29,'Calcul Stat'!$K:$K,'Calcul Stat'!$R32),COUNTIFS('Calcul Stat'!$D:$D,'Calcul Stat'!V$29,'Calcul Stat'!$B:$B,$S$26,'Calcul Stat'!$K:$K,'Calcul Stat'!$R32)) -> 45 | W32: 243 | X32: =IF($S$26="ALL",SUMIFS('Calcul Stat'!$N:$N,'Calcul Stat'!$K:$K,'Calcul Stat'!$R32),SUMIFS('Calcul Stat'!$N:$N,'Calcul Stat'!$B:$B,$S$26,'Calcul Stat'!$K:$K,'Calcul Stat'!$R32)) -> 2 | Y32: 0.03909643788 | Z32: 0.0470656595
A33: 20 déc. 2021, 11:23:44 | B33: RABENJANAHARY Fanomezantsoa | C33: f7de0016-4f6d-484f-90ea-04a788275997 | D33: Rejected | E33: Pas Facture/ Relevée compte bancaire/ Contrat /Logo | F33: 2021-12-20 | G33: 20 | H33: déc. | I33: 2021 | J33: 11:23:44 | K33: 11:00:00 | L33: 00:00:27 | R33: 11:00:00 | S33: =COUNTIFS('Calcul Stat'!$D:$D,'Calcul Stat'!U$29,'Calcul Stat'!$K:$K,'Calcul Stat'!$R33)+COUNTIFS('Calcul Stat'!$D:$D,'Calcul Stat'!V$29,'Calcul Stat'!$K:$K,'Calcul Stat'!$R33) -> 704 | U33: =IF($S$26="ALL",COUNTIFS('Calcul Stat'!$D:$D,'Calcul Stat'!U$29,'Calcul Stat'!$K:$K,'Calcul Stat'!$R33),COUNTIFS('Calcul Stat'!$D:$D,'Calcul Stat'!U$29,'Calcul Stat'!$B:$B,$S$26,'Calcul Stat'!$K:$K,'Calcul Stat'!$R33)) -> 510 | V33: =IF($S$26="ALL",COUNTIFS('Calcul Stat'!$D:$D,'Calcul Stat'!V$29,'Calcul Stat'!$K:$K,'Calcul Stat'!$R33),COUNTIFS('Calcul Stat'!$D:$D,'Calcul Stat'!V$29,'Calcul Stat'!$B:$B,$S$26,'Calcul Stat'!$K:$K,'Calcul Stat'!$R33)) -> 194 | W33: 704 | X33: =IF($S$26="ALL",SUMIFS('Calcul Stat'!$N:$N,'Calcul Stat'!$K:$K,'Calcul Stat'!$R33),SUMIFS('Calcul Stat'!$N:$N,'Calcul Stat'!$B:$B,$S$26,'Calcul Stat'!$K:$K,'Calcul Stat'!$R33)) -> 4 | Y33: 0.1685490877 | Z33: 0.1363548325
A34: 20 déc. 2021, 11:24:30 | B34: RABENJANAHARY Fanomezantsoa | C34: 5347a590-129e-44fd-96e4-8053f97681bb | D34: Accepted | E34: null | F34: 2021-12-20 | G34: 20 | H34: déc. | I34: 2021 | J34: 11:24:30 | K34: 11:00:00 | L34: 00:00:46 | R34: 12:00:00 | S34: =COUNTIFS('Calcul Stat'!$D:$D,'Calcul Stat'!U$29,'Calcul Stat'!$K:$K,'Calcul Stat'!$R34)+COUNTIFS('Calcul Stat'!$D:$D,'Calcul Stat'!V$29,'Calcul Stat'!$K:$K,'Calcul Stat'!$R34) -> 914 | U34: =IF($S$26="ALL",COUNTIFS('Calcul Stat'!$D:$D,'Calcul Stat'!U$29,'Calcul Stat'!$K:$K,'Calcul Stat'!$R34),COUNTIFS('Calcul Stat'!$D:$D,'Calcul Stat'!U$29,'Calcul Stat'!$B:$B,$S$26,'Calcul Stat'!$K:$K,'Calcul Stat'!$R34)) -> 698 | V34: =IF($S$26="ALL",COUNTIFS('Calcul Stat'!$D:$D,'Calcul Stat'!V$29,'Calcul Stat'!$K:$K,'Calcul Stat'!$R34),COUNTIFS('Calcul Stat'!$D:$D,'Calcul Stat'!V$29,'Calcul Stat'!$B:$B,$S$26,'Calcul Stat'!$K:$K,'Calcul Stat'!$R34)) -> 216 | W34: 914 | X34: =IF($S$26="ALL",SUMIFS('Calcul Stat'!$N:$N,'Calcul Stat'!$K:$K,'Calcul Stat'!$R34),SUMIFS('Calcul Stat'!$N:$N,'Calcul Stat'!$B:$B,$S$26,'Calcul Stat'!$K:$K,'Calcul Stat'!$R34)) -> 1 | Y34: 0.1876629018 | Z34: 0.1770288592
A35: 20 déc. 2021, 11:25:18 | B35: RABENJANAHARY Fanomezantsoa | C35: b359fbad-e38d-4822-8cc0-3cf3f399016d | D35: Rejected | E35: Pas Facture/ Relevée compte bancaire/ Contrat /Logo | F35: 2021-12-20 | G35: 20 | H35: déc. | I35: 2021 | J35: 11:25:18 | K35: 11:00:00 | L35: 00:00:48 | R35: 13:00:00 | S35: =COUNTIFS('Calcul Stat'!$D:$D,'Calcul Stat'!U$29,'Calcul Stat'!$K:$K,'Calcul Stat'!$R35)+COUNTIFS('Calcul Stat'!$D:$D,'Calcul Stat'!V$29,'Calcul Stat'!$K:$K,'Calcul Stat'!$R35) -> 720 | U35: =IF($S$26="ALL",COUNTIFS('Calcul Stat'!$D:$D,'Calcul Stat'!U$29,'Calcul Stat'!$K:$K,'Calcul Stat'!$R35),COUNTIFS('Calcul Stat'!$D:$D,'Calcul Stat'!U$29,'Calcul Stat'!$B:$B,$S$26,'Calcul Stat'!$K:$K,'Calcul Stat'!$R35)) -> 554 | V35: =IF($S$26="ALL",COUNTIFS('Calcul Stat'!$D:$D,'Calcul Stat'!V$29,'Calcul Stat'!$K:$K,'Calcul Stat'!$R35),COUNTIFS('Calcul Stat'!$D:$D,'Calcul Stat'!V$29,'Calcul Stat'!$B:$B,$S$26,'Calcul Stat'!$K:$K,'Calcul Stat'!$R35)) -> 166 | W35: 720 | X35: =IF($S$26="ALL",SUMIFS('Calcul Stat'!$N:$N,'Calcul Stat'!$K:$K,'Calcul Stat'!$R35),SUMIFS('Calcul Stat'!$N:$N,'Calcul Stat'!$B:$B,$S$26,'Calcul Stat'!$K:$K,'Calcul Stat'!$R35)) -> 5 | Y35: 0.1442224153 | Z35: 0.1394538059
A36: 20 déc. 2021, 11:25:42 | B36: RABENJANAHARY Fanomezantsoa | C36: c6b8f68a-b1d6-4030-987b-ee4bd9023d2c | D36: Accepted | E36: null | F36: 2021-12-20 | G36: 20 | H36: déc. | I36: 2021 | J36: 11:25:42 | K36: 11:00:00 | L36: 00:00:24 | R36: 14:00:00 | S36: =COUNTIFS('Calcul Stat'!$D:$D,'Calcul Stat'!U$29,'Calcul Stat'!$K:$K,'Calcul Stat'!$R36)+COUNTIFS('Calcul Stat'!$D:$D,'Calcul Stat'!V$29,'Calcul Stat'!$K:$K,'Calcul Stat'!$R36) -> 759 | U36: =IF($S$26="ALL",COUNTIFS('Calcul Stat'!$D:$D,'Calcul Stat'!U$29,'Calcul Stat'!$K:$K,'Calcul Stat'!$R36),COUNTIFS('Calcul Stat'!$D:$D,'Calcul Stat'!U$29,'Calcul Stat'!$B:$B,$S$26,'Calcul Stat'!$K:$K,'Calcul Stat'!$R36)) -> 625 | V36: =IF($S$26="ALL",COUNTIFS('Calcul Stat'!$D:$D,'Calcul Stat'!V$29,'Calcul Stat'!$K:$K,'Calcul Stat'!$R36),COUNTIFS('Calcul Stat'!$D:$D,'Calcul Stat'!V$29,'Calcul Stat'!$B:$B,$S$26,'Calcul Stat'!$K:$K,'Calcul Stat'!$R36)) -> 134 | W36: 759 | X36: =IF($S$26="ALL",SUMIFS('Calcul Stat'!$N:$N,'Calcul Stat'!$K:$K,'Calcul Stat'!$R36),SUMIFS('Calcul Stat'!$N:$N,'Calcul Stat'!$B:$B,$S$26,'Calcul Stat'!$K:$K,'Calcul Stat'!$R36)) -> 5 | Y36: 0.1164205039 | Z36: 0.1470075537
A37: 20 déc. 2021, 11:26:03 | B37: RABENJANAHARY Fanomezantsoa | C37: 47a6791e-e582-4d05-9f84-d3dfb7b799eb | D37: Accepted | E37: null | F37: 2021-12-20 | G37: 20 | H37: déc. | I37: 2021 | J37: 11:26:03 | K37: 11:00:00 | L37: 00:00:21 | R37: 15:00:00 | S37: =COUNTIFS('Calcul Stat'!$D:$D,'Calcul Stat'!U$29,'Calcul Stat'!$K:$K,'Calcul Stat'!$R37)+COUNTIFS('Calcul Stat'!$D:$D,'Calcul Stat'!V$29,'Calcul Stat'!$K:$K,'Calcul Stat'!$R37) -> 413 | U37: =IF($S$26="ALL",COUNTIFS('Calcul Stat'!$D:$D,'Calcul Stat'!U$29,'Calcul Stat'!$K:$K,'Calcul Stat'!$R37),COUNTIFS('Calcul Stat'!$D:$D,'Calcul Stat'!U$29,'Calcul Stat'!$B:$B,$S$26,'Calcul Stat'!$K:$K,'Calcul Stat'!$R37)) -> 372 | V37: =IF($S$26="ALL",COUNTIFS('Calcul Stat'!$D:$D,'Calcul Stat'!V$29,'Calcul Stat'!$K:$K,'Calcul Stat'!$R37),COUNTIFS('Calcul Stat'!$D:$D,'Calcul Stat'!V$29,'Calcul Stat'!$B:$B,$S$26,'Calcul Stat'!$K:$K,'Calcul Stat'!$R37)) -> 41 | W37: 413 | X37: =IF($S$26="ALL",SUMIFS('Calcul Stat'!$N:$N,'Calcul Stat'!$K:$K,'Calcul Stat'!$R37),SUMIFS('Calcul Stat'!$N:$N,'Calcul Stat'!$B:$B,$S$26,'Calcul Stat'!$K:$K,'Calcul Stat'!$R37)) -> 0 | Y37: 0.03562119896 | Z37: 0.07999225257
A38: 20 déc. 2021, 11:26:24 | B38: RABENJANAHARY Fanomezantsoa | C38: 3912d932-c8dc-4049-8ca6-e00da3d57f60 | D38: Rejected | E38: Pas Facture/ Relevée compte bancaire/ Contrat /Logo | F38: 2021-12-20 | G38: 20 | H38: déc. | I38: 2021 | J38: 11:26:24 | K38: 11:00:00 | L38: 00:00:21 | R38: 16:00:00 | S38: =COUNTIFS('Calcul Stat'!$D:$D,'Calcul Stat'!U$29,'Calcul Stat'!$K:$K,'Calcul Stat'!$R38)+COUNTIFS('Calcul Stat'!$D:$D,'Calcul Stat'!V$29,'Calcul Stat'!$K:$K,'Calcul Stat'!$R38) -> 703 | U38: =IF($S$26="ALL",COUNTIFS('Calcul Stat'!$D:$D,'Calcul Stat'!U$29,'Calcul Stat'!$K:$K,'Calcul Stat'!$R38),COUNTIFS('Calcul Stat'!$D:$D,'Calcul Stat'!U$29,'Calcul Stat'!$B:$B,$S$26,'Calcul Stat'!$K:$K,'Calcul Stat'!$R38)) -> 554 | V38: =IF($S$26="ALL",COUNTIFS('Calcul Stat'!$D:$D,'Calcul Stat'!V$29,'Calcul Stat'!$K:$K,'Calcul Stat'!$R38),COUNTIFS('Calcul Stat'!$D:$D,'Calcul Stat'!V$29,'Calcul Stat'!$B:$B,$S$26,'Calcul Stat'!$K:$K,'Calcul Stat'!$R38)) -> 149 | W38: 703 | X38: =IF($S$26="ALL",SUMIFS('Calcul Stat'!$N:$N,'Calcul Stat'!$K:$K,'Calcul Stat'!$R38),SUMIFS('Calcul Stat'!$N:$N,'Calcul Stat'!$B:$B,$S$26,'Calcul Stat'!$K:$K,'Calcul Stat'!$R38)) -> 2 | Y38: 0.1294526499 | Z38: 0.1361611466
A39: 20 déc. 2021, 11:26:47 | B39: RABENJANAHARY Fanomezantsoa | C39: ff91ebb4-8304-427a-ba18-215ed3db9c68 | D39: Rejected | E39: Factures multiples | F39: 2021-12-20 | G39: 20 | H39: déc. | I39: 2021 | J39: 11:26:47 | K39: 11:00:00 | L39: 00:00:23 | R39: 17:00:00 | S39: =COUNTIFS('Calcul Stat'!$D:$D,'Calcul Stat'!U$29,'Calcul Stat'!$K:$K,'Calcul Stat'!$R39)+COUNTIFS('Calcul Stat'!$D:$D,'Calcul Stat'!V$29,'Calcul Stat'!$K:$K,'Calcul Stat'!$R39) -> 648 | U39: =IF($S$26="ALL",COUNTIFS('Calcul Stat'!$D:$D,'Calcul Stat'!U$29,'Calcul Stat'!$K:$K,'Calcul Stat'!$R39),COUNTIFS('Calcul Stat'!$D:$D,'Calcul Stat'!U$29,'Calcul Stat'!$B:$B,$S$26,'Calcul Stat'!$K:$K,'Calcul Stat'!$R39)) -> 444 | V39: =IF($S$26="ALL",COUNTIFS('Calcul Stat'!$D:$D,'Calcul Stat'!V$29,'Calcul Stat'!$K:$K,'Calcul Stat'!$R39),COUNTIFS('Calcul Stat'!$D:$D,'Calcul Stat'!V$29,'Calcul Stat'!$B:$B,$S$26,'Calcul Stat'!$K:$K,'Calcul Stat'!$R39)) -> 204 | W39: 648 | X39: =IF($S$26="ALL",SUMIFS('Calcul Stat'!$N:$N,'Calcul Stat'!$K:$K,'Calcul Stat'!$R39),SUMIFS('Calcul Stat'!$N:$N,'Calcul Stat'!$B:$B,$S$26,'Calcul Stat'!$K:$K,'Calcul Stat'!$R39)) -> 2 | Y39: 0.1772371851 | Z39: 0.1255084253
A40: 20 déc. 2021, 11:27:25 | B40: RABENJANAHARY Fanomezantsoa | C40: 28334dc5-585f-4c5c-88e1-72ccd4f7542b | D40: Accepted | E40: null | F40: 2021-12-20 | G40: 20 | H40: déc. | I40: 2021 | J40: 11:27:25 | K40: 11:00:00 | L40: 00:00:38 | R40: 18:00:00 | S40: =COUNTIFS('Calcul Stat'!$D:$D,'Calcul Stat'!U$29,'Calcul Stat'!$K:$K,'Calcul Stat'!$R40)+COUNTIFS('Calcul Stat'!$D:$D,'Calcul Stat'!V$29,'Calcul Stat'!$K:$K,'Calcul Stat'!$R40) -> 0 | U40: =IF($S$26="ALL",COUNTIFS('Calcul Stat'!$D:$D,'Calcul Stat'!U$29,'Calcul Stat'!$K:$K,'Calcul Stat'!$R40),COUNTIFS('Calcul Stat'!$D:$D,'Calcul Stat'!U$29,'Calcul Stat'!$B:$B,$S$26,'Calcul Stat'!$K:$K,'Calcul Stat'!$R40)) -> 0 | V40: =IF($S$26="ALL",COUNTIFS('Calcul Stat'!$D:$D,'Calcul Stat'!V$29,'Calcul Stat'!$K:$K,'Calcul Stat'!$R40),COUNTIFS('Calcul Stat'!$D:$D,'Calcul Stat'!V$29,'Calcul Stat'!$B:$B,$S$26,'Calcul Stat'!$K:$K,'Calcul Stat'!$R40)) -> 0 | W40: 0 | X40: =IF($S$26="ALL",SUMIFS('Calcul Stat'!$N:$N,'Calcul Stat'!$K:$K,'Calcul Stat'!$R40),SUMIFS('Calcul Stat'!$N:$N,'Calcul Stat'!$B:$B,$S$26,'Calcul Stat'!$K:$K,'Calcul Stat'!$R40)) -> 0 | Z40: 0
A41: 20 déc. 2021, 11:27:40 | B41: RABENJANAHARY Fanomezantsoa | C41: d54b84aa-1d0f-4260-b09b-543087667f57 | D41: Accepted | E41: null | F41: 2021-12-20 | G41: 20 | H41: déc. | I41: 2021 | J41: 11:27:40 | K41: 11:00:00 | L41: 00:00:15 | R41: 19:00:00 | S41: =COUNTIFS('Calcul Stat'!$D:$D,'Calcul Stat'!U$29,'Calcul Stat'!$K:$K,'Calcul Stat'!$R41)+COUNTIFS('Calcul Stat'!$D:$D,'Calcul Stat'!V$29,'Calcul Stat'!$K:$K,'Calcul Stat'!$R41) -> 0 | U41: =IF($S$26="ALL",COUNTIFS('Calcul Stat'!$D:$D,'Calcul Stat'!U$29,'Calcul Stat'!$K:$K,'Calcul Stat'!$R41),COUNTIFS('Calcul Stat'!$D:$D,'Calcul Stat'!U$29,'Calcul Stat'!$B:$B,$S$26,'Calcul Stat'!$K:$K,'Calcul Stat'!$R41)) -> 0 | V41: =IF($S$26="ALL",COUNTIFS('Calcul Stat'!$D:$D,'Calcul Stat'!V$29,'Calcul Stat'!$K:$K,'Calcul Stat'!$R41),COUNTIFS('Calcul Stat'!$D:$D,'Calcul Stat'!V$29,'Calcul Stat'!$B:$B,$S$26,'Calcul Stat'!$K:$K,'Calcul Stat'!$R41)) -> 0 | W41: 0 | X41: =IF($S$26="ALL",SUMIFS('Calcul Stat'!$N:$N,'Calcul Stat'!$K:$K,'Calcul Stat'!$R41),SUMIFS('Calcul Stat'!$N:$N,'Calcul Stat'!$B:$B,$S$26,'Calcul Stat'!$K:$K,'Calcul Stat'!$R41)) -> 0 | Z41: 0
A42: 20 déc. 2021, 11:28:07 | B42: RABENJANAHARY Fanomezantsoa | C42: c30a3939-1589-42fb-bdc2-637471c4791d | D42: Accepted | E42: null | F42: 2021-12-20 | G42: 20 | H42: déc. | I42: 2021 | J42: 11:28:07 | K42: 11:00:00 | L42: 00:00:27 | R42: 20:00:00 | S42: =COUNTIFS('Calcul Stat'!$D:$D,'Calcul Stat'!U$29,'Calcul Stat'!$K:$K,'Calcul Stat'!$R42)+COUNTIFS('Calcul Stat'!$D:$D,'Calcul Stat'!V$29,'Calcul Stat'!$K:$K,'Calcul Stat'!$R42) -> 0 | U42: =IF($S$26="ALL",COUNTIFS('Calcul Stat'!$D:$D,'Calcul Stat'!U$29,'Calcul Stat'!$K:$K,'Calcul Stat'!$R42),COUNTIFS('Calcul Stat'!$D:$D,'Calcul Stat'!U$29,'Calcul Stat'!$B:$B,$S$26,'Calcul Stat'!$K:$K,'Calcul Stat'!$R42)) -> 0 | V42: =IF($S$26="ALL",COUNTIFS('Calcul Stat'!$D:$D,'Calcul Stat'!V$29,'Calcul Stat'!$K:$K,'Calcul Stat'!$R42),COUNTIFS('Calcul Stat'!$D:$D,'Calcul Stat'!V$29,'Calcul Stat'!$B:$B,$S$26,'Calcul Stat'!$K:$K,'Calcul Stat'!$R42)) -> 0 | W42: 0 | X42: =IF($S$26="ALL",SUMIFS('Calcul Stat'!$N:$N,'Calcul Stat'!$K:$K,'Calcul Stat'!$R42),SUMIFS('Calcul Stat'!$N:$N,'Calcul Stat'!$B:$B,$S$26,'Calcul Stat'!$K:$K,'Calcul Stat'!$R42)) -> 0 | Z42: 0
A43: 20 déc. 2021, 11:28:27 | B43: RABENJANAHARY Fanomezantsoa | C43: 64498125-6c64-4c98-ad07-c292364b8171 | D43: Accepted | E43: null | F43: 2021-12-20 | G43: 20 | H43: déc. | I43: 2021 | J43: 11:28:27 | K43: 11:00:00 | L43: 00:00:20 | R43: 21:00:00 | S43: =COUNTIFS('Calcul Stat'!$D:$D,'Calcul Stat'!U$29,'Calcul Stat'!$K:$K,'Calcul Stat'!$R43)+COUNTIFS('Calcul Stat'!$D:$D,'Calcul Stat'!V$29,'Calcul Stat'!$K:$K,'Calcul Stat'!$R43) -> 0 | U43: =IF($S$26="ALL",COUNTIFS('Calcul Stat'!$D:$D,'Calcul Stat'!U$29,'Calcul Stat'!$K:$K,'Calcul Stat'!$R43),COUNTIFS('Calcul Stat'!$D:$D,'Calcul Stat'!U$29,'Calcul Stat'!$B:$B,$S$26,'Calcul Stat'!$K:$K,'Calcul Stat'!$R43)) -> 0 | V43: =IF($S$26="ALL",COUNTIFS('Calcul Stat'!$D:$D,'Calcul Stat'!V$29,'Calcul Stat'!$K:$K,'Calcul Stat'!$R43),COUNTIFS('Calcul Stat'!$D:$D,'Calcul Stat'!V$29,'Calcul Stat'!$B:$B,$S$26,'Calcul Stat'!$K:$K,'Calcul Stat'!$R43)) -> 0 | W43: 0 | X43: =IF($S$26="ALL",SUMIFS('Calcul Stat'!$N:$N,'Calcul Stat'!$K:$K,'Calcul Stat'!$R43),SUMIFS('Calcul Stat'!$N:$N,'Calcul Stat'!$B:$B,$S$26,'Calcul Stat'!$K:$K,'Calcul Stat'!$R43)) -> 0 | Z43: 0
A44: 20 déc. 2021, 11:28:59 | B44: RABENJANAHARY Fanomezantsoa | C44: c3c605b2-cc25-4412-88a8-56ef688cb399 | D44: Accepted | E44: null | F44: 2021-12-20 | G44: 20 | H44: déc. | I44: 2021 | J44: 11:28:59 | K44: 11:00:00 | L44: 00:00:32 | R44: 22:00:00 | S44: =COUNTIFS('Calcul Stat'!$D:$D,'Calcul Stat'!U$29,'Calcul Stat'!$K:$K,'Calcul Stat'!$R44)+COUNTIFS('Calcul Stat'!$D:$D,'Calcul Stat'!V$29,'Calcul Stat'!$K:$K,'Calcul Stat'!$R44) -> 0 | U44: =IF($S$26="ALL",COUNTIFS('Calcul Stat'!$D:$D,'Calcul Stat'!U$29,'Calcul Stat'!$K:$K,'Calcul Stat'!$R44),COUNTIFS('Calcul Stat'!$D:$D,'Calcul Stat'!U$29,'Calcul Stat'!$B:$B,$S$26,'Calcul Stat'!$K:$K,'Calcul Stat'!$R44)) -> 0 | V44: =IF($S$26="ALL",COUNTIFS('Calcul Stat'!$D:$D,'Calcul Stat'!V$29,'Calcul Stat'!$K:$K,'Calcul Stat'!$R44),COUNTIFS('Calcul Stat'!$D:$D,'Calcul Stat'!V$29,'Calcul Stat'!$B:$B,$S$26,'Calcul Stat'!$K:$K,'Calcul Stat'!$R44)) -> 0 | W44: 0 | X44: =IF($S$26="ALL",SUMIFS('Calcul Stat'!$N:$N,'Calcul Stat'!$K:$K,'Calcul Stat'!$R44),SUMIFS('Calcul Stat'!$N:$N,'Calcul Stat'!$B:$B,$S$26,'Calcul Stat'!$K:$K,'Calcul Stat'!$R44)) -> 0 | Z44: 0
A45: 20 déc. 2021, 11:29:18 | B45: RABENJANAHARY Fanomezantsoa | C45: 492d8ab8-2736-4600-9fb6-7931fe9cdfde | D45: Rejected | E45: Factures multiples | F45: 2021-12-20 | G45: 20 | H45: déc. | I45: 2021 | J45: 11:29:18 | K45: 11:00:00 | L45: 00:00:19 | R45: 23:00:00 | S45: =COUNTIFS('Calcul Stat'!$D:$D,'Calcul Stat'!U$29,'Calcul Stat'!$K:$K,'Calcul Stat'!$R45)+COUNTIFS('Calcul Stat'!$D:$D,'Calcul Stat'!V$29,'Calcul Stat'!$K:$K,'Calcul Stat'!$R45) -> 0 | U45: =IF($S$26="ALL",COUNTIFS('Calcul Stat'!$D:$D,'Calcul Stat'!U$29,'Calcul Stat'!$K:$K,'Calcul Stat'!$R45),COUNTIFS('Calcul Stat'!$D:$D,'Calcul Stat'!U$29,'Calcul Stat'!$B:$B,$S$26,'Calcul Stat'!$K:$K,'Calcul Stat'!$R45)) -> 0 | V45: =IF($S$26="ALL",COUNTIFS('Calcul Stat'!$D:$D,'Calcul Stat'!V$29,'Calcul Stat'!$K:$K,'Calcul Stat'!$R45),COUNTIFS('Calcul Stat'!$D:$D,'Calcul Stat'!V$29,'Calcul Stat'!$B:$B,$S$26,'Calcul Stat'!$K:$K,'Calcul Stat'!$R45)) -> 0 | W45: 0 | X45: =IF($S$26="ALL",SUMIFS('Calcul Stat'!$N:$N,'Calcul Stat'!$K:$K,'Calcul Stat'!$R45),SUMIFS('Calcul Stat'!$N:$N,'Calcul Stat'!$B:$B,$S$26,'Calcul Stat'!$K:$K,'Calcul Stat'!$R45)) -> 0
A46: 20 déc. 2021, 11:29:53 | B46: RABENJANAHARY Fanomezantsoa | C46: d5a812ba-a1d5-42e8-94ae-de2f8d0ceed8 | D46: Rejected | E46: Factures multiples | F46: 2021-12-20 | G46: 20 | H46: déc. | I46: 2021 | J46: 11:29:53 | K46: 11:00:00 | L46: 00:00:35
A47: 20 déc. 2021, 11:30:33 | B47: RABENJANAHARY Fanomezantsoa | C47: 7482bae6-4a6a-47e5-8ca3-82b96bbc303b | D47: Accepted | E47: null | F47: 2021-12-20 | G47: 20 | H47: déc. | I47: 2021 | J47: 11:30:33 | K47: 11:00:00 | L47: 00:00:40
A48: 20 déc. 2021, 11:31:03 | B48: RABENJANAHARY Fanomezantsoa | C48: 84d3ea65-354b-4a07-920e-d3897f0dba1c | D48: Accepted | E48: null | F48: 2021-12-20 | G48: 20 | H48: déc. | I48: 2021 | J48: 11:31:03 | K48: 11:00:00 | L48: 00:00:30
A49: 20 déc. 2021, 11:31:51 | B49: RABENJANAHARY Fanomezantsoa | C49: bf810f1e-09cb-4403-a51a-ad79d3a4ade9 | D49: Accepted | E49: null | F49: 2021-12-20 | G49: 20 | H49: déc. | I49: 2021 | J49: 11:31:51 | K49: 11:00:00 | L49: 00:00:48
A50: 20 déc. 2021, 11:32:19 | B50: RABENJANAHARY Fanomezantsoa | C50: 7ef21d0d-f770-4db4-99d4-ef67fe7e58ed | D50: Accepted | E50: null | F50: 2021-12-20 | G50: 20 | H50: déc. | I50: 2021 | J50: 11:32:19 | K50: 11:00:00 | L50: 00:00:28
A51: 20 déc. 2021, 11:32:29 | B51: RABENJANAHARY Fanomezantsoa | C51: db1b5309-41d2-4239-a6fb-496445fe5532 | D51: Rejected | E51: Pas Facture/ Relevée compte bancaire/ Contrat /Logo | F51: 2021-12-20 | G51: 20 | H51: déc. | I51: 2021 | J51: 11:32:29 | K51: 11:00:00 | L51: 00:00:10
A52: 20 déc. 2021, 11:32:42 | B52: RABENJANAHARY Fanomezantsoa | C52: d9f78237-7996-4d4c-b70e-0bc2c81c2eca | D52: Rejected | E52: Pas Facture/ Relevée compte bancaire/ Contrat /Logo | F52: 2021-12-20 | G52: 20 | H52: déc. | I52: 2021 | J52: 11:32:42 | K52: 11:00:00 | L52: 00:00:13
A53: 20 déc. 2021, 11:33:17 | B53: RABENJANAHARY Fanomezantsoa | C53: ef256a36-3e9e-41f6-906d-072dff25a8fe | D53: Accepted | E53: null | F53: 2021-12-20 | G53: 20 | H53: déc. | I53: 2021 | J53: 11:33:17 | K53: 11:00:00 | L53: 00:00:35
A54: 20 déc. 2021, 11:33:46 | B54: RABENJANAHARY Fanomezantsoa | C54: f8fd91df-1a64-4193-a832-c99f68fa44d2 | D54: Accepted | E54: null | F54: 2021-12-20 | G54: 20 | H54: déc. | I54: 2021 | J54: 11:33:46 | K54: 11:00:00 | L54: 00:00:29
A55: 20 déc. 2021, 11:34:19 | B55: RABENJANAHARY Fanomezantsoa | C55: dba5036a-d8ac-4567-951a-1b92f1cb27fe | D55: Accepted | E55: null | F55: 2021-12-20 | G55: 20 | H55: déc. | I55: 2021 | J55: 11:34:19 | K55: 11:00:00 | L55: 00:00:33
A56: 20 déc. 2021, 11:34:57 | B56: RABENJANAHARY Fanomezantsoa | C56: 129391a9-0d83-438c-823c-bdbe4f141cfa | D56: Accepted | E56: null | F56: 2021-12-20 | G56: 20 | H56: déc. | I56: 2021 | J56: 11:34:57 | K56: 11:00:00 | L56: 00:00:38
A57: 20 déc. 2021, 11:35:25 | B57: RABENJANAHARY Fanomezantsoa | C57: 7715af0f-b3ec-448c-872e-7c467e81e1c3 | D57: Accepted | E57: null | F57: 2021-12-20 | G57: 20 | H57: déc. | I57: 2021 | J57: 11:35:25 | K57: 11:00:00 | L57: 00:00:28
A58: 20 déc. 2021, 11:35:58 | B58: RABENJANAHARY Fanomezantsoa | C58: c467ec0d-24b6-40bd-b863-ac85d917c7c7 | D58: Accepted | E58: null | F58: 2021-12-20 | G58: 20 | H58: déc. | I58: 2021 | J58: 11:35:58 | K58: 11:00:00 | L58: 00:00:33
A59: 20 déc. 2021, 11:36:17 | B59: RABENJANAHARY Fanomezantsoa | C59: f65d7512-84b8-4669-8d1c-18c7c8b87799 | D59: Rejected | E59: Page manquante/ Informations incomplètes/ Abscence Montant | F59: 2021-12-20 | G59: 20 | H59: déc. | I59: 2021 | J59: 11:36:17 | K59: 11:00:00 | L59: 00:00:19
A60: 20 déc. 2021, 11:36:41 | B60: RABENJANAHARY Fanomezantsoa | C60: 8add5988-8113-4e1b-96cd-594e377559f5 | D60: Rejected | E60: Pas Facture/ Relevée compte bancaire/ Contrat /Logo | F60: 2021-12-20 | G60: 20 | H60: déc. | I60: 2021 | J60: 11:36:41 | K60: 11:00:00 | L60: 00:00:24
A61: 20 déc. 2021, 11:37:22 | B61: RABENJANAHARY Fanomezantsoa | C61: 5403fc03-6f9a-4ed7-a955-5d5815661ccb | D61: Accepted | E61: null | F61: 2021-12-20 | G61: 20 | H61: déc. | I61: 2021 | J61: 11:37:22 | K61: 11:00:00 | L61: 00:00:41
A62: 20 déc. 2021, 11:38:01 | B62: RABENJANAHARY Fanomezantsoa | C62: 8d7ea9ac-fc93-4d33-9823-6bbc668ab974 | D62: Accepted | E62: null | F62: 2021-12-20 | G62: 20 | H62: déc. | I62: 2021 | J62: 11:38:01 | K62: 11:00:00 | L62: 00:00:39
A63: 20 déc. 2021, 11:38:29 | B63: RABENJANAHARY Fanomezantsoa | C63: 556c8e5c-7353-4253-ae6e-f78a51f379e4 | D63: Rejected | E63: Pas Facture/ Relevée compte bancaire/ Contrat /Logo | F63: 2021-12-20 | G63: 20 | H63: déc. | I63: 2021 | J63: 11:38:29 | K63: 11:00:00 | L63: 00:00:28
A64: 20 déc. 2021, 11:38:43 | B64: RABENJANAHARY Fanomezantsoa | C64: 82c95bb3-e59a-4b46-bf61-0dcdd8b152f9 | D64: Accepted | E64: null | F64: 2021-12-20 | G64: 20 | H64: déc. | I64: 2021 | J64: 11:38:43 | K64: 11:00:00 | L64: 00:00:14
A65: 20 déc. 2021, 11:39:14 | B65: RABENJANAHARY Fanomezantsoa | C65: fb0dc7f2-d7af-42c7-9ba1-6dda161ba1e5 | D65: Accepted | E65: null | F65: 2021-12-20 | G65: 20 | H65: déc. | I65: 2021 | J65: 11:39:14 | K65: 11:00:00 | L65: 00:00:31
A66: 20 déc. 2021, 11:39:30 | B66: RABENJANAHARY Fanomezantsoa | C66: 3ad1f9bb-cee0-4e70-ac32-01da6f24ebf1 | D66: Accepted | E66: null | F66: 2021-12-20 | G66: 20 | H66: déc. | I66: 2021 | J66: 11:39:30 | K66: =INT(J66*24)/24 -> 11:00:00 | L66: =IF(B66=B65,(J66-J65),"") -> 00:00:16 | O66: =IF(B65<>B66,J66,"") -> 
A67: 20 déc. 2021, 11:40:26 | B67: RABENJANAHARY Fanomezantsoa | C67: ef103aa9-83b1-4b70-ba8b-d174138a9e77 | D67: Accepted | E67: null | F67: 2021-12-20 | G67: 20 | H67: déc. | I67: 2021 | J67: 11:40:26 | K67: 11:00:00 | L67: 00:00:56
A68: 20 déc. 2021, 11:41:14 | B68: RABENJANAHARY Fanomezantsoa | C68: d90c5757-d5e6-4b2e-80f6-6e79981fc02e | D68: Accepted | E68: null | F68: 2021-12-20 | G68: 20 | H68: déc. | I68: 2021 | J68: 11:41:14 | K68: 11:00:00 | L68: 00:00:48
A69: 20 déc. 2021, 11:41:49 | B69: RABENJANAHARY Fanomezantsoa | C69: e140fb22-bad5-49ab-b558-f7b3e1fb6f51 | D69: Accepted | E69: null | F69: 2021-12-20 | G69: 20 | H69: déc. | I69: 2021 | J69: 11:41:49 | K69: 11:00:00 | L69: 00:00:35
A70: 20 déc. 2021, 11:42:29 | B70: RABENJANAHARY Fanomezantsoa | C70: a32ef2fe-8869-46c5-9520-728d2b9abe39 | D70: Accepted | E70: null | F70: 2021-12-20 | G70: 20 | H70: déc. | I70: 2021 | J70: 11:42:29 | K70: 11:00:00 | L70: 00:00:40
A71: 20 déc. 2021, 11:42:50 | B71: RABENJANAHARY Fanomezantsoa | C71: bd143b4d-70b8-4fc1-a9a0-71ea3a6c537e | D71: Accepted | E71: null | F71: 2021-12-20 | G71: 20 | H71: déc. | I71: 2021 | J71: 11:42:50 | K71: 11:00:00 | L71: 00:00:21
A72: 20 déc. 2021, 11:43:17 | B72: RABENJANAHARY Fanomezantsoa | C72: 358f8cd0-a5ec-48c5-bf24-ab0bea37ff4f | D72: Accepted | E72: null | F72: 2021-12-20 | G72: 20 | H72: déc. | I72: 2021 | J72: 11:43:17 | K72: 11:00:00 | L72: 00:00:27
A73: 20 déc. 2021, 11:43:36 | B73: RABENJANAHARY Fanomezantsoa | C73: f399b30e-65c3-46e5-8c6a-03916f7e3079 | D73: Accepted | E73: null | F73: 2021-12-20 | G73: 20 | H73: déc. | I73: 2021 | J73: 11:43:36 | K73: 11:00:00 | L73: 00:00:19
A74: 20 déc. 2021, 11:43:59 | B74: RABENJANAHARY Fanomezantsoa | C74: 91eb7400-bc85-46ba-874a-bfe96b6d1033 | D74: Accepted | E74: null | F74: 2021-12-20 | G74: 20 | H74: déc. | I74: 2021 | J74: 11:43:59 | K74: 11:00:00 | L74: 00:00:23
A75: 20 déc. 2021, 11:44:32 | B75: RABENJANAHARY Fanomezantsoa | C75: e0712046-21e4-4c08-8817-fa5591799c28 | D75: Accepted | E75: null | F75: 2021-12-20 | G75: 20 | H75: déc. | I75: 2021 | J75: 11:44:32 | K75: 11:00:00 | L75: 00:00:33
A76: 20 déc. 2021, 11:44:51 | B76: RABENJANAHARY Fanomezantsoa | C76: 0aba7731-92a0-4753-a768-343d207a182d | D76: Rejected | E76: Illisible / Flou | F76: 2021-12-20 | G76: 20 | H76: déc. | I76: 2021 | J76: 11:44:51 | K76: 11:00:00 | L76: 00:00:19
A77: 20 déc. 2021, 11:46:08 | B77: RABENJANAHARY Fanomezantsoa | C77: 1c67418b-e9e3-401c-a9ac-70e5882808a5 | D77: Accepted | E77: null | F77: 2021-12-20 | G77: 20 | H77: déc. | I77: 2021 | J77: 11:46:08 | K77: 11:00:00 | L77: 00:01:17
A78: 20 déc. 2021, 11:46:39 | B78: RABENJANAHARY Fanomezantsoa | C78: 44aaa3d5-89b2-4b48-8a3d-6d744914b3f0 | D78: Accepted | E78: null | F78: 2021-12-20 | G78: 20 | H78: déc. | I78: 2021 | J78: 11:46:39 | K78: 11:00:00 | L78: 00:00:31
A79: 20 déc. 2021, 11:47:02 | B79: RABENJANAHARY Fanomezantsoa | C79: 9d492fcf-0f31-469e-acf2-7c7c96cbc1f3 | D79: Accepted | E79: null | F79: 2021-12-20 | G79: 20 | H79: déc. | I79: 2021 | J79: 11:47:02 | K79: 11:00:00 | L79: 00:00:23
A80: 20 déc. 2021, 11:47:37 | B80: RABENJANAHARY Fanomezantsoa | C80: c1aa5324-3b23-4088-bf1f-ac7fd1d9521e | D80: Accepted | E80: null | F80: 2021-12-20 | G80: 20 | H80: déc. | I80: 2021 | J80: 11:47:37 | K80: 11:00:00 | L80: 00:00:35
A81: 20 déc. 2021, 11:48:14 | B81: RABENJANAHARY Fanomezantsoa | C81: e9b41660-5894-4902-8196-5ff755fbfa4a | D81: Accepted | E81: null | F81: 2021-12-20 | G81: 20 | H81: déc. | I81: 2021 | J81: 11:48:14 | K81: 11:00:00 | L81: 00:00:37
A82: 20 déc. 2021, 11:48:52 | B82: RABENJANAHARY Fanomezantsoa | C82: 71c744c0-f001-4d8e-b892-8b30428457be | D82: Accepted | E82: null | F82: 2021-12-20 | G82: 20 | H82: déc. | I82: 2021 | J82: 11:48:52 | K82: 11:00:00 | L82: 00:00:38
A83: 20 déc. 2021, 11:49:46 | B83: RABENJANAHARY Fanomezantsoa | C83: 38b349cd-e9ea-4346-8875-2c644607bfbb | D83: Accepted | E83: null | F83: 2021-12-20 | G83: 20 | H83: déc. | I83: 2021 | J83: 11:49:46 | K83: 11:00:00 | L83: 00:00:54
A84: 20 déc. 2021, 11:50:01 | B84: RABENJANAHARY Fanomezantsoa | C84: 33968754-7f16-4b1a-bc5d-0cc30ccae081 | D84: Accepted | E84: null | F84: 2021-12-20 | G84: 20 | H84: déc. | I84: 2021 | J84: 11:50:01 | K84: 11:00:00 | L84: 00:00:15
A85: 20 déc. 2021, 11:50:25 | B85: RABENJANAHARY Fanomezantsoa | C85: 65354d96-0490-4484-a239-4a9b9109c40f | D85: Rejected | E85: Page manquante/ Informations incomplètes/ Abscence Montant | F85: 2021-12-20 | G85: 20 | H85: déc. | I85: 2021 | J85: 11:50:25 | K85: 11:00:00 | L85: 00:00:24
A86: 20 déc. 2021, 11:50:56 | B86: RABENJANAHARY Fanomezantsoa | C86: 896e6296-a1f1-4221-bf2c-063e2161ec7c | D86: Accepted | E86: null | F86: 2021-12-20 | G86: 20 | H86: déc. | I86: 2021 | J86: 11:50:56 | K86: 11:00:00 | L86: 00:00:31
A87: 20 déc. 2021, 11:51:29 | B87: RABENJANAHARY Fanomezantsoa | C87: 7204a8b5-a6da-4c07-8f95-e08dbd965500 | D87: Accepted | E87: null | F87: 2021-12-20 | G87: 20 | H87: déc. | I87: 2021 | J87: 11:51:29 | K87: 11:00:00 | L87: 00:00:33
A88: 20 déc. 2021, 11:52:13 | B88: RABENJANAHARY Fanomezantsoa | C88: f568f76c-c739-45aa-9c52-f993db0fb8b0 | D88: Accepted | E88: null | F88: 2021-12-20 | G88: 20 | H88: déc. | I88: 2021 | J88: 11:52:13 | K88: 11:00:00 | L88: 00:00:44
A89: 20 déc. 2021, 11:52:43 | B89: RABENJANAHARY Fanomezantsoa | C89: 1044c366-7478-464e-882b-80eb9e244392 | D89: Accepted | E89: null | F89: 2021-12-20 | G89: 20 | H89: déc. | I89: 2021 | J89: 11:52:43 | K89: 11:00:00 | L89: 00:00:30
A90: 20 déc. 2021, 11:53:06 | B90: RABENJANAHARY Fanomezantsoa | C90: f2a03e9c-0efb-4434-8230-6dbef875271d | D90: Accepted | E90: null | F90: 2021-12-20 | G90: 20 | H90: déc. | I90: 2021 | J90: 11:53:06 | K90: 11:00:00 | L90: 00:00:23
A91: 20 déc. 2021, 11:53:26 | B91: RABENJANAHARY Fanomezantsoa | C91: a2d98136-9873-42f3-98a9-3d0a754ec9a9 | D91: Accepted | E91: null | F91: 2021-12-20 | G91: 20 | H91: déc. | I91: 2021 | J91: 11:53:26 | K91: 11:00:00 | L91: 00:00:20
A92: 20 déc. 2021, 11:53:51 | B92: RABENJANAHARY Fanomezantsoa | C92: 816e111a-a606-4aa8-8314-ee6f8d1a3af5 | D92: Accepted | E92: null | F92: 2021-12-20 | G92: 20 | H92: déc. | I92: 2021 | J92: 11:53:51 | K92: 11:00:00 | L92: 00:00:25
A93: 20 déc. 2021, 11:54:18 | B93: RABENJANAHARY Fanomezantsoa | C93: 5ba32cf0-a882-45d3-94ae-6ff10df49807 | D93: Accepted | E93: null | F93: 2021-12-20 | G93: 20 | H93: déc. | I93: 2021 | J93: 11:54:18 | K93: 11:00:00 | L93: 00:00:27
A94: 20 déc. 2021, 11:55:13 | B94: RABENJANAHARY Fanomezantsoa | C94: 36157ac6-e380-497a-bf58-c50f8221e551 | D94: Accepted | E94: null | F94: 2021-12-20 | G94: 20 | H94: déc. | I94: 2021 | J94: 11:55:13 | K94: 11:00:00 | L94: 00:00:55
A95: 20 déc. 2021, 11:56:07 | B95: RABENJANAHARY Fanomezantsoa | C95: 7527a118-b7d7-4ced-a58f-8703070925ea | D95: Accepted | E95: null | F95: 2021-12-20 | G95: 20 | H95: déc. | I95: 2021 | J95: 11:56:07 | K95: 11:00:00 | L95: 00:00:54
A96: 20 déc. 2021, 11:56:37 | B96: RABENJANAHARY Fanomezantsoa | C96: 69ac0b0f-db2a-4039-b1d6-8ed39bc90ce7 | D96: Accepted | E96: null | F96: 2021-12-20 | G96: 20 | H96: déc. | I96: 2021 | J96: 11:56:37 | K96: 11:00:00 | L96: 00:00:30
A97: 20 déc. 2021, 11:57:04 | B97: RABENJANAHARY Fanomezantsoa | C97: df84c0ba-4c3c-44ad-a46f-1e6f2baf9552 | D97: Rejected | E97: Pas Facture/ Relevée compte bancaire/ Contrat /Logo | F97: 2021-12-20 | G97: 20 | H97: déc. | I97: 2021 | J97: 11:57:04 | K97: 11:00:00 | L97: 00:00:27
A98: 20 déc. 2021, 11:57:54 | B98: RABENJANAHARY Fanomezantsoa | C98: 2cf4cda6-0187-4475-8be0-e95a94323b09 | D98: Accepted | E98: null | F98: 2021-12-20 | G98: 20 | H98: déc. | I98: 2021 | J98: 11:57:54 | K98: 11:00:00 | L98: 00:00:50
A99: 20 déc. 2021, 11:58:50 | B99: RABENJANAHARY Fanomezantsoa | C99: 6371d41f-ce30-4765-9884-4e8ead70b12a | D99: Rejected | E99: Pas Facture/ Relevée compte bancaire/ Contrat /Logo | F99: 2021-12-20 | G99: 20 | H99: déc. | I99: 2021 | J99: 11:58:50 | K99: 11:00:00 | L99: 00:00:56
A100: 20 déc. 2021, 12:00:20 | B100: RABENJANAHARY Fanomezantsoa | C100: 2d78881b-ffbc-4fb4-96c6-6aadddc636b0 | D100: Accepted | E100: null | F100: 2021-12-20 | G100: 20 | H100: déc. | I100: 2021 | J100: 12:00:20 | K100: 12:00:00 | L100: 00:01:30
A101: 20 déc. 2021, 12:00:37 | B101: RABENJANAHARY Fanomezantsoa | C101: 6471a01f-1529-4b8d-8e8c-27ffdbeb002c | D101: Rejected | E101: Pas Facture/ Relevée compte bancaire/ Contrat /Logo | F101: 2021-12-20 | G101: 20 | H101: déc. | I101: 2021 | J101: 12:00:37 | K101: 12:00:00 | L101: 00:00:17
A102: 20 déc. 2021, 12:01:23 | B102: RABENJANAHARY Fanomezantsoa | C102: a9ad2e29-da07-446e-a0b7-795dbc6c85c0 | D102: Accepted | E102: null | F102: 2021-12-20 | G102: 20 | H102: déc. | I102: 2021 | J102: 12:01:23 | K102: 12:00:00 | L102: 00:00:46
A103: 20 déc. 2021, 12:01:33 | B103: RABENJANAHARY Fanomezantsoa | C103: 7535e912-dca8-4e3c-b455-0fe850aaad5a | D103: Rejected | E103: Pas Facture/ Relevée compte bancaire/ Contrat /Logo | F103: 2021-12-20 | G103: 20 | H103: déc. | I103: 2021 | J103: 12:01:33 | K103: 12:00:00 | L103: 00:00:10
A104: 20 déc. 2021, 12:01:42 | B104: RABENJANAHARY Fanomezantsoa | C104: 8784929e-380f-460d-9069-a3fb70fc65a9 | D104: Rejected | E104: Pas Facture/ Relevée compte bancaire/ Contrat /Logo | F104: 2021-12-20 | G104: 20 | H104: déc. | I104: 2021 | J104: 12:01:42 | K104: 12:00:00 | L104: 00:00:09
A105: 20 déc. 2021, 12:01:54 | B105: RABENJANAHARY Fanomezantsoa | C105: 6edd06d3-236e-4412-acad-333ba4560e00 | D105: Rejected | E105: Pas Facture/ Relevée compte bancaire/ Contrat /Logo | F105: 2021-12-20 | G105: 20 | H105: déc. | I105: 2021 | J105: 12:01:54 | K105: 12:00:00 | L105: 00:00:12
A106: 20 déc. 2021, 12:02:25 | B106: RABENJANAHARY Fanomezantsoa | C106: 9bae0629-8372-42d1-b035-3a63db41e607 | D106: Accepted | E106: null | F106: 2021-12-20 | G106: 20 | H106: déc. | I106: 2021 | J106: 12:02:25 | K106: 12:00:00 | L106: 00:00:31
A107: 20 déc. 2021, 12:02:54 | B107: RABENJANAHARY Fanomezantsoa | C107: 313d27cf-2a7e-4938-a3c3-03a5eef1f332 | D107: Accepted | E107: null | F107: 2021-12-20 | G107: 20 | H107: déc. | I107: 2021 | J107: 12:02:54 | K107: 12:00:00 | L107: 00:00:29
A108: 20 déc. 2021, 12:03:23 | B108: RABENJANAHARY Fanomezantsoa | C108: e54957fb-ca4e-4e67-87e5-22b5dd62219b | D108: Accepted | E108: null | F108: 2021-12-20 | G108: 20 | H108: déc. | I108: 2021 | J108: 12:03:23 | K108: 12:00:00 | L108: 00:00:29
A109: 20 déc. 2021, 12:03:58 | B109: RABENJANAHARY Fanomezantsoa | C109: 203f29ce-0dfd-42a5-a5a9-3422bcf0644d | D109: Accepted | E109: null | F109: 2021-12-20 | G109: 20 | H109: déc. | I109: 2021 | J109: 12:03:58 | K109: 12:00:00 | L109: 00:00:35
A110: 20 déc. 2021, 12:04:43 | B110: RABENJANAHARY Fanomezantsoa | C110: 155007da-1c69-403c-b176-c3b9655582a8 | D110: Rejected | E110: Pas Facture/ Relevée compte bancaire/ Contrat /Logo | F110: 2021-12-20 | G110: 20 | H110: déc. | I110: 2021 | J110: 12:04:43 | K110: 12:00:00 | L110: 00:00:45
A111: 20 déc. 2021, 12:05:07 | B111: RABENJANAHARY Fanomezantsoa | C111: 451f722e-4972-4aa7-b882-9e462fc1cef8 | D111: Accepted | E111: null | F111: 2021-12-20 | G111: 20 | H111: déc. | I111: 2021 | J111: 12:05:07 | K111: 12:00:00 | L111: 00:00:24
A112: 20 déc. 2021, 12:05:31 | B112: RABENJANAHARY Fanomezantsoa | C112: 2f6b595a-3993-44b1-8422-c5e9ba1fb215 | D112: Accepted | E112: null | F112: 2021-12-20 | G112: 20 | H112: déc. | I112: 2021 | J112: 12:05:31 | K112: 12:00:00 | L112: 00:00:24
A113: 20 déc. 2021, 12:05:54 | B113: RABENJANAHARY Fanomezantsoa | C113: 50fac827-b9d6-41a3-9810-153383c078fd | D113: Accepted | E113: null | F113: 2021-12-20 | G113: 20 | H113: déc. | I113: 2021 | J113: 12:05:54 | K113: 12:00:00 | L113: 00:00:23
A114: 20 déc. 2021, 12:06:25 | B114: RABENJANAHARY Fanomezantsoa | C114: 29b8d509-a892-43e3-84a6-4fddb3504575 | D114: Accepted | E114: null | F114: 2021-12-20 | G114: 20 | H114: déc. | I114: 2021 | J114: 12:06:25 | K114: 12:00:00 | L114: 00:00:31
A115: 20 déc. 2021, 12:07:22 | B115: RABENJANAHARY Fanomezantsoa | C115: 7b0f9745-83af-47aa-9839-7417dbb384c5 | D115: Accepted | E115: null | F115: 2021-12-20 | G115: 20 | H115: déc. | I115: 2021 | J115: 12:07:22 | K115: 12:00:00 | L115: 00:00:57
A116: 20 déc. 2021, 12:07:42 | B116: RABENJANAHARY Fanomezantsoa | C116: 9dc35e86-2f2c-4851-9ec0-663c4b8342d8 | D116: Accepted | E116: null | F116: 2021-12-20 | G116: 20 | H116: déc. | I116: 2021 | J116: 12:07:42 | K116: 12:00:00 | L116: 00:00:20
A117: 20 déc. 2021, 12:08:05 | B117: RABENJANAHARY Fanomezantsoa | C117: d9f4b806-1a5a-4f3d-9b86-00943af39f0e | D117: Accepted | E117: null | F117: 2021-12-20 | G117: 20 | H117: déc. | I117: 2021 | J117: 12:08:05 | K117: 12:00:00 | L117: 00:00:23
A118: 20 déc. 2021, 12:08:28 | B118: RABENJANAHARY Fanomezantsoa | C118: e6dad072-b3cf-4bb9-9e5e-357dad7f46f3 | D118: Rejected | E118: Pas Facture/ Relevée compte bancaire/ Contrat /Logo | F118: 2021-12-20 | G118: 20 | H118: déc. | I118: 2021 | J118: 12:08:28 | K118: 12:00:00 | L118: 00:00:23
A119: 20 déc. 2021, 12:09:02 | B119: RABENJANAHARY Fanomezantsoa | C119: 2c025321-2524-4bac-ae34-f5280755f9f7 | D119: Accepted | E119: null | F119: 2021-12-20 | G119: 20 | H119: déc. | I119: 2021 | J119: 12:09:02 | K119: 12:00:00 | L119: 00:00:34
A120: 20 déc. 2021, 12:09:23 | B120: RABENJANAHARY Fanomezantsoa | C120: 6c10e217-f57a-43bf-a67e-cbe5dd9f4577 | D120: Accepted | E120: null | F120: 2021-12-20 | G120: 20 | H120: déc. | I120: 2021 | J120: 12:09:23 | K120: 12:00:00 | L120: 00:00:21
A121: 20 déc. 2021, 12:09:43 | B121: RABENJANAHARY Fanomezantsoa | C121: f7fa6100-370e-4ca4-8cac-39bfdb779b44 | D121: Accepted | E121: null | F121: 2021-12-20 | G121: 20 | H121: déc. | I121: 2021 | J121: 12:09:43 | K121: 12:00:00 | L121: 00:00:20
A122: 20 déc. 2021, 12:10:00 | B122: RABENJANAHARY Fanomezantsoa | C122: ea6cdb0a-47f3-4ba2-b096-5713cd3c4951 | D122: Accepted | E122: null | F122: 2021-12-20 | G122: 20 | H122: déc. | I122: 2021 | J122: 12:10:00 | K122: 12:00:00 | L122: 00:00:17
A123: 20 déc. 2021, 12:10:21 | B123: RABENJANAHARY Fanomezantsoa | C123: f703ed60-7d2a-4815-8e68-ba3283f6229d | D123: Accepted | E123: null | F123: 2021-12-20 | G123: 20 | H123: déc. | I123: 2021 | J123: 12:10:21 | K123: 12:00:00 | L123: 00:00:21
A124: 20 déc. 2021, 12:10:47 | B124: RABENJANAHARY Fanomezantsoa | C124: d5e4091c-794b-4b4e-a08b-3061d4ffbe3f | D124: Accepted | E124: null | F124: 2021-12-20 | G124: 20 | H124: déc. | I124: 2021 | J124: 12:10:47 | K124: 12:00:00 | L124: 00:00:26
A125: 20 déc. 2021, 12:11:28 | B125: RABENJANAHARY Fanomezantsoa | C125: 279279ea-04ca-455f-b750-79881418d290 | D125: Accepted | E125: null | F125: 2021-12-20 | G125: 20 | H125: déc. | I125: 2021 | J125: 12:11:28 | K125: 12:00:00 | L125: 00:00:41
A126: 20 déc. 2021, 12:12:00 | B126: RABENJANAHARY Fanomezantsoa | C126: 313913fc-046f-4d31-afa8-565b6b3e1037 | D126: Accepted | E126: null | F126: 2021-12-20 | G126: 20 | H126: déc. | I126: 2021 | J126: 12:12:00 | K126: 12:00:00 | L126: 00:00:32
A127: 20 déc. 2021, 12:12:50 | B127: RABENJANAHARY Fanomezantsoa | C127: a8e64174-db3f-4fa1-a213-466d2170bd0d | D127: Accepted | E127: null | F127: 2021-12-20 | G127: 20 | H127: déc. | I127: 2021 | J127: 12:12:50 | K127: 12:00:00 | L127: 00:00:50
A128: 20 déc. 2021, 12:13:13 | B128: RABENJANAHARY Fanomezantsoa | C128: 84ae254a-5d90-429c-9cbb-40d24d52ccdf | D128: Accepted | E128: null | F128: 2021-12-20 | G128: 20 | H128: déc. | I128: 2021 | J128: 12:13:13 | K128: 12:00:00 | L128: 00:00:23
A129: 20 déc. 2021, 12:13:58 | B129: RABENJANAHARY Fanomezantsoa | C129: 563b41d3-c94b-4d6b-b46c-2dab44e63a85 | D129: Accepted | E129: null | F129: 2021-12-20 | G129: 20 | H129: déc. | I129: 2021 | J129: 12:13:58 | K129: 12:00:00 | L129: 00:00:45
A130: 20 déc. 2021, 12:14:36 | B130: RABENJANAHARY Fanomezantsoa | C130: 2e9cfcdb-3047-44e4-8e20-c45f14588b8b | D130: Accepted | E130: null | F130: 2021-12-20 | G130: 20 | H130: déc. | I130: 2021 | J130: 12:14:36 | K130: =INT(J130*24)/24 -> 12:00:00 | L130: =IF(B130=B129,(J130-J129),"") -> 00:00:38 | O130: =IF(B129<>B130,J130,"") -> 
A131: 20 déc. 2021, 12:15:00 | B131: RABENJANAHARY Fanomezantsoa | C131: 009566c7-192f-4573-8dd2-011e11b9c5fa | D131: Accepted | E131: null | F131: 2021-12-20 | G131: 20 | H131: déc. | I131: 2021 | J131: 12:15:00 | K131: 12:00:00 | L131: 00:00:24
A132: 20 déc. 2021, 12:15:25 | B132: RABENJANAHARY Fanomezantsoa | C132: e87fcf0f-4305-4c27-9566-1fe7dd7d24f5 | D132: Rejected | E132: Page manquante/ Informations incomplètes/ Abscence Montant | F132: 2021-12-20 | G132: 20 | H132: déc. | I132: 2021 | J132: 12:15:25 | K132: 12:00:00 | L132: 00:00:25
A133: 20 déc. 2021, 12:15:43 | B133: RABENJANAHARY Fanomezantsoa | C133: 25dc44c2-6597-4f2b-bec7-40e59005cf06 | D133: Rejected | E133: Page manquante/ Informations incomplètes/ Abscence Montant | F133: 2021-12-20 | G133: 20 | H133: déc. | I133: 2021 | J133: 12:15:43 | K133: 12:00:00 | L133: 00:00:18
A134: 20 déc. 2021, 12:16:14 | B134: RABENJANAHARY Fanomezantsoa | C134: 724c57cf-4f2a-4437-a306-b3100432faa4 | D134: Rejected | E134: Page manquante/ Informations incomplètes/ Abscence Montant | F134: 2021-12-20 | G134: 20 | H134: déc. | I134: 2021 | J134: 12:16:14 | K134: 12:00:00 | L134: 00:00:31
A135: 20 déc. 2021, 12:16:45 | B135: RABENJANAHARY Fanomezantsoa | C135: cb9c7fd2-e3a5-4cec-bd89-9917b3051a8d | D135: Accepted | E135: null | F135: 2021-12-20 | G135: 20 | H135: déc. | I135: 2021 | J135: 12:16:45 | K135: 12:00:00 | L135: 00:00:31
A136: 20 déc. 2021, 12:17:05 | B136: RABENJANAHARY Fanomezantsoa | C136: bb492a69-860d-4fb2-9385-15c3630ca047 | D136: Rejected | E136: Factures multiples | F136: 2021-12-20 | G136: 20 | H136: déc. | I136: 2021 | J136: 12:17:05 | K136: 12:00:00 | L136: 00:00:20
A137: 20 déc. 2021, 12:17:54 | B137: RABENJANAHARY Fanomezantsoa | C137: 80bfaea6-517a-404b-a452-bf30637476a0 | D137: Accepted | E137: null | F137: 2021-12-20 | G137: 20 | H137: déc. | I137: 2021 | J137: 12:17:54 | K137: 12:00:00 | L137: 00:00:49
A138: 20 déc. 2021, 12:18:21 | B138: RABENJANAHARY Fanomezantsoa | C138: c7d9610d-db84-478a-989c-c17429f92a6c | D138: Accepted | E138: null | F138: 2021-12-20 | G138: 20 | H138: déc. | I138: 2021 | J138: 12:18:21 | K138: 12:00:00 | L138: 00:00:27
A139: 20 déc. 2021, 12:18:35 | B139: RABENJANAHARY Fanomezantsoa | C139: a375ec0a-21f1-4d90-9c12-0b5ed800e3cf | D139: Accepted | E139: null | F139: 2021-12-20 | G139: 20 | H139: déc. | I139: 2021 | J139: 12:18:35 | K139: 12:00:00 | L139: 00:00:14
A140: 20 déc. 2021, 12:19:21 | B140: RABENJANAHARY Fanomezantsoa | C140: 592aab15-40ce-4a87-b936-50709b72c07a | D140: Accepted | E140: null | F140: 2021-12-20 | G140: 20 | H140: déc. | I140: 2021 | J140: 12:19:21 | K140: 12:00:00 | L140: 00:00:46
A141: 20 déc. 2021, 12:19:49 | B141: RABENJANAHARY Fanomezantsoa | C141: 008517e3-46f9-43f7-aa64-917d0188a49c | D141: Accepted | E141: null | F141: 2021-12-20 | G141: 20 | H141: déc. | I141: 2021 | J141: 12:19:49 | K141: 12:00:00 | L141: 00:00:28
A142: 20 déc. 2021, 12:20:36 | B142: RABENJANAHARY Fanomezantsoa | C142: 42f2aa07-78a1-4a6a-9845-d35d051213a6 | D142: Accepted | E142: null | F142: 2021-12-20 | G142: 20 | H142: déc. | I142: 2021 | J142: 12:20:36 | K142: 12:00:00 | L142: 00:00:47
A143: 20 déc. 2021, 12:21:06 | B143: RABENJANAHARY Fanomezantsoa | C143: 0e15534b-218d-4db1-9c43-7f1406a0a8ea | D143: Rejected | E143: Page manquante/ Informations incomplètes/ Abscence Montant | F143: 2021-12-20 | G143: 20 | H143: déc. | I143: 2021 | J143: 12:21:06 | K143: 12:00:00 | L143: 00:00:30
A144: 20 déc. 2021, 12:21:40 | B144: RABENJANAHARY Fanomezantsoa | C144: 6b0bc236-a77c-40e9-acd5-47c9e64711ff | D144: Accepted | E144: null | F144: 2021-12-20 | G144: 20 | H144: déc. | I144: 2021 | J144: 12:21:40 | K144: 12:00:00 | L144: 00:00:34
A145: 20 déc. 2021, 12:22:18 | B145: RABENJANAHARY Fanomezantsoa | C145: 222b6832-dcdf-4fe3-9426-597f17f5f831 | D145: Accepted | E145: null | F145: 2021-12-20 | G145: 20 | H145: déc. | I145: 2021 | J145: 12:22:18 | K145: 12:00:00 | L145: 00:00:38
A146: 20 déc. 2021, 12:23:15 | B146: RABENJANAHARY Fanomezantsoa | C146: 79c84075-751a-4900-b5e5-ae06883a19f6 | D146: Accepted | E146: null | F146: 2021-12-20 | G146: 20 | H146: déc. | I146: 2021 | J146: 12:23:15 | K146: 12:00:00 | L146: 00:00:57
A147: 20 déc. 2021, 12:23:32 | B147: RABENJANAHARY Fanomezantsoa | C147: 2467b02b-774b-4eca-94b6-a5856cd4d548 | D147: Accepted | E147: null | F147: 2021-12-20 | G147: 20 | H147: déc. | I147: 2021 | J147: 12:23:32 | K147: 12:00:00 | L147: 00:00:17
A148: 20 déc. 2021, 12:23:58 | B148: RABENJANAHARY Fanomezantsoa | C148: 642c35ed-4b99-4f07-b0b5-248dfc299b63 | D148: Accepted | E148: null | F148: 2021-12-20 | G148: 20 | H148: déc. | I148: 2021 | J148: 12:23:58 | K148: 12:00:00 | L148: 00:00:26
A149: 20 déc. 2021, 12:24:40 | B149: RABENJANAHARY Fanomezantsoa | C149: 21befe81-4679-4428-bcc8-73414f7d5b3a | D149: Accepted | E149: null | F149: 2021-12-20 | G149: 20 | H149: déc. | I149: 2021 | J149: 12:24:40 | K149: 12:00:00 | L149: 00:00:42
